Workbook

Sheet NDD
A1: gene | B1: LoF | C1: missense | D1: # repeat missense variants | E1: # repeatedly affected residues in transcript | F1: Dmis (gMVP_rank > .85) | G1: Dmis (CADD > 25) | H1: gMVP Dmis Poisson test | I1: gMVP Dmis scaled clustering p-value | J1: gMVP AlphaCluster pvalue | K1: CADD Dmis Poisson test | L1: CADD Dmis scaled clustering p-value | M1: CADD AlphaCluster pvalue | N1: Kaplanis missense | O1: Missense novel | P1: Kaplanis DeNovoWEST | Q1: DenovoWEST novel | R1: DDD Status | S1: NDD novel | T1: DDG2P | U1: DDG2P confidence | V1: Novel DDG2P
A2: DDX3X | B2: =VLOOKUP(A2,NDD_Kaplanis!A:AI,6,FALSE)+VLOOKUP(A2,NDD_Kaplanis!A:AI,13,FALSE)+VLOOKUP(A2,NDD_Kaplanis!A:AI,14,FALSE)+VLOOKUP(A2,NDD_Kaplanis!A:AI,15,FALSE) -> 51 | C2: =VLOOKUP(A2,NDD_Kaplanis!A:AI,10,FALSE) -> 72 | D2: =_xlfn.IFNA(VLOOKUP(A2,NDD_repeat_variants!A:F,6,FALSE),0) -> 6 | E2: =_xlfn.IFNA(VLOOKUP(A2,NDD_repeat_residues!A:F,5,FALSE),0) -> 26 | F2: =VLOOKUP(A2,NDD.gMVP!A:E,3,FALSE) -> 72 | G2: =IF(VLOOKUP(A2,NDD.CADD!A:F,3,FALSE)=0,"",VLOOKUP(A2,NDD.CADD!A:F,3,FALSE)) -> 59 | H2: =VLOOKUP(A2,'NDD.gMVP.pois'!A:E,5,FALSE) -> 2.09E-118 | I2: =IF(VLOOKUP(A2,'NDD.gMVP.cluster'!A:E,5,FALSE)=0,"",VLOOKUP(A2,'NDD.gMVP.cluster'!A:E,5,FALSE)) -> 1.25E-08 | J2: =VLOOKUP(A2,NDD.gMVP!A:E,5, FALSE) -> 2.09E-118 | K2: =VLOOKUP(A2,'NDD.CADD.pois'!A:E,5,FALSE) -> 4.11E-109 | L2: =IF(VLOOKUP(A2,'NDD.CADD.cluster'!A:E,5,FALSE)=0,"",VLOOKUP(A2,'NDD.CADD.cluster'!A:E,5,FALSE)) -> 1.25E-08 | M2: =VLOOKUP(A2,NDD.CADD!A:F,5,FALSE) -> 4.11E-109 | N2: =VLOOKUP(A2,NDD_Kaplanis!A:AI,25,FALSE) -> 5.22E-21 | O2: =AND(N2>0.0000025,OR(J2<0.0000025)) -> FALSE | P2: =VLOOKUP(A2,NDD_Kaplanis!A:AI,26,FALSE) -> 5.22E-21 | Q2: =AND(OR(J2<0.0000025),P2>0.0000025) -> FALSE | R2: =VLOOKUP(A2,NDD_Kaplanis!A:D,4,FALSE) -> consensus | S2: =AND(OR(R2="discordant", R2="none"),OR(J2<0.0000025)) -> FALSE | T2: =VLOOKUP(A2,DDG2P_3_5_2022!A:E,3,FALSE) -> INTELLECTUAL DISABILITY | U2: =VLOOKUP(A2,DDG2P_3_5_2022!A:E,5,FALSE) -> definitive | V2: =AND(ISNA(T2),OR(J2<0.0000025)) -> FALSE | W2: =N2/J2 -> 2.49E+97
A3: MECP2 | B3: =VLOOKUP(A3,NDD_Kaplanis!A:AI,6,FALSE)+VLOOKUP(A3,NDD_Kaplanis!A:AI,13,FALSE)+VLOOKUP(A3,NDD_Kaplanis!A:AI,14,FALSE)+VLOOKUP(A3,NDD_Kaplanis!A:AI,15,FALSE) -> 53 | C3: =VLOOKUP(A3,NDD_Kaplanis!A:AI,10,FALSE) -> 45 | D3: =_xlfn.IFNA(VLOOKUP(A3,NDD_repeat_variants!A:F,6,FALSE),0) -> 7 | E3: =_xlfn.IFNA(VLOOKUP(A3,NDD_repeat_residues!A:F,5,FALSE),0) -> 0 | F3: =VLOOKUP(A3,NDD.gMVP!A:E,3,FALSE) -> 38 | G3: =IF(VLOOKUP(A3,NDD.CADD!A:F,3,FALSE)=0,"",VLOOKUP(A3,NDD.CADD!A:F,3,FALSE)) -> 37 | H3: =VLOOKUP(A3,'NDD.gMVP.pois'!A:E,5,FALSE) -> 1.79E-78 | I3: =IF(VLOOKUP(A3,'NDD.gMVP.cluster'!A:E,5,FALSE)=0,"",VLOOKUP(A3,'NDD.gMVP.cluster'!A:E,5,FALSE)) ->  | J3: =VLOOKUP(A3,NDD.gMVP!A:E,5, FALSE) -> 1.79E-78 | K3: =VLOOKUP(A3,'NDD.CADD.pois'!A:E,5,FALSE) -> 3.03E-72 | L3: =IF(VLOOKUP(A3,'NDD.CADD.cluster'!A:E,5,FALSE)=0,"",VLOOKUP(A3,'NDD.CADD.cluster'!A:E,5,FALSE)) -> 1.25E-08 | M3: =VLOOKUP(A3,NDD.CADD!A:F,5,FALSE) -> 3.03E-72 | N3: =VLOOKUP(A3,NDD_Kaplanis!A:AI,25,FALSE) -> 5.22E-21 | O3: =AND(N3>0.0000025,OR(J3<0.0000025)) -> FALSE | P3: =VLOOKUP(A3,NDD_Kaplanis!A:AI,26,FALSE) -> 5.22E-21 | Q3: =AND(OR(J3<0.0000025),P3>0.0000025) -> FALSE | R3: =VLOOKUP(A3,NDD_Kaplanis!A:D,4,FALSE) -> consensus | S3: =AND(OR(R3="discordant", R3="none"),OR(J3<0.0000025)) -> FALSE | T3: =VLOOKUP(A3,DDG2P_3_5_2022!A:E,3,FALSE) -> RETT SYNDROME (RTT) | U3: =VLOOKUP(A3,DDG2P_3_5_2022!A:E,5,FALSE) -> definitive | V3: =AND(ISNA(T3),OR(J3<0.0000025)) -> FALSE | W3: =N3/J3 -> 2.92E+57
A4: KCNQ2 | B4: =VLOOKUP(A4,NDD_Kaplanis!A:AI,6,FALSE)+VLOOKUP(A4,NDD_Kaplanis!A:AI,13,FALSE)+VLOOKUP(A4,NDD_Kaplanis!A:AI,14,FALSE)+VLOOKUP(A4,NDD_Kaplanis!A:AI,15,FALSE) -> 0 | C4: =VLOOKUP(A4,NDD_Kaplanis!A:AI,10,FALSE) -> 61 | D4: =_xlfn.IFNA(VLOOKUP(A4,NDD_repeat_variants!A:F,6,FALSE),0) -> 3 | E4: =_xlfn.IFNA(VLOOKUP(A4,NDD_repeat_residues!A:F,5,FALSE),0) -> 0 | F4: =VLOOKUP(A4,NDD.gMVP!A:E,3,FALSE) -> 61 | G4: =IF(VLOOKUP(A4,NDD.CADD!A:F,3,FALSE)=0,"",VLOOKUP(A4,NDD.CADD!A:F,3,FALSE)) -> 41 | H4: =VLOOKUP(A4,'NDD.gMVP.pois'!A:E,5,FALSE) -> 9.47E-78 | I4: =IF(VLOOKUP(A4,'NDD.gMVP.cluster'!A:E,5,FALSE)=0,"",VLOOKUP(A4,'NDD.gMVP.cluster'!A:E,5,FALSE)) -> 1.25E-08 | J4: =VLOOKUP(A4,NDD.gMVP!A:E,5, FALSE) -> 9.47E-78 | K4: =VLOOKUP(A4,'NDD.CADD.pois'!A:E,5,FALSE) -> 9.65E-52 | L4: =IF(VLOOKUP(A4,'NDD.CADD.cluster'!A:E,5,FALSE)=0,"",VLOOKUP(A4,'NDD.CADD.cluster'!A:E,5,FALSE)) -> 1.25E-08 | M4: =VLOOKUP(A4,NDD.CADD!A:F,5,FALSE) -> 9.65E-52 | N4: =VLOOKUP(A4,NDD_Kaplanis!A:AI,25,FALSE) -> 5.22E-21 | O4: =AND(N4>0.0000025,OR(J4<0.0000025)) -> FALSE | P4: =VLOOKUP(A4,NDD_Kaplanis!A:AI,26,FALSE) -> 5.22E-21 | Q4: =AND(OR(J4<0.0000025),P4>0.0000025) -> FALSE | R4: =VLOOKUP(A4,NDD_Kaplanis!A:D,4,FALSE) -> consensus | S4: =AND(OR(R4="discordant", R4="none"),OR(J4<0.0000025)) -> FALSE | T4: =VLOOKUP(A4,DDG2P_3_5_2022!A:E,3,FALSE) -> BENIGN NEONATAL EPILEPSY TYPE 1 | U4: =VLOOKUP(A4,DDG2P_3_5_2022!A:E,5,FALSE) -> definitive | V4: =AND(ISNA(T4),OR(J4<0.0000025)) -> FALSE | W4: =N4/J4 -> 5.51E+56
A5: PTPN11 | B5: =VLOOKUP(A5,NDD_Kaplanis!A:AI,6,FALSE)+VLOOKUP(A5,NDD_Kaplanis!A:AI,13,FALSE)+VLOOKUP(A5,NDD_Kaplanis!A:AI,14,FALSE)+VLOOKUP(A5,NDD_Kaplanis!A:AI,15,FALSE) -> 0 | C5: =VLOOKUP(A5,NDD_Kaplanis!A:AI,10,FALSE) -> 62 | D5: =_xlfn.IFNA(VLOOKUP(A5,NDD_repeat_variants!A:F,6,FALSE),0) -> 7 | E5: =_xlfn.IFNA(VLOOKUP(A5,NDD_repeat_residues!A:F,5,FALSE),0) -> 0 | F5: =VLOOKUP(A5,NDD.gMVP!A:E,3,FALSE) -> 44 | G5: =IF(VLOOKUP(A5,NDD.CADD!A:F,3,FALSE)=0,"",VLOOKUP(A5,NDD.CADD!A:F,3,FALSE)) -> 40 | H5: =VLOOKUP(A5,'NDD.gMVP.pois'!A:E,5,FALSE) -> 1.39E-67 | I5: =IF(VLOOKUP(A5,'NDD.gMVP.cluster'!A:E,5,FALSE)=0,"",VLOOKUP(A5,'NDD.gMVP.cluster'!A:E,5,FALSE)) -> 1.25E-08 | J5: =VLOOKUP(A5,NDD.gMVP!A:E,5, FALSE) -> 1.39E-67 | K5: =VLOOKUP(A5,'NDD.CADD.pois'!A:E,5,FALSE) -> 2.05E-63 | L5: =IF(VLOOKUP(A5,'NDD.CADD.cluster'!A:E,5,FALSE)=0,"",VLOOKUP(A5,'NDD.CADD.cluster'!A:E,5,FALSE)) -> 1.25E-08 | M5: =VLOOKUP(A5,NDD.CADD!A:F,5,FALSE) -> 2.05E-63 | N5: =VLOOKUP(A5,NDD_Kaplanis!A:AI,25,FALSE) -> 8.38E-18 | O5: =AND(N5>0.0000025,OR(J5<0.0000025)) -> FALSE | P5: =VLOOKUP(A5,NDD_Kaplanis!A:AI,26,FALSE) -> 8.38E-18 | Q5: =AND(OR(J5<0.0000025),P5>0.0000025) -> FALSE | R5: =VLOOKUP(A5,NDD_Kaplanis!A:D,4,FALSE) -> consensus | S5: =AND(OR(R5="discordant", R5="none"),OR(J5<0.0000025)) -> FALSE | T5: =VLOOKUP(A5,DDG2P_3_5_2022!A:E,3,FALSE) -> LEOPARD SYNDROME TYPE 1 | U5: =VLOOKUP(A5,DDG2P_3_5_2022!A:E,5,FALSE) -> definitive | V5: =AND(ISNA(T5),OR(J5<0.0000025)) -> FALSE | W5: =N5/J5 -> 6.03E+49
A6: STXBP1 | B6: =VLOOKUP(A6,NDD_Kaplanis!A:AI,6,FALSE)+VLOOKUP(A6,NDD_Kaplanis!A:AI,13,FALSE)+VLOOKUP(A6,NDD_Kaplanis!A:AI,14,FALSE)+VLOOKUP(A6,NDD_Kaplanis!A:AI,15,FALSE) -> 28 | C6: =VLOOKUP(A6,NDD_Kaplanis!A:AI,10,FALSE) -> 47 | D6: =_xlfn.IFNA(VLOOKUP(A6,NDD_repeat_variants!A:F,6,FALSE),0) -> 3 | E6: =_xlfn.IFNA(VLOOKUP(A6,NDD_repeat_residues!A:F,5,FALSE),0) -> 0 | F6: =VLOOKUP(A6,NDD.gMVP!A:E,3,FALSE) -> 47 | G6: =IF(VLOOKUP(A6,NDD.CADD!A:F,3,FALSE)=0,"",VLOOKUP(A6,NDD.CADD!A:F,3,FALSE)) -> 43 | H6: =VLOOKUP(A6,'NDD.gMVP.pois'!A:E,5,FALSE) -> 1.85E-62 | I6: =IF(VLOOKUP(A6,'NDD.gMVP.cluster'!A:E,5,FALSE)=0,"",VLOOKUP(A6,'NDD.gMVP.cluster'!A:E,5,FALSE)) -> 1.25E-08 | J6: =VLOOKUP(A6,NDD.gMVP!A:E,5, FALSE) -> 1.85E-62 | K6: =VLOOKUP(A6,'NDD.CADD.pois'!A:E,5,FALSE) -> 3.81E-64 | L6: =IF(VLOOKUP(A6,'NDD.CADD.cluster'!A:E,5,FALSE)=0,"",VLOOKUP(A6,'NDD.CADD.cluster'!A:E,5,FALSE)) -> 1.25E-08 | M6: =VLOOKUP(A6,NDD.CADD!A:F,5,FALSE) -> 3.81E-64 | N6: =VLOOKUP(A6,NDD_Kaplanis!A:AI,25,FALSE) -> 1.09E-16 | O6: =AND(N6>0.0000025,OR(J6<0.0000025)) -> FALSE | P6: =VLOOKUP(A6,NDD_Kaplanis!A:AI,26,FALSE) -> 1.09E-16 | Q6: =AND(OR(J6<0.0000025),P6>0.0000025) -> FALSE | R6: =VLOOKUP(A6,NDD_Kaplanis!A:D,4,FALSE) -> consensus | S6: =AND(OR(R6="discordant", R6="none"),OR(J6<0.0000025)) -> FALSE | T6: =VLOOKUP(A6,DDG2P_3_5_2022!A:E,3,FALSE) -> EPILEPTIC ENCEPHALOPATHY EARLY INFANTILE TYPE 4 | U6: =VLOOKUP(A6,DDG2P_3_5_2022!A:E,5,FALSE) -> definitive | V6: =AND(ISNA(T6),OR(J6<0.0000025)) -> FALSE | W6: =N6/J6 -> 5.92E+45
A7: GRIN2B | B7: =VLOOKUP(A7,NDD_Kaplanis!A:AI,6,FALSE)+VLOOKUP(A7,NDD_Kaplanis!A:AI,13,FALSE)+VLOOKUP(A7,NDD_Kaplanis!A:AI,14,FALSE)+VLOOKUP(A7,NDD_Kaplanis!A:AI,15,FALSE) -> 10 | C7: =VLOOKUP(A7,NDD_Kaplanis!A:AI,10,FALSE) -> 57 | D7: =_xlfn.IFNA(VLOOKUP(A7,NDD_repeat_variants!A:F,6,FALSE),0) -> 9 | E7: =_xlfn.IFNA(VLOOKUP(A7,NDD_repeat_residues!A:F,5,FALSE),0) -> 0 | F7: =VLOOKUP(A7,NDD.gMVP!A:E,3,FALSE) -> 53 | G7: =IF(VLOOKUP(A7,NDD.CADD!A:F,3,FALSE)=0,"",VLOOKUP(A7,NDD.CADD!A:F,3,FALSE)) -> 38 | H7: =VLOOKUP(A7,'NDD.gMVP.pois'!A:E,5,FALSE) -> 4.78E-59 | I7: =IF(VLOOKUP(A7,'NDD.gMVP.cluster'!A:E,5,FALSE)=0,"",VLOOKUP(A7,'NDD.gMVP.cluster'!A:E,5,FALSE)) -> 1.25E-08 | J7: =VLOOKUP(A7,NDD.gMVP!A:E,5, FALSE) -> 4.78E-59 | K7: =VLOOKUP(A7,'NDD.CADD.pois'!A:E,5,FALSE) -> 4.91E-44 | L7: =IF(VLOOKUP(A7,'NDD.CADD.cluster'!A:E,5,FALSE)=0,"",VLOOKUP(A7,'NDD.CADD.cluster'!A:E,5,FALSE)) -> 1.25E-08 | M7: =VLOOKUP(A7,NDD.CADD!A:F,5,FALSE) -> 4.91E-44 | N7: =VLOOKUP(A7,NDD_Kaplanis!A:AI,25,FALSE) -> 5.22E-21 | O7: =AND(N7>0.0000025,OR(J7<0.0000025)) -> FALSE | P7: =VLOOKUP(A7,NDD_Kaplanis!A:AI,26,FALSE) -> 5.22E-21 | Q7: =AND(OR(J7<0.0000025),P7>0.0000025) -> FALSE | R7: =VLOOKUP(A7,NDD_Kaplanis!A:D,4,FALSE) -> consensus | S7: =AND(OR(R7="discordant", R7="none"),OR(J7<0.0000025)) -> FALSE | T7: =VLOOKUP(A7,DDG2P_3_5_2022!A:E,3,FALSE) -> INTELLECTUAL DEVELOPMENTAL DISORDER, AUTOSOMAL DOMINANT 6 | U7: =VLOOKUP(A7,DDG2P_3_5_2022!A:E,5,FALSE) -> definitive | V7: =AND(ISNA(T7),OR(J7<0.0000025)) -> FALSE | W7: =N7/J7 -> 1.09E+38
A8: SCN2A | B8: =VLOOKUP(A8,NDD_Kaplanis!A:AI,6,FALSE)+VLOOKUP(A8,NDD_Kaplanis!A:AI,13,FALSE)+VLOOKUP(A8,NDD_Kaplanis!A:AI,14,FALSE)+VLOOKUP(A8,NDD_Kaplanis!A:AI,15,FALSE) -> 21 | C8: =VLOOKUP(A8,NDD_Kaplanis!A:AI,10,FALSE) -> 58 | D8: =_xlfn.IFNA(VLOOKUP(A8,NDD_repeat_variants!A:F,6,FALSE),0) -> 1 | E8: =_xlfn.IFNA(VLOOKUP(A8,NDD_repeat_residues!A:F,5,FALSE),0) -> 0 | F8: =VLOOKUP(A8,NDD.gMVP!A:E,3,FALSE) -> 53 | G8: =IF(VLOOKUP(A8,NDD.CADD!A:F,3,FALSE)=0,"",VLOOKUP(A8,NDD.CADD!A:F,3,FALSE)) -> 50 | H8: =VLOOKUP(A8,'NDD.gMVP.pois'!A:E,5,FALSE) -> 1.39E-56 | I8: =IF(VLOOKUP(A8,'NDD.gMVP.cluster'!A:E,5,FALSE)=0,"",VLOOKUP(A8,'NDD.gMVP.cluster'!A:E,5,FALSE)) -> 1.25E-08 | J8: =VLOOKUP(A8,NDD.gMVP!A:E,5, FALSE) -> 1.39E-56 | K8: =VLOOKUP(A8,'NDD.CADD.pois'!A:E,5,FALSE) -> 4.06E-58 | L8: =IF(VLOOKUP(A8,'NDD.CADD.cluster'!A:E,5,FALSE)=0,"",VLOOKUP(A8,'NDD.CADD.cluster'!A:E,5,FALSE)) -> 1.25E-08 | M8: =VLOOKUP(A8,NDD.CADD!A:F,5,FALSE) -> 4.06E-58 | N8: =VLOOKUP(A8,NDD_Kaplanis!A:AI,25,FALSE) -> 9.41E-16 | O8: =AND(N8>0.0000025,OR(J8<0.0000025)) -> FALSE | P8: =VLOOKUP(A8,NDD_Kaplanis!A:AI,26,FALSE) -> 9.41E-16 | Q8: =AND(OR(J8<0.0000025),P8>0.0000025) -> FALSE | R8: =VLOOKUP(A8,NDD_Kaplanis!A:D,4,FALSE) -> consensus | S8: =AND(OR(R8="discordant", R8="none"),OR(J8<0.0000025)) -> FALSE | T8: =VLOOKUP(A8,DDG2P_3_5_2022!A:E,3,FALSE) -> NONSPECIFIC SEVERE ID | U8: =VLOOKUP(A8,DDG2P_3_5_2022!A:E,5,FALSE) -> definitive | V8: =AND(ISNA(T8),OR(J8<0.0000025)) -> FALSE | W8: =N8/J8 -> 6.78E+40
A9: CREBBP | B9: =VLOOKUP(A9,NDD_Kaplanis!A:AI,6,FALSE)+VLOOKUP(A9,NDD_Kaplanis!A:AI,13,FALSE)+VLOOKUP(A9,NDD_Kaplanis!A:AI,14,FALSE)+VLOOKUP(A9,NDD_Kaplanis!A:AI,15,FALSE) -> 9 | C9: =VLOOKUP(A9,NDD_Kaplanis!A:AI,10,FALSE) -> 57 | D9: =_xlfn.IFNA(VLOOKUP(A9,NDD_repeat_variants!A:F,6,FALSE),0) -> 3 | E9: =_xlfn.IFNA(VLOOKUP(A9,NDD_repeat_residues!A:F,5,FALSE),0) -> 13 | F9: =VLOOKUP(A9,NDD.gMVP!A:E,3,FALSE) -> 47 | G9: =IF(VLOOKUP(A9,NDD.CADD!A:F,3,FALSE)=0,"",VLOOKUP(A9,NDD.CADD!A:F,3,FALSE)) -> 49 | H9: =VLOOKUP(A9,'NDD.gMVP.pois'!A:E,5,FALSE) -> 9.95E-54 | I9: =IF(VLOOKUP(A9,'NDD.gMVP.cluster'!A:E,5,FALSE)=0,"",VLOOKUP(A9,'NDD.gMVP.cluster'!A:E,5,FALSE)) -> 1.25E-08 | J9: =VLOOKUP(A9,NDD.gMVP!A:E,5, FALSE) -> 9.95E-54 | K9: =VLOOKUP(A9,'NDD.CADD.pois'!A:E,5,FALSE) -> 1.12E-48 | L9: =IF(VLOOKUP(A9,'NDD.CADD.cluster'!A:E,5,FALSE)=0,"",VLOOKUP(A9,'NDD.CADD.cluster'!A:E,5,FALSE)) -> 1.25E-08 | M9: =VLOOKUP(A9,NDD.CADD!A:F,5,FALSE) -> 1.12E-48 | N9: =VLOOKUP(A9,NDD_Kaplanis!A:AI,25,FALSE) -> 5.22E-21 | O9: =AND(N9>0.0000025,OR(J9<0.0000025)) -> FALSE | P9: =VLOOKUP(A9,NDD_Kaplanis!A:AI,26,FALSE) -> 5.22E-21 | Q9: =AND(OR(J9<0.0000025),P9>0.0000025) -> FALSE | R9: =VLOOKUP(A9,NDD_Kaplanis!A:D,4,FALSE) -> consensus | S9: =AND(OR(R9="discordant", R9="none"),OR(J9<0.0000025)) -> FALSE | T9: =VLOOKUP(A9,DDG2P_3_5_2022!A:E,3,FALSE) -> RUBINSTEIN-TAYBI SYNDROME TYPE 1 | U9: =VLOOKUP(A9,DDG2P_3_5_2022!A:E,5,FALSE) -> definitive | V9: =AND(ISNA(T9),OR(J9<0.0000025)) -> FALSE | W9: =N9/J9 -> 5.24E+32
A10: GNAO1 | B10: =VLOOKUP(A10,NDD_Kaplanis!A:AI,6,FALSE)+VLOOKUP(A10,NDD_Kaplanis!A:AI,13,FALSE)+VLOOKUP(A10,NDD_Kaplanis!A:AI,14,FALSE)+VLOOKUP(A10,NDD_Kaplanis!A:AI,15,FALSE) -> 0 | C10: =VLOOKUP(A10,NDD_Kaplanis!A:AI,10,FALSE) -> 37 | D10: =_xlfn.IFNA(VLOOKUP(A10,NDD_repeat_variants!A:F,6,FALSE),0) -> 3 | E10: =_xlfn.IFNA(VLOOKUP(A10,NDD_repeat_residues!A:F,5,FALSE),0) -> 15 | F10: =VLOOKUP(A10,NDD.gMVP!A:E,3,FALSE) -> 30 | G10: =IF(VLOOKUP(A10,NDD.CADD!A:F,3,FALSE)=0,"",VLOOKUP(A10,NDD.CADD!A:F,3,FALSE)) -> 31 | H10: =VLOOKUP(A10,'NDD.gMVP.pois'!A:E,5,FALSE) -> 1.08E-53 | I10: =IF(VLOOKUP(A10,'NDD.gMVP.cluster'!A:E,5,FALSE)=0,"",VLOOKUP(A10,'NDD.gMVP.cluster'!A:E,5,FALSE)) -> 1.25E-08 | J10: =VLOOKUP(A10,NDD.gMVP!A:E,5, FALSE) -> 1.08E-53 | K10: =VLOOKUP(A10,'NDD.CADD.pois'!A:E,5,FALSE) -> 4.59E-48 | L10: =IF(VLOOKUP(A10,'NDD.CADD.cluster'!A:E,5,FALSE)=0,"",VLOOKUP(A10,'NDD.CADD.cluster'!A:E,5,FALSE)) -> 1.25E-08 | M10: =VLOOKUP(A10,NDD.CADD!A:F,5,FALSE) -> 4.59E-48 | N10: =VLOOKUP(A10,NDD_Kaplanis!A:AI,25,FALSE) -> 5.22E-21 | O10: =AND(N10>0.0000025,OR(J10<0.0000025)) -> FALSE | P10: =VLOOKUP(A10,NDD_Kaplanis!A:AI,26,FALSE) -> 5.22E-21 | Q10: =AND(OR(J10<0.0000025),P10>0.0000025) -> FALSE | R10: =VLOOKUP(A10,NDD_Kaplanis!A:D,4,FALSE) -> consensus | S10: =AND(OR(R10="discordant", R10="none"),OR(J10<0.0000025)) -> FALSE | T10: =VLOOKUP(A10,DDG2P_3_5_2022!A:E,3,FALSE) -> EPILEPTIC ENCEPHALOPATHY | U10: =VLOOKUP(A10,DDG2P_3_5_2022!A:E,5,FALSE) -> definitive | V10: =AND(ISNA(T10),OR(J10<0.0000025)) -> FALSE | W10: =N10/J10 -> 4.85E+32
A11: CDK13 | B11: =VLOOKUP(A11,NDD_Kaplanis!A:AI,6,FALSE)+VLOOKUP(A11,NDD_Kaplanis!A:AI,13,FALSE)+VLOOKUP(A11,NDD_Kaplanis!A:AI,14,FALSE)+VLOOKUP(A11,NDD_Kaplanis!A:AI,15,FALSE) -> 3 | C11: =VLOOKUP(A11,NDD_Kaplanis!A:AI,10,FALSE) -> 37 | D11: =_xlfn.IFNA(VLOOKUP(A11,NDD_repeat_variants!A:F,6,FALSE),0) -> 7 | E11: =_xlfn.IFNA(VLOOKUP(A11,NDD_repeat_residues!A:F,5,FALSE),0) -> 18 | F11: =VLOOKUP(A11,NDD.gMVP!A:E,3,FALSE) -> 34 | G11: =IF(VLOOKUP(A11,NDD.CADD!A:F,3,FALSE)=0,"",VLOOKUP(A11,NDD.CADD!A:F,3,FALSE)) -> 35 | H11: =VLOOKUP(A11,'NDD.gMVP.pois'!A:E,5,FALSE) -> 4.97E-52 | I11: =IF(VLOOKUP(A11,'NDD.gMVP.cluster'!A:E,5,FALSE)=0,"",VLOOKUP(A11,'NDD.gMVP.cluster'!A:E,5,FALSE)) -> 1.25E-08 | J11: =VLOOKUP(A11,NDD.gMVP!A:E,5, FALSE) -> 4.97E-52 | K11: =VLOOKUP(A11,'NDD.CADD.pois'!A:E,5,FALSE) -> 9.77E-43 | L11: =IF(VLOOKUP(A11,'NDD.CADD.cluster'!A:E,5,FALSE)=0,"",VLOOKUP(A11,'NDD.CADD.cluster'!A:E,5,FALSE)) -> 1.25E-08 | M11: =VLOOKUP(A11,NDD.CADD!A:F,5,FALSE) -> 9.77E-43 | N11: =VLOOKUP(A11,NDD_Kaplanis!A:AI,25,FALSE) -> 5.22E-21 | O11: =AND(N11>0.0000025,OR(J11<0.0000025)) -> FALSE | P11: =VLOOKUP(A11,NDD_Kaplanis!A:AI,26,FALSE) -> 5.22E-21 | Q11: =AND(OR(J11<0.0000025),P11>0.0000025) -> FALSE | R11: =VLOOKUP(A11,NDD_Kaplanis!A:D,4,FALSE) -> consensus | S11: =AND(OR(R11="discordant", R11="none"),OR(J11<0.0000025)) -> FALSE | T11: =VLOOKUP(A11,DDG2P_3_5_2022!A:E,3,FALSE) -> Syndromic INTELLECTUAL DISABILITY with or without congenital heart disease | U11: =VLOOKUP(A11,DDG2P_3_5_2022!A:E,5,FALSE) -> definitive | V11: =AND(ISNA(T11),OR(J11<0.0000025)) -> FALSE | W11: =N11/J11 -> 1.05E+31
A12: KIF1A | B12: =VLOOKUP(A12,NDD_Kaplanis!A:AI,6,FALSE)+VLOOKUP(A12,NDD_Kaplanis!A:AI,13,FALSE)+VLOOKUP(A12,NDD_Kaplanis!A:AI,14,FALSE)+VLOOKUP(A12,NDD_Kaplanis!A:AI,15,FALSE) -> 0 | C12: =VLOOKUP(A12,NDD_Kaplanis!A:AI,10,FALSE) -> 53 | D12: =_xlfn.IFNA(VLOOKUP(A12,NDD_repeat_variants!A:F,6,FALSE),0) -> 3 | E12: =_xlfn.IFNA(VLOOKUP(A12,NDD_repeat_residues!A:F,5,FALSE),0) -> 0 | F12: =VLOOKUP(A12,NDD.gMVP!A:E,3,FALSE) -> 52 | G12: =IF(VLOOKUP(A12,NDD.CADD!A:F,3,FALSE)=0,"",VLOOKUP(A12,NDD.CADD!A:F,3,FALSE)) -> 46 | H12: =VLOOKUP(A12,'NDD.gMVP.pois'!A:E,5,FALSE) -> 2.19E-47 | I12: =IF(VLOOKUP(A12,'NDD.gMVP.cluster'!A:E,5,FALSE)=0,"",VLOOKUP(A12,'NDD.gMVP.cluster'!A:E,5,FALSE)) -> 1.25E-08 | J12: =VLOOKUP(A12,NDD.gMVP!A:E,5, FALSE) -> 2.19E-47 | K12: =VLOOKUP(A12,'NDD.CADD.pois'!A:E,5,FALSE) -> 7.92E-47 | L12: =IF(VLOOKUP(A12,'NDD.CADD.cluster'!A:E,5,FALSE)=0,"",VLOOKUP(A12,'NDD.CADD.cluster'!A:E,5,FALSE)) -> 1.25E-08 | M12: =VLOOKUP(A12,NDD.CADD!A:F,5,FALSE) -> 7.92E-47 | N12: =VLOOKUP(A12,NDD_Kaplanis!A:AI,25,FALSE) -> 5.22E-21 | O12: =AND(N12>0.0000025,OR(J12<0.0000025)) -> FALSE | P12: =VLOOKUP(A12,NDD_Kaplanis!A:AI,26,FALSE) -> 5.22E-21 | Q12: =AND(OR(J12<0.0000025),P12>0.0000025) -> FALSE | R12: =VLOOKUP(A12,NDD_Kaplanis!A:D,4,FALSE) -> consensus | S12: =AND(OR(R12="discordant", R12="none"),OR(J12<0.0000025)) -> FALSE | T12: =VLOOKUP(A12,DDG2P_3_5_2022!A:E,3,FALSE) -> NESCAV SYNDROME | U12: =VLOOKUP(A12,DDG2P_3_5_2022!A:E,5,FALSE) -> definitive | V12: =AND(ISNA(T12),OR(J12<0.0000025)) -> FALSE | W12: =N12/J12 -> 2.38E+26
A13: BRAF | B13: =VLOOKUP(A13,NDD_Kaplanis!A:AI,6,FALSE)+VLOOKUP(A13,NDD_Kaplanis!A:AI,13,FALSE)+VLOOKUP(A13,NDD_Kaplanis!A:AI,14,FALSE)+VLOOKUP(A13,NDD_Kaplanis!A:AI,15,FALSE) -> 0 | C13: =VLOOKUP(A13,NDD_Kaplanis!A:AI,10,FALSE) -> 34 | D13: =_xlfn.IFNA(VLOOKUP(A13,NDD_repeat_variants!A:F,6,FALSE),0) -> 2 | E13: =_xlfn.IFNA(VLOOKUP(A13,NDD_repeat_residues!A:F,5,FALSE),0) -> 15 | F13: =VLOOKUP(A13,NDD.gMVP!A:E,3,FALSE) -> 34 | G13: =IF(VLOOKUP(A13,NDD.CADD!A:F,3,FALSE)=0,"",VLOOKUP(A13,NDD.CADD!A:F,3,FALSE)) -> 24 | H13: =VLOOKUP(A13,'NDD.gMVP.pois'!A:E,5,FALSE) -> 2.28E-46 | I13: =IF(VLOOKUP(A13,'NDD.gMVP.cluster'!A:E,5,FALSE)=0,"",VLOOKUP(A13,'NDD.gMVP.cluster'!A:E,5,FALSE)) -> 1.25E-08 | J13: =VLOOKUP(A13,NDD.gMVP!A:E,5, FALSE) -> 2.28E-46 | K13: =VLOOKUP(A13,'NDD.CADD.pois'!A:E,5,FALSE) -> 5.84E-35 | L13: =IF(VLOOKUP(A13,'NDD.CADD.cluster'!A:E,5,FALSE)=0,"",VLOOKUP(A13,'NDD.CADD.cluster'!A:E,5,FALSE)) -> 3.00E-07 | M13: =VLOOKUP(A13,NDD.CADD!A:F,5,FALSE) -> 5.84E-35 | N13: =VLOOKUP(A13,NDD_Kaplanis!A:AI,25,FALSE) -> 5.22E-21 | O13: =AND(N13>0.0000025,OR(J13<0.0000025)) -> FALSE | P13: =VLOOKUP(A13,NDD_Kaplanis!A:AI,26,FALSE) -> 5.22E-21 | Q13: =AND(OR(J13<0.0000025),P13>0.0000025) -> FALSE | R13: =VLOOKUP(A13,NDD_Kaplanis!A:D,4,FALSE) -> consensus | S13: =AND(OR(R13="discordant", R13="none"),OR(J13<0.0000025)) -> FALSE | T13: =VLOOKUP(A13,DDG2P_3_5_2022!A:E,3,FALSE) -> CARDIOFACIOCUTANEOUS SYNDROME | U13: =VLOOKUP(A13,DDG2P_3_5_2022!A:E,5,FALSE) -> definitive | V13: =AND(ISNA(T13),OR(J13<0.0000025)) -> FALSE | W13: =N13/J13 -> 2.29E+25
A14: SMAD4 | B14: =VLOOKUP(A14,NDD_Kaplanis!A:AI,6,FALSE)+VLOOKUP(A14,NDD_Kaplanis!A:AI,13,FALSE)+VLOOKUP(A14,NDD_Kaplanis!A:AI,14,FALSE)+VLOOKUP(A14,NDD_Kaplanis!A:AI,15,FALSE) -> 0 | C14: =VLOOKUP(A14,NDD_Kaplanis!A:AI,10,FALSE) -> 33 | D14: =_xlfn.IFNA(VLOOKUP(A14,NDD_repeat_variants!A:F,6,FALSE),0) -> 11 | E14: =_xlfn.IFNA(VLOOKUP(A14,NDD_repeat_residues!A:F,5,FALSE),0) -> 0 | F14: =VLOOKUP(A14,NDD.gMVP!A:E,3,FALSE) -> 31 | G14: =IF(VLOOKUP(A14,NDD.CADD!A:F,3,FALSE)=0,"",VLOOKUP(A14,NDD.CADD!A:F,3,FALSE)) -> 10 | H14: =VLOOKUP(A14,'NDD.gMVP.pois'!A:E,5,FALSE) -> 6.38E-43 | I14: =IF(VLOOKUP(A14,'NDD.gMVP.cluster'!A:E,5,FALSE)=0,"",VLOOKUP(A14,'NDD.gMVP.cluster'!A:E,5,FALSE)) -> 1.25E-08 | J14: =VLOOKUP(A14,NDD.gMVP!A:E,5, FALSE) -> 6.38E-43 | K14: =VLOOKUP(A14,'NDD.CADD.pois'!A:E,5,FALSE) -> 2.14E-11 | L14: =IF(VLOOKUP(A14,'NDD.CADD.cluster'!A:E,5,FALSE)=0,"",VLOOKUP(A14,'NDD.CADD.cluster'!A:E,5,FALSE)) -> 1.25E-08 | M14: =VLOOKUP(A14,NDD.CADD!A:F,5,FALSE) -> 1.17E-17 | N14: =VLOOKUP(A14,NDD_Kaplanis!A:AI,25,FALSE) -> 5.22E-21 | O14: =AND(N14>0.0000025,OR(J14<0.0000025)) -> FALSE | P14: =VLOOKUP(A14,NDD_Kaplanis!A:AI,26,FALSE) -> 5.22E-21 | Q14: =AND(OR(J14<0.0000025),P14>0.0000025) -> FALSE | R14: =VLOOKUP(A14,NDD_Kaplanis!A:D,4,FALSE) -> consensus | S14: =AND(OR(R14="discordant", R14="none"),OR(J14<0.0000025)) -> FALSE | T14: =VLOOKUP(A14,DDG2P_3_5_2022!A:E,3,FALSE) -> MYHRE SYNDROME | U14: =VLOOKUP(A14,DDG2P_3_5_2022!A:E,5,FALSE) -> definitive | V14: =AND(ISNA(T14),OR(J14<0.0000025)) -> FALSE | W14: =N14/J14 -> 8.18E+21
A15: SATB2 | B15: =VLOOKUP(A15,NDD_Kaplanis!A:AI,6,FALSE)+VLOOKUP(A15,NDD_Kaplanis!A:AI,13,FALSE)+VLOOKUP(A15,NDD_Kaplanis!A:AI,14,FALSE)+VLOOKUP(A15,NDD_Kaplanis!A:AI,15,FALSE) -> 37 | C15: =VLOOKUP(A15,NDD_Kaplanis!A:AI,10,FALSE) -> 35 | D15: =_xlfn.IFNA(VLOOKUP(A15,NDD_repeat_variants!A:F,6,FALSE),0) -> 2 | E15: =_xlfn.IFNA(VLOOKUP(A15,NDD_repeat_residues!A:F,5,FALSE),0) -> 0 | F15: =VLOOKUP(A15,NDD.gMVP!A:E,3,FALSE) -> 32 | G15: =IF(VLOOKUP(A15,NDD.CADD!A:F,3,FALSE)=0,"",VLOOKUP(A15,NDD.CADD!A:F,3,FALSE)) -> 32 | H15: =VLOOKUP(A15,'NDD.gMVP.pois'!A:E,5,FALSE) -> 5.21E-42 | I15: =IF(VLOOKUP(A15,'NDD.gMVP.cluster'!A:E,5,FALSE)=0,"",VLOOKUP(A15,'NDD.gMVP.cluster'!A:E,5,FALSE)) -> 1.25E-08 | J15: =VLOOKUP(A15,NDD.gMVP!A:E,5, FALSE) -> 5.21E-42 | K15: =VLOOKUP(A15,'NDD.CADD.pois'!A:E,5,FALSE) -> 2.11E-42 | L15: =IF(VLOOKUP(A15,'NDD.CADD.cluster'!A:E,5,FALSE)=0,"",VLOOKUP(A15,'NDD.CADD.cluster'!A:E,5,FALSE)) -> 1.25E-08 | M15: =VLOOKUP(A15,NDD.CADD!A:F,5,FALSE) -> 2.11E-42 | N15: =VLOOKUP(A15,NDD_Kaplanis!A:AI,25,FALSE) -> 5.22E-21 | O15: =AND(N15>0.0000025,OR(J15<0.0000025)) -> FALSE | P15: =VLOOKUP(A15,NDD_Kaplanis!A:AI,26,FALSE) -> 5.22E-21 | Q15: =AND(OR(J15<0.0000025),P15>0.0000025) -> FALSE | R15: =VLOOKUP(A15,NDD_Kaplanis!A:D,4,FALSE) -> consensus | S15: =AND(OR(R15="discordant", R15="none"),OR(J15<0.0000025)) -> FALSE | T15: =VLOOKUP(A15,DDG2P_3_5_2022!A:E,3,FALSE) -> GLASS SYNDROME | U15: =VLOOKUP(A15,DDG2P_3_5_2022!A:E,5,FALSE) -> definitive | V15: =AND(ISNA(T15),OR(J15<0.0000025)) -> FALSE | W15: =N15/J15 -> 1.00E+21
A16: CHD3 | B16: =VLOOKUP(A16,NDD_Kaplanis!A:AI,6,FALSE)+VLOOKUP(A16,NDD_Kaplanis!A:AI,13,FALSE)+VLOOKUP(A16,NDD_Kaplanis!A:AI,14,FALSE)+VLOOKUP(A16,NDD_Kaplanis!A:AI,15,FALSE) -> 4 | C16: =VLOOKUP(A16,NDD_Kaplanis!A:AI,10,FALSE) -> 47 | D16: =_xlfn.IFNA(VLOOKUP(A16,NDD_repeat_variants!A:F,6,FALSE),0) -> 1 | E16: =_xlfn.IFNA(VLOOKUP(A16,NDD_repeat_residues!A:F,5,FALSE),0) -> 13 | F16: =VLOOKUP(A16,NDD.gMVP!A:E,3,FALSE) -> 43 | G16: =IF(VLOOKUP(A16,NDD.CADD!A:F,3,FALSE)=0,"",VLOOKUP(A16,NDD.CADD!A:F,3,FALSE)) -> 40 | H16: =VLOOKUP(A16,'NDD.gMVP.pois'!A:E,5,FALSE) -> 2.18E-40 | I16: =IF(VLOOKUP(A16,'NDD.gMVP.cluster'!A:E,5,FALSE)=0,"",VLOOKUP(A16,'NDD.gMVP.cluster'!A:E,5,FALSE)) -> 1.25E-08 | J16: =VLOOKUP(A16,NDD.gMVP!A:E,5, FALSE) -> 2.18E-40 | K16: =VLOOKUP(A16,'NDD.CADD.pois'!A:E,5,FALSE) -> 6.60E-38 | L16: =IF(VLOOKUP(A16,'NDD.CADD.cluster'!A:E,5,FALSE)=0,"",VLOOKUP(A16,'NDD.CADD.cluster'!A:E,5,FALSE)) -> 1.25E-08 | M16: =VLOOKUP(A16,NDD.CADD!A:F,5,FALSE) -> 6.60E-38 | N16: =VLOOKUP(A16,NDD_Kaplanis!A:AI,25,FALSE) -> 5.22E-21 | O16: =AND(N16>0.0000025,OR(J16<0.0000025)) -> FALSE | P16: =VLOOKUP(A16,NDD_Kaplanis!A:AI,26,FALSE) -> 5.22E-21 | Q16: =AND(OR(J16<0.0000025),P16>0.0000025) -> FALSE | R16: =VLOOKUP(A16,NDD_Kaplanis!A:D,4,FALSE) -> consensus | S16: =AND(OR(R16="discordant", R16="none"),OR(J16<0.0000025)) -> FALSE | T16: =VLOOKUP(A16,DDG2P_3_5_2022!A:E,3,FALSE) -> Macrocephaly and impaired speech and language | U16: =VLOOKUP(A16,DDG2P_3_5_2022!A:E,5,FALSE) -> strong | V16: =AND(ISNA(T16),OR(J16<0.0000025)) -> FALSE | W16: =N16/J16 -> 2.39E+19
A17: CACNA1A | B17: =VLOOKUP(A17,NDD_Kaplanis!A:AI,6,FALSE)+VLOOKUP(A17,NDD_Kaplanis!A:AI,13,FALSE)+VLOOKUP(A17,NDD_Kaplanis!A:AI,14,FALSE)+VLOOKUP(A17,NDD_Kaplanis!A:AI,15,FALSE) -> 4 | C17: =VLOOKUP(A17,NDD_Kaplanis!A:AI,10,FALSE) -> 48 | D17: =_xlfn.IFNA(VLOOKUP(A17,NDD_repeat_variants!A:F,6,FALSE),0) -> 1 | E17: =_xlfn.IFNA(VLOOKUP(A17,NDD_repeat_residues!A:F,5,FALSE),0) -> 15 | F17: =VLOOKUP(A17,NDD.gMVP!A:E,3,FALSE) -> 48 | G17: =IF(VLOOKUP(A17,NDD.CADD!A:F,3,FALSE)=0,"",VLOOKUP(A17,NDD.CADD!A:F,3,FALSE)) -> 41 | H17: =VLOOKUP(A17,'NDD.gMVP.pois'!A:E,5,FALSE) -> 2.97E-40 | I17: =IF(VLOOKUP(A17,'NDD.gMVP.cluster'!A:E,5,FALSE)=0,"",VLOOKUP(A17,'NDD.gMVP.cluster'!A:E,5,FALSE)) -> 1.25E-08 | J17: =VLOOKUP(A17,NDD.gMVP!A:E,5, FALSE) -> 2.97E-40 | K17: =VLOOKUP(A17,'NDD.CADD.pois'!A:E,5,FALSE) -> 3.34E-36 | L17: =IF(VLOOKUP(A17,'NDD.CADD.cluster'!A:E,5,FALSE)=0,"",VLOOKUP(A17,'NDD.CADD.cluster'!A:E,5,FALSE)) -> 1.25E-08 | M17: =VLOOKUP(A17,NDD.CADD!A:F,5,FALSE) -> 3.34E-36 | N17: =VLOOKUP(A17,NDD_Kaplanis!A:AI,25,FALSE) -> 5.22E-21 | O17: =AND(N17>0.0000025,OR(J17<0.0000025)) -> FALSE | P17: =VLOOKUP(A17,NDD_Kaplanis!A:AI,26,FALSE) -> 5.22E-21 | Q17: =AND(OR(J17<0.0000025),P17>0.0000025) -> FALSE | R17: =VLOOKUP(A17,NDD_Kaplanis!A:D,4,FALSE) -> consensus | S17: =AND(OR(R17="discordant", R17="none"),OR(J17<0.0000025)) -> FALSE | T17: =VLOOKUP(A17,DDG2P_3_5_2022!A:E,3,FALSE) -> EPILEPTIC ENCEPHALOPATHY | U17: =VLOOKUP(A17,DDG2P_3_5_2022!A:E,5,FALSE) -> strong | V17: =AND(ISNA(T17),OR(J17<0.0000025)) -> FALSE | W17: =N17/J17 -> 1.76E+19
A18: MAP2K1 | B18: =VLOOKUP(A18,NDD_Kaplanis!A:AI,6,FALSE)+VLOOKUP(A18,NDD_Kaplanis!A:AI,13,FALSE)+VLOOKUP(A18,NDD_Kaplanis!A:AI,14,FALSE)+VLOOKUP(A18,NDD_Kaplanis!A:AI,15,FALSE) -> 0 | C18: =VLOOKUP(A18,NDD_Kaplanis!A:AI,10,FALSE) -> 26 | D18: =_xlfn.IFNA(VLOOKUP(A18,NDD_repeat_variants!A:F,6,FALSE),0) -> 3 | E18: =_xlfn.IFNA(VLOOKUP(A18,NDD_repeat_residues!A:F,5,FALSE),0) -> 0 | F18: =VLOOKUP(A18,NDD.gMVP!A:E,3,FALSE) -> 26 | G18: =IF(VLOOKUP(A18,NDD.CADD!A:F,3,FALSE)=0,"",VLOOKUP(A18,NDD.CADD!A:F,3,FALSE)) -> 24 | H18: =VLOOKUP(A18,'NDD.gMVP.pois'!A:E,5,FALSE) -> 7.82E-39 | I18: =IF(VLOOKUP(A18,'NDD.gMVP.cluster'!A:E,5,FALSE)=0,"",VLOOKUP(A18,'NDD.gMVP.cluster'!A:E,5,FALSE)) -> 1.25E-08 | J18: =VLOOKUP(A18,NDD.gMVP!A:E,5, FALSE) -> 7.82E-39 | K18: =VLOOKUP(A18,'NDD.CADD.pois'!A:E,5,FALSE) -> 1.63E-37 | L18: =IF(VLOOKUP(A18,'NDD.CADD.cluster'!A:E,5,FALSE)=0,"",VLOOKUP(A18,'NDD.CADD.cluster'!A:E,5,FALSE)) -> 1.25E-08 | M18: =VLOOKUP(A18,NDD.CADD!A:F,5,FALSE) -> 1.63E-37 | N18: =VLOOKUP(A18,NDD_Kaplanis!A:AI,25,FALSE) -> 5.22E-21 | O18: =AND(N18>0.0000025,OR(J18<0.0000025)) -> FALSE | P18: =VLOOKUP(A18,NDD_Kaplanis!A:AI,26,FALSE) -> 5.22E-21 | Q18: =AND(OR(J18<0.0000025),P18>0.0000025) -> FALSE | R18: =VLOOKUP(A18,NDD_Kaplanis!A:D,4,FALSE) -> consensus | S18: =AND(OR(R18="discordant", R18="none"),OR(J18<0.0000025)) -> FALSE | T18: =VLOOKUP(A18,DDG2P_3_5_2022!A:E,3,FALSE) -> CARDIOFACIOCUTANEOUS SYNDROME | U18: =VLOOKUP(A18,DDG2P_3_5_2022!A:E,5,FALSE) -> definitive | V18: =AND(ISNA(T18),OR(J18<0.0000025)) -> FALSE | W18: =N18/J18 -> 6.67E+17
A19: CSNK2A1 | B19: =VLOOKUP(A19,NDD_Kaplanis!A:AI,6,FALSE)+VLOOKUP(A19,NDD_Kaplanis!A:AI,13,FALSE)+VLOOKUP(A19,NDD_Kaplanis!A:AI,14,FALSE)+VLOOKUP(A19,NDD_Kaplanis!A:AI,15,FALSE) -> 0 | C19: =VLOOKUP(A19,NDD_Kaplanis!A:AI,10,FALSE) -> 28 | D19: =_xlfn.IFNA(VLOOKUP(A19,NDD_repeat_variants!A:F,6,FALSE),0) -> 4 | E19: =_xlfn.IFNA(VLOOKUP(A19,NDD_repeat_residues!A:F,5,FALSE),0) -> 13 | F19: =VLOOKUP(A19,NDD.gMVP!A:E,3,FALSE) -> 26 | G19: =IF(VLOOKUP(A19,NDD.CADD!A:F,3,FALSE)=0,"",VLOOKUP(A19,NDD.CADD!A:F,3,FALSE)) -> 17 | H19: =VLOOKUP(A19,'NDD.gMVP.pois'!A:E,5,FALSE) -> 3.65E-36 | I19: =IF(VLOOKUP(A19,'NDD.gMVP.cluster'!A:E,5,FALSE)=0,"",VLOOKUP(A19,'NDD.gMVP.cluster'!A:E,5,FALSE)) -> 1.25E-08 | J19: =VLOOKUP(A19,NDD.gMVP!A:E,5, FALSE) -> 3.65E-36 | K19: =VLOOKUP(A19,'NDD.CADD.pois'!A:E,5,FALSE) -> 1.35E-23 | L19: =IF(VLOOKUP(A19,'NDD.CADD.cluster'!A:E,5,FALSE)=0,"",VLOOKUP(A19,'NDD.CADD.cluster'!A:E,5,FALSE)) -> 1.00E-06 | M19: =VLOOKUP(A19,NDD.CADD!A:F,5,FALSE) -> 1.35E-23 | N19: =VLOOKUP(A19,NDD_Kaplanis!A:AI,25,FALSE) -> 5.22E-21 | O19: =AND(N19>0.0000025,OR(J19<0.0000025)) -> FALSE | P19: =VLOOKUP(A19,NDD_Kaplanis!A:AI,26,FALSE) -> 5.22E-21 | Q19: =AND(OR(J19<0.0000025),P19>0.0000025) -> FALSE | R19: =VLOOKUP(A19,NDD_Kaplanis!A:D,4,FALSE) -> consensus | S19: =AND(OR(R19="discordant", R19="none"),OR(J19<0.0000025)) -> FALSE | T19: =VLOOKUP(A19,DDG2P_3_5_2022!A:E,3,FALSE) -> CSNK2A1 syndrome | U19: =VLOOKUP(A19,DDG2P_3_5_2022!A:E,5,FALSE) -> definitive | V19: =AND(ISNA(T19),OR(J19<0.0000025)) -> FALSE | W19: =N19/J19 -> 1.43E+15
A20: SLC6A1 | B20: =VLOOKUP(A20,NDD_Kaplanis!A:AI,6,FALSE)+VLOOKUP(A20,NDD_Kaplanis!A:AI,13,FALSE)+VLOOKUP(A20,NDD_Kaplanis!A:AI,14,FALSE)+VLOOKUP(A20,NDD_Kaplanis!A:AI,15,FALSE) -> 4 | C20: =VLOOKUP(A20,NDD_Kaplanis!A:AI,10,FALSE) -> 34 | D20: =_xlfn.IFNA(VLOOKUP(A20,NDD_repeat_variants!A:F,6,FALSE),0) -> 3 | E20: =_xlfn.IFNA(VLOOKUP(A20,NDD_repeat_residues!A:F,5,FALSE),0) -> 0 | F20: =VLOOKUP(A20,NDD.gMVP!A:E,3,FALSE) -> 30 | G20: =IF(VLOOKUP(A20,NDD.CADD!A:F,3,FALSE)=0,"",VLOOKUP(A20,NDD.CADD!A:F,3,FALSE)) -> 28 | H20: =VLOOKUP(A20,'NDD.gMVP.pois'!A:E,5,FALSE) -> 1.23E-35 | I20: =IF(VLOOKUP(A20,'NDD.gMVP.cluster'!A:E,5,FALSE)=0,"",VLOOKUP(A20,'NDD.gMVP.cluster'!A:E,5,FALSE)) -> 1.25E-08 | J20: =VLOOKUP(A20,NDD.gMVP!A:E,5, FALSE) -> 1.23E-35 | K20: =VLOOKUP(A20,'NDD.CADD.pois'!A:E,5,FALSE) -> 1.66E-38 | L20: =IF(VLOOKUP(A20,'NDD.CADD.cluster'!A:E,5,FALSE)=0,"",VLOOKUP(A20,'NDD.CADD.cluster'!A:E,5,FALSE)) -> 1.00E-07 | M20: =VLOOKUP(A20,NDD.CADD!A:F,5,FALSE) -> 1.66E-38 | N20: =VLOOKUP(A20,NDD_Kaplanis!A:AI,25,FALSE) -> 7.66E-15 | O20: =AND(N20>0.0000025,OR(J20<0.0000025)) -> FALSE | P20: =VLOOKUP(A20,NDD_Kaplanis!A:AI,26,FALSE) -> 7.68E-15 | Q20: =AND(OR(J20<0.0000025),P20>0.0000025) -> FALSE | R20: =VLOOKUP(A20,NDD_Kaplanis!A:D,4,FALSE) -> consensus | S20: =AND(OR(R20="discordant", R20="none"),OR(J20<0.0000025)) -> FALSE | T20: =VLOOKUP(A20,DDG2P_3_5_2022!A:E,3,FALSE) -> EPILEPSY WITH MYOCLONIC-ATONIC SEIZURES | U20: =VLOOKUP(A20,DDG2P_3_5_2022!A:E,5,FALSE) -> definitive | V20: =AND(ISNA(T20),OR(J20<0.0000025)) -> FALSE | W20: =N20/J20 -> 6.24E+20
A21: NAA10 | B21: =VLOOKUP(A21,NDD_Kaplanis!A:AI,6,FALSE)+VLOOKUP(A21,NDD_Kaplanis!A:AI,13,FALSE)+VLOOKUP(A21,NDD_Kaplanis!A:AI,14,FALSE)+VLOOKUP(A21,NDD_Kaplanis!A:AI,15,FALSE) -> 0 | C21: =VLOOKUP(A21,NDD_Kaplanis!A:AI,10,FALSE) -> 21 | D21: =_xlfn.IFNA(VLOOKUP(A21,NDD_repeat_variants!A:F,6,FALSE),0) -> 4 | E21: =_xlfn.IFNA(VLOOKUP(A21,NDD_repeat_residues!A:F,5,FALSE),0) -> 0 | F21: =VLOOKUP(A21,NDD.gMVP!A:E,3,FALSE) -> 21 | G21: =IF(VLOOKUP(A21,NDD.CADD!A:F,3,FALSE)=0,"",VLOOKUP(A21,NDD.CADD!A:F,3,FALSE)) -> 16 | H21: =VLOOKUP(A21,'NDD.gMVP.pois'!A:E,5,FALSE) -> 1.34E-35 | I21: =IF(VLOOKUP(A21,'NDD.gMVP.cluster'!A:E,5,FALSE)=0,"",VLOOKUP(A21,'NDD.gMVP.cluster'!A:E,5,FALSE)) -> 1.25E-08 | J21: =VLOOKUP(A21,NDD.gMVP!A:E,5, FALSE) -> 1.34E-35 | K21: =VLOOKUP(A21,'NDD.CADD.pois'!A:E,5,FALSE) -> 3.20E-30 | L21: =IF(VLOOKUP(A21,'NDD.CADD.cluster'!A:E,5,FALSE)=0,"",VLOOKUP(A21,'NDD.CADD.cluster'!A:E,5,FALSE)) -> 1.25E-08 | M21: =VLOOKUP(A21,NDD.CADD!A:F,5,FALSE) -> 3.20E-30 | N21: =VLOOKUP(A21,NDD_Kaplanis!A:AI,25,FALSE) -> 5.22E-21 | O21: =AND(N21>0.0000025,OR(J21<0.0000025)) -> FALSE | P21: =VLOOKUP(A21,NDD_Kaplanis!A:AI,26,FALSE) -> 5.22E-21 | Q21: =AND(OR(J21<0.0000025),P21>0.0000025) -> FALSE | R21: =VLOOKUP(A21,NDD_Kaplanis!A:D,4,FALSE) -> consensus | S21: =AND(OR(R21="discordant", R21="none"),OR(J21<0.0000025)) -> FALSE | T21: =VLOOKUP(A21,DDG2P_3_5_2022!A:E,3,FALSE) -> NONPECIFIC SEVERE ID | U21: =VLOOKUP(A21,DDG2P_3_5_2022!A:E,5,FALSE) -> definitive | V21: =AND(ISNA(T21),OR(J21<0.0000025)) -> FALSE | W21: =N21/J21 -> 3.90E+14
A22: FOXP1 | B22: =VLOOKUP(A22,NDD_Kaplanis!A:AI,6,FALSE)+VLOOKUP(A22,NDD_Kaplanis!A:AI,13,FALSE)+VLOOKUP(A22,NDD_Kaplanis!A:AI,14,FALSE)+VLOOKUP(A22,NDD_Kaplanis!A:AI,15,FALSE) -> 19 | C22: =VLOOKUP(A22,NDD_Kaplanis!A:AI,10,FALSE) -> 23 | D22: =_xlfn.IFNA(VLOOKUP(A22,NDD_repeat_variants!A:F,6,FALSE),0) -> 3 | E22: =_xlfn.IFNA(VLOOKUP(A22,NDD_repeat_residues!A:F,5,FALSE),0) -> 10 | F22: =VLOOKUP(A22,NDD.gMVP!A:E,3,FALSE) -> 7 | G22: =IF(VLOOKUP(A22,NDD.CADD!A:F,3,FALSE)=0,"",VLOOKUP(A22,NDD.CADD!A:F,3,FALSE)) -> 23 | H22: =VLOOKUP(A22,'NDD.gMVP.pois'!A:E,5,FALSE) -> 3.32E-35 | I22: =IF(VLOOKUP(A22,'NDD.gMVP.cluster'!A:E,5,FALSE)=0,"",VLOOKUP(A22,'NDD.gMVP.cluster'!A:E,5,FALSE)) -> 8.00E-07 | J22: =VLOOKUP(A22,NDD.gMVP!A:E,5, FALSE) -> 3.32E-35 | K22: =VLOOKUP(A22,'NDD.CADD.pois'!A:E,5,FALSE) -> 2.27E-28 | L22: =IF(VLOOKUP(A22,'NDD.CADD.cluster'!A:E,5,FALSE)=0,"",VLOOKUP(A22,'NDD.CADD.cluster'!A:E,5,FALSE)) -> 1.25E-08 | M22: =VLOOKUP(A22,NDD.CADD!A:F,5,FALSE) -> 2.27E-28 | N22: =VLOOKUP(A22,NDD_Kaplanis!A:AI,25,FALSE) -> 5.22E-21 | O22: =AND(N22>0.0000025,OR(J22<0.0000025)) -> FALSE | P22: =VLOOKUP(A22,NDD_Kaplanis!A:AI,26,FALSE) -> 5.22E-21 | Q22: =AND(OR(J22<0.0000025),P22>0.0000025) -> FALSE | R22: =VLOOKUP(A22,NDD_Kaplanis!A:D,4,FALSE) -> consensus | S22: =AND(OR(R22="discordant", R22="none"),OR(J22<0.0000025)) -> FALSE | T22: =VLOOKUP(A22,DDG2P_3_5_2022!A:E,3,FALSE) -> INTELLECTUAL DEVELOPMENTAL DISORDER WITH LANGUAGE IMPAIRMENT AND AUTISTIC FEATURES | U22: =VLOOKUP(A22,DDG2P_3_5_2022!A:E,5,FALSE) -> definitive | V22: =AND(ISNA(T22),OR(J22<0.0000025)) -> FALSE | W22: =N22/J22 -> 1.57E+14
A23: SMARCA4 | B23: =VLOOKUP(A23,NDD_Kaplanis!A:AI,6,FALSE)+VLOOKUP(A23,NDD_Kaplanis!A:AI,13,FALSE)+VLOOKUP(A23,NDD_Kaplanis!A:AI,14,FALSE)+VLOOKUP(A23,NDD_Kaplanis!A:AI,15,FALSE) -> 2 | C23: =VLOOKUP(A23,NDD_Kaplanis!A:AI,10,FALSE) -> 43 | D23: =_xlfn.IFNA(VLOOKUP(A23,NDD_repeat_variants!A:F,6,FALSE),0) -> 0 | E23: =_xlfn.IFNA(VLOOKUP(A23,NDD_repeat_residues!A:F,5,FALSE),0) -> 0 | F23: =VLOOKUP(A23,NDD.gMVP!A:E,3,FALSE) -> 42 | G23: =IF(VLOOKUP(A23,NDD.CADD!A:F,3,FALSE)=0,"",VLOOKUP(A23,NDD.CADD!A:F,3,FALSE)) -> 38 | H23: =VLOOKUP(A23,'NDD.gMVP.pois'!A:E,5,FALSE) -> 5.53E-34 | I23: =IF(VLOOKUP(A23,'NDD.gMVP.cluster'!A:E,5,FALSE)=0,"",VLOOKUP(A23,'NDD.gMVP.cluster'!A:E,5,FALSE)) -> 1.25E-08 | J23: =VLOOKUP(A23,NDD.gMVP!A:E,5, FALSE) -> 5.53E-34 | K23: =VLOOKUP(A23,'NDD.CADD.pois'!A:E,5,FALSE) -> 4.33E-36 | L23: =IF(VLOOKUP(A23,'NDD.CADD.cluster'!A:E,5,FALSE)=0,"",VLOOKUP(A23,'NDD.CADD.cluster'!A:E,5,FALSE)) -> 1.25E-08 | M23: =VLOOKUP(A23,NDD.CADD!A:F,5,FALSE) -> 4.33E-36 | N23: =VLOOKUP(A23,NDD_Kaplanis!A:AI,25,FALSE) -> 1.92E-19 | O23: =AND(N23>0.0000025,OR(J23<0.0000025)) -> FALSE | P23: =VLOOKUP(A23,NDD_Kaplanis!A:AI,26,FALSE) -> 1.92E-19 | Q23: =AND(OR(J23<0.0000025),P23>0.0000025) -> FALSE | R23: =VLOOKUP(A23,NDD_Kaplanis!A:D,4,FALSE) -> consensus | S23: =AND(OR(R23="discordant", R23="none"),OR(J23<0.0000025)) -> FALSE | T23: =VLOOKUP(A23,DDG2P_3_5_2022!A:E,3,FALSE) -> COFFIN SIRIS | U23: =VLOOKUP(A23,DDG2P_3_5_2022!A:E,5,FALSE) -> definitive | V23: =AND(ISNA(T23),OR(J23<0.0000025)) -> FALSE | W23: =N23/J23 -> 3.47E+14
A24: SCN8A | B24: =VLOOKUP(A24,NDD_Kaplanis!A:AI,6,FALSE)+VLOOKUP(A24,NDD_Kaplanis!A:AI,13,FALSE)+VLOOKUP(A24,NDD_Kaplanis!A:AI,14,FALSE)+VLOOKUP(A24,NDD_Kaplanis!A:AI,15,FALSE) -> 1 | C24: =VLOOKUP(A24,NDD_Kaplanis!A:AI,10,FALSE) -> 42 | D24: =_xlfn.IFNA(VLOOKUP(A24,NDD_repeat_variants!A:F,6,FALSE),0) -> 1 | E24: =_xlfn.IFNA(VLOOKUP(A24,NDD_repeat_residues!A:F,5,FALSE),0) -> 0 | F24: =VLOOKUP(A24,NDD.gMVP!A:E,3,FALSE) -> 26 | G24: =IF(VLOOKUP(A24,NDD.CADD!A:F,3,FALSE)=0,"",VLOOKUP(A24,NDD.CADD!A:F,3,FALSE)) -> 19 | H24: =VLOOKUP(A24,'NDD.gMVP.pois'!A:E,5,FALSE) -> 3.99E-32 | I24: =IF(VLOOKUP(A24,'NDD.gMVP.cluster'!A:E,5,FALSE)=0,"",VLOOKUP(A24,'NDD.gMVP.cluster'!A:E,5,FALSE)) ->  | J24: =VLOOKUP(A24,NDD.gMVP!A:E,5, FALSE) -> 3.99E-32 | K24: =VLOOKUP(A24,'NDD.CADD.pois'!A:E,5,FALSE) -> 6.20E-21 | L24: =IF(VLOOKUP(A24,'NDD.CADD.cluster'!A:E,5,FALSE)=0,"",VLOOKUP(A24,'NDD.CADD.cluster'!A:E,5,FALSE)) -> 1.25E-08 | M24: =VLOOKUP(A24,NDD.CADD!A:F,5,FALSE) -> 6.20E-21 | N24: =VLOOKUP(A24,NDD_Kaplanis!A:AI,25,FALSE) -> 3.83E-16 | O24: =AND(N24>0.0000025,OR(J24<0.0000025)) -> FALSE | P24: =VLOOKUP(A24,NDD_Kaplanis!A:AI,26,FALSE) -> 3.83E-16 | Q24: =AND(OR(J24<0.0000025),P24>0.0000025) -> FALSE | R24: =VLOOKUP(A24,NDD_Kaplanis!A:D,4,FALSE) -> consensus | S24: =AND(OR(R24="discordant", R24="none"),OR(J24<0.0000025)) -> FALSE | T24: =VLOOKUP(A24,DDG2P_3_5_2022!A:E,3,FALSE) -> EPILEPTIC ENCEPHALOPATHY, EARLY INFANTILE, 13 | U24: =VLOOKUP(A24,DDG2P_3_5_2022!A:E,5,FALSE) -> definitive | V24: =AND(ISNA(T24),OR(J24<0.0000025)) -> FALSE | W24: =N24/J24 -> 9.59E+15
A25: PPP1CB | B25: =VLOOKUP(A25,NDD_Kaplanis!A:AI,6,FALSE)+VLOOKUP(A25,NDD_Kaplanis!A:AI,13,FALSE)+VLOOKUP(A25,NDD_Kaplanis!A:AI,14,FALSE)+VLOOKUP(A25,NDD_Kaplanis!A:AI,15,FALSE) -> 2 | C25: =VLOOKUP(A25,NDD_Kaplanis!A:AI,10,FALSE) -> 23 | D25: =_xlfn.IFNA(VLOOKUP(A25,NDD_repeat_variants!A:F,6,FALSE),0) -> 2 | E25: =_xlfn.IFNA(VLOOKUP(A25,NDD_repeat_residues!A:F,5,FALSE),0) -> 0 | F25: =VLOOKUP(A25,NDD.gMVP!A:E,3,FALSE) -> 23 | G25: =IF(VLOOKUP(A25,NDD.CADD!A:F,3,FALSE)=0,"",VLOOKUP(A25,NDD.CADD!A:F,3,FALSE)) -> 22 | H25: =VLOOKUP(A25,'NDD.gMVP.pois'!A:E,5,FALSE) -> 1.19E-29 | I25: =IF(VLOOKUP(A25,'NDD.gMVP.cluster'!A:E,5,FALSE)=0,"",VLOOKUP(A25,'NDD.gMVP.cluster'!A:E,5,FALSE)) -> 1.25E-08 | J25: =VLOOKUP(A25,NDD.gMVP!A:E,5, FALSE) -> 1.19E-29 | K25: =VLOOKUP(A25,'NDD.CADD.pois'!A:E,5,FALSE) -> 5.42E-33 | L25: =IF(VLOOKUP(A25,'NDD.CADD.cluster'!A:E,5,FALSE)=0,"",VLOOKUP(A25,'NDD.CADD.cluster'!A:E,5,FALSE)) -> 1.25E-08 | M25: =VLOOKUP(A25,NDD.CADD!A:F,5,FALSE) -> 5.42E-33 | N25: =VLOOKUP(A25,NDD_Kaplanis!A:AI,25,FALSE) -> 5.22E-21 | O25: =AND(N25>0.0000025,OR(J25<0.0000025)) -> FALSE | P25: =VLOOKUP(A25,NDD_Kaplanis!A:AI,26,FALSE) -> 5.22E-21 | Q25: =AND(OR(J25<0.0000025),P25>0.0000025) -> FALSE | R25: =VLOOKUP(A25,NDD_Kaplanis!A:D,4,FALSE) -> consensus | S25: =AND(OR(R25="discordant", R25="none"),OR(J25<0.0000025)) -> FALSE | T25: =VLOOKUP(A25,DDG2P_3_5_2022!A:E,3,FALSE) -> Rasopathy with developmental delay, short stature and sparse slow-growing hair | U25: =VLOOKUP(A25,DDG2P_3_5_2022!A:E,5,FALSE) -> definitive | V25: =AND(ISNA(T25),OR(J25<0.0000025)) -> FALSE | W25: =N25/J25 -> 4.37E+08
A26: SMARCA2 | B26: =VLOOKUP(A26,NDD_Kaplanis!A:AI,6,FALSE)+VLOOKUP(A26,NDD_Kaplanis!A:AI,13,FALSE)+VLOOKUP(A26,NDD_Kaplanis!A:AI,14,FALSE)+VLOOKUP(A26,NDD_Kaplanis!A:AI,15,FALSE) -> 0 | C26: =VLOOKUP(A26,NDD_Kaplanis!A:AI,10,FALSE) -> 36 | D26: =_xlfn.IFNA(VLOOKUP(A26,NDD_repeat_variants!A:F,6,FALSE),0) -> 1 | E26: =_xlfn.IFNA(VLOOKUP(A26,NDD_repeat_residues!A:F,5,FALSE),0) -> 0 | F26: =VLOOKUP(A26,NDD.gMVP!A:E,3,FALSE) -> 30 | G26: =IF(VLOOKUP(A26,NDD.CADD!A:F,3,FALSE)=0,"",VLOOKUP(A26,NDD.CADD!A:F,3,FALSE)) -> 28 | H26: =VLOOKUP(A26,'NDD.gMVP.pois'!A:E,5,FALSE) -> 4.05E-27 | I26: =IF(VLOOKUP(A26,'NDD.gMVP.cluster'!A:E,5,FALSE)=0,"",VLOOKUP(A26,'NDD.gMVP.cluster'!A:E,5,FALSE)) -> 1.25E-08 | J26: =VLOOKUP(A26,NDD.gMVP!A:E,5, FALSE) -> 4.05E-27 | K26: =VLOOKUP(A26,'NDD.CADD.pois'!A:E,5,FALSE) -> 8.27E-26 | L26: =IF(VLOOKUP(A26,'NDD.CADD.cluster'!A:E,5,FALSE)=0,"",VLOOKUP(A26,'NDD.CADD.cluster'!A:E,5,FALSE)) -> 1.25E-08 | M26: =VLOOKUP(A26,NDD.CADD!A:F,5,FALSE) -> 8.27E-26 | N26: =VLOOKUP(A26,NDD_Kaplanis!A:AI,25,FALSE) -> 1.08E-19 | O26: =AND(N26>0.0000025,OR(J26<0.0000025)) -> FALSE | P26: =VLOOKUP(A26,NDD_Kaplanis!A:AI,26,FALSE) -> 1.08E-19 | Q26: =AND(OR(J26<0.0000025),P26>0.0000025) -> FALSE | R26: =VLOOKUP(A26,NDD_Kaplanis!A:D,4,FALSE) -> consensus | S26: =AND(OR(R26="discordant", R26="none"),OR(J26<0.0000025)) -> FALSE | T26: =VLOOKUP(A26,DDG2P_3_5_2022!A:E,3,FALSE) -> NICOLAIDES-BARAITSER SYNDROME | U26: =VLOOKUP(A26,DDG2P_3_5_2022!A:E,5,FALSE) -> definitive | V26: =AND(ISNA(T26),OR(J26<0.0000025)) -> FALSE | W26: =N26/J26 -> 2.66E+07
A27: KCNB1 | B27: =VLOOKUP(A27,NDD_Kaplanis!A:AI,6,FALSE)+VLOOKUP(A27,NDD_Kaplanis!A:AI,13,FALSE)+VLOOKUP(A27,NDD_Kaplanis!A:AI,14,FALSE)+VLOOKUP(A27,NDD_Kaplanis!A:AI,15,FALSE) -> 6 | C27: =VLOOKUP(A27,NDD_Kaplanis!A:AI,10,FALSE) -> 26 | D27: =_xlfn.IFNA(VLOOKUP(A27,NDD_repeat_variants!A:F,6,FALSE),0) -> 0 | E27: =_xlfn.IFNA(VLOOKUP(A27,NDD_repeat_residues!A:F,5,FALSE),0) -> 0 | F27: =VLOOKUP(A27,NDD.gMVP!A:E,3,FALSE) -> 26 | G27: =IF(VLOOKUP(A27,NDD.CADD!A:F,3,FALSE)=0,"",VLOOKUP(A27,NDD.CADD!A:F,3,FALSE)) -> 22 | H27: =VLOOKUP(A27,'NDD.gMVP.pois'!A:E,5,FALSE) -> 6.32E-27 | I27: =IF(VLOOKUP(A27,'NDD.gMVP.cluster'!A:E,5,FALSE)=0,"",VLOOKUP(A27,'NDD.gMVP.cluster'!A:E,5,FALSE)) -> 1.25E-08 | J27: =VLOOKUP(A27,NDD.gMVP!A:E,5, FALSE) -> 6.32E-27 | K27: =VLOOKUP(A27,'NDD.CADD.pois'!A:E,5,FALSE) -> 1.93E-25 | L27: =IF(VLOOKUP(A27,'NDD.CADD.cluster'!A:E,5,FALSE)=0,"",VLOOKUP(A27,'NDD.CADD.cluster'!A:E,5,FALSE)) -> 1.00E-07 | M27: =VLOOKUP(A27,NDD.CADD!A:F,5,FALSE) -> 1.93E-25 | N27: =VLOOKUP(A27,NDD_Kaplanis!A:AI,25,FALSE) -> 5.22E-21 | O27: =AND(N27>0.0000025,OR(J27<0.0000025)) -> FALSE | P27: =VLOOKUP(A27,NDD_Kaplanis!A:AI,26,FALSE) -> 5.22E-21 | Q27: =AND(OR(J27<0.0000025),P27>0.0000025) -> FALSE | R27: =VLOOKUP(A27,NDD_Kaplanis!A:D,4,FALSE) -> consensus | S27: =AND(OR(R27="discordant", R27="none"),OR(J27<0.0000025)) -> FALSE | T27: =VLOOKUP(A27,DDG2P_3_5_2022!A:E,3,FALSE) -> EPILEPTIC ENCEPHALOPATHY, EARLY INFANTILE, 26 | U27: =VLOOKUP(A27,DDG2P_3_5_2022!A:E,5,FALSE) -> definitive | V27: =AND(ISNA(T27),OR(J27<0.0000025)) -> FALSE | W27: =N27/J27 -> 8.25E+05
A28: PTEN | B28: =VLOOKUP(A28,NDD_Kaplanis!A:AI,6,FALSE)+VLOOKUP(A28,NDD_Kaplanis!A:AI,13,FALSE)+VLOOKUP(A28,NDD_Kaplanis!A:AI,14,FALSE)+VLOOKUP(A28,NDD_Kaplanis!A:AI,15,FALSE) -> 14 | C28: =VLOOKUP(A28,NDD_Kaplanis!A:AI,10,FALSE) -> 20 | D28: =_xlfn.IFNA(VLOOKUP(A28,NDD_repeat_variants!A:F,6,FALSE),0) -> 0 | E28: =_xlfn.IFNA(VLOOKUP(A28,NDD_repeat_residues!A:F,5,FALSE),0) -> 0 | F28: =VLOOKUP(A28,NDD.gMVP!A:E,3,FALSE) -> 20 | G28: =IF(VLOOKUP(A28,NDD.CADD!A:F,3,FALSE)=0,"",VLOOKUP(A28,NDD.CADD!A:F,3,FALSE)) -> 17 | H28: =VLOOKUP(A28,'NDD.gMVP.pois'!A:E,5,FALSE) -> 1.07E-26 | I28: =IF(VLOOKUP(A28,'NDD.gMVP.cluster'!A:E,5,FALSE)=0,"",VLOOKUP(A28,'NDD.gMVP.cluster'!A:E,5,FALSE)) -> 4.50E-05 | J28: =VLOOKUP(A28,NDD.gMVP!A:E,5, FALSE) -> 1.07E-26 | K28: =VLOOKUP(A28,'NDD.CADD.pois'!A:E,5,FALSE) -> 8.23E-26 | L28: =IF(VLOOKUP(A28,'NDD.CADD.cluster'!A:E,5,FALSE)=0,"",VLOOKUP(A28,'NDD.CADD.cluster'!A:E,5,FALSE)) -> 1.02E-04 | M28: =VLOOKUP(A28,NDD.CADD!A:F,5,FALSE) -> 8.23E-26 | N28: =VLOOKUP(A28,NDD_Kaplanis!A:AI,25,FALSE) -> 2.00E-15 | O28: =AND(N28>0.0000025,OR(J28<0.0000025)) -> FALSE | P28: =VLOOKUP(A28,NDD_Kaplanis!A:AI,26,FALSE) -> 2.00E-15 | Q28: =AND(OR(J28<0.0000025),P28>0.0000025) -> FALSE | R28: =VLOOKUP(A28,NDD_Kaplanis!A:D,4,FALSE) -> consensus | S28: =AND(OR(R28="discordant", R28="none"),OR(J28<0.0000025)) -> FALSE | T28: =VLOOKUP(A28,DDG2P_3_5_2022!A:E,3,FALSE) -> PTEN Hamartoma Tumor Syndrome | U28: =VLOOKUP(A28,DDG2P_3_5_2022!A:E,5,FALSE) -> definitive | V28: =AND(ISNA(T28),OR(J28<0.0000025)) -> FALSE | W28: =N28/J28 -> 1.86E+11
A29: GABRB2 | B29: =VLOOKUP(A29,NDD_Kaplanis!A:AI,6,FALSE)+VLOOKUP(A29,NDD_Kaplanis!A:AI,13,FALSE)+VLOOKUP(A29,NDD_Kaplanis!A:AI,14,FALSE)+VLOOKUP(A29,NDD_Kaplanis!A:AI,15,FALSE) -> 0 | C29: =VLOOKUP(A29,NDD_Kaplanis!A:AI,10,FALSE) -> 18 | D29: =_xlfn.IFNA(VLOOKUP(A29,NDD_repeat_variants!A:F,6,FALSE),0) -> 0 | E29: =_xlfn.IFNA(VLOOKUP(A29,NDD_repeat_residues!A:F,5,FALSE),0) -> 1 | F29: =VLOOKUP(A29,NDD.gMVP!A:E,3,FALSE) -> 18 | G29: =IF(VLOOKUP(A29,NDD.CADD!A:F,3,FALSE)=0,"",VLOOKUP(A29,NDD.CADD!A:F,3,FALSE)) -> 12 | H29: =VLOOKUP(A29,'NDD.gMVP.pois'!A:E,5,FALSE) -> 2.87E-20 | I29: =IF(VLOOKUP(A29,'NDD.gMVP.cluster'!A:E,5,FALSE)=0,"",VLOOKUP(A29,'NDD.gMVP.cluster'!A:E,5,FALSE)) -> 1.25E-08 | J29: =VLOOKUP(A29,NDD.gMVP!A:E,5, FALSE) -> 2.30E-26 | K29: =VLOOKUP(A29,'NDD.CADD.pois'!A:E,5,FALSE) -> 8.64E-15 | L29: =IF(VLOOKUP(A29,'NDD.CADD.cluster'!A:E,5,FALSE)=0,"",VLOOKUP(A29,'NDD.CADD.cluster'!A:E,5,FALSE)) -> 8.00E-07 | M29: =VLOOKUP(A29,NDD.CADD!A:F,5,FALSE) -> 3.28E-19 | N29: =VLOOKUP(A29,NDD_Kaplanis!A:AI,25,FALSE) -> 0.00E+00 | O29: =AND(N29>0.0000025,OR(J29<0.0000025)) -> FALSE | P29: =VLOOKUP(A29,NDD_Kaplanis!A:AI,26,FALSE) -> 7.17E-21 | Q29: =AND(OR(J29<0.0000025),P29>0.0000025) -> FALSE | R29: =VLOOKUP(A29,NDD_Kaplanis!A:D,4,FALSE) -> consensus | S29: =AND(OR(R29="discordant", R29="none"),OR(J29<0.0000025)) -> FALSE | T29: =VLOOKUP(A29,DDG2P_3_5_2022!A:E,3,FALSE) -> Epilepsy and intellectual disability | U29: =VLOOKUP(A29,DDG2P_3_5_2022!A:E,5,FALSE) -> strong | V29: =AND(ISNA(T29),OR(J29<0.0000025)) -> FALSE | W29: =N29/J29 -> 0.00E+00
A30: GNB1 | B30: =VLOOKUP(A30,NDD_Kaplanis!A:AI,6,FALSE)+VLOOKUP(A30,NDD_Kaplanis!A:AI,13,FALSE)+VLOOKUP(A30,NDD_Kaplanis!A:AI,14,FALSE)+VLOOKUP(A30,NDD_Kaplanis!A:AI,15,FALSE) -> 0 | C30: =VLOOKUP(A30,NDD_Kaplanis!A:AI,10,FALSE) -> 17 | D30: =_xlfn.IFNA(VLOOKUP(A30,NDD_repeat_variants!A:F,6,FALSE),0) -> 0 | E30: =_xlfn.IFNA(VLOOKUP(A30,NDD_repeat_residues!A:F,5,FALSE),0) -> 0 | F30: =VLOOKUP(A30,NDD.gMVP!A:E,3,FALSE) -> 15 | G30: =IF(VLOOKUP(A30,NDD.CADD!A:F,3,FALSE)=0,"",VLOOKUP(A30,NDD.CADD!A:F,3,FALSE)) -> 13 | H30: =VLOOKUP(A30,'NDD.gMVP.pois'!A:E,5,FALSE) -> 3.66E-20 | I30: =IF(VLOOKUP(A30,'NDD.gMVP.cluster'!A:E,5,FALSE)=0,"",VLOOKUP(A30,'NDD.gMVP.cluster'!A:E,5,FALSE)) -> 1.25E-08 | J30: =VLOOKUP(A30,NDD.gMVP!A:E,5, FALSE) -> 2.92E-26 | K30: =VLOOKUP(A30,'NDD.CADD.pois'!A:E,5,FALSE) -> 1.51E-16 | L30: =IF(VLOOKUP(A30,'NDD.CADD.cluster'!A:E,5,FALSE)=0,"",VLOOKUP(A30,'NDD.CADD.cluster'!A:E,5,FALSE)) -> 1.25E-08 | M30: =VLOOKUP(A30,NDD.CADD!A:F,5,FALSE) -> 1.05E-22 | N30: =VLOOKUP(A30,NDD_Kaplanis!A:AI,25,FALSE) -> 8.48E-20 | O30: =AND(N30>0.0000025,OR(J30<0.0000025)) -> FALSE | P30: =VLOOKUP(A30,NDD_Kaplanis!A:AI,26,FALSE) -> 8.48E-20 | Q30: =AND(OR(J30<0.0000025),P30>0.0000025) -> FALSE | R30: =VLOOKUP(A30,NDD_Kaplanis!A:D,4,FALSE) -> consensus | S30: =AND(OR(R30="discordant", R30="none"),OR(J30<0.0000025)) -> FALSE | T30: =VLOOKUP(A30,DDG2P_3_5_2022!A:E,3,FALSE) -> Severe Neurodevelopmental Disability, Hypotonia, and Seizures | U30: =VLOOKUP(A30,DDG2P_3_5_2022!A:E,5,FALSE) -> definitive | V30: =AND(ISNA(T30),OR(J30<0.0000025)) -> FALSE | W30: =N30/J30 -> 2.90E+06
A31: NR2F1 | B31: =VLOOKUP(A31,NDD_Kaplanis!A:AI,6,FALSE)+VLOOKUP(A31,NDD_Kaplanis!A:AI,13,FALSE)+VLOOKUP(A31,NDD_Kaplanis!A:AI,14,FALSE)+VLOOKUP(A31,NDD_Kaplanis!A:AI,15,FALSE) -> 0 | C31: =VLOOKUP(A31,NDD_Kaplanis!A:AI,10,FALSE) -> 27 | D31: =_xlfn.IFNA(VLOOKUP(A31,NDD_repeat_variants!A:F,6,FALSE),0) -> 0 | E31: =_xlfn.IFNA(VLOOKUP(A31,NDD_repeat_residues!A:F,5,FALSE),0) -> 0 | F31: =VLOOKUP(A31,NDD.gMVP!A:E,3,FALSE) -> 23 | G31: =IF(VLOOKUP(A31,NDD.CADD!A:F,3,FALSE)=0,"",VLOOKUP(A31,NDD.CADD!A:F,3,FALSE)) -> 22 | H31: =VLOOKUP(A31,'NDD.gMVP.pois'!A:E,5,FALSE) -> 3.24E-26 | I31: =IF(VLOOKUP(A31,'NDD.gMVP.cluster'!A:E,5,FALSE)=0,"",VLOOKUP(A31,'NDD.gMVP.cluster'!A:E,5,FALSE)) -> 2.50E-08 | J31: =VLOOKUP(A31,NDD.gMVP!A:E,5, FALSE) -> 3.24E-26 | K31: =VLOOKUP(A31,'NDD.CADD.pois'!A:E,5,FALSE) -> 4.85E-25 | L31: =IF(VLOOKUP(A31,'NDD.CADD.cluster'!A:E,5,FALSE)=0,"",VLOOKUP(A31,'NDD.CADD.cluster'!A:E,5,FALSE)) -> 1.00E-07 | M31: =VLOOKUP(A31,NDD.CADD!A:F,5,FALSE) -> 4.85E-25 | N31: =VLOOKUP(A31,NDD_Kaplanis!A:AI,25,FALSE) -> 2.72E-18 | O31: =AND(N31>0.0000025,OR(J31<0.0000025)) -> FALSE | P31: =VLOOKUP(A31,NDD_Kaplanis!A:AI,26,FALSE) -> 2.72E-18 | Q31: =AND(OR(J31<0.0000025),P31>0.0000025) -> FALSE | R31: =VLOOKUP(A31,NDD_Kaplanis!A:D,4,FALSE) -> consensus | S31: =AND(OR(R31="discordant", R31="none"),OR(J31<0.0000025)) -> FALSE | T31: =VLOOKUP(A31,DDG2P_3_5_2022!A:E,3,FALSE) -> BOSCH-BOONSTRA OPTIC ATROPHY SYNDROME | U31: =VLOOKUP(A31,DDG2P_3_5_2022!A:E,5,FALSE) -> definitive | V31: =AND(ISNA(T31),OR(J31<0.0000025)) -> FALSE | W31: =N31/J31 -> 8.39E+07
A32: FGFR3 | B32: =VLOOKUP(A32,NDD_Kaplanis!A:AI,6,FALSE)+VLOOKUP(A32,NDD_Kaplanis!A:AI,13,FALSE)+VLOOKUP(A32,NDD_Kaplanis!A:AI,14,FALSE)+VLOOKUP(A32,NDD_Kaplanis!A:AI,15,FALSE) -> 0 | C32: =VLOOKUP(A32,NDD_Kaplanis!A:AI,10,FALSE) -> 23 | D32: =_xlfn.IFNA(VLOOKUP(A32,NDD_repeat_variants!A:F,6,FALSE),0) -> 1 | E32: =_xlfn.IFNA(VLOOKUP(A32,NDD_repeat_residues!A:F,5,FALSE),0) -> 15 | F32: =VLOOKUP(A32,NDD.gMVP!A:E,3,FALSE) -> 20 | G32: =IF(VLOOKUP(A32,NDD.CADD!A:F,3,FALSE)=0,"",VLOOKUP(A32,NDD.CADD!A:F,3,FALSE)) -> 2 | H32: =VLOOKUP(A32,'NDD.gMVP.pois'!A:E,5,FALSE) -> 1.95E-25 | I32: =IF(VLOOKUP(A32,'NDD.gMVP.cluster'!A:E,5,FALSE)=0,"",VLOOKUP(A32,'NDD.gMVP.cluster'!A:E,5,FALSE)) -> 1.25E-08 | J32: =VLOOKUP(A32,NDD.gMVP!A:E,5, FALSE) -> 1.95E-25 | K32: =VLOOKUP(A32,'NDD.CADD.pois'!A:E,5,FALSE) -> 1.39E-01 | L32: =IF(VLOOKUP(A32,'NDD.CADD.cluster'!A:E,5,FALSE)=0,"",VLOOKUP(A32,'NDD.CADD.cluster'!A:E,5,FALSE)) -> 7.52E-01 | M32: =VLOOKUP(A32,NDD.CADD!A:F,5,FALSE) -> 3.41E-01 | N32: =VLOOKUP(A32,NDD_Kaplanis!A:AI,25,FALSE) -> 3.20E-19 | O32: =AND(N32>0.0000025,OR(J32<0.0000025)) -> FALSE | P32: =VLOOKUP(A32,NDD_Kaplanis!A:AI,26,FALSE) -> 3.20E-19 | Q32: =AND(OR(J32<0.0000025),P32>0.0000025) -> FALSE | R32: =VLOOKUP(A32,NDD_Kaplanis!A:D,4,FALSE) -> consensus | S32: =AND(OR(R32="discordant", R32="none"),OR(J32<0.0000025)) -> FALSE | T32: =VLOOKUP(A32,DDG2P_3_5_2022!A:E,3,FALSE) -> LACRIMO-AURICULO-DENTO-DIGITAL SYNDROME | U32: =VLOOKUP(A32,DDG2P_3_5_2022!A:E,5,FALSE) -> definitive | V32: =AND(ISNA(T32),OR(J32<0.0000025)) -> FALSE | W32: =N32/J32 -> 1.64E+06
A33: HECW2 | B33: =VLOOKUP(A33,NDD_Kaplanis!A:AI,6,FALSE)+VLOOKUP(A33,NDD_Kaplanis!A:AI,13,FALSE)+VLOOKUP(A33,NDD_Kaplanis!A:AI,14,FALSE)+VLOOKUP(A33,NDD_Kaplanis!A:AI,15,FALSE) -> 2 | C33: =VLOOKUP(A33,NDD_Kaplanis!A:AI,10,FALSE) -> 20 | D33: =_xlfn.IFNA(VLOOKUP(A33,NDD_repeat_variants!A:F,6,FALSE),0) -> 1 | E33: =_xlfn.IFNA(VLOOKUP(A33,NDD_repeat_residues!A:F,5,FALSE),0) -> 0 | F33: =VLOOKUP(A33,NDD.gMVP!A:E,3,FALSE) -> 20 | G33: =IF(VLOOKUP(A33,NDD.CADD!A:F,3,FALSE)=0,"",VLOOKUP(A33,NDD.CADD!A:F,3,FALSE)) -> 17 | H33: =VLOOKUP(A33,'NDD.gMVP.pois'!A:E,5,FALSE) -> 9.46E-19 | I33: =IF(VLOOKUP(A33,'NDD.gMVP.cluster'!A:E,5,FALSE)=0,"",VLOOKUP(A33,'NDD.gMVP.cluster'!A:E,5,FALSE)) -> 1.25E-08 | J33: =VLOOKUP(A33,NDD.gMVP!A:E,5, FALSE) -> 7.18E-25 | K33: =VLOOKUP(A33,'NDD.CADD.pois'!A:E,5,FALSE) -> 5.38E-14 | L33: =IF(VLOOKUP(A33,'NDD.CADD.cluster'!A:E,5,FALSE)=0,"",VLOOKUP(A33,'NDD.CADD.cluster'!A:E,5,FALSE)) -> 1.25E-08 | M33: =VLOOKUP(A33,NDD.CADD!A:F,5,FALSE) -> 3.34E-20 | N33: =VLOOKUP(A33,NDD_Kaplanis!A:AI,25,FALSE) -> 2.57E-19 | O33: =AND(N33>0.0000025,OR(J33<0.0000025)) -> FALSE | P33: =VLOOKUP(A33,NDD_Kaplanis!A:AI,26,FALSE) -> 2.57E-19 | Q33: =AND(OR(J33<0.0000025),P33>0.0000025) -> FALSE | R33: =VLOOKUP(A33,NDD_Kaplanis!A:D,4,FALSE) -> consensus | S33: =AND(OR(R33="discordant", R33="none"),OR(J33<0.0000025)) -> FALSE | T33: =VLOOKUP(A33,DDG2P_3_5_2022!A:E,3,FALSE) -> Neurodevelopmental disorder with hypotonia, seizures, and absent language | U33: =VLOOKUP(A33,DDG2P_3_5_2022!A:E,5,FALSE) -> definitive | V33: =AND(ISNA(T33),OR(J33<0.0000025)) -> FALSE | W33: =N33/J33 -> 3.58E+05
A34: ATP1A3 | B34: =VLOOKUP(A34,NDD_Kaplanis!A:AI,6,FALSE)+VLOOKUP(A34,NDD_Kaplanis!A:AI,13,FALSE)+VLOOKUP(A34,NDD_Kaplanis!A:AI,14,FALSE)+VLOOKUP(A34,NDD_Kaplanis!A:AI,15,FALSE) -> 2 | C34: =VLOOKUP(A34,NDD_Kaplanis!A:AI,10,FALSE) -> 31 | D34: =_xlfn.IFNA(VLOOKUP(A34,NDD_repeat_variants!A:F,6,FALSE),0) -> 0 | E34: =_xlfn.IFNA(VLOOKUP(A34,NDD_repeat_residues!A:F,5,FALSE),0) -> 10 | F34: =VLOOKUP(A34,NDD.gMVP!A:E,3,FALSE) -> 31 | G34: =IF(VLOOKUP(A34,NDD.CADD!A:F,3,FALSE)=0,"",VLOOKUP(A34,NDD.CADD!A:F,3,FALSE)) -> 24 | H34: =VLOOKUP(A34,'NDD.gMVP.pois'!A:E,5,FALSE) -> 7.51E-25 | I34: =IF(VLOOKUP(A34,'NDD.gMVP.cluster'!A:E,5,FALSE)=0,"",VLOOKUP(A34,'NDD.gMVP.cluster'!A:E,5,FALSE)) -> 1.25E-08 | J34: =VLOOKUP(A34,NDD.gMVP!A:E,5, FALSE) -> 7.51E-25 | K34: =VLOOKUP(A34,'NDD.CADD.pois'!A:E,5,FALSE) -> 8.06E-23 | L34: =IF(VLOOKUP(A34,'NDD.CADD.cluster'!A:E,5,FALSE)=0,"",VLOOKUP(A34,'NDD.CADD.cluster'!A:E,5,FALSE)) -> 1.25E-08 | M34: =VLOOKUP(A34,NDD.CADD!A:F,5,FALSE) -> 8.06E-23 | N34: =VLOOKUP(A34,NDD_Kaplanis!A:AI,25,FALSE) -> 1.38E-18 | O34: =AND(N34>0.0000025,OR(J34<0.0000025)) -> FALSE | P34: =VLOOKUP(A34,NDD_Kaplanis!A:AI,26,FALSE) -> 1.38E-18 | Q34: =AND(OR(J34<0.0000025),P34>0.0000025) -> FALSE | R34: =VLOOKUP(A34,NDD_Kaplanis!A:D,4,FALSE) -> consensus | S34: =AND(OR(R34="discordant", R34="none"),OR(J34<0.0000025)) -> FALSE | T34: =VLOOKUP(A34,DDG2P_3_5_2022!A:E,3,FALSE) -> ALTERNATING HEMIPLEGIA OF CHILDHOOD | U34: =VLOOKUP(A34,DDG2P_3_5_2022!A:E,5,FALSE) -> both RD and IF | V34: =AND(ISNA(T34),OR(J34<0.0000025)) -> FALSE | W34: =N34/J34 -> 1.84E+06
A35: DNMT3A | B35: =VLOOKUP(A35,NDD_Kaplanis!A:AI,6,FALSE)+VLOOKUP(A35,NDD_Kaplanis!A:AI,13,FALSE)+VLOOKUP(A35,NDD_Kaplanis!A:AI,14,FALSE)+VLOOKUP(A35,NDD_Kaplanis!A:AI,15,FALSE) -> 8 | C35: =VLOOKUP(A35,NDD_Kaplanis!A:AI,10,FALSE) -> 27 | D35: =_xlfn.IFNA(VLOOKUP(A35,NDD_repeat_variants!A:F,6,FALSE),0) -> 1 | E35: =_xlfn.IFNA(VLOOKUP(A35,NDD_repeat_residues!A:F,5,FALSE),0) -> 5 | F35: =VLOOKUP(A35,NDD.gMVP!A:E,3,FALSE) -> 21 | G35: =IF(VLOOKUP(A35,NDD.CADD!A:F,3,FALSE)=0,"",VLOOKUP(A35,NDD.CADD!A:F,3,FALSE)) -> 25 | H35: =VLOOKUP(A35,'NDD.gMVP.pois'!A:E,5,FALSE) -> 1.59E-24 | I35: =IF(VLOOKUP(A35,'NDD.gMVP.cluster'!A:E,5,FALSE)=0,"",VLOOKUP(A35,'NDD.gMVP.cluster'!A:E,5,FALSE)) -> 1.50E-07 | J35: =VLOOKUP(A35,NDD.gMVP!A:E,5, FALSE) -> 1.59E-24 | K35: =VLOOKUP(A35,'NDD.CADD.pois'!A:E,5,FALSE) -> 6.36E-29 | L35: =IF(VLOOKUP(A35,'NDD.CADD.cluster'!A:E,5,FALSE)=0,"",VLOOKUP(A35,'NDD.CADD.cluster'!A:E,5,FALSE)) -> 1.20E-06 | M35: =VLOOKUP(A35,NDD.CADD!A:F,5,FALSE) -> 6.36E-29 | N35: =VLOOKUP(A35,NDD_Kaplanis!A:AI,25,FALSE) -> 1.68E-16 | O35: =AND(N35>0.0000025,OR(J35<0.0000025)) -> FALSE | P35: =VLOOKUP(A35,NDD_Kaplanis!A:AI,26,FALSE) -> 1.68E-16 | Q35: =AND(OR(J35<0.0000025),P35>0.0000025) -> FALSE | R35: =VLOOKUP(A35,NDD_Kaplanis!A:D,4,FALSE) -> consensus | S35: =AND(OR(R35="discordant", R35="none"),OR(J35<0.0000025)) -> FALSE | T35: =VLOOKUP(A35,DDG2P_3_5_2022!A:E,3,FALSE) -> Tatton-Brown Rahman syndrome (OVERGROWTH SYNDROME WITH INTELLECTUAL DISABILITY) | U35: =VLOOKUP(A35,DDG2P_3_5_2022!A:E,5,FALSE) -> definitive | V35: =AND(ISNA(T35),OR(J35<0.0000025)) -> FALSE | W35: =N35/J35 -> 1.06E+08
A36: KCNQ3 | B36: =VLOOKUP(A36,NDD_Kaplanis!A:AI,6,FALSE)+VLOOKUP(A36,NDD_Kaplanis!A:AI,13,FALSE)+VLOOKUP(A36,NDD_Kaplanis!A:AI,14,FALSE)+VLOOKUP(A36,NDD_Kaplanis!A:AI,15,FALSE) -> 1 | C36: =VLOOKUP(A36,NDD_Kaplanis!A:AI,10,FALSE) -> 18 | D36: =_xlfn.IFNA(VLOOKUP(A36,NDD_repeat_variants!A:F,6,FALSE),0) -> 2 | E36: =_xlfn.IFNA(VLOOKUP(A36,NDD_repeat_residues!A:F,5,FALSE),0) -> 0 | F36: =VLOOKUP(A36,NDD.gMVP!A:E,3,FALSE) -> 17 | G36: =IF(VLOOKUP(A36,NDD.CADD!A:F,3,FALSE)=0,"",VLOOKUP(A36,NDD.CADD!A:F,3,FALSE)) -> 16 | H36: =VLOOKUP(A36,'NDD.gMVP.pois'!A:E,5,FALSE) -> 3.76E-18 | I36: =IF(VLOOKUP(A36,'NDD.gMVP.cluster'!A:E,5,FALSE)=0,"",VLOOKUP(A36,'NDD.gMVP.cluster'!A:E,5,FALSE)) -> 1.25E-08 | J36: =VLOOKUP(A36,NDD.gMVP!A:E,5, FALSE) -> 2.79E-24 | K36: =VLOOKUP(A36,'NDD.CADD.pois'!A:E,5,FALSE) -> 5.38E-16 | L36: =IF(VLOOKUP(A36,'NDD.CADD.cluster'!A:E,5,FALSE)=0,"",VLOOKUP(A36,'NDD.CADD.cluster'!A:E,5,FALSE)) -> 1.25E-08 | M36: =VLOOKUP(A36,NDD.CADD!A:F,5,FALSE) -> 3.66E-22 | N36: =VLOOKUP(A36,NDD_Kaplanis!A:AI,25,FALSE) -> 2.17E-22 | O36: =AND(N36>0.0000025,OR(J36<0.0000025)) -> FALSE | P36: =VLOOKUP(A36,NDD_Kaplanis!A:AI,26,FALSE) -> 2.17E-22 | Q36: =AND(OR(J36<0.0000025),P36>0.0000025) -> FALSE | R36: =VLOOKUP(A36,NDD_Kaplanis!A:D,4,FALSE) -> consensus | S36: =AND(OR(R36="discordant", R36="none"),OR(J36<0.0000025)) -> FALSE | T36: =VLOOKUP(A36,DDG2P_3_5_2022!A:E,3,FALSE) -> KCNQ3 syndrome | U36: =VLOOKUP(A36,DDG2P_3_5_2022!A:E,5,FALSE) -> definitive | V36: =AND(ISNA(T36),OR(J36<0.0000025)) -> FALSE | W36: =N36/J36 -> 7.80E+01
A37: TBL1XR1 | B37: =VLOOKUP(A37,NDD_Kaplanis!A:AI,6,FALSE)+VLOOKUP(A37,NDD_Kaplanis!A:AI,13,FALSE)+VLOOKUP(A37,NDD_Kaplanis!A:AI,14,FALSE)+VLOOKUP(A37,NDD_Kaplanis!A:AI,15,FALSE) -> 5 | C37: =VLOOKUP(A37,NDD_Kaplanis!A:AI,10,FALSE) -> 22 | D37: =_xlfn.IFNA(VLOOKUP(A37,NDD_repeat_variants!A:F,6,FALSE),0) -> 1 | E37: =_xlfn.IFNA(VLOOKUP(A37,NDD_repeat_residues!A:F,5,FALSE),0) -> 0 | F37: =VLOOKUP(A37,NDD.gMVP!A:E,3,FALSE) -> 19 | G37: =IF(VLOOKUP(A37,NDD.CADD!A:F,3,FALSE)=0,"",VLOOKUP(A37,NDD.CADD!A:F,3,FALSE)) -> 19 | H37: =VLOOKUP(A37,'NDD.gMVP.pois'!A:E,5,FALSE) -> 2.98E-24 | I37: =IF(VLOOKUP(A37,'NDD.gMVP.cluster'!A:E,5,FALSE)=0,"",VLOOKUP(A37,'NDD.gMVP.cluster'!A:E,5,FALSE)) -> 2.50E-06 | J37: =VLOOKUP(A37,NDD.gMVP!A:E,5, FALSE) -> 2.98E-24 | K37: =VLOOKUP(A37,'NDD.CADD.pois'!A:E,5,FALSE) -> 4.76E-28 | L37: =IF(VLOOKUP(A37,'NDD.CADD.cluster'!A:E,5,FALSE)=0,"",VLOOKUP(A37,'NDD.CADD.cluster'!A:E,5,FALSE)) -> 5.00E-07 | M37: =VLOOKUP(A37,NDD.CADD!A:F,5,FALSE) -> 4.76E-28 | N37: =VLOOKUP(A37,NDD_Kaplanis!A:AI,25,FALSE) -> 3.99E-16 | O37: =AND(N37>0.0000025,OR(J37<0.0000025)) -> FALSE | P37: =VLOOKUP(A37,NDD_Kaplanis!A:AI,26,FALSE) -> 3.99E-16 | Q37: =AND(OR(J37<0.0000025),P37>0.0000025) -> FALSE | R37: =VLOOKUP(A37,NDD_Kaplanis!A:D,4,FALSE) -> consensus | S37: =AND(OR(R37="discordant", R37="none"),OR(J37<0.0000025)) -> FALSE | T37: =VLOOKUP(A37,DDG2P_3_5_2022!A:E,3,FALSE) -> Intellectual disability with autism spectrum disorder | U37: =VLOOKUP(A37,DDG2P_3_5_2022!A:E,5,FALSE) -> definitive | V37: =AND(ISNA(T37),OR(J37<0.0000025)) -> FALSE | W37: =N37/J37 -> 1.34E+08
A38: RHOBTB2 | B38: =VLOOKUP(A38,NDD_Kaplanis!A:AI,6,FALSE)+VLOOKUP(A38,NDD_Kaplanis!A:AI,13,FALSE)+VLOOKUP(A38,NDD_Kaplanis!A:AI,14,FALSE)+VLOOKUP(A38,NDD_Kaplanis!A:AI,15,FALSE) -> 1 | C38: =VLOOKUP(A38,NDD_Kaplanis!A:AI,10,FALSE) -> 18 | D38: =_xlfn.IFNA(VLOOKUP(A38,NDD_repeat_variants!A:F,6,FALSE),0) -> 1 | E38: =_xlfn.IFNA(VLOOKUP(A38,NDD_repeat_residues!A:F,5,FALSE),0) -> 0 | F38: =VLOOKUP(A38,NDD.gMVP!A:E,3,FALSE) -> 17 | G38: =IF(VLOOKUP(A38,NDD.CADD!A:F,3,FALSE)=0,"",VLOOKUP(A38,NDD.CADD!A:F,3,FALSE)) -> 17 | H38: =VLOOKUP(A38,'NDD.gMVP.pois'!A:E,5,FALSE) -> 6.75E-18 | I38: =IF(VLOOKUP(A38,'NDD.gMVP.cluster'!A:E,5,FALSE)=0,"",VLOOKUP(A38,'NDD.gMVP.cluster'!A:E,5,FALSE)) -> 1.25E-08 | J38: =VLOOKUP(A38,NDD.gMVP!A:E,5, FALSE) -> 4.96E-24 | K38: =VLOOKUP(A38,'NDD.CADD.pois'!A:E,5,FALSE) -> 1.90E-18 | L38: =IF(VLOOKUP(A38,'NDD.CADD.cluster'!A:E,5,FALSE)=0,"",VLOOKUP(A38,'NDD.CADD.cluster'!A:E,5,FALSE)) -> 1.25E-08 | M38: =VLOOKUP(A38,NDD.CADD!A:F,5,FALSE) -> 1.43E-24 | N38: =VLOOKUP(A38,NDD_Kaplanis!A:AI,25,FALSE) -> 3.85E-13 | O38: =AND(N38>0.0000025,OR(J38<0.0000025)) -> FALSE | P38: =VLOOKUP(A38,NDD_Kaplanis!A:AI,26,FALSE) -> 3.85E-13 | Q38: =AND(OR(J38<0.0000025),P38>0.0000025) -> FALSE | R38: =VLOOKUP(A38,NDD_Kaplanis!A:D,4,FALSE) -> consensus | S38: =AND(OR(R38="discordant", R38="none"),OR(J38<0.0000025)) -> FALSE | T38: =VLOOKUP(A38,DDG2P_3_5_2022!A:E,3,FALSE) -> Developmental and Epileptic Encephalopathy | U38: =VLOOKUP(A38,DDG2P_3_5_2022!A:E,5,FALSE) -> strong | V38: =AND(ISNA(T38),OR(J38<0.0000025)) -> FALSE | W38: =N38/J38 -> 7.76E+10
A39: SOX11 | B39: =VLOOKUP(A39,NDD_Kaplanis!A:AI,6,FALSE)+VLOOKUP(A39,NDD_Kaplanis!A:AI,13,FALSE)+VLOOKUP(A39,NDD_Kaplanis!A:AI,14,FALSE)+VLOOKUP(A39,NDD_Kaplanis!A:AI,15,FALSE) -> 4 | C39: =VLOOKUP(A39,NDD_Kaplanis!A:AI,10,FALSE) -> 19 | D39: =_xlfn.IFNA(VLOOKUP(A39,NDD_repeat_variants!A:F,6,FALSE),0) -> 0 | E39: =_xlfn.IFNA(VLOOKUP(A39,NDD_repeat_residues!A:F,5,FALSE),0) -> 0 | F39: =VLOOKUP(A39,NDD.gMVP!A:E,3,FALSE) -> 19 | G39: =IF(VLOOKUP(A39,NDD.CADD!A:F,3,FALSE)=0,"",VLOOKUP(A39,NDD.CADD!A:F,3,FALSE)) -> 17 | H39: =VLOOKUP(A39,'NDD.gMVP.pois'!A:E,5,FALSE) -> 5.00E-24 | I39: =IF(VLOOKUP(A39,'NDD.gMVP.cluster'!A:E,5,FALSE)=0,"",VLOOKUP(A39,'NDD.gMVP.cluster'!A:E,5,FALSE)) -> 1.25E-08 | J39: =VLOOKUP(A39,NDD.gMVP!A:E,5, FALSE) -> 5.00E-24 | K39: =VLOOKUP(A39,'NDD.CADD.pois'!A:E,5,FALSE) -> 9.82E-20 | L39: =IF(VLOOKUP(A39,'NDD.CADD.cluster'!A:E,5,FALSE)=0,"",VLOOKUP(A39,'NDD.CADD.cluster'!A:E,5,FALSE)) -> 1.25E-08 | M39: =VLOOKUP(A39,NDD.CADD!A:F,5,FALSE) -> 7.73E-26 | N39: =VLOOKUP(A39,NDD_Kaplanis!A:AI,25,FALSE) -> 2.83E-24 | O39: =AND(N39>0.0000025,OR(J39<0.0000025)) -> FALSE | P39: =VLOOKUP(A39,NDD_Kaplanis!A:AI,26,FALSE) -> 2.83E-24 | Q39: =AND(OR(J39<0.0000025),P39>0.0000025) -> FALSE | R39: =VLOOKUP(A39,NDD_Kaplanis!A:D,4,FALSE) -> consensus | S39: =AND(OR(R39="discordant", R39="none"),OR(J39<0.0000025)) -> FALSE | T39: =VLOOKUP(A39,DDG2P_3_5_2022!A:E,3,FALSE) -> INTELLECTUAL DEVELOPMENTAL DISORDER, AUTOSOMAL DOMINANT, 27 | U39: =VLOOKUP(A39,DDG2P_3_5_2022!A:E,5,FALSE) -> strong | V39: =AND(ISNA(T39),OR(J39<0.0000025)) -> FALSE | W39: =N39/J39 -> 5.67E-01
A40: PPP2R5D | B40: =VLOOKUP(A40,NDD_Kaplanis!A:AI,6,FALSE)+VLOOKUP(A40,NDD_Kaplanis!A:AI,13,FALSE)+VLOOKUP(A40,NDD_Kaplanis!A:AI,14,FALSE)+VLOOKUP(A40,NDD_Kaplanis!A:AI,15,FALSE) -> 0 | C40: =VLOOKUP(A40,NDD_Kaplanis!A:AI,10,FALSE) -> 43 | D40: =_xlfn.IFNA(VLOOKUP(A40,NDD_repeat_variants!A:F,6,FALSE),0) -> 16 | E40: =_xlfn.IFNA(VLOOKUP(A40,NDD_repeat_residues!A:F,5,FALSE),0) -> 0 | F40: =VLOOKUP(A40,NDD.gMVP!A:E,3,FALSE) -> 14 | G40: =IF(VLOOKUP(A40,NDD.CADD!A:F,3,FALSE)=0,"",VLOOKUP(A40,NDD.CADD!A:F,3,FALSE)) -> 43 | H40: =VLOOKUP(A40,'NDD.gMVP.pois'!A:E,5,FALSE) -> 7.36E-18 | I40: =IF(VLOOKUP(A40,'NDD.gMVP.cluster'!A:E,5,FALSE)=0,"",VLOOKUP(A40,'NDD.gMVP.cluster'!A:E,5,FALSE)) -> 1.25E-08 | J40: =VLOOKUP(A40,NDD.gMVP!A:E,5, FALSE) -> 5.39E-24 | K40: =VLOOKUP(A40,'NDD.CADD.pois'!A:E,5,FALSE) -> 1.58E-66 | L40: =IF(VLOOKUP(A40,'NDD.CADD.cluster'!A:E,5,FALSE)=0,"",VLOOKUP(A40,'NDD.CADD.cluster'!A:E,5,FALSE)) -> 1.25E-08 | M40: =VLOOKUP(A40,NDD.CADD!A:F,5,FALSE) -> 1.58E-66 | N40: =VLOOKUP(A40,NDD_Kaplanis!A:AI,25,FALSE) -> 5.22E-21 | O40: =AND(N40>0.0000025,OR(J40<0.0000025)) -> FALSE | P40: =VLOOKUP(A40,NDD_Kaplanis!A:AI,26,FALSE) -> 5.22E-21 | Q40: =AND(OR(J40<0.0000025),P40>0.0000025) -> FALSE | R40: =VLOOKUP(A40,NDD_Kaplanis!A:D,4,FALSE) -> consensus | S40: =AND(OR(R40="discordant", R40="none"),OR(J40<0.0000025)) -> FALSE | T40: =VLOOKUP(A40,DDG2P_3_5_2022!A:E,3,FALSE) -> INTELLECTUAL DISABILITY | U40: =VLOOKUP(A40,DDG2P_3_5_2022!A:E,5,FALSE) -> definitive | V40: =AND(ISNA(T40),OR(J40<0.0000025)) -> FALSE | W40: =N40/J40 -> 9.67E+02
A41: FOXG1 | B41: =VLOOKUP(A41,NDD_Kaplanis!A:AI,6,FALSE)+VLOOKUP(A41,NDD_Kaplanis!A:AI,13,FALSE)+VLOOKUP(A41,NDD_Kaplanis!A:AI,14,FALSE)+VLOOKUP(A41,NDD_Kaplanis!A:AI,15,FALSE) -> 24 | C41: =VLOOKUP(A41,NDD_Kaplanis!A:AI,10,FALSE) -> 22 | D41: =_xlfn.IFNA(VLOOKUP(A41,NDD_repeat_variants!A:F,6,FALSE),0) -> 0 | E41: =_xlfn.IFNA(VLOOKUP(A41,NDD_repeat_residues!A:F,5,FALSE),0) -> 6 | F41: =VLOOKUP(A41,NDD.gMVP!A:E,3,FALSE) -> 21 | G41: =IF(VLOOKUP(A41,NDD.CADD!A:F,3,FALSE)=0,"",VLOOKUP(A41,NDD.CADD!A:F,3,FALSE)) -> 21 | H41: =VLOOKUP(A41,'NDD.gMVP.pois'!A:E,5,FALSE) -> 9.26E-24 | I41: =IF(VLOOKUP(A41,'NDD.gMVP.cluster'!A:E,5,FALSE)=0,"",VLOOKUP(A41,'NDD.gMVP.cluster'!A:E,5,FALSE)) -> 1.25E-08 | J41: =VLOOKUP(A41,NDD.gMVP!A:E,5, FALSE) -> 9.26E-24 | K41: =VLOOKUP(A41,'NDD.CADD.pois'!A:E,5,FALSE) -> 4.75E-26 | L41: =IF(VLOOKUP(A41,'NDD.CADD.cluster'!A:E,5,FALSE)=0,"",VLOOKUP(A41,'NDD.CADD.cluster'!A:E,5,FALSE)) -> 1.25E-08 | M41: =VLOOKUP(A41,NDD.CADD!A:F,5,FALSE) -> 4.75E-26 | N41: =VLOOKUP(A41,NDD_Kaplanis!A:AI,25,FALSE) -> 5.22E-21 | O41: =AND(N41>0.0000025,OR(J41<0.0000025)) -> FALSE | P41: =VLOOKUP(A41,NDD_Kaplanis!A:AI,26,FALSE) -> 5.22E-21 | Q41: =AND(OR(J41<0.0000025),P41>0.0000025) -> FALSE | R41: =VLOOKUP(A41,NDD_Kaplanis!A:D,4,FALSE) -> consensus | S41: =AND(OR(R41="discordant", R41="none"),OR(J41<0.0000025)) -> FALSE | T41: =VLOOKUP(A41,DDG2P_3_5_2022!A:E,3,FALSE) -> CONGENITAL VARIANT OF RETT SYNDROME | U41: =VLOOKUP(A41,DDG2P_3_5_2022!A:E,5,FALSE) -> definitive | V41: =AND(ISNA(T41),OR(J41<0.0000025)) -> FALSE | W41: =N41/J41 -> 5.63E+02
A42: SETBP1 | B42: =VLOOKUP(A42,NDD_Kaplanis!A:AI,6,FALSE)+VLOOKUP(A42,NDD_Kaplanis!A:AI,13,FALSE)+VLOOKUP(A42,NDD_Kaplanis!A:AI,14,FALSE)+VLOOKUP(A42,NDD_Kaplanis!A:AI,15,FALSE) -> 12 | C42: =VLOOKUP(A42,NDD_Kaplanis!A:AI,10,FALSE) -> 12 | D42: =_xlfn.IFNA(VLOOKUP(A42,NDD_repeat_variants!A:F,6,FALSE),0) -> 0 | E42: =_xlfn.IFNA(VLOOKUP(A42,NDD_repeat_residues!A:F,5,FALSE),0) -> 0 | F42: =VLOOKUP(A42,NDD.gMVP!A:E,3,FALSE) -> 6 | G42: =IF(VLOOKUP(A42,NDD.CADD!A:F,3,FALSE)=0,"",VLOOKUP(A42,NDD.CADD!A:F,3,FALSE)) ->  | H42: =VLOOKUP(A42,'NDD.gMVP.pois'!A:E,5,FALSE) -> 2.67E-17 | I42: =IF(VLOOKUP(A42,'NDD.gMVP.cluster'!A:E,5,FALSE)=0,"",VLOOKUP(A42,'NDD.gMVP.cluster'!A:E,5,FALSE)) -> 1.00E-07 | J42: =VLOOKUP(A42,NDD.gMVP!A:E,5, FALSE) -> 1.48E-22 | K42: =VLOOKUP(A42,'NDD.CADD.pois'!A:E,5,FALSE) ->  | L42: =IF(VLOOKUP(A42,'NDD.CADD.cluster'!A:E,5,FALSE)=0,"",VLOOKUP(A42,'NDD.CADD.cluster'!A:E,5,FALSE)) ->  | M42: =VLOOKUP(A42,NDD.CADD!A:F,5,FALSE) ->  | N42: =VLOOKUP(A42,NDD_Kaplanis!A:AI,25,FALSE) -> 1.40E-10 | O42: =AND(N42>0.0000025,OR(J42<0.0000025)) -> FALSE | P42: =VLOOKUP(A42,NDD_Kaplanis!A:AI,26,FALSE) -> 9.04E-16 | Q42: =AND(OR(J42<0.0000025),P42>0.0000025) -> FALSE | R42: =VLOOKUP(A42,NDD_Kaplanis!A:D,4,FALSE) -> consensus | S42: =AND(OR(R42="discordant", R42="none"),OR(J42<0.0000025)) -> FALSE | T42: =VLOOKUP(A42,DDG2P_3_5_2022!A:E,3,FALSE) -> SCHINZEL-GIEDION MIDFACE RETRACTION SYNDROME | U42: =VLOOKUP(A42,DDG2P_3_5_2022!A:E,5,FALSE) -> definitive | V42: =AND(ISNA(T42),OR(J42<0.0000025)) -> FALSE | W42: =N42/J42 -> 9.51E+11
A43: GNAI1 | B43: =VLOOKUP(A43,NDD_Kaplanis!A:AI,6,FALSE)+VLOOKUP(A43,NDD_Kaplanis!A:AI,13,FALSE)+VLOOKUP(A43,NDD_Kaplanis!A:AI,14,FALSE)+VLOOKUP(A43,NDD_Kaplanis!A:AI,15,FALSE) -> 0 | C43: =VLOOKUP(A43,NDD_Kaplanis!A:AI,10,FALSE) -> 13 | D43: =_xlfn.IFNA(VLOOKUP(A43,NDD_repeat_variants!A:F,6,FALSE),0) -> 1 | E43: =_xlfn.IFNA(VLOOKUP(A43,NDD_repeat_residues!A:F,5,FALSE),0) -> 5 | F43: =VLOOKUP(A43,NDD.gMVP!A:E,3,FALSE) -> 13 | G43: =IF(VLOOKUP(A43,NDD.CADD!A:F,3,FALSE)=0,"",VLOOKUP(A43,NDD.CADD!A:F,3,FALSE)) -> 13 | H43: =VLOOKUP(A43,'NDD.gMVP.pois'!A:E,5,FALSE) -> 2.23E-16 | I43: =IF(VLOOKUP(A43,'NDD.gMVP.cluster'!A:E,5,FALSE)=0,"",VLOOKUP(A43,'NDD.gMVP.cluster'!A:E,5,FALSE)) -> 1.25E-08 | J43: =VLOOKUP(A43,NDD.gMVP!A:E,5, FALSE) -> 1.54E-22 | K43: =VLOOKUP(A43,'NDD.CADD.pois'!A:E,5,FALSE) -> 9.07E-18 | L43: =IF(VLOOKUP(A43,'NDD.CADD.cluster'!A:E,5,FALSE)=0,"",VLOOKUP(A43,'NDD.CADD.cluster'!A:E,5,FALSE)) -> 1.25E-08 | M43: =VLOOKUP(A43,NDD.CADD!A:F,5,FALSE) -> 6.62E-24 | N43: =VLOOKUP(A43,NDD_Kaplanis!A:AI,25,FALSE) -> 3.17E-17 | O43: =AND(N43>0.0000025,OR(J43<0.0000025)) -> FALSE | P43: =VLOOKUP(A43,NDD_Kaplanis!A:AI,26,FALSE) -> 3.17E-17 | Q43: =AND(OR(J43<0.0000025),P43>0.0000025) -> FALSE | R43: =VLOOKUP(A43,NDD_Kaplanis!A:D,4,FALSE) -> discordant | S43: =AND(OR(R43="discordant", R43="none"),OR(J43<0.0000025)) -> TRUE | T43: =VLOOKUP(A43,DDG2P_3_5_2022!A:E,3,FALSE) -> GNAI1 syndrome | U43: =VLOOKUP(A43,DDG2P_3_5_2022!A:E,5,FALSE) -> definitive | V43: =AND(ISNA(T43),OR(J43<0.0000025)) -> FALSE | W43: =N43/J43 -> 2.05E+05
A44: MEF2C | B44: =VLOOKUP(A44,NDD_Kaplanis!A:AI,6,FALSE)+VLOOKUP(A44,NDD_Kaplanis!A:AI,13,FALSE)+VLOOKUP(A44,NDD_Kaplanis!A:AI,14,FALSE)+VLOOKUP(A44,NDD_Kaplanis!A:AI,15,FALSE) -> 12 | C44: =VLOOKUP(A44,NDD_Kaplanis!A:AI,10,FALSE) -> 15 | D44: =_xlfn.IFNA(VLOOKUP(A44,NDD_repeat_variants!A:F,6,FALSE),0) -> 0 | E44: =_xlfn.IFNA(VLOOKUP(A44,NDD_repeat_residues!A:F,5,FALSE),0) -> 0 | F44: =VLOOKUP(A44,NDD.gMVP!A:E,3,FALSE) -> 13 | G44: =IF(VLOOKUP(A44,NDD.CADD!A:F,3,FALSE)=0,"",VLOOKUP(A44,NDD.CADD!A:F,3,FALSE)) -> 12 | H44: =VLOOKUP(A44,'NDD.gMVP.pois'!A:E,5,FALSE) -> 2.55E-16 | I44: =IF(VLOOKUP(A44,'NDD.gMVP.cluster'!A:E,5,FALSE)=0,"",VLOOKUP(A44,'NDD.gMVP.cluster'!A:E,5,FALSE)) -> 1.25E-08 | J44: =VLOOKUP(A44,NDD.gMVP!A:E,5, FALSE) -> 1.76E-22 | K44: =VLOOKUP(A44,'NDD.CADD.pois'!A:E,5,FALSE) -> 1.30E-13 | L44: =IF(VLOOKUP(A44,'NDD.CADD.cluster'!A:E,5,FALSE)=0,"",VLOOKUP(A44,'NDD.CADD.cluster'!A:E,5,FALSE)) -> 1.00E-07 | M44: =VLOOKUP(A44,NDD.CADD!A:F,5,FALSE) -> 6.07E-19 | N44: =VLOOKUP(A44,NDD_Kaplanis!A:AI,25,FALSE) -> 3.18E-17 | O44: =AND(N44>0.0000025,OR(J44<0.0000025)) -> FALSE | P44: =VLOOKUP(A44,NDD_Kaplanis!A:AI,26,FALSE) -> 3.18E-17 | Q44: =AND(OR(J44<0.0000025),P44>0.0000025) -> FALSE | R44: =VLOOKUP(A44,NDD_Kaplanis!A:D,4,FALSE) -> consensus | S44: =AND(OR(R44="discordant", R44="none"),OR(J44<0.0000025)) -> FALSE | T44: =VLOOKUP(A44,DDG2P_3_5_2022!A:E,3,FALSE) -> INTELLECTUAL DEVELOPMENTAL DISORDER-STEREOTYPIC MOVEMENTS-EPILEPSY AND/OR CEREBRAL MALFORMATIONS | U44: =VLOOKUP(A44,DDG2P_3_5_2022!A:E,5,FALSE) -> definitive | V44: =AND(ISNA(T44),OR(J44<0.0000025)) -> FALSE | W44: =N44/J44 -> 1.81E+05
A45: DEAF1 | B45: =VLOOKUP(A45,NDD_Kaplanis!A:AI,6,FALSE)+VLOOKUP(A45,NDD_Kaplanis!A:AI,13,FALSE)+VLOOKUP(A45,NDD_Kaplanis!A:AI,14,FALSE)+VLOOKUP(A45,NDD_Kaplanis!A:AI,15,FALSE) -> 0 | C45: =VLOOKUP(A45,NDD_Kaplanis!A:AI,10,FALSE) -> 18 | D45: =_xlfn.IFNA(VLOOKUP(A45,NDD_repeat_variants!A:F,6,FALSE),0) -> 0 | E45: =_xlfn.IFNA(VLOOKUP(A45,NDD_repeat_residues!A:F,5,FALSE),0) -> 3 | F45: =VLOOKUP(A45,NDD.gMVP!A:E,3,FALSE) -> 12 | G45: =IF(VLOOKUP(A45,NDD.CADD!A:F,3,FALSE)=0,"",VLOOKUP(A45,NDD.CADD!A:F,3,FALSE)) -> 11 | H45: =VLOOKUP(A45,'NDD.gMVP.pois'!A:E,5,FALSE) -> 3.67E-16 | I45: =IF(VLOOKUP(A45,'NDD.gMVP.cluster'!A:E,5,FALSE)=0,"",VLOOKUP(A45,'NDD.gMVP.cluster'!A:E,5,FALSE)) -> 1.25E-08 | J45: =VLOOKUP(A45,NDD.gMVP!A:E,5, FALSE) -> 2.51E-22 | K45: =VLOOKUP(A45,'NDD.CADD.pois'!A:E,5,FALSE) -> 4.50E-13 | L45: =IF(VLOOKUP(A45,'NDD.CADD.cluster'!A:E,5,FALSE)=0,"",VLOOKUP(A45,'NDD.CADD.cluster'!A:E,5,FALSE)) -> 5.00E-08 | M45: =VLOOKUP(A45,NDD.CADD!A:F,5,FALSE) -> 1.04E-18 | N45: =VLOOKUP(A45,NDD_Kaplanis!A:AI,25,FALSE) -> 1.21E-18 | O45: =AND(N45>0.0000025,OR(J45<0.0000025)) -> FALSE | P45: =VLOOKUP(A45,NDD_Kaplanis!A:AI,26,FALSE) -> 1.21E-18 | Q45: =AND(OR(J45<0.0000025),P45>0.0000025) -> FALSE | R45: =VLOOKUP(A45,NDD_Kaplanis!A:D,4,FALSE) -> consensus | S45: =AND(OR(R45="discordant", R45="none"),OR(J45<0.0000025)) -> FALSE | T45: =VLOOKUP(A45,DDG2P_3_5_2022!A:E,3,FALSE) -> INTELLECTUAL DEVELOPMENTAL DISORDER, AUTOSOMAL DOMINANT 24 | U45: =VLOOKUP(A45,DDG2P_3_5_2022!A:E,5,FALSE) -> definitive | V45: =AND(ISNA(T45),OR(J45<0.0000025)) -> FALSE | W45: =N45/J45 -> 4.81E+03
A46: TCF4 | B46: =VLOOKUP(A46,NDD_Kaplanis!A:AI,6,FALSE)+VLOOKUP(A46,NDD_Kaplanis!A:AI,13,FALSE)+VLOOKUP(A46,NDD_Kaplanis!A:AI,14,FALSE)+VLOOKUP(A46,NDD_Kaplanis!A:AI,15,FALSE) -> 27 | C46: =VLOOKUP(A46,NDD_Kaplanis!A:AI,10,FALSE) -> 21 | D46: =_xlfn.IFNA(VLOOKUP(A46,NDD_repeat_variants!A:F,6,FALSE),0) -> 1 | E46: =_xlfn.IFNA(VLOOKUP(A46,NDD_repeat_residues!A:F,5,FALSE),0) -> 0 | F46: =VLOOKUP(A46,NDD.gMVP!A:E,3,FALSE) -> 17 | G46: =IF(VLOOKUP(A46,NDD.CADD!A:F,3,FALSE)=0,"",VLOOKUP(A46,NDD.CADD!A:F,3,FALSE)) -> 19 | H46: =VLOOKUP(A46,'NDD.gMVP.pois'!A:E,5,FALSE) -> 2.55E-22 | I46: =IF(VLOOKUP(A46,'NDD.gMVP.cluster'!A:E,5,FALSE)=0,"",VLOOKUP(A46,'NDD.gMVP.cluster'!A:E,5,FALSE)) -> 1.25E-08 | J46: =VLOOKUP(A46,NDD.gMVP!A:E,5, FALSE) -> 2.55E-22 | K46: =VLOOKUP(A46,'NDD.CADD.pois'!A:E,5,FALSE) -> 2.23E-21 | L46: =IF(VLOOKUP(A46,'NDD.CADD.cluster'!A:E,5,FALSE)=0,"",VLOOKUP(A46,'NDD.CADD.cluster'!A:E,5,FALSE)) -> 2.00E-07 | M46: =VLOOKUP(A46,NDD.CADD!A:F,5,FALSE) -> 2.23E-21 | N46: =VLOOKUP(A46,NDD_Kaplanis!A:AI,25,FALSE) -> 1.08E-19 | O46: =AND(N46>0.0000025,OR(J46<0.0000025)) -> FALSE | P46: =VLOOKUP(A46,NDD_Kaplanis!A:AI,26,FALSE) -> 1.08E-19 | Q46: =AND(OR(J46<0.0000025),P46>0.0000025) -> FALSE | R46: =VLOOKUP(A46,NDD_Kaplanis!A:D,4,FALSE) -> consensus | S46: =AND(OR(R46="discordant", R46="none"),OR(J46<0.0000025)) -> FALSE | T46: =VLOOKUP(A46,DDG2P_3_5_2022!A:E,3,FALSE) -> PITT-HOPKINS SYNDROME | U46: =VLOOKUP(A46,DDG2P_3_5_2022!A:E,5,FALSE) -> definitive | V46: =AND(ISNA(T46),OR(J46<0.0000025)) -> FALSE | W46: =N46/J46 -> 4.22E+02
A47: SCN1A | B47: =VLOOKUP(A47,NDD_Kaplanis!A:AI,6,FALSE)+VLOOKUP(A47,NDD_Kaplanis!A:AI,13,FALSE)+VLOOKUP(A47,NDD_Kaplanis!A:AI,14,FALSE)+VLOOKUP(A47,NDD_Kaplanis!A:AI,15,FALSE) -> 8 | C47: =VLOOKUP(A47,NDD_Kaplanis!A:AI,10,FALSE) -> 31 | D47: =_xlfn.IFNA(VLOOKUP(A47,NDD_repeat_variants!A:F,6,FALSE),0) -> 0 | E47: =_xlfn.IFNA(VLOOKUP(A47,NDD_repeat_residues!A:F,5,FALSE),0) -> 0 | F47: =VLOOKUP(A47,NDD.gMVP!A:E,3,FALSE) -> 30 | G47: =IF(VLOOKUP(A47,NDD.CADD!A:F,3,FALSE)=0,"",VLOOKUP(A47,NDD.CADD!A:F,3,FALSE)) -> 24 | H47: =VLOOKUP(A47,'NDD.gMVP.pois'!A:E,5,FALSE) -> 2.56E-22 | I47: =IF(VLOOKUP(A47,'NDD.gMVP.cluster'!A:E,5,FALSE)=0,"",VLOOKUP(A47,'NDD.gMVP.cluster'!A:E,5,FALSE)) -> 1.20E-06 | J47: =VLOOKUP(A47,NDD.gMVP!A:E,5, FALSE) -> 2.56E-22 | K47: =VLOOKUP(A47,'NDD.CADD.pois'!A:E,5,FALSE) -> 2.92E-21 | L47: =IF(VLOOKUP(A47,'NDD.CADD.cluster'!A:E,5,FALSE)=0,"",VLOOKUP(A47,'NDD.CADD.cluster'!A:E,5,FALSE)) -> 4.90E-06 | M47: =VLOOKUP(A47,NDD.CADD!A:F,5,FALSE) -> 2.92E-21 | N47: =VLOOKUP(A47,NDD_Kaplanis!A:AI,25,FALSE) -> 1.98E-13 | O47: =AND(N47>0.0000025,OR(J47<0.0000025)) -> FALSE | P47: =VLOOKUP(A47,NDD_Kaplanis!A:AI,26,FALSE) -> 1.00E-14 | Q47: =AND(OR(J47<0.0000025),P47>0.0000025) -> FALSE | R47: =VLOOKUP(A47,NDD_Kaplanis!A:D,4,FALSE) -> consensus | S47: =AND(OR(R47="discordant", R47="none"),OR(J47<0.0000025)) -> FALSE | T47: =VLOOKUP(A47,DDG2P_3_5_2022!A:E,3,FALSE) -> SCN1A-RELATED SEIZURE DISORDERS | U47: =VLOOKUP(A47,DDG2P_3_5_2022!A:E,5,FALSE) -> definitive | V47: =AND(ISNA(T47),OR(J47<0.0000025)) -> FALSE | W47: =N47/J47 -> 7.75E+08
A48: MED13L | B48: =VLOOKUP(A48,NDD_Kaplanis!A:AI,6,FALSE)+VLOOKUP(A48,NDD_Kaplanis!A:AI,13,FALSE)+VLOOKUP(A48,NDD_Kaplanis!A:AI,14,FALSE)+VLOOKUP(A48,NDD_Kaplanis!A:AI,15,FALSE) -> 44 | C48: =VLOOKUP(A48,NDD_Kaplanis!A:AI,10,FALSE) -> 28 | D48: =_xlfn.IFNA(VLOOKUP(A48,NDD_repeat_variants!A:F,6,FALSE),0) -> 0 | E48: =_xlfn.IFNA(VLOOKUP(A48,NDD_repeat_residues!A:F,5,FALSE),0) -> 0 | F48: =VLOOKUP(A48,NDD.gMVP!A:E,3,FALSE) -> 24 | G48: =IF(VLOOKUP(A48,NDD.CADD!A:F,3,FALSE)=0,"",VLOOKUP(A48,NDD.CADD!A:F,3,FALSE)) -> 26 | H48: =VLOOKUP(A48,'NDD.gMVP.pois'!A:E,5,FALSE) -> 3.47E-22 | I48: =IF(VLOOKUP(A48,'NDD.gMVP.cluster'!A:E,5,FALSE)=0,"",VLOOKUP(A48,'NDD.gMVP.cluster'!A:E,5,FALSE)) -> 2.00E-07 | J48: =VLOOKUP(A48,NDD.gMVP!A:E,5, FALSE) -> 3.47E-22 | K48: =VLOOKUP(A48,'NDD.CADD.pois'!A:E,5,FALSE) -> 2.12E-23 | L48: =IF(VLOOKUP(A48,'NDD.CADD.cluster'!A:E,5,FALSE)=0,"",VLOOKUP(A48,'NDD.CADD.cluster'!A:E,5,FALSE)) -> 1.40E-05 | M48: =VLOOKUP(A48,NDD.CADD!A:F,5,FALSE) -> 2.12E-23 | N48: =VLOOKUP(A48,NDD_Kaplanis!A:AI,25,FALSE) -> 5.33E-15 | O48: =AND(N48>0.0000025,OR(J48<0.0000025)) -> FALSE | P48: =VLOOKUP(A48,NDD_Kaplanis!A:AI,26,FALSE) -> 5.34E-15 | Q48: =AND(OR(J48<0.0000025),P48>0.0000025) -> FALSE | R48: =VLOOKUP(A48,NDD_Kaplanis!A:D,4,FALSE) -> consensus | S48: =AND(OR(R48="discordant", R48="none"),OR(J48<0.0000025)) -> FALSE | T48: =VLOOKUP(A48,DDG2P_3_5_2022!A:E,3,FALSE) -> INTELLECTUAL DISABILITY | U48: =VLOOKUP(A48,DDG2P_3_5_2022!A:E,5,FALSE) -> strong | V48: =AND(ISNA(T48),OR(J48<0.0000025)) -> FALSE | W48: =N48/J48 -> 1.54E+07
A49: PURA | B49: =VLOOKUP(A49,NDD_Kaplanis!A:AI,6,FALSE)+VLOOKUP(A49,NDD_Kaplanis!A:AI,13,FALSE)+VLOOKUP(A49,NDD_Kaplanis!A:AI,14,FALSE)+VLOOKUP(A49,NDD_Kaplanis!A:AI,15,FALSE) -> 37 | C49: =VLOOKUP(A49,NDD_Kaplanis!A:AI,10,FALSE) -> 21 | D49: =_xlfn.IFNA(VLOOKUP(A49,NDD_repeat_variants!A:F,6,FALSE),0) -> 1 | E49: =_xlfn.IFNA(VLOOKUP(A49,NDD_repeat_residues!A:F,5,FALSE),0) -> 0 | F49: =VLOOKUP(A49,NDD.gMVP!A:E,3,FALSE) -> 19 | G49: =IF(VLOOKUP(A49,NDD.CADD!A:F,3,FALSE)=0,"",VLOOKUP(A49,NDD.CADD!A:F,3,FALSE)) -> 18 | H49: =VLOOKUP(A49,'NDD.gMVP.pois'!A:E,5,FALSE) -> 1.89E-20 | I49: =IF(VLOOKUP(A49,'NDD.gMVP.cluster'!A:E,5,FALSE)=0,"",VLOOKUP(A49,'NDD.gMVP.cluster'!A:E,5,FALSE)) -> 3.98E-04 | J49: =VLOOKUP(A49,NDD.gMVP!A:E,5, FALSE) -> 4.08E-22 | K49: =VLOOKUP(A49,'NDD.CADD.pois'!A:E,5,FALSE) -> 1.09E-21 | L49: =IF(VLOOKUP(A49,'NDD.CADD.cluster'!A:E,5,FALSE)=0,"",VLOOKUP(A49,'NDD.CADD.cluster'!A:E,5,FALSE)) -> 2.78E-04 | M49: =VLOOKUP(A49,NDD.CADD!A:F,5,FALSE) -> 1.09E-21 | N49: =VLOOKUP(A49,NDD_Kaplanis!A:AI,25,FALSE) -> 1.44E-14 | O49: =AND(N49>0.0000025,OR(J49<0.0000025)) -> FALSE | P49: =VLOOKUP(A49,NDD_Kaplanis!A:AI,26,FALSE) -> 1.00E-14 | Q49: =AND(OR(J49<0.0000025),P49>0.0000025) -> FALSE | R49: =VLOOKUP(A49,NDD_Kaplanis!A:D,4,FALSE) -> consensus | S49: =AND(OR(R49="discordant", R49="none"),OR(J49<0.0000025)) -> FALSE | T49: =VLOOKUP(A49,DDG2P_3_5_2022!A:E,3,FALSE) -> INTELLECTUAL DISABILITY | U49: =VLOOKUP(A49,DDG2P_3_5_2022!A:E,5,FALSE) -> definitive | V49: =AND(ISNA(T49),OR(J49<0.0000025)) -> FALSE | W49: =N49/J49 -> 3.54E+07
A50: EP300 | B50: =VLOOKUP(A50,NDD_Kaplanis!A:AI,6,FALSE)+VLOOKUP(A50,NDD_Kaplanis!A:AI,13,FALSE)+VLOOKUP(A50,NDD_Kaplanis!A:AI,14,FALSE)+VLOOKUP(A50,NDD_Kaplanis!A:AI,15,FALSE) -> 30 | C50: =VLOOKUP(A50,NDD_Kaplanis!A:AI,10,FALSE) -> 24 | D50: =_xlfn.IFNA(VLOOKUP(A50,NDD_repeat_variants!A:F,6,FALSE),0) -> 0 | E50: =_xlfn.IFNA(VLOOKUP(A50,NDD_repeat_residues!A:F,5,FALSE),0) -> 2 | F50: =VLOOKUP(A50,NDD.gMVP!A:E,3,FALSE) -> 16 | G50: =IF(VLOOKUP(A50,NDD.CADD!A:F,3,FALSE)=0,"",VLOOKUP(A50,NDD.CADD!A:F,3,FALSE)) -> 22 | H50: =VLOOKUP(A50,'NDD.gMVP.pois'!A:E,5,FALSE) -> 7.10E-16 | I50: =IF(VLOOKUP(A50,'NDD.gMVP.cluster'!A:E,5,FALSE)=0,"",VLOOKUP(A50,'NDD.gMVP.cluster'!A:E,5,FALSE)) -> 1.25E-08 | J50: =VLOOKUP(A50,NDD.gMVP!A:E,5, FALSE) -> 4.80E-22 | K50: =VLOOKUP(A50,'NDD.CADD.pois'!A:E,5,FALSE) -> 2.12E-18 | L50: =IF(VLOOKUP(A50,'NDD.CADD.cluster'!A:E,5,FALSE)=0,"",VLOOKUP(A50,'NDD.CADD.cluster'!A:E,5,FALSE)) -> 1.00E-07 | M50: =VLOOKUP(A50,NDD.CADD!A:F,5,FALSE) -> 1.23E-23 | N50: =VLOOKUP(A50,NDD_Kaplanis!A:AI,25,FALSE) -> 8.61E-16 | O50: =AND(N50>0.0000025,OR(J50<0.0000025)) -> FALSE | P50: =VLOOKUP(A50,NDD_Kaplanis!A:AI,26,FALSE) -> 8.61E-16 | Q50: =AND(OR(J50<0.0000025),P50>0.0000025) -> FALSE | R50: =VLOOKUP(A50,NDD_Kaplanis!A:D,4,FALSE) -> consensus | S50: =AND(OR(R50="discordant", R50="none"),OR(J50<0.0000025)) -> FALSE | T50: =VLOOKUP(A50,DDG2P_3_5_2022!A:E,3,FALSE) -> RUBINSTEIN-TAYBI SYNDROME TYPE 2 | U50: =VLOOKUP(A50,DDG2P_3_5_2022!A:E,5,FALSE) -> definitive | V50: =AND(ISNA(T50),OR(J50<0.0000025)) -> FALSE | W50: =N50/J50 -> 1.79E+06
A51: CTCF | B51: =VLOOKUP(A51,NDD_Kaplanis!A:AI,6,FALSE)+VLOOKUP(A51,NDD_Kaplanis!A:AI,13,FALSE)+VLOOKUP(A51,NDD_Kaplanis!A:AI,14,FALSE)+VLOOKUP(A51,NDD_Kaplanis!A:AI,15,FALSE) -> 7 | C51: =VLOOKUP(A51,NDD_Kaplanis!A:AI,10,FALSE) -> 19 | D51: =_xlfn.IFNA(VLOOKUP(A51,NDD_repeat_variants!A:F,6,FALSE),0) -> 3 | E51: =_xlfn.IFNA(VLOOKUP(A51,NDD_repeat_residues!A:F,5,FALSE),0) -> 6 | F51: =VLOOKUP(A51,NDD.gMVP!A:E,3,FALSE) -> 19 | G51: =IF(VLOOKUP(A51,NDD.CADD!A:F,3,FALSE)=0,"",VLOOKUP(A51,NDD.CADD!A:F,3,FALSE)) -> 19 | H51: =VLOOKUP(A51,'NDD.gMVP.pois'!A:E,5,FALSE) -> 1.00E-21 | I51: =IF(VLOOKUP(A51,'NDD.gMVP.cluster'!A:E,5,FALSE)=0,"",VLOOKUP(A51,'NDD.gMVP.cluster'!A:E,5,FALSE)) -> 1.25E-08 | J51: =VLOOKUP(A51,NDD.gMVP!A:E,5, FALSE) -> 1.00E-21 | K51: =VLOOKUP(A51,'NDD.CADD.pois'!A:E,5,FALSE) -> 4.91E-22 | L51: =IF(VLOOKUP(A51,'NDD.CADD.cluster'!A:E,5,FALSE)=0,"",VLOOKUP(A51,'NDD.CADD.cluster'!A:E,5,FALSE)) -> 1.25E-08 | M51: =VLOOKUP(A51,NDD.CADD!A:F,5,FALSE) -> 4.91E-22 | N51: =VLOOKUP(A51,NDD_Kaplanis!A:AI,25,FALSE) -> 1.53E-26 | O51: =AND(N51>0.0000025,OR(J51<0.0000025)) -> FALSE | P51: =VLOOKUP(A51,NDD_Kaplanis!A:AI,26,FALSE) -> 1.53E-26 | Q51: =AND(OR(J51<0.0000025),P51>0.0000025) -> FALSE | R51: =VLOOKUP(A51,NDD_Kaplanis!A:D,4,FALSE) -> consensus | S51: =AND(OR(R51="discordant", R51="none"),OR(J51<0.0000025)) -> FALSE | T51: =VLOOKUP(A51,DDG2P_3_5_2022!A:E,3,FALSE) -> INTELLECTUAL DISABILITY | U51: =VLOOKUP(A51,DDG2P_3_5_2022!A:E,5,FALSE) -> definitive | V51: =AND(ISNA(T51),OR(J51<0.0000025)) -> FALSE | W51: =N51/J51 -> 1.52E-05
A52: PIK3R2 | B52: =VLOOKUP(A52,NDD_Kaplanis!A:AI,6,FALSE)+VLOOKUP(A52,NDD_Kaplanis!A:AI,13,FALSE)+VLOOKUP(A52,NDD_Kaplanis!A:AI,14,FALSE)+VLOOKUP(A52,NDD_Kaplanis!A:AI,15,FALSE) -> 0 | C52: =VLOOKUP(A52,NDD_Kaplanis!A:AI,10,FALSE) -> 16 | D52: =_xlfn.IFNA(VLOOKUP(A52,NDD_repeat_variants!A:F,6,FALSE),0) -> 0 | E52: =_xlfn.IFNA(VLOOKUP(A52,NDD_repeat_residues!A:F,5,FALSE),0) -> 0 | F52: =VLOOKUP(A52,NDD.gMVP!A:E,3,FALSE) -> 12 | G52: =IF(VLOOKUP(A52,NDD.CADD!A:F,3,FALSE)=0,"",VLOOKUP(A52,NDD.CADD!A:F,3,FALSE)) -> 13 | H52: =VLOOKUP(A52,'NDD.gMVP.pois'!A:E,5,FALSE) -> 1.72E-15 | I52: =IF(VLOOKUP(A52,'NDD.gMVP.cluster'!A:E,5,FALSE)=0,"",VLOOKUP(A52,'NDD.gMVP.cluster'!A:E,5,FALSE)) -> 1.25E-08 | J52: =VLOOKUP(A52,NDD.gMVP!A:E,5, FALSE) -> 1.14E-21 | K52: =VLOOKUP(A52,'NDD.CADD.pois'!A:E,5,FALSE) -> 2.93E-13 | L52: =IF(VLOOKUP(A52,'NDD.CADD.cluster'!A:E,5,FALSE)=0,"",VLOOKUP(A52,'NDD.CADD.cluster'!A:E,5,FALSE)) -> 1.25E-08 | M52: =VLOOKUP(A52,NDD.CADD!A:F,5,FALSE) -> 1.76E-19 | N52: =VLOOKUP(A52,NDD_Kaplanis!A:AI,25,FALSE) -> 4.50E-12 | O52: =AND(N52>0.0000025,OR(J52<0.0000025)) -> FALSE | P52: =VLOOKUP(A52,NDD_Kaplanis!A:AI,26,FALSE) -> 4.50E-12 | Q52: =AND(OR(J52<0.0000025),P52>0.0000025) -> FALSE | R52: =VLOOKUP(A52,NDD_Kaplanis!A:D,4,FALSE) -> consensus | S52: =AND(OR(R52="discordant", R52="none"),OR(J52<0.0000025)) -> FALSE | T52: =VLOOKUP(A52,DDG2P_3_5_2022!A:E,3,FALSE) -> MEGALENCEPHALY-POLYMICROGYRIA-POLYDACTYLY-HYDROCEPHALUS SYNDROME 1 | U52: =VLOOKUP(A52,DDG2P_3_5_2022!A:E,5,FALSE) -> definitive | V52: =AND(ISNA(T52),OR(J52<0.0000025)) -> FALSE | W52: =N52/J52 -> 3.94E+09
A53: EEF1A2 | B53: =VLOOKUP(A53,NDD_Kaplanis!A:AI,6,FALSE)+VLOOKUP(A53,NDD_Kaplanis!A:AI,13,FALSE)+VLOOKUP(A53,NDD_Kaplanis!A:AI,14,FALSE)+VLOOKUP(A53,NDD_Kaplanis!A:AI,15,FALSE) -> 1 | C53: =VLOOKUP(A53,NDD_Kaplanis!A:AI,10,FALSE) -> 21 | D53: =_xlfn.IFNA(VLOOKUP(A53,NDD_repeat_variants!A:F,6,FALSE),0) -> 2 | E53: =_xlfn.IFNA(VLOOKUP(A53,NDD_repeat_residues!A:F,5,FALSE),0) -> 7 | F53: =VLOOKUP(A53,NDD.gMVP!A:E,3,FALSE) -> 20 | G53: =IF(VLOOKUP(A53,NDD.CADD!A:F,3,FALSE)=0,"",VLOOKUP(A53,NDD.CADD!A:F,3,FALSE)) -> 15 | H53: =VLOOKUP(A53,'NDD.gMVP.pois'!A:E,5,FALSE) -> 2.10E-18 | I53: =IF(VLOOKUP(A53,'NDD.gMVP.cluster'!A:E,5,FALSE)=0,"",VLOOKUP(A53,'NDD.gMVP.cluster'!A:E,5,FALSE)) -> 4.96E-05 | J53: =VLOOKUP(A53,NDD.gMVP!A:E,5, FALSE) -> 5.38E-21 | K53: =VLOOKUP(A53,'NDD.CADD.pois'!A:E,5,FALSE) -> 3.67E-16 | L53: =IF(VLOOKUP(A53,'NDD.CADD.cluster'!A:E,5,FALSE)=0,"",VLOOKUP(A53,'NDD.CADD.cluster'!A:E,5,FALSE)) -> 1.23E-04 | M53: =VLOOKUP(A53,NDD.CADD!A:F,5,FALSE) -> 2.06E-18 | N53: =VLOOKUP(A53,NDD_Kaplanis!A:AI,25,FALSE) -> 6.42E-20 | O53: =AND(N53>0.0000025,OR(J53<0.0000025)) -> FALSE | P53: =VLOOKUP(A53,NDD_Kaplanis!A:AI,26,FALSE) -> 6.42E-20 | Q53: =AND(OR(J53<0.0000025),P53>0.0000025) -> FALSE | R53: =VLOOKUP(A53,NDD_Kaplanis!A:D,4,FALSE) -> consensus | S53: =AND(OR(R53="discordant", R53="none"),OR(J53<0.0000025)) -> FALSE | T53: =VLOOKUP(A53,DDG2P_3_5_2022!A:E,3,FALSE) -> INFANTILE EPILEPTIC ENCEPHALOPATHY | U53: =VLOOKUP(A53,DDG2P_3_5_2022!A:E,5,FALSE) -> strong | V53: =AND(ISNA(T53),OR(J53<0.0000025)) -> FALSE | W53: =N53/J53 -> 1.19E+01
A54: EBF3 | B54: =VLOOKUP(A54,NDD_Kaplanis!A:AI,6,FALSE)+VLOOKUP(A54,NDD_Kaplanis!A:AI,13,FALSE)+VLOOKUP(A54,NDD_Kaplanis!A:AI,14,FALSE)+VLOOKUP(A54,NDD_Kaplanis!A:AI,15,FALSE) -> 11 | C54: =VLOOKUP(A54,NDD_Kaplanis!A:AI,10,FALSE) -> 17 | D54: =_xlfn.IFNA(VLOOKUP(A54,NDD_repeat_variants!A:F,6,FALSE),0) -> 0 | E54: =_xlfn.IFNA(VLOOKUP(A54,NDD_repeat_residues!A:F,5,FALSE),0) -> 3 | F54: =VLOOKUP(A54,NDD.gMVP!A:E,3,FALSE) -> 17 | G54: =IF(VLOOKUP(A54,NDD.CADD!A:F,3,FALSE)=0,"",VLOOKUP(A54,NDD.CADD!A:F,3,FALSE)) -> 15 | H54: =VLOOKUP(A54,'NDD.gMVP.pois'!A:E,5,FALSE) -> 1.34E-14 | I54: =IF(VLOOKUP(A54,'NDD.gMVP.cluster'!A:E,5,FALSE)=0,"",VLOOKUP(A54,'NDD.gMVP.cluster'!A:E,5,FALSE)) -> 2.50E-08 | J54: =VLOOKUP(A54,NDD.gMVP!A:E,5, FALSE) -> 1.69E-20 | K54: =VLOOKUP(A54,'NDD.CADD.pois'!A:E,5,FALSE) -> 8.13E-15 | L54: =IF(VLOOKUP(A54,'NDD.CADD.cluster'!A:E,5,FALSE)=0,"",VLOOKUP(A54,'NDD.CADD.cluster'!A:E,5,FALSE)) -> 1.25E-08 | M54: =VLOOKUP(A54,NDD.CADD!A:F,5,FALSE) -> 5.25E-21 | N54: =VLOOKUP(A54,NDD_Kaplanis!A:AI,25,FALSE) -> 7.29E-20 | O54: =AND(N54>0.0000025,OR(J54<0.0000025)) -> FALSE | P54: =VLOOKUP(A54,NDD_Kaplanis!A:AI,26,FALSE) -> 7.29E-20 | Q54: =AND(OR(J54<0.0000025),P54>0.0000025) -> FALSE | R54: =VLOOKUP(A54,NDD_Kaplanis!A:D,4,FALSE) -> consensus | S54: =AND(OR(R54="discordant", R54="none"),OR(J54<0.0000025)) -> FALSE | T54: =VLOOKUP(A54,DDG2P_3_5_2022!A:E,3,FALSE) -> Intellectual Disability, Ataxia, and Facial Dysmorphism | U54: =VLOOKUP(A54,DDG2P_3_5_2022!A:E,5,FALSE) -> definitive | V54: =AND(ISNA(T54),OR(J54<0.0000025)) -> FALSE | W54: =N54/J54 -> 4.31E+00
A55: DYRK1A | B55: =VLOOKUP(A55,NDD_Kaplanis!A:AI,6,FALSE)+VLOOKUP(A55,NDD_Kaplanis!A:AI,13,FALSE)+VLOOKUP(A55,NDD_Kaplanis!A:AI,14,FALSE)+VLOOKUP(A55,NDD_Kaplanis!A:AI,15,FALSE) -> 65 | C55: =VLOOKUP(A55,NDD_Kaplanis!A:AI,10,FALSE) -> 15 | D55: =_xlfn.IFNA(VLOOKUP(A55,NDD_repeat_variants!A:F,6,FALSE),0) -> 0 | E55: =_xlfn.IFNA(VLOOKUP(A55,NDD_repeat_residues!A:F,5,FALSE),0) -> 3 | F55: =VLOOKUP(A55,NDD.gMVP!A:E,3,FALSE) -> 14 | G55: =IF(VLOOKUP(A55,NDD.CADD!A:F,3,FALSE)=0,"",VLOOKUP(A55,NDD.CADD!A:F,3,FALSE)) -> 14 | H55: =VLOOKUP(A55,'NDD.gMVP.pois'!A:E,5,FALSE) -> 1.98E-16 | I55: =IF(VLOOKUP(A55,'NDD.gMVP.cluster'!A:E,5,FALSE)=0,"",VLOOKUP(A55,'NDD.gMVP.cluster'!A:E,5,FALSE)) -> 3.10E-06 | J55: =VLOOKUP(A55,NDD.gMVP!A:E,5, FALSE) -> 3.06E-20 | K55: =VLOOKUP(A55,'NDD.CADD.pois'!A:E,5,FALSE) -> 2.12E-15 | L55: =IF(VLOOKUP(A55,'NDD.CADD.cluster'!A:E,5,FALSE)=0,"",VLOOKUP(A55,'NDD.CADD.cluster'!A:E,5,FALSE)) -> 3.25E-04 | M55: =VLOOKUP(A55,NDD.CADD!A:F,5,FALSE) -> 2.95E-17 | N55: =VLOOKUP(A55,NDD_Kaplanis!A:AI,25,FALSE) -> 3.51E-17 | O55: =AND(N55>0.0000025,OR(J55<0.0000025)) -> FALSE | P55: =VLOOKUP(A55,NDD_Kaplanis!A:AI,26,FALSE) -> 3.51E-17 | Q55: =AND(OR(J55<0.0000025),P55>0.0000025) -> FALSE | R55: =VLOOKUP(A55,NDD_Kaplanis!A:D,4,FALSE) -> consensus | S55: =AND(OR(R55="discordant", R55="none"),OR(J55<0.0000025)) -> FALSE | T55: =VLOOKUP(A55,DDG2P_3_5_2022!A:E,3,FALSE) -> INTELLECTUAL DEVELOPMENTAL DISORDER AUTOSOMAL DOMINANT TYPE 7 | U55: =VLOOKUP(A55,DDG2P_3_5_2022!A:E,5,FALSE) -> definitive | V55: =AND(ISNA(T55),OR(J55<0.0000025)) -> FALSE | W55: =N55/J55 -> 1.15E+03
A56: DNM1 | B56: =VLOOKUP(A56,NDD_Kaplanis!A:AI,6,FALSE)+VLOOKUP(A56,NDD_Kaplanis!A:AI,13,FALSE)+VLOOKUP(A56,NDD_Kaplanis!A:AI,14,FALSE)+VLOOKUP(A56,NDD_Kaplanis!A:AI,15,FALSE) -> 0 | C56: =VLOOKUP(A56,NDD_Kaplanis!A:AI,10,FALSE) -> 20 | D56: =_xlfn.IFNA(VLOOKUP(A56,NDD_repeat_variants!A:F,6,FALSE),0) -> 1 | E56: =_xlfn.IFNA(VLOOKUP(A56,NDD_repeat_residues!A:F,5,FALSE),0) -> 1 | F56: =VLOOKUP(A56,NDD.gMVP!A:E,3,FALSE) -> 18 | G56: =IF(VLOOKUP(A56,NDD.CADD!A:F,3,FALSE)=0,"",VLOOKUP(A56,NDD.CADD!A:F,3,FALSE)) -> 17 | H56: =VLOOKUP(A56,'NDD.gMVP.pois'!A:E,5,FALSE) -> 1.08E-16 | I56: =IF(VLOOKUP(A56,'NDD.gMVP.cluster'!A:E,5,FALSE)=0,"",VLOOKUP(A56,'NDD.gMVP.cluster'!A:E,5,FALSE)) -> 1.59E-05 | J56: =VLOOKUP(A56,NDD.gMVP!A:E,5, FALSE) -> 8.37E-20 | K56: =VLOOKUP(A56,'NDD.CADD.pois'!A:E,5,FALSE) -> 3.22E-14 | L56: =IF(VLOOKUP(A56,'NDD.CADD.cluster'!A:E,5,FALSE)=0,"",VLOOKUP(A56,'NDD.CADD.cluster'!A:E,5,FALSE)) -> 3.84E-03 | M56: =VLOOKUP(A56,NDD.CADD!A:F,5,FALSE) -> 4.66E-15 | N56: =VLOOKUP(A56,NDD_Kaplanis!A:AI,25,FALSE) -> 2.46E-16 | O56: =AND(N56>0.0000025,OR(J56<0.0000025)) -> FALSE | P56: =VLOOKUP(A56,NDD_Kaplanis!A:AI,26,FALSE) -> 2.46E-16 | Q56: =AND(OR(J56<0.0000025),P56>0.0000025) -> FALSE | R56: =VLOOKUP(A56,NDD_Kaplanis!A:D,4,FALSE) -> consensus | S56: =AND(OR(R56="discordant", R56="none"),OR(J56<0.0000025)) -> FALSE | T56: =VLOOKUP(A56,DDG2P_3_5_2022!A:E,3,FALSE) -> EPILEPTIC ENCEPHALOPATHY | U56: =VLOOKUP(A56,DDG2P_3_5_2022!A:E,5,FALSE) -> strong | V56: =AND(ISNA(T56),OR(J56<0.0000025)) -> FALSE | W56: =N56/J56 -> 2.94E+03
A57: TRAF7 | B57: =VLOOKUP(A57,NDD_Kaplanis!A:AI,6,FALSE)+VLOOKUP(A57,NDD_Kaplanis!A:AI,13,FALSE)+VLOOKUP(A57,NDD_Kaplanis!A:AI,14,FALSE)+VLOOKUP(A57,NDD_Kaplanis!A:AI,15,FALSE) -> 1 | C57: =VLOOKUP(A57,NDD_Kaplanis!A:AI,10,FALSE) -> 25 | D57: =_xlfn.IFNA(VLOOKUP(A57,NDD_repeat_variants!A:F,6,FALSE),0) -> 2 | E57: =_xlfn.IFNA(VLOOKUP(A57,NDD_repeat_residues!A:F,5,FALSE),0) -> 0 | F57: =VLOOKUP(A57,NDD.gMVP!A:E,3,FALSE) -> 15 | G57: =IF(VLOOKUP(A57,NDD.CADD!A:F,3,FALSE)=0,"",VLOOKUP(A57,NDD.CADD!A:F,3,FALSE)) -> 15 | H57: =VLOOKUP(A57,'NDD.gMVP.pois'!A:E,5,FALSE) -> 2.27E-15 | I57: =IF(VLOOKUP(A57,'NDD.gMVP.cluster'!A:E,5,FALSE)=0,"",VLOOKUP(A57,'NDD.gMVP.cluster'!A:E,5,FALSE)) -> 8.00E-07 | J57: =VLOOKUP(A57,NDD.gMVP!A:E,5, FALSE) -> 8.86E-20 | K57: =VLOOKUP(A57,'NDD.CADD.pois'!A:E,5,FALSE) -> 1.63E-17 | L57: =IF(VLOOKUP(A57,'NDD.CADD.cluster'!A:E,5,FALSE)=0,"",VLOOKUP(A57,'NDD.CADD.cluster'!A:E,5,FALSE)) -> 7.70E-06 | M57: =VLOOKUP(A57,NDD.CADD!A:F,5,FALSE) -> 6.47E-21 | N57: =VLOOKUP(A57,NDD_Kaplanis!A:AI,25,FALSE) -> 1.38E-18 | O57: =AND(N57>0.0000025,OR(J57<0.0000025)) -> FALSE | P57: =VLOOKUP(A57,NDD_Kaplanis!A:AI,26,FALSE) -> 1.38E-18 | Q57: =AND(OR(J57<0.0000025),P57>0.0000025) -> FALSE | R57: =VLOOKUP(A57,NDD_Kaplanis!A:D,4,FALSE) -> consensus | S57: =AND(OR(R57="discordant", R57="none"),OR(J57<0.0000025)) -> FALSE | T57: =VLOOKUP(A57,DDG2P_3_5_2022!A:E,3,FALSE) -> Developmental Delay Congenital Anomalies and Dysmorphic Features | U57: =VLOOKUP(A57,DDG2P_3_5_2022!A:E,5,FALSE) -> strong | V57: =AND(ISNA(T57),OR(J57<0.0000025)) -> FALSE | W57: =N57/J57 -> 1.56E+01
A58: MAP3K7 | B58: =VLOOKUP(A58,NDD_Kaplanis!A:AI,6,FALSE)+VLOOKUP(A58,NDD_Kaplanis!A:AI,13,FALSE)+VLOOKUP(A58,NDD_Kaplanis!A:AI,14,FALSE)+VLOOKUP(A58,NDD_Kaplanis!A:AI,15,FALSE) -> 0 | C58: =VLOOKUP(A58,NDD_Kaplanis!A:AI,10,FALSE) -> 12 | D58: =_xlfn.IFNA(VLOOKUP(A58,NDD_repeat_variants!A:F,6,FALSE),0) -> 0 | E58: =_xlfn.IFNA(VLOOKUP(A58,NDD_repeat_residues!A:F,5,FALSE),0) -> 0 | F58: =VLOOKUP(A58,NDD.gMVP!A:E,3,FALSE) -> 12 | G58: =IF(VLOOKUP(A58,NDD.CADD!A:F,3,FALSE)=0,"",VLOOKUP(A58,NDD.CADD!A:F,3,FALSE)) -> 10 | H58: =VLOOKUP(A58,'NDD.gMVP.pois'!A:E,5,FALSE) -> 1.84E-14 | I58: =IF(VLOOKUP(A58,'NDD.gMVP.cluster'!A:E,5,FALSE)=0,"",VLOOKUP(A58,'NDD.gMVP.cluster'!A:E,5,FALSE)) -> 2.00E-07 | J58: =VLOOKUP(A58,NDD.gMVP!A:E,5, FALSE) -> 1.76E-19 | K58: =VLOOKUP(A58,'NDD.CADD.pois'!A:E,5,FALSE) -> 6.88E-12 | L58: =IF(VLOOKUP(A58,'NDD.CADD.cluster'!A:E,5,FALSE)=0,"",VLOOKUP(A58,'NDD.CADD.cluster'!A:E,5,FALSE)) -> 3.60E-06 | M58: =VLOOKUP(A58,NDD.CADD!A:F,5,FALSE) -> 9.72E-16 | N58: =VLOOKUP(A58,NDD_Kaplanis!A:AI,25,FALSE) -> 2.60E-16 | O58: =AND(N58>0.0000025,OR(J58<0.0000025)) -> FALSE | P58: =VLOOKUP(A58,NDD_Kaplanis!A:AI,26,FALSE) -> 2.60E-16 | Q58: =AND(OR(J58<0.0000025),P58>0.0000025) -> FALSE | R58: =VLOOKUP(A58,NDD_Kaplanis!A:D,4,FALSE) -> discordant | S58: =AND(OR(R58="discordant", R58="none"),OR(J58<0.0000025)) -> TRUE | T58: =VLOOKUP(A58,DDG2P_3_5_2022!A:E,3,FALSE) -> FRONTOMETAPHYSEAL DYSPLASIA | U58: =VLOOKUP(A58,DDG2P_3_5_2022!A:E,5,FALSE) -> strong | V58: =AND(ISNA(T58),OR(J58<0.0000025)) -> FALSE | W58: =N58/J58 -> 1.47E+03
A59: PPP2R1A | B59: =VLOOKUP(A59,NDD_Kaplanis!A:AI,6,FALSE)+VLOOKUP(A59,NDD_Kaplanis!A:AI,13,FALSE)+VLOOKUP(A59,NDD_Kaplanis!A:AI,14,FALSE)+VLOOKUP(A59,NDD_Kaplanis!A:AI,15,FALSE) -> 1 | C59: =VLOOKUP(A59,NDD_Kaplanis!A:AI,10,FALSE) -> 15 | D59: =_xlfn.IFNA(VLOOKUP(A59,NDD_repeat_variants!A:F,6,FALSE),0) -> 2 | E59: =_xlfn.IFNA(VLOOKUP(A59,NDD_repeat_residues!A:F,5,FALSE),0) -> 0 | F59: =VLOOKUP(A59,NDD.gMVP!A:E,3,FALSE) -> 14 | G59: =IF(VLOOKUP(A59,NDD.CADD!A:F,3,FALSE)=0,"",VLOOKUP(A59,NDD.CADD!A:F,3,FALSE)) -> 9 | H59: =VLOOKUP(A59,'NDD.gMVP.pois'!A:E,5,FALSE) -> 3.89E-13 | I59: =IF(VLOOKUP(A59,'NDD.gMVP.cluster'!A:E,5,FALSE)=0,"",VLOOKUP(A59,'NDD.gMVP.cluster'!A:E,5,FALSE)) -> 1.25E-08 | J59: =VLOOKUP(A59,NDD.gMVP!A:E,5, FALSE) -> 2.33E-19 | K59: =VLOOKUP(A59,'NDD.CADD.pois'!A:E,5,FALSE) -> 1.25E-09 | L59: =IF(VLOOKUP(A59,'NDD.CADD.cluster'!A:E,5,FALSE)=0,"",VLOOKUP(A59,'NDD.CADD.cluster'!A:E,5,FALSE)) -> 1.25E-08 | M59: =VLOOKUP(A59,NDD.CADD!A:F,5,FALSE) -> 6.22E-16 | N59: =VLOOKUP(A59,NDD_Kaplanis!A:AI,25,FALSE) -> 6.07E-18 | O59: =AND(N59>0.0000025,OR(J59<0.0000025)) -> FALSE | P59: =VLOOKUP(A59,NDD_Kaplanis!A:AI,26,FALSE) -> 6.07E-18 | Q59: =AND(OR(J59<0.0000025),P59>0.0000025) -> FALSE | R59: =VLOOKUP(A59,NDD_Kaplanis!A:D,4,FALSE) -> consensus | S59: =AND(OR(R59="discordant", R59="none"),OR(J59<0.0000025)) -> FALSE | T59: =VLOOKUP(A59,DDG2P_3_5_2022!A:E,3,FALSE) -> INTELLECTUAL DISABILITY | U59: =VLOOKUP(A59,DDG2P_3_5_2022!A:E,5,FALSE) -> definitive | V59: =AND(ISNA(T59),OR(J59<0.0000025)) -> FALSE | W59: =N59/J59 -> 2.61E+01
A60: NSD1 | B60: =VLOOKUP(A60,NDD_Kaplanis!A:AI,6,FALSE)+VLOOKUP(A60,NDD_Kaplanis!A:AI,13,FALSE)+VLOOKUP(A60,NDD_Kaplanis!A:AI,14,FALSE)+VLOOKUP(A60,NDD_Kaplanis!A:AI,15,FALSE) -> 27 | C60: =VLOOKUP(A60,NDD_Kaplanis!A:AI,10,FALSE) -> 16 | D60: =_xlfn.IFNA(VLOOKUP(A60,NDD_repeat_variants!A:F,6,FALSE),0) -> 0 | E60: =_xlfn.IFNA(VLOOKUP(A60,NDD_repeat_residues!A:F,5,FALSE),0) -> 0 | F60: =VLOOKUP(A60,NDD.gMVP!A:E,3,FALSE) -> 15 | G60: =IF(VLOOKUP(A60,NDD.CADD!A:F,3,FALSE)=0,"",VLOOKUP(A60,NDD.CADD!A:F,3,FALSE)) -> 14 | H60: =VLOOKUP(A60,'NDD.gMVP.pois'!A:E,5,FALSE) -> 9.09E-13 | I60: =IF(VLOOKUP(A60,'NDD.gMVP.cluster'!A:E,5,FALSE)=0,"",VLOOKUP(A60,'NDD.gMVP.cluster'!A:E,5,FALSE)) -> 1.25E-08 | J60: =VLOOKUP(A60,NDD.gMVP!A:E,5, FALSE) -> 5.33E-19 | K60: =VLOOKUP(A60,'NDD.CADD.pois'!A:E,5,FALSE) -> 7.60E-11 | L60: =IF(VLOOKUP(A60,'NDD.CADD.cluster'!A:E,5,FALSE)=0,"",VLOOKUP(A60,'NDD.CADD.cluster'!A:E,5,FALSE)) -> 1.25E-08 | M60: =VLOOKUP(A60,NDD.CADD!A:F,5,FALSE) -> 4.04E-17 | N60: =VLOOKUP(A60,NDD_Kaplanis!A:AI,25,FALSE) -> 2.89E-15 | O60: =AND(N60>0.0000025,OR(J60<0.0000025)) -> FALSE | P60: =VLOOKUP(A60,NDD_Kaplanis!A:AI,26,FALSE) -> 2.94E-15 | Q60: =AND(OR(J60<0.0000025),P60>0.0000025) -> FALSE | R60: =VLOOKUP(A60,NDD_Kaplanis!A:D,4,FALSE) -> consensus | S60: =AND(OR(R60="discordant", R60="none"),OR(J60<0.0000025)) -> FALSE | T60: =VLOOKUP(A60,DDG2P_3_5_2022!A:E,3,FALSE) -> SOTOS SYNDROME | U60: =VLOOKUP(A60,DDG2P_3_5_2022!A:E,5,FALSE) -> definitive | V60: =AND(ISNA(T60),OR(J60<0.0000025)) -> FALSE | W60: =N60/J60 -> 5.41E+03
A61: FBXW7 | B61: =VLOOKUP(A61,NDD_Kaplanis!A:AI,6,FALSE)+VLOOKUP(A61,NDD_Kaplanis!A:AI,13,FALSE)+VLOOKUP(A61,NDD_Kaplanis!A:AI,14,FALSE)+VLOOKUP(A61,NDD_Kaplanis!A:AI,15,FALSE) -> 0 | C61: =VLOOKUP(A61,NDD_Kaplanis!A:AI,10,FALSE) -> 12 | D61: =_xlfn.IFNA(VLOOKUP(A61,NDD_repeat_variants!A:F,6,FALSE),0) -> 1 | E61: =_xlfn.IFNA(VLOOKUP(A61,NDD_repeat_residues!A:F,5,FALSE),0) -> 5 | F61: =VLOOKUP(A61,NDD.gMVP!A:E,3,FALSE) -> 11 | G61: =IF(VLOOKUP(A61,NDD.CADD!A:F,3,FALSE)=0,"",VLOOKUP(A61,NDD.CADD!A:F,3,FALSE)) -> 12 | H61: =VLOOKUP(A61,'NDD.gMVP.pois'!A:E,5,FALSE) -> 1.38E-12 | I61: =IF(VLOOKUP(A61,'NDD.gMVP.cluster'!A:E,5,FALSE)=0,"",VLOOKUP(A61,'NDD.gMVP.cluster'!A:E,5,FALSE)) -> 1.25E-08 | J61: =VLOOKUP(A61,NDD.gMVP!A:E,5, FALSE) -> 8.01E-19 | K61: =VLOOKUP(A61,'NDD.CADD.pois'!A:E,5,FALSE) -> 1.45E-13 | L61: =IF(VLOOKUP(A61,'NDD.CADD.cluster'!A:E,5,FALSE)=0,"",VLOOKUP(A61,'NDD.CADD.cluster'!A:E,5,FALSE)) -> 2.00E-07 | M61: =VLOOKUP(A61,NDD.CADD!A:F,5,FALSE) -> 1.33E-18 | N61: =VLOOKUP(A61,NDD_Kaplanis!A:AI,25,FALSE) -> 4.44E-14 | O61: =AND(N61>0.0000025,OR(J61<0.0000025)) -> FALSE | P61: =VLOOKUP(A61,NDD_Kaplanis!A:AI,26,FALSE) -> 4.43E-14 | Q61: =AND(OR(J61<0.0000025),P61>0.0000025) -> FALSE | R61: =VLOOKUP(A61,NDD_Kaplanis!A:D,4,FALSE) -> novel | S61: =AND(OR(R61="discordant", R61="none"),OR(J61<0.0000025)) -> FALSE | T61: =VLOOKUP(A61,DDG2P_3_5_2022!A:E,3,FALSE) -> FBXW7-related developmental disorder (monoallelic) | U61: =VLOOKUP(A61,DDG2P_3_5_2022!A:E,5,FALSE) -> definitive | V61: =AND(ISNA(T61),OR(J61<0.0000025)) -> FALSE | W61: =N61/J61 -> 5.54E+04
A62: SOX5 | B62: =VLOOKUP(A62,NDD_Kaplanis!A:AI,6,FALSE)+VLOOKUP(A62,NDD_Kaplanis!A:AI,13,FALSE)+VLOOKUP(A62,NDD_Kaplanis!A:AI,14,FALSE)+VLOOKUP(A62,NDD_Kaplanis!A:AI,15,FALSE) -> 8 | C62: =VLOOKUP(A62,NDD_Kaplanis!A:AI,10,FALSE) -> 11 | D62: =_xlfn.IFNA(VLOOKUP(A62,NDD_repeat_variants!A:F,6,FALSE),0) -> 0 | E62: =_xlfn.IFNA(VLOOKUP(A62,NDD_repeat_residues!A:F,5,FALSE),0) -> 0 | F62: =VLOOKUP(A62,NDD.gMVP!A:E,3,FALSE) -> 11 | G62: =IF(VLOOKUP(A62,NDD.CADD!A:F,3,FALSE)=0,"",VLOOKUP(A62,NDD.CADD!A:F,3,FALSE)) -> 10 | H62: =VLOOKUP(A62,'NDD.gMVP.pois'!A:E,5,FALSE) -> 1.43E-12 | I62: =IF(VLOOKUP(A62,'NDD.gMVP.cluster'!A:E,5,FALSE)=0,"",VLOOKUP(A62,'NDD.gMVP.cluster'!A:E,5,FALSE)) -> 1.25E-08 | J62: =VLOOKUP(A62,NDD.gMVP!A:E,5, FALSE) -> 8.29E-19 | K62: =VLOOKUP(A62,'NDD.CADD.pois'!A:E,5,FALSE) -> 4.03E-10 | L62: =IF(VLOOKUP(A62,'NDD.CADD.cluster'!A:E,5,FALSE)=0,"",VLOOKUP(A62,'NDD.CADD.cluster'!A:E,5,FALSE)) -> 5.00E-08 | M62: =VLOOKUP(A62,NDD.CADD!A:F,5,FALSE) -> 7.95E-16 | N62: =VLOOKUP(A62,NDD_Kaplanis!A:AI,25,FALSE) -> 8.15E-20 | O62: =AND(N62>0.0000025,OR(J62<0.0000025)) -> FALSE | P62: =VLOOKUP(A62,NDD_Kaplanis!A:AI,26,FALSE) -> 8.15E-20 | Q62: =AND(OR(J62<0.0000025),P62>0.0000025) -> FALSE | R62: =VLOOKUP(A62,NDD_Kaplanis!A:D,4,FALSE) -> consensus | S62: =AND(OR(R62="discordant", R62="none"),OR(J62<0.0000025)) -> FALSE | T62: =VLOOKUP(A62,DDG2P_3_5_2022!A:E,3,FALSE) -> 12P12.5 INTRAGENIC DELETIONS ASSOCIATED WITH INTELLECTUAL DISABILITY | U62: =VLOOKUP(A62,DDG2P_3_5_2022!A:E,5,FALSE) -> strong | V62: =AND(ISNA(T62),OR(J62<0.0000025)) -> FALSE | W62: =N62/J62 -> 9.82E-02
A63: KCNT1 | B63: =VLOOKUP(A63,NDD_Kaplanis!A:AI,6,FALSE)+VLOOKUP(A63,NDD_Kaplanis!A:AI,13,FALSE)+VLOOKUP(A63,NDD_Kaplanis!A:AI,14,FALSE)+VLOOKUP(A63,NDD_Kaplanis!A:AI,15,FALSE) -> 0 | C63: =VLOOKUP(A63,NDD_Kaplanis!A:AI,10,FALSE) -> 22 | D63: =_xlfn.IFNA(VLOOKUP(A63,NDD_repeat_variants!A:F,6,FALSE),0) -> 0 | E63: =_xlfn.IFNA(VLOOKUP(A63,NDD_repeat_residues!A:F,5,FALSE),0) -> 0 | F63: =VLOOKUP(A63,NDD.gMVP!A:E,3,FALSE) -> 20 | G63: =IF(VLOOKUP(A63,NDD.CADD!A:F,3,FALSE)=0,"",VLOOKUP(A63,NDD.CADD!A:F,3,FALSE)) -> 15 | H63: =VLOOKUP(A63,'NDD.gMVP.pois'!A:E,5,FALSE) -> 2.29E-14 | I63: =IF(VLOOKUP(A63,'NDD.gMVP.cluster'!A:E,5,FALSE)=0,"",VLOOKUP(A63,'NDD.gMVP.cluster'!A:E,5,FALSE)) -> 1.00E-06 | J63: =VLOOKUP(A63,NDD.gMVP!A:E,5, FALSE) -> 1.06E-18 | K63: =VLOOKUP(A63,'NDD.CADD.pois'!A:E,5,FALSE) -> 3.38E-13 | L63: =IF(VLOOKUP(A63,'NDD.CADD.cluster'!A:E,5,FALSE)=0,"",VLOOKUP(A63,'NDD.CADD.cluster'!A:E,5,FALSE)) -> 2.00E-07 | M63: =VLOOKUP(A63,NDD.CADD!A:F,5,FALSE) -> 3.05E-18 | N63: =VLOOKUP(A63,NDD_Kaplanis!A:AI,25,FALSE) -> 2.81E-17 | O63: =AND(N63>0.0000025,OR(J63<0.0000025)) -> FALSE | P63: =VLOOKUP(A63,NDD_Kaplanis!A:AI,26,FALSE) -> 2.81E-17 | Q63: =AND(OR(J63<0.0000025),P63>0.0000025) -> FALSE | R63: =VLOOKUP(A63,NDD_Kaplanis!A:D,4,FALSE) -> consensus | S63: =AND(OR(R63="discordant", R63="none"),OR(J63<0.0000025)) -> FALSE | T63: =VLOOKUP(A63,DDG2P_3_5_2022!A:E,3,FALSE) -> MALIGNANT MIGRATING PARTIAL SEIZURES OF INFANCY | U63: =VLOOKUP(A63,DDG2P_3_5_2022!A:E,5,FALSE) -> definitive | V63: =AND(ISNA(T63),OR(J63<0.0000025)) -> FALSE | W63: =N63/J63 -> 2.65E+01
A64: GRIN2A | B64: =VLOOKUP(A64,NDD_Kaplanis!A:AI,6,FALSE)+VLOOKUP(A64,NDD_Kaplanis!A:AI,13,FALSE)+VLOOKUP(A64,NDD_Kaplanis!A:AI,14,FALSE)+VLOOKUP(A64,NDD_Kaplanis!A:AI,15,FALSE) -> 1 | C64: =VLOOKUP(A64,NDD_Kaplanis!A:AI,10,FALSE) -> 18 | D64: =_xlfn.IFNA(VLOOKUP(A64,NDD_repeat_variants!A:F,6,FALSE),0) -> 0 | E64: =_xlfn.IFNA(VLOOKUP(A64,NDD_repeat_residues!A:F,5,FALSE),0) -> 0 | F64: =VLOOKUP(A64,NDD.gMVP!A:E,3,FALSE) -> 17 | G64: =IF(VLOOKUP(A64,NDD.CADD!A:F,3,FALSE)=0,"",VLOOKUP(A64,NDD.CADD!A:F,3,FALSE)) -> 14 | H64: =VLOOKUP(A64,'NDD.gMVP.pois'!A:E,5,FALSE) -> 2.11E-13 | I64: =IF(VLOOKUP(A64,'NDD.gMVP.cluster'!A:E,5,FALSE)=0,"",VLOOKUP(A64,'NDD.gMVP.cluster'!A:E,5,FALSE)) -> 2.00E-07 | J64: =VLOOKUP(A64,NDD.gMVP!A:E,5, FALSE) -> 1.92E-18 | K64: =VLOOKUP(A64,'NDD.CADD.pois'!A:E,5,FALSE) -> 2.89E-12 | L64: =IF(VLOOKUP(A64,'NDD.CADD.cluster'!A:E,5,FALSE)=0,"",VLOOKUP(A64,'NDD.CADD.cluster'!A:E,5,FALSE)) -> 3.00E-07 | M64: =VLOOKUP(A64,NDD.CADD!A:F,5,FALSE) -> 3.69E-17 | N64: =VLOOKUP(A64,NDD_Kaplanis!A:AI,25,FALSE) -> 1.42E-17 | O64: =AND(N64>0.0000025,OR(J64<0.0000025)) -> FALSE | P64: =VLOOKUP(A64,NDD_Kaplanis!A:AI,26,FALSE) -> 1.42E-17 | Q64: =AND(OR(J64<0.0000025),P64>0.0000025) -> FALSE | R64: =VLOOKUP(A64,NDD_Kaplanis!A:D,4,FALSE) -> consensus | S64: =AND(OR(R64="discordant", R64="none"),OR(J64<0.0000025)) -> FALSE | T64: =VLOOKUP(A64,DDG2P_3_5_2022!A:E,3,FALSE) -> EPILEPSY, FOCAL, WITH SPEECH DISORDER AND WITH OR WITHOUT INTELLECTUAL DEVELOPMENTAL DISORDER | U64: =VLOOKUP(A64,DDG2P_3_5_2022!A:E,5,FALSE) -> definitive | V64: =AND(ISNA(T64),OR(J64<0.0000025)) -> FALSE | W64: =N64/J64 -> 7.36E+00
A65: HDAC8 | B65: =VLOOKUP(A65,NDD_Kaplanis!A:AI,6,FALSE)+VLOOKUP(A65,NDD_Kaplanis!A:AI,13,FALSE)+VLOOKUP(A65,NDD_Kaplanis!A:AI,14,FALSE)+VLOOKUP(A65,NDD_Kaplanis!A:AI,15,FALSE) -> 7 | C65: =VLOOKUP(A65,NDD_Kaplanis!A:AI,10,FALSE) -> 14 | D65: =_xlfn.IFNA(VLOOKUP(A65,NDD_repeat_variants!A:F,6,FALSE),0) -> 0 | E65: =_xlfn.IFNA(VLOOKUP(A65,NDD_repeat_residues!A:F,5,FALSE),0) -> 0 | F65: =VLOOKUP(A65,NDD.gMVP!A:E,3,FALSE) -> 14 | G65: =IF(VLOOKUP(A65,NDD.CADD!A:F,3,FALSE)=0,"",VLOOKUP(A65,NDD.CADD!A:F,3,FALSE)) -> 11 | H65: =VLOOKUP(A65,'NDD.gMVP.pois'!A:E,5,FALSE) -> 5.71E-18 | I65: =IF(VLOOKUP(A65,'NDD.gMVP.cluster'!A:E,5,FALSE)=0,"",VLOOKUP(A65,'NDD.gMVP.cluster'!A:E,5,FALSE)) -> 7.63E-03 | J65: =VLOOKUP(A65,NDD.gMVP!A:E,5, FALSE) -> 1.99E-18 | K65: =VLOOKUP(A65,'NDD.CADD.pois'!A:E,5,FALSE) -> 5.74E-17 | L65: =IF(VLOOKUP(A65,'NDD.CADD.cluster'!A:E,5,FALSE)=0,"",VLOOKUP(A65,'NDD.CADD.cluster'!A:E,5,FALSE)) -> 1.16E-02 | M65: =VLOOKUP(A65,NDD.CADD!A:F,5,FALSE) -> 2.85E-17 | N65: =VLOOKUP(A65,NDD_Kaplanis!A:AI,25,FALSE) -> 5.33E-14 | O65: =AND(N65>0.0000025,OR(J65<0.0000025)) -> FALSE | P65: =VLOOKUP(A65,NDD_Kaplanis!A:AI,26,FALSE) -> 1.00E-14 | Q65: =AND(OR(J65<0.0000025),P65>0.0000025) -> FALSE | R65: =VLOOKUP(A65,NDD_Kaplanis!A:D,4,FALSE) -> consensus | S65: =AND(OR(R65="discordant", R65="none"),OR(J65<0.0000025)) -> FALSE | T65: =VLOOKUP(A65,DDG2P_3_5_2022!A:E,3,FALSE) -> CORNELIA DE LANGE-LIKE SYNDROME HDAC8 XLR | U65: =VLOOKUP(A65,DDG2P_3_5_2022!A:E,5,FALSE) -> definitive | V65: =AND(ISNA(T65),OR(J65<0.0000025)) -> FALSE | W65: =N65/J65 -> 2.68E+04
A66: KCNH1 | B66: =VLOOKUP(A66,NDD_Kaplanis!A:AI,6,FALSE)+VLOOKUP(A66,NDD_Kaplanis!A:AI,13,FALSE)+VLOOKUP(A66,NDD_Kaplanis!A:AI,14,FALSE)+VLOOKUP(A66,NDD_Kaplanis!A:AI,15,FALSE) -> 0 | C66: =VLOOKUP(A66,NDD_Kaplanis!A:AI,10,FALSE) -> 13 | D66: =_xlfn.IFNA(VLOOKUP(A66,NDD_repeat_variants!A:F,6,FALSE),0) -> 2 | E66: =_xlfn.IFNA(VLOOKUP(A66,NDD_repeat_residues!A:F,5,FALSE),0) -> 0 | F66: =VLOOKUP(A66,NDD.gMVP!A:E,3,FALSE) -> 13 | G66: =IF(VLOOKUP(A66,NDD.CADD!A:F,3,FALSE)=0,"",VLOOKUP(A66,NDD.CADD!A:F,3,FALSE)) -> 11 | H66: =VLOOKUP(A66,'NDD.gMVP.pois'!A:E,5,FALSE) -> 5.19E-11 | I66: =IF(VLOOKUP(A66,'NDD.gMVP.cluster'!A:E,5,FALSE)=0,"",VLOOKUP(A66,'NDD.gMVP.cluster'!A:E,5,FALSE)) -> 1.25E-08 | J66: =VLOOKUP(A66,NDD.gMVP!A:E,5, FALSE) -> 2.78E-17 | K66: =VLOOKUP(A66,'NDD.CADD.pois'!A:E,5,FALSE) -> 4.76E-10 | L66: =IF(VLOOKUP(A66,'NDD.CADD.cluster'!A:E,5,FALSE)=0,"",VLOOKUP(A66,'NDD.CADD.cluster'!A:E,5,FALSE)) -> 1.25E-08 | M66: =VLOOKUP(A66,NDD.CADD!A:F,5,FALSE) -> 2.42E-16 | N66: =VLOOKUP(A66,NDD_Kaplanis!A:AI,25,FALSE) -> 1.39E-20 | O66: =AND(N66>0.0000025,OR(J66<0.0000025)) -> FALSE | P66: =VLOOKUP(A66,NDD_Kaplanis!A:AI,26,FALSE) -> 1.39E-20 | Q66: =AND(OR(J66<0.0000025),P66>0.0000025) -> FALSE | R66: =VLOOKUP(A66,NDD_Kaplanis!A:D,4,FALSE) -> consensus | S66: =AND(OR(R66="discordant", R66="none"),OR(J66<0.0000025)) -> FALSE | T66: =VLOOKUP(A66,DDG2P_3_5_2022!A:E,3,FALSE) -> TEMPLE BARRAISTER SYNDROME | U66: =VLOOKUP(A66,DDG2P_3_5_2022!A:E,5,FALSE) -> strong | V66: =AND(ISNA(T66),OR(J66<0.0000025)) -> FALSE | W66: =N66/J66 -> 5.01E-04
A67: DHDDS | B67: =VLOOKUP(A67,NDD_Kaplanis!A:AI,6,FALSE)+VLOOKUP(A67,NDD_Kaplanis!A:AI,13,FALSE)+VLOOKUP(A67,NDD_Kaplanis!A:AI,14,FALSE)+VLOOKUP(A67,NDD_Kaplanis!A:AI,15,FALSE) -> 0 | C67: =VLOOKUP(A67,NDD_Kaplanis!A:AI,10,FALSE) -> 10 | D67: =_xlfn.IFNA(VLOOKUP(A67,NDD_repeat_variants!A:F,6,FALSE),0) -> 1 | E67: =_xlfn.IFNA(VLOOKUP(A67,NDD_repeat_residues!A:F,5,FALSE),0) -> 5 | F67: =VLOOKUP(A67,NDD.gMVP!A:E,3,FALSE) -> 10 | G67: =IF(VLOOKUP(A67,NDD.CADD!A:F,3,FALSE)=0,"",VLOOKUP(A67,NDD.CADD!A:F,3,FALSE)) -> 10 | H67: =VLOOKUP(A67,'NDD.gMVP.pois'!A:E,5,FALSE) -> 4.10E-12 | I67: =IF(VLOOKUP(A67,'NDD.gMVP.cluster'!A:E,5,FALSE)=0,"",VLOOKUP(A67,'NDD.gMVP.cluster'!A:E,5,FALSE)) -> 2.00E-07 | J67: =VLOOKUP(A67,NDD.gMVP!A:E,5, FALSE) -> 3.50E-17 | K67: =VLOOKUP(A67,'NDD.CADD.pois'!A:E,5,FALSE) -> 2.47E-13 | L67: =IF(VLOOKUP(A67,'NDD.CADD.cluster'!A:E,5,FALSE)=0,"",VLOOKUP(A67,'NDD.CADD.cluster'!A:E,5,FALSE)) -> 6.00E-07 | M67: =VLOOKUP(A67,NDD.CADD!A:F,5,FALSE) -> 6.57E-18 | N67: =VLOOKUP(A67,NDD_Kaplanis!A:AI,25,FALSE) -> 1.70E-13 | O67: =AND(N67>0.0000025,OR(J67<0.0000025)) -> FALSE | P67: =VLOOKUP(A67,NDD_Kaplanis!A:AI,26,FALSE) -> 1.70E-13 | Q67: =AND(OR(J67<0.0000025),P67>0.0000025) -> FALSE | R67: =VLOOKUP(A67,NDD_Kaplanis!A:D,4,FALSE) -> consensus | S67: =AND(OR(R67="discordant", R67="none"),OR(J67<0.0000025)) -> FALSE | T67: =VLOOKUP(A67,DDG2P_3_5_2022!A:E,3,FALSE) -> Epilepsy and intellectual disability | U67: =VLOOKUP(A67,DDG2P_3_5_2022!A:E,5,FALSE) -> strong | V67: =AND(ISNA(T67),OR(J67<0.0000025)) -> FALSE | W67: =N67/J67 -> 4.86E+03
A68: IQSEC2 | B68: =VLOOKUP(A68,NDD_Kaplanis!A:AI,6,FALSE)+VLOOKUP(A68,NDD_Kaplanis!A:AI,13,FALSE)+VLOOKUP(A68,NDD_Kaplanis!A:AI,14,FALSE)+VLOOKUP(A68,NDD_Kaplanis!A:AI,15,FALSE) -> 28 | C68: =VLOOKUP(A68,NDD_Kaplanis!A:AI,10,FALSE) -> 15 | D68: =_xlfn.IFNA(VLOOKUP(A68,NDD_repeat_variants!A:F,6,FALSE),0) -> 2 | E68: =_xlfn.IFNA(VLOOKUP(A68,NDD_repeat_residues!A:F,5,FALSE),0) -> 0 | F68: =VLOOKUP(A68,NDD.gMVP!A:E,3,FALSE) -> 12 | G68: =IF(VLOOKUP(A68,NDD.CADD!A:F,3,FALSE)=0,"",VLOOKUP(A68,NDD.CADD!A:F,3,FALSE)) -> 14 | H68: =VLOOKUP(A68,'NDD.gMVP.pois'!A:E,5,FALSE) -> 1.22E-10 | I68: =IF(VLOOKUP(A68,'NDD.gMVP.cluster'!A:E,5,FALSE)=0,"",VLOOKUP(A68,'NDD.gMVP.cluster'!A:E,5,FALSE)) -> 1.25E-08 | J68: =VLOOKUP(A68,NDD.gMVP!A:E,5, FALSE) -> 6.40E-17 | K68: =VLOOKUP(A68,'NDD.CADD.pois'!A:E,5,FALSE) -> 7.32E-15 | L68: =IF(VLOOKUP(A68,'NDD.CADD.cluster'!A:E,5,FALSE)=0,"",VLOOKUP(A68,'NDD.CADD.cluster'!A:E,5,FALSE)) -> 1.25E-08 | M68: =VLOOKUP(A68,NDD.CADD!A:F,5,FALSE) -> 4.74E-21 | N68: =VLOOKUP(A68,NDD_Kaplanis!A:AI,25,FALSE) -> 1.36E-17 | O68: =AND(N68>0.0000025,OR(J68<0.0000025)) -> FALSE | P68: =VLOOKUP(A68,NDD_Kaplanis!A:AI,26,FALSE) -> 1.36E-17 | Q68: =AND(OR(J68<0.0000025),P68>0.0000025) -> FALSE | R68: =VLOOKUP(A68,NDD_Kaplanis!A:D,4,FALSE) -> consensus | S68: =AND(OR(R68="discordant", R68="none"),OR(J68<0.0000025)) -> FALSE | T68: =VLOOKUP(A68,DDG2P_3_5_2022!A:E,3,FALSE) -> INTELLECTUAL DEVELOPMENTAL DISORDER X-LINKED TYPE 1 | U68: =VLOOKUP(A68,DDG2P_3_5_2022!A:E,5,FALSE) -> definitive | V68: =AND(ISNA(T68),OR(J68<0.0000025)) -> FALSE | W68: =N68/J68 -> 2.12E-01
A69: CASK | B69: =VLOOKUP(A69,NDD_Kaplanis!A:AI,6,FALSE)+VLOOKUP(A69,NDD_Kaplanis!A:AI,13,FALSE)+VLOOKUP(A69,NDD_Kaplanis!A:AI,14,FALSE)+VLOOKUP(A69,NDD_Kaplanis!A:AI,15,FALSE) -> 22 | C69: =VLOOKUP(A69,NDD_Kaplanis!A:AI,10,FALSE) -> 16 | D69: =_xlfn.IFNA(VLOOKUP(A69,NDD_repeat_variants!A:F,6,FALSE),0) -> 0 | E69: =_xlfn.IFNA(VLOOKUP(A69,NDD_repeat_residues!A:F,5,FALSE),0) -> 2 | F69: =VLOOKUP(A69,NDD.gMVP!A:E,3,FALSE) -> 15 | G69: =IF(VLOOKUP(A69,NDD.CADD!A:F,3,FALSE)=0,"",VLOOKUP(A69,NDD.CADD!A:F,3,FALSE)) -> 14 | H69: =VLOOKUP(A69,'NDD.gMVP.pois'!A:E,5,FALSE) -> 2.59E-15 | I69: =IF(VLOOKUP(A69,'NDD.gMVP.cluster'!A:E,5,FALSE)=0,"",VLOOKUP(A69,'NDD.gMVP.cluster'!A:E,5,FALSE)) -> 7.38E-04 | J69: =VLOOKUP(A69,NDD.gMVP!A:E,5, FALSE) -> 7.98E-17 | K69: =VLOOKUP(A69,'NDD.CADD.pois'!A:E,5,FALSE) -> 5.86E-19 | L69: =IF(VLOOKUP(A69,'NDD.CADD.cluster'!A:E,5,FALSE)=0,"",VLOOKUP(A69,'NDD.CADD.cluster'!A:E,5,FALSE)) -> 3.25E-03 | M69: =VLOOKUP(A69,NDD.CADD!A:F,5,FALSE) -> 9.28E-20 | N69: =VLOOKUP(A69,NDD_Kaplanis!A:AI,25,FALSE) -> 1.13E-17 | O69: =AND(N69>0.0000025,OR(J69<0.0000025)) -> FALSE | P69: =VLOOKUP(A69,NDD_Kaplanis!A:AI,26,FALSE) -> 1.13E-17 | Q69: =AND(OR(J69<0.0000025),P69>0.0000025) -> FALSE | R69: =VLOOKUP(A69,NDD_Kaplanis!A:D,4,FALSE) -> consensus | S69: =AND(OR(R69="discordant", R69="none"),OR(J69<0.0000025)) -> FALSE | T69: =VLOOKUP(A69,DDG2P_3_5_2022!A:E,3,FALSE) -> INTELLECTUAL DEVELOPMENTAL DISORDER X-LINKED CASK-RELATED | U69: =VLOOKUP(A69,DDG2P_3_5_2022!A:E,5,FALSE) -> definitive | V69: =AND(ISNA(T69),OR(J69<0.0000025)) -> FALSE | W69: =N69/J69 -> 1.41E-01
A70: PDHA1 | B70: =VLOOKUP(A70,NDD_Kaplanis!A:AI,6,FALSE)+VLOOKUP(A70,NDD_Kaplanis!A:AI,13,FALSE)+VLOOKUP(A70,NDD_Kaplanis!A:AI,14,FALSE)+VLOOKUP(A70,NDD_Kaplanis!A:AI,15,FALSE) -> 10 | C70: =VLOOKUP(A70,NDD_Kaplanis!A:AI,10,FALSE) -> 13 | D70: =_xlfn.IFNA(VLOOKUP(A70,NDD_repeat_variants!A:F,6,FALSE),0) -> 0 | E70: =_xlfn.IFNA(VLOOKUP(A70,NDD_repeat_residues!A:F,5,FALSE),0) -> 0 | F70: =VLOOKUP(A70,NDD.gMVP!A:E,3,FALSE) -> 13 | G70: =IF(VLOOKUP(A70,NDD.CADD!A:F,3,FALSE)=0,"",VLOOKUP(A70,NDD.CADD!A:F,3,FALSE)) -> 9 | H70: =VLOOKUP(A70,'NDD.gMVP.pois'!A:E,5,FALSE) -> 5.23E-16 | I70: =IF(VLOOKUP(A70,'NDD.gMVP.cluster'!A:E,5,FALSE)=0,"",VLOOKUP(A70,'NDD.gMVP.cluster'!A:E,5,FALSE)) -> 6.56E-03 | J70: =VLOOKUP(A70,NDD.gMVP!A:E,5, FALSE) -> 1.42E-16 | K70: =VLOOKUP(A70,'NDD.CADD.pois'!A:E,5,FALSE) -> 2.12E-12 | L70: =IF(VLOOKUP(A70,'NDD.CADD.cluster'!A:E,5,FALSE)=0,"",VLOOKUP(A70,'NDD.CADD.cluster'!A:E,5,FALSE)) -> 4.15E-03 | M70: =VLOOKUP(A70,NDD.CADD!A:F,5,FALSE) -> 2.94E-13 | N70: =VLOOKUP(A70,NDD_Kaplanis!A:AI,25,FALSE) -> 4.31E-14 | O70: =AND(N70>0.0000025,OR(J70<0.0000025)) -> FALSE | P70: =VLOOKUP(A70,NDD_Kaplanis!A:AI,26,FALSE) -> 1.00E-14 | Q70: =AND(OR(J70<0.0000025),P70>0.0000025) -> FALSE | R70: =VLOOKUP(A70,NDD_Kaplanis!A:D,4,FALSE) -> consensus | S70: =AND(OR(R70="discordant", R70="none"),OR(J70<0.0000025)) -> FALSE | T70: =VLOOKUP(A70,DDG2P_3_5_2022!A:E,3,FALSE) -> PYRUVATE DEHYDROGENASE E1-ALPHA DEFICIENCY IN FEMALES | U70: =VLOOKUP(A70,DDG2P_3_5_2022!A:E,5,FALSE) -> definitive | V70: =AND(ISNA(T70),OR(J70<0.0000025)) -> FALSE | W70: =N70/J70 -> 3.04E+02
A71: SPTAN1 | B71: =VLOOKUP(A71,NDD_Kaplanis!A:AI,6,FALSE)+VLOOKUP(A71,NDD_Kaplanis!A:AI,13,FALSE)+VLOOKUP(A71,NDD_Kaplanis!A:AI,14,FALSE)+VLOOKUP(A71,NDD_Kaplanis!A:AI,15,FALSE) -> 2 | C71: =VLOOKUP(A71,NDD_Kaplanis!A:AI,10,FALSE) -> 28 | D71: =_xlfn.IFNA(VLOOKUP(A71,NDD_repeat_variants!A:F,6,FALSE),0) -> 1 | E71: =_xlfn.IFNA(VLOOKUP(A71,NDD_repeat_residues!A:F,5,FALSE),0) -> 0 | F71: =VLOOKUP(A71,NDD.gMVP!A:E,3,FALSE) -> 11 | G71: =IF(VLOOKUP(A71,NDD.CADD!A:F,3,FALSE)=0,"",VLOOKUP(A71,NDD.CADD!A:F,3,FALSE)) -> 13 | H71: =VLOOKUP(A71,'NDD.gMVP.pois'!A:E,5,FALSE) -> 3.57E-14 | I71: =IF(VLOOKUP(A71,'NDD.gMVP.cluster'!A:E,5,FALSE)=0,"",VLOOKUP(A71,'NDD.gMVP.cluster'!A:E,5,FALSE)) -> 3.16E-04 | J71: =VLOOKUP(A71,NDD.gMVP!A:E,5, FALSE) -> 4.51E-16 | K71: =VLOOKUP(A71,'NDD.CADD.pois'!A:E,5,FALSE) -> 4.73E-11 | L71: =IF(VLOOKUP(A71,'NDD.CADD.cluster'!A:E,5,FALSE)=0,"",VLOOKUP(A71,'NDD.CADD.cluster'!A:E,5,FALSE)) -> 1.41E-01 | M71: =VLOOKUP(A71,NDD.CADD!A:F,5,FALSE) -> 1.78E-10 | N71: =VLOOKUP(A71,NDD_Kaplanis!A:AI,25,FALSE) -> 1.97E-12 | O71: =AND(N71>0.0000025,OR(J71<0.0000025)) -> FALSE | P71: =VLOOKUP(A71,NDD_Kaplanis!A:AI,26,FALSE) -> 1.86E-13 | Q71: =AND(OR(J71<0.0000025),P71>0.0000025) -> FALSE | R71: =VLOOKUP(A71,NDD_Kaplanis!A:D,4,FALSE) -> consensus | S71: =AND(OR(R71="discordant", R71="none"),OR(J71<0.0000025)) -> FALSE | T71: =VLOOKUP(A71,DDG2P_3_5_2022!A:E,3,FALSE) -> EPILEPTIC ENCEPHALOPATHY EARLY INFANTILE TYPE 5 | U71: =VLOOKUP(A71,DDG2P_3_5_2022!A:E,5,FALSE) -> strong | V71: =AND(ISNA(T71),OR(J71<0.0000025)) -> FALSE | W71: =N71/J71 -> 4.36E+03
A72: H3-3A | B72: =VLOOKUP(A72,NDD_Kaplanis!A:AI,6,FALSE)+VLOOKUP(A72,NDD_Kaplanis!A:AI,13,FALSE)+VLOOKUP(A72,NDD_Kaplanis!A:AI,14,FALSE)+VLOOKUP(A72,NDD_Kaplanis!A:AI,15,FALSE) -> 0 | C72: =VLOOKUP(A72,NDD_Kaplanis!A:AI,10,FALSE) -> 14 | D72: =_xlfn.IFNA(VLOOKUP(A72,NDD_repeat_variants!A:F,6,FALSE),0) -> 0 | E72: =_xlfn.IFNA(VLOOKUP(A72,NDD_repeat_residues!A:F,5,FALSE),0) -> 0 | F72: =VLOOKUP(A72,NDD.gMVP!A:E,3,FALSE) -> 14 | G72: =IF(VLOOKUP(A72,NDD.CADD!A:F,3,FALSE)=0,"",VLOOKUP(A72,NDD.CADD!A:F,3,FALSE)) -> 10 | H72: =VLOOKUP(A72,'NDD.gMVP.pois'!A:E,5,FALSE) -> 1.57E-17 | I72: =IF(VLOOKUP(A72,'NDD.gMVP.cluster'!A:E,5,FALSE)=0,"",VLOOKUP(A72,'NDD.gMVP.cluster'!A:E,5,FALSE)) -> 7.92E-01 | J72: =VLOOKUP(A72,NDD.gMVP!A:E,5, FALSE) -> 4.98E-16 | K72: =VLOOKUP(A72,'NDD.CADD.pois'!A:E,5,FALSE) -> 6.96E-16 | L72: =IF(VLOOKUP(A72,'NDD.CADD.cluster'!A:E,5,FALSE)=0,"",VLOOKUP(A72,'NDD.CADD.cluster'!A:E,5,FALSE)) -> 5.11E-01 | M72: =VLOOKUP(A72,NDD.CADD!A:F,5,FALSE) -> 1.30E-14 | N72: =VLOOKUP(A72,NDD_Kaplanis!A:AI,25,FALSE) -> 3.70E-18 | O72: =AND(N72>0.0000025,OR(J72<0.0000025)) -> FALSE | P72: =VLOOKUP(A72,NDD_Kaplanis!A:AI,26,FALSE) -> 3.70E-18 | Q72: =AND(OR(J72<0.0000025),P72>0.0000025) -> FALSE | R72: =VLOOKUP(A72,NDD_Kaplanis!A:D,4,FALSE) -> novel | S72: =AND(OR(R72="discordant", R72="none"),OR(J72<0.0000025)) -> FALSE | T72: =VLOOKUP(A72,DDG2P_3_5_2022!A:E,3,FALSE) -> Craniofacial with neurodevelopment disorders | U72: =VLOOKUP(A72,DDG2P_3_5_2022!A:E,5,FALSE) -> definitive | V72: =AND(ISNA(T72),OR(J72<0.0000025)) -> FALSE | W72: =N72/J72 -> 7.44E-03
A73: LZTR1 | B73: =VLOOKUP(A73,NDD_Kaplanis!A:AI,6,FALSE)+VLOOKUP(A73,NDD_Kaplanis!A:AI,13,FALSE)+VLOOKUP(A73,NDD_Kaplanis!A:AI,14,FALSE)+VLOOKUP(A73,NDD_Kaplanis!A:AI,15,FALSE) -> 2 | C73: =VLOOKUP(A73,NDD_Kaplanis!A:AI,10,FALSE) -> 19 | D73: =_xlfn.IFNA(VLOOKUP(A73,NDD_repeat_variants!A:F,6,FALSE),0) -> 1 | E73: =_xlfn.IFNA(VLOOKUP(A73,NDD_repeat_residues!A:F,5,FALSE),0) -> 0 | F73: =VLOOKUP(A73,NDD.gMVP!A:E,3,FALSE) -> 12 | G73: =IF(VLOOKUP(A73,NDD.CADD!A:F,3,FALSE)=0,"",VLOOKUP(A73,NDD.CADD!A:F,3,FALSE)) -> 15 | H73: =VLOOKUP(A73,'NDD.gMVP.pois'!A:E,5,FALSE) -> 1.67E-11 | I73: =IF(VLOOKUP(A73,'NDD.gMVP.cluster'!A:E,5,FALSE)=0,"",VLOOKUP(A73,'NDD.gMVP.cluster'!A:E,5,FALSE)) -> 3.10E-06 | J73: =VLOOKUP(A73,NDD.gMVP!A:E,5, FALSE) -> 1.99E-15 | K73: =VLOOKUP(A73,'NDD.CADD.pois'!A:E,5,FALSE) -> 1.04E-13 | L73: =IF(VLOOKUP(A73,'NDD.CADD.cluster'!A:E,5,FALSE)=0,"",VLOOKUP(A73,'NDD.CADD.cluster'!A:E,5,FALSE)) -> 1.73E-05 | M73: =VLOOKUP(A73,NDD.CADD!A:F,5,FALSE) -> 7.56E-17 | N73: =VLOOKUP(A73,NDD_Kaplanis!A:AI,25,FALSE) -> 6.16E-14 | O73: =AND(N73>0.0000025,OR(J73<0.0000025)) -> FALSE | P73: =VLOOKUP(A73,NDD_Kaplanis!A:AI,26,FALSE) -> 6.16E-14 | Q73: =AND(OR(J73<0.0000025),P73>0.0000025) -> FALSE | R73: =VLOOKUP(A73,NDD_Kaplanis!A:D,4,FALSE) -> discordant | S73: =AND(OR(R73="discordant", R73="none"),OR(J73<0.0000025)) -> TRUE | T73: =VLOOKUP(A73,DDG2P_3_5_2022!A:E,3,FALSE) -> Noonan syndrome | U73: =VLOOKUP(A73,DDG2P_3_5_2022!A:E,5,FALSE) -> strong | V73: =AND(ISNA(T73),OR(J73<0.0000025)) -> FALSE | W73: =N73/J73 -> 3.10E+01
A74: TRPM3 | B74: =VLOOKUP(A74,NDD_Kaplanis!A:AI,6,FALSE)+VLOOKUP(A74,NDD_Kaplanis!A:AI,13,FALSE)+VLOOKUP(A74,NDD_Kaplanis!A:AI,14,FALSE)+VLOOKUP(A74,NDD_Kaplanis!A:AI,15,FALSE) -> 0 | C74: =VLOOKUP(A74,NDD_Kaplanis!A:AI,10,FALSE) -> 16 | D74: =_xlfn.IFNA(VLOOKUP(A74,NDD_repeat_variants!A:F,6,FALSE),0) -> 0 | E74: =_xlfn.IFNA(VLOOKUP(A74,NDD_repeat_residues!A:F,5,FALSE),0) -> 0 | F74: =VLOOKUP(A74,NDD.gMVP!A:E,3,FALSE) -> 13 | G74: =IF(VLOOKUP(A74,NDD.CADD!A:F,3,FALSE)=0,"",VLOOKUP(A74,NDD.CADD!A:F,3,FALSE)) -> 11 | H74: =VLOOKUP(A74,'NDD.gMVP.pois'!A:E,5,FALSE) -> 5.13E-09 | I74: =IF(VLOOKUP(A74,'NDD.gMVP.cluster'!A:E,5,FALSE)=0,"",VLOOKUP(A74,'NDD.gMVP.cluster'!A:E,5,FALSE)) -> 1.25E-08 | J74: =VLOOKUP(A74,NDD.gMVP!A:E,5, FALSE) -> 2.45E-15 | K74: =VLOOKUP(A74,'NDD.CADD.pois'!A:E,5,FALSE) -> 7.37E-08 | L74: =IF(VLOOKUP(A74,'NDD.CADD.cluster'!A:E,5,FALSE)=0,"",VLOOKUP(A74,'NDD.CADD.cluster'!A:E,5,FALSE)) -> 1.25E-08 | M74: =VLOOKUP(A74,NDD.CADD!A:F,5,FALSE) -> 3.28E-14 | N74: =VLOOKUP(A74,NDD_Kaplanis!A:AI,25,FALSE) -> 8.50E-13 | O74: =AND(N74>0.0000025,OR(J74<0.0000025)) -> FALSE | P74: =VLOOKUP(A74,NDD_Kaplanis!A:AI,26,FALSE) -> 8.50E-13 | Q74: =AND(OR(J74<0.0000025),P74>0.0000025) -> FALSE | R74: =VLOOKUP(A74,NDD_Kaplanis!A:D,4,FALSE) -> discordant | S74: =AND(OR(R74="discordant", R74="none"),OR(J74<0.0000025)) -> TRUE | T74: =VLOOKUP(A74,DDG2P_3_5_2022!A:E,3,FALSE) -> TRPM3-related developmental disorder (monoallelic) | U74: =VLOOKUP(A74,DDG2P_3_5_2022!A:E,5,FALSE) -> strong | V74: =AND(ISNA(T74),OR(J74<0.0000025)) -> FALSE | W74: =N74/J74 -> 3.46E+02
A75: CHD2 | B75: =VLOOKUP(A75,NDD_Kaplanis!A:AI,6,FALSE)+VLOOKUP(A75,NDD_Kaplanis!A:AI,13,FALSE)+VLOOKUP(A75,NDD_Kaplanis!A:AI,14,FALSE)+VLOOKUP(A75,NDD_Kaplanis!A:AI,15,FALSE) -> 17 | C75: =VLOOKUP(A75,NDD_Kaplanis!A:AI,10,FALSE) -> 13 | D75: =_xlfn.IFNA(VLOOKUP(A75,NDD_repeat_variants!A:F,6,FALSE),0) -> 1 | E75: =_xlfn.IFNA(VLOOKUP(A75,NDD_repeat_residues!A:F,5,FALSE),0) -> 2 | F75: =VLOOKUP(A75,NDD.gMVP!A:E,3,FALSE) -> 11 | G75: =IF(VLOOKUP(A75,NDD.CADD!A:F,3,FALSE)=0,"",VLOOKUP(A75,NDD.CADD!A:F,3,FALSE)) -> 11 | H75: =VLOOKUP(A75,'NDD.gMVP.pois'!A:E,5,FALSE) -> 5.74E-09 | I75: =IF(VLOOKUP(A75,'NDD.gMVP.cluster'!A:E,5,FALSE)=0,"",VLOOKUP(A75,'NDD.gMVP.cluster'!A:E,5,FALSE)) -> 1.25E-08 | J75: =VLOOKUP(A75,NDD.gMVP!A:E,5, FALSE) -> 2.74E-15 | K75: =VLOOKUP(A75,'NDD.CADD.pois'!A:E,5,FALSE) -> 8.82E-08 | L75: =IF(VLOOKUP(A75,'NDD.CADD.cluster'!A:E,5,FALSE)=0,"",VLOOKUP(A75,'NDD.CADD.cluster'!A:E,5,FALSE)) -> 1.25E-08 | M75: =VLOOKUP(A75,NDD.CADD!A:F,5,FALSE) -> 3.91E-14 | N75: =VLOOKUP(A75,NDD_Kaplanis!A:AI,25,FALSE) -> 4.17E-11 | O75: =AND(N75>0.0000025,OR(J75<0.0000025)) -> FALSE | P75: =VLOOKUP(A75,NDD_Kaplanis!A:AI,26,FALSE) -> 1.00E-14 | Q75: =AND(OR(J75<0.0000025),P75>0.0000025) -> FALSE | R75: =VLOOKUP(A75,NDD_Kaplanis!A:D,4,FALSE) -> consensus | S75: =AND(OR(R75="discordant", R75="none"),OR(J75<0.0000025)) -> FALSE | T75: =VLOOKUP(A75,DDG2P_3_5_2022!A:E,3,FALSE) -> EPILEPTIC ENCEPHALOPATHY | U75: =VLOOKUP(A75,DDG2P_3_5_2022!A:E,5,FALSE) -> definitive | V75: =AND(ISNA(T75),OR(J75<0.0000025)) -> FALSE | W75: =N75/J75 -> 1.52E+04
A76: GABRA1 | B76: =VLOOKUP(A76,NDD_Kaplanis!A:AI,6,FALSE)+VLOOKUP(A76,NDD_Kaplanis!A:AI,13,FALSE)+VLOOKUP(A76,NDD_Kaplanis!A:AI,14,FALSE)+VLOOKUP(A76,NDD_Kaplanis!A:AI,15,FALSE) -> 0 | C76: =VLOOKUP(A76,NDD_Kaplanis!A:AI,10,FALSE) -> 14 | D76: =_xlfn.IFNA(VLOOKUP(A76,NDD_repeat_variants!A:F,6,FALSE),0) -> 0 | E76: =_xlfn.IFNA(VLOOKUP(A76,NDD_repeat_residues!A:F,5,FALSE),0) -> 2 | F76: =VLOOKUP(A76,NDD.gMVP!A:E,3,FALSE) -> 13 | G76: =IF(VLOOKUP(A76,NDD.CADD!A:F,3,FALSE)=0,"",VLOOKUP(A76,NDD.CADD!A:F,3,FALSE)) -> 8 | H76: =VLOOKUP(A76,'NDD.gMVP.pois'!A:E,5,FALSE) -> 3.70E-14 | I76: =IF(VLOOKUP(A76,'NDD.gMVP.cluster'!A:E,5,FALSE)=0,"",VLOOKUP(A76,'NDD.gMVP.cluster'!A:E,5,FALSE)) -> 1.99E-03 | J76: =VLOOKUP(A76,NDD.gMVP!A:E,5, FALSE) -> 2.81E-15 | K76: =VLOOKUP(A76,'NDD.CADD.pois'!A:E,5,FALSE) -> 3.06E-09 | L76: =IF(VLOOKUP(A76,'NDD.CADD.cluster'!A:E,5,FALSE)=0,"",VLOOKUP(A76,'NDD.CADD.cluster'!A:E,5,FALSE)) -> 9.74E-04 | M76: =VLOOKUP(A76,NDD.CADD!A:F,5,FALSE) -> 8.21E-11 | N76: =VLOOKUP(A76,NDD_Kaplanis!A:AI,25,FALSE) -> 3.70E-16 | O76: =AND(N76>0.0000025,OR(J76<0.0000025)) -> FALSE | P76: =VLOOKUP(A76,NDD_Kaplanis!A:AI,26,FALSE) -> 3.70E-16 | Q76: =AND(OR(J76<0.0000025),P76>0.0000025) -> FALSE | R76: =VLOOKUP(A76,NDD_Kaplanis!A:D,4,FALSE) -> consensus | S76: =AND(OR(R76="discordant", R76="none"),OR(J76<0.0000025)) -> FALSE | T76: =VLOOKUP(A76,DDG2P_3_5_2022!A:E,3,FALSE) -> JUVENILE MYOCLONIC EPILEPSY | U76: =VLOOKUP(A76,DDG2P_3_5_2022!A:E,5,FALSE) -> strong | V76: =AND(ISNA(T76),OR(J76<0.0000025)) -> FALSE | W76: =N76/J76 -> 1.32E-01
A77: ATP6V0A1 | B77: =VLOOKUP(A77,NDD_Kaplanis!A:AI,6,FALSE)+VLOOKUP(A77,NDD_Kaplanis!A:AI,13,FALSE)+VLOOKUP(A77,NDD_Kaplanis!A:AI,14,FALSE)+VLOOKUP(A77,NDD_Kaplanis!A:AI,15,FALSE) -> 0 | C77: =VLOOKUP(A77,NDD_Kaplanis!A:AI,10,FALSE) -> 11 | D77: =_xlfn.IFNA(VLOOKUP(A77,NDD_repeat_variants!A:F,6,FALSE),0) -> 3 | E77: =_xlfn.IFNA(VLOOKUP(A77,NDD_repeat_residues!A:F,5,FALSE),0) -> 6 | F77: =VLOOKUP(A77,NDD.gMVP!A:E,3,FALSE) -> 11 | G77: =IF(VLOOKUP(A77,NDD.CADD!A:F,3,FALSE)=0,"",VLOOKUP(A77,NDD.CADD!A:F,3,FALSE)) -> 11 | H77: =VLOOKUP(A77,'NDD.gMVP.pois'!A:E,5,FALSE) -> 7.92E-09 | I77: =IF(VLOOKUP(A77,'NDD.gMVP.cluster'!A:E,5,FALSE)=0,"",VLOOKUP(A77,'NDD.gMVP.cluster'!A:E,5,FALSE)) -> 1.25E-08 | J77: =VLOOKUP(A77,NDD.gMVP!A:E,5, FALSE) -> 3.75E-15 | K77: =VLOOKUP(A77,'NDD.CADD.pois'!A:E,5,FALSE) -> 2.04E-10 | L77: =IF(VLOOKUP(A77,'NDD.CADD.cluster'!A:E,5,FALSE)=0,"",VLOOKUP(A77,'NDD.CADD.cluster'!A:E,5,FALSE)) -> 1.25E-08 | M77: =VLOOKUP(A77,NDD.CADD!A:F,5,FALSE) -> 1.06E-16 | N77: =VLOOKUP(A77,NDD_Kaplanis!A:AI,25,FALSE) -> 6.11E-15 | O77: =AND(N77>0.0000025,OR(J77<0.0000025)) -> FALSE | P77: =VLOOKUP(A77,NDD_Kaplanis!A:AI,26,FALSE) -> 6.13E-15 | Q77: =AND(OR(J77<0.0000025),P77>0.0000025) -> FALSE | R77: =VLOOKUP(A77,NDD_Kaplanis!A:D,4,FALSE) -> novel | S77: =AND(OR(R77="discordant", R77="none"),OR(J77<0.0000025)) -> FALSE | T77: =VLOOKUP(A77,DDG2P_3_5_2022!A:E,3,FALSE) -> ATP6V0A1-related developmental disorder (monoallelic) | U77: =VLOOKUP(A77,DDG2P_3_5_2022!A:E,5,FALSE) -> definitive | V77: =AND(ISNA(T77),OR(J77<0.0000025)) -> FALSE | W77: =N77/J77 -> 1.63E+00
A78: CACNA1E | B78: =VLOOKUP(A78,NDD_Kaplanis!A:AI,6,FALSE)+VLOOKUP(A78,NDD_Kaplanis!A:AI,13,FALSE)+VLOOKUP(A78,NDD_Kaplanis!A:AI,14,FALSE)+VLOOKUP(A78,NDD_Kaplanis!A:AI,15,FALSE) -> 0 | C78: =VLOOKUP(A78,NDD_Kaplanis!A:AI,10,FALSE) -> 16 | D78: =_xlfn.IFNA(VLOOKUP(A78,NDD_repeat_variants!A:F,6,FALSE),0) -> 1 | E78: =_xlfn.IFNA(VLOOKUP(A78,NDD_repeat_residues!A:F,5,FALSE),0) -> 4 | F78: =VLOOKUP(A78,NDD.gMVP!A:E,3,FALSE) -> 15 | G78: =IF(VLOOKUP(A78,NDD.CADD!A:F,3,FALSE)=0,"",VLOOKUP(A78,NDD.CADD!A:F,3,FALSE)) -> 13 | H78: =VLOOKUP(A78,'NDD.gMVP.pois'!A:E,5,FALSE) -> 8.96E-09 | I78: =IF(VLOOKUP(A78,'NDD.gMVP.cluster'!A:E,5,FALSE)=0,"",VLOOKUP(A78,'NDD.gMVP.cluster'!A:E,5,FALSE)) -> 1.25E-08 | J78: =VLOOKUP(A78,NDD.gMVP!A:E,5, FALSE) -> 4.23E-15 | K78: =VLOOKUP(A78,'NDD.CADD.pois'!A:E,5,FALSE) -> 1.71E-07 | L78: =IF(VLOOKUP(A78,'NDD.CADD.cluster'!A:E,5,FALSE)=0,"",VLOOKUP(A78,'NDD.CADD.cluster'!A:E,5,FALSE)) -> 1.25E-08 | M78: =VLOOKUP(A78,NDD.CADD!A:F,5,FALSE) -> 7.45E-14 | N78: =VLOOKUP(A78,NDD_Kaplanis!A:AI,25,FALSE) -> 3.46E-10 | O78: =AND(N78>0.0000025,OR(J78<0.0000025)) -> FALSE | P78: =VLOOKUP(A78,NDD_Kaplanis!A:AI,26,FALSE) -> 3.46E-10 | Q78: =AND(OR(J78<0.0000025),P78>0.0000025) -> FALSE | R78: =VLOOKUP(A78,NDD_Kaplanis!A:D,4,FALSE) -> consensus | S78: =AND(OR(R78="discordant", R78="none"),OR(J78<0.0000025)) -> FALSE | T78: =VLOOKUP(A78,DDG2P_3_5_2022!A:E,3,FALSE) -> Epileptic Encephalopathy with Contractures, Macrocephaly, and Dyskinesia | U78: =VLOOKUP(A78,DDG2P_3_5_2022!A:E,5,FALSE) -> strong | V78: =AND(ISNA(T78),OR(J78<0.0000025)) -> FALSE | W78: =N78/J78 -> 8.17E+04
A79: PBX1 | B79: =VLOOKUP(A79,NDD_Kaplanis!A:AI,6,FALSE)+VLOOKUP(A79,NDD_Kaplanis!A:AI,13,FALSE)+VLOOKUP(A79,NDD_Kaplanis!A:AI,14,FALSE)+VLOOKUP(A79,NDD_Kaplanis!A:AI,15,FALSE) -> 2 | C79: =VLOOKUP(A79,NDD_Kaplanis!A:AI,10,FALSE) -> 10 | D79: =_xlfn.IFNA(VLOOKUP(A79,NDD_repeat_variants!A:F,6,FALSE),0) -> 2 | E79: =_xlfn.IFNA(VLOOKUP(A79,NDD_repeat_residues!A:F,5,FALSE),0) -> 0 | F79: =VLOOKUP(A79,NDD.gMVP!A:E,3,FALSE) -> 10 | G79: =IF(VLOOKUP(A79,NDD.CADD!A:F,3,FALSE)=0,"",VLOOKUP(A79,NDD.CADD!A:F,3,FALSE)) -> 10 | H79: =VLOOKUP(A79,'NDD.gMVP.pois'!A:E,5,FALSE) -> 3.90E-10 | I79: =IF(VLOOKUP(A79,'NDD.gMVP.cluster'!A:E,5,FALSE)=0,"",VLOOKUP(A79,'NDD.gMVP.cluster'!A:E,5,FALSE)) -> 3.00E-07 | J79: =VLOOKUP(A79,NDD.gMVP!A:E,5, FALSE) -> 4.41E-15 | K79: =VLOOKUP(A79,'NDD.CADD.pois'!A:E,5,FALSE) -> 1.30E-11 | L79: =IF(VLOOKUP(A79,'NDD.CADD.cluster'!A:E,5,FALSE)=0,"",VLOOKUP(A79,'NDD.CADD.cluster'!A:E,5,FALSE)) -> 3.00E-07 | M79: =VLOOKUP(A79,NDD.CADD!A:F,5,FALSE) -> 1.60E-16 | N79: =VLOOKUP(A79,NDD_Kaplanis!A:AI,25,FALSE) -> 5.61E-16 | O79: =AND(N79>0.0000025,OR(J79<0.0000025)) -> FALSE | P79: =VLOOKUP(A79,NDD_Kaplanis!A:AI,26,FALSE) -> 5.61E-16 | Q79: =AND(OR(J79<0.0000025),P79>0.0000025) -> FALSE | R79: =VLOOKUP(A79,NDD_Kaplanis!A:D,4,FALSE) -> discordant | S79: =AND(OR(R79="discordant", R79="none"),OR(J79<0.0000025)) -> TRUE | T79: =VLOOKUP(A79,DDG2P_3_5_2022!A:E,3,FALSE) -> PBX1-related developmental disorder (monoallelic) | U79: =VLOOKUP(A79,DDG2P_3_5_2022!A:E,5,FALSE) -> strong | V79: =AND(ISNA(T79),OR(J79<0.0000025)) -> FALSE | W79: =N79/J79 -> 1.27E-01
A80: SMC1A | B80: =VLOOKUP(A80,NDD_Kaplanis!A:AI,6,FALSE)+VLOOKUP(A80,NDD_Kaplanis!A:AI,13,FALSE)+VLOOKUP(A80,NDD_Kaplanis!A:AI,14,FALSE)+VLOOKUP(A80,NDD_Kaplanis!A:AI,15,FALSE) -> 12 | C80: =VLOOKUP(A80,NDD_Kaplanis!A:AI,10,FALSE) -> 18 | D80: =_xlfn.IFNA(VLOOKUP(A80,NDD_repeat_variants!A:F,6,FALSE),0) -> 0 | E80: =_xlfn.IFNA(VLOOKUP(A80,NDD_repeat_residues!A:F,5,FALSE),0) -> 0 | F80: =VLOOKUP(A80,NDD.gMVP!A:E,3,FALSE) -> 18 | G80: =IF(VLOOKUP(A80,NDD.CADD!A:F,3,FALSE)=0,"",VLOOKUP(A80,NDD.CADD!A:F,3,FALSE)) -> 13 | H80: =VLOOKUP(A80,'NDD.gMVP.pois'!A:E,5,FALSE) -> 1.85E-15 | I80: =IF(VLOOKUP(A80,'NDD.gMVP.cluster'!A:E,5,FALSE)=0,"",VLOOKUP(A80,'NDD.gMVP.cluster'!A:E,5,FALSE)) -> 6.80E-02 | J80: =VLOOKUP(A80,NDD.gMVP!A:E,5, FALSE) -> 4.74E-15 | K80: =VLOOKUP(A80,'NDD.CADD.pois'!A:E,5,FALSE) -> 1.17E-14 | L80: =IF(VLOOKUP(A80,'NDD.CADD.cluster'!A:E,5,FALSE)=0,"",VLOOKUP(A80,'NDD.CADD.cluster'!A:E,5,FALSE)) -> 2.07E-02 | M80: =VLOOKUP(A80,NDD.CADD!A:F,5,FALSE) -> 8.99E-15 | N80: =VLOOKUP(A80,NDD_Kaplanis!A:AI,25,FALSE) -> 1.67E-15 | O80: =AND(N80>0.0000025,OR(J80<0.0000025)) -> FALSE | P80: =VLOOKUP(A80,NDD_Kaplanis!A:AI,26,FALSE) -> 1.67E-15 | Q80: =AND(OR(J80<0.0000025),P80>0.0000025) -> FALSE | R80: =VLOOKUP(A80,NDD_Kaplanis!A:D,4,FALSE) -> consensus | S80: =AND(OR(R80="discordant", R80="none"),OR(J80<0.0000025)) -> FALSE | T80: =VLOOKUP(A80,DDG2P_3_5_2022!A:E,3,FALSE) -> CORNELIA DE LANGE SYNDROME TYPE 2 | U80: =VLOOKUP(A80,DDG2P_3_5_2022!A:E,5,FALSE) -> definitive | V80: =AND(ISNA(T80),OR(J80<0.0000025)) -> FALSE | W80: =N80/J80 -> 3.53E-01
A81: PSMC5 | B81: =VLOOKUP(A81,NDD_Kaplanis!A:AI,6,FALSE)+VLOOKUP(A81,NDD_Kaplanis!A:AI,13,FALSE)+VLOOKUP(A81,NDD_Kaplanis!A:AI,14,FALSE)+VLOOKUP(A81,NDD_Kaplanis!A:AI,15,FALSE) -> 0 | C81: =VLOOKUP(A81,NDD_Kaplanis!A:AI,10,FALSE) -> 9 | D81: =_xlfn.IFNA(VLOOKUP(A81,NDD_repeat_variants!A:F,6,FALSE),0) -> 2 | E81: =_xlfn.IFNA(VLOOKUP(A81,NDD_repeat_residues!A:F,5,FALSE),0) -> 0 | F81: =VLOOKUP(A81,NDD.gMVP!A:E,3,FALSE) -> 9 | G81: =IF(VLOOKUP(A81,NDD.CADD!A:F,3,FALSE)=0,"",VLOOKUP(A81,NDD.CADD!A:F,3,FALSE)) -> 9 | H81: =VLOOKUP(A81,'NDD.gMVP.pois'!A:E,5,FALSE) -> 4.68E-09 | I81: =IF(VLOOKUP(A81,'NDD.gMVP.cluster'!A:E,5,FALSE)=0,"",VLOOKUP(A81,'NDD.gMVP.cluster'!A:E,5,FALSE)) -> 5.00E-08 | J81: =VLOOKUP(A81,NDD.gMVP!A:E,5, FALSE) -> 8.66E-15 | K81: =VLOOKUP(A81,'NDD.CADD.pois'!A:E,5,FALSE) -> 3.80E-10 | L81: =IF(VLOOKUP(A81,'NDD.CADD.cluster'!A:E,5,FALSE)=0,"",VLOOKUP(A81,'NDD.CADD.cluster'!A:E,5,FALSE)) -> 2.50E-08 | M81: =VLOOKUP(A81,NDD.CADD!A:F,5,FALSE) -> 3.82E-16 | N81: =VLOOKUP(A81,NDD_Kaplanis!A:AI,25,FALSE) -> 8.75E-14 | O81: =AND(N81>0.0000025,OR(J81<0.0000025)) -> FALSE | P81: =VLOOKUP(A81,NDD_Kaplanis!A:AI,26,FALSE) -> 8.76E-14 | Q81: =AND(OR(J81<0.0000025),P81>0.0000025) -> FALSE | R81: =VLOOKUP(A81,NDD_Kaplanis!A:D,4,FALSE) -> novel | S81: =AND(OR(R81="discordant", R81="none"),OR(J81<0.0000025)) -> FALSE | T81: =VLOOKUP(A81,DDG2P_3_5_2022!A:E,3,FALSE) -> PSMC5-related developmental disorder (monoallelic) | U81: =VLOOKUP(A81,DDG2P_3_5_2022!A:E,5,FALSE) -> definitive | V81: =AND(ISNA(T81),OR(J81<0.0000025)) -> FALSE | W81: =N81/J81 -> 1.01E+01
A82: MED12 | B82: =VLOOKUP(A82,NDD_Kaplanis!A:AI,6,FALSE)+VLOOKUP(A82,NDD_Kaplanis!A:AI,13,FALSE)+VLOOKUP(A82,NDD_Kaplanis!A:AI,14,FALSE)+VLOOKUP(A82,NDD_Kaplanis!A:AI,15,FALSE) -> 7 | C82: =VLOOKUP(A82,NDD_Kaplanis!A:AI,10,FALSE) -> 20 | D82: =_xlfn.IFNA(VLOOKUP(A82,NDD_repeat_variants!A:F,6,FALSE),0) -> 0 | E82: =_xlfn.IFNA(VLOOKUP(A82,NDD_repeat_residues!A:F,5,FALSE),0) -> 0 | F82: =VLOOKUP(A82,NDD.gMVP!A:E,3,FALSE) -> 15 | G82: =IF(VLOOKUP(A82,NDD.CADD!A:F,3,FALSE)=0,"",VLOOKUP(A82,NDD.CADD!A:F,3,FALSE)) -> 16 | H82: =VLOOKUP(A82,'NDD.gMVP.pois'!A:E,5,FALSE) -> 6.95E-13 | I82: =IF(VLOOKUP(A82,'NDD.gMVP.cluster'!A:E,5,FALSE)=0,"",VLOOKUP(A82,'NDD.gMVP.cluster'!A:E,5,FALSE)) -> 3.92E-04 | J82: =VLOOKUP(A82,NDD.gMVP!A:E,5, FALSE) -> 1.00E-14 | K82: =VLOOKUP(A82,'NDD.CADD.pois'!A:E,5,FALSE) -> 5.43E-16 | L82: =IF(VLOOKUP(A82,'NDD.CADD.cluster'!A:E,5,FALSE)=0,"",VLOOKUP(A82,'NDD.CADD.cluster'!A:E,5,FALSE)) -> 5.31E-03 | M82: =VLOOKUP(A82,NDD.CADD!A:F,5,FALSE) -> 1.19E-16 | N82: =VLOOKUP(A82,NDD_Kaplanis!A:AI,25,FALSE) -> 7.56E-16 | O82: =AND(N82>0.0000025,OR(J82<0.0000025)) -> FALSE | P82: =VLOOKUP(A82,NDD_Kaplanis!A:AI,26,FALSE) -> 7.56E-16 | Q82: =AND(OR(J82<0.0000025),P82>0.0000025) -> FALSE | R82: =VLOOKUP(A82,NDD_Kaplanis!A:D,4,FALSE) -> consensus | S82: =AND(OR(R82="discordant", R82="none"),OR(J82<0.0000025)) -> FALSE | T82: =VLOOKUP(A82,DDG2P_3_5_2022!A:E,3,FALSE) -> OPITZ-KAVEGGIA SYNDROME | U82: =VLOOKUP(A82,DDG2P_3_5_2022!A:E,5,FALSE) -> definitive | V82: =AND(ISNA(T82),OR(J82<0.0000025)) -> FALSE | W82: =N82/J82 -> 7.53E-02
A83: ANKRD11 | B83: =VLOOKUP(A83,NDD_Kaplanis!A:AI,6,FALSE)+VLOOKUP(A83,NDD_Kaplanis!A:AI,13,FALSE)+VLOOKUP(A83,NDD_Kaplanis!A:AI,14,FALSE)+VLOOKUP(A83,NDD_Kaplanis!A:AI,15,FALSE) -> 107 | C83: =VLOOKUP(A83,NDD_Kaplanis!A:AI,10,FALSE) -> 17 | D83: =_xlfn.IFNA(VLOOKUP(A83,NDD_repeat_variants!A:F,6,FALSE),0) -> 0 | E83: =_xlfn.IFNA(VLOOKUP(A83,NDD_repeat_residues!A:F,5,FALSE),0) -> 2 | F83: =VLOOKUP(A83,NDD.gMVP!A:E,3,FALSE) -> 11 | G83: =IF(VLOOKUP(A83,NDD.CADD!A:F,3,FALSE)=0,"",VLOOKUP(A83,NDD.CADD!A:F,3,FALSE)) -> 11 | H83: =VLOOKUP(A83,'NDD.gMVP.pois'!A:E,5,FALSE) -> 2.78E-08 | I83: =IF(VLOOKUP(A83,'NDD.gMVP.cluster'!A:E,5,FALSE)=0,"",VLOOKUP(A83,'NDD.gMVP.cluster'!A:E,5,FALSE)) -> 1.25E-08 | J83: =VLOOKUP(A83,NDD.gMVP!A:E,5, FALSE) -> 1.27E-14 | K83: =VLOOKUP(A83,'NDD.CADD.pois'!A:E,5,FALSE) -> 8.95E-07 | L83: =IF(VLOOKUP(A83,'NDD.CADD.cluster'!A:E,5,FALSE)=0,"",VLOOKUP(A83,'NDD.CADD.cluster'!A:E,5,FALSE)) -> 7.50E-08 | M83: =VLOOKUP(A83,NDD.CADD!A:F,5,FALSE) -> 2.10E-12 | N83: =VLOOKUP(A83,NDD_Kaplanis!A:AI,25,FALSE) -> 3.44E-09 | O83: =AND(N83>0.0000025,OR(J83<0.0000025)) -> FALSE | P83: =VLOOKUP(A83,NDD_Kaplanis!A:AI,26,FALSE) -> 1.00E-14 | Q83: =AND(OR(J83<0.0000025),P83>0.0000025) -> FALSE | R83: =VLOOKUP(A83,NDD_Kaplanis!A:D,4,FALSE) -> consensus | S83: =AND(OR(R83="discordant", R83="none"),OR(J83<0.0000025)) -> FALSE | T83: =VLOOKUP(A83,DDG2P_3_5_2022!A:E,3,FALSE) -> KBG SYNDROME | U83: =VLOOKUP(A83,DDG2P_3_5_2022!A:E,5,FALSE) -> definitive | V83: =AND(ISNA(T83),OR(J83<0.0000025)) -> FALSE | W83: =N83/J83 -> 2.71E+05
A84: FGFR2 | B84: =VLOOKUP(A84,NDD_Kaplanis!A:AI,6,FALSE)+VLOOKUP(A84,NDD_Kaplanis!A:AI,13,FALSE)+VLOOKUP(A84,NDD_Kaplanis!A:AI,14,FALSE)+VLOOKUP(A84,NDD_Kaplanis!A:AI,15,FALSE) -> 0 | C84: =VLOOKUP(A84,NDD_Kaplanis!A:AI,10,FALSE) -> 13 | D84: =_xlfn.IFNA(VLOOKUP(A84,NDD_repeat_variants!A:F,6,FALSE),0) -> 0 | E84: =_xlfn.IFNA(VLOOKUP(A84,NDD_repeat_residues!A:F,5,FALSE),0) -> 3 | F84: =VLOOKUP(A84,NDD.gMVP!A:E,3,FALSE) -> 9 | G84: =IF(VLOOKUP(A84,NDD.CADD!A:F,3,FALSE)=0,"",VLOOKUP(A84,NDD.CADD!A:F,3,FALSE)) -> 10 | H84: =VLOOKUP(A84,'NDD.gMVP.pois'!A:E,5,FALSE) -> 1.11E-12 | I84: =IF(VLOOKUP(A84,'NDD.gMVP.cluster'!A:E,5,FALSE)=0,"",VLOOKUP(A84,'NDD.gMVP.cluster'!A:E,5,FALSE)) -> 3.89E-04 | J84: =VLOOKUP(A84,NDD.gMVP!A:E,5, FALSE) -> 1.57E-14 | K84: =VLOOKUP(A84,'NDD.CADD.pois'!A:E,5,FALSE) -> 1.78E-09 | L84: =IF(VLOOKUP(A84,'NDD.CADD.cluster'!A:E,5,FALSE)=0,"",VLOOKUP(A84,'NDD.CADD.cluster'!A:E,5,FALSE)) -> 8.00E-03 | M84: =VLOOKUP(A84,NDD.CADD!A:F,5,FALSE) -> 3.70E-10 | N84: =VLOOKUP(A84,NDD_Kaplanis!A:AI,25,FALSE) -> 1.62E-10 | O84: =AND(N84>0.0000025,OR(J84<0.0000025)) -> FALSE | P84: =VLOOKUP(A84,NDD_Kaplanis!A:AI,26,FALSE) -> 1.62E-10 | Q84: =AND(OR(J84<0.0000025),P84>0.0000025) -> FALSE | R84: =VLOOKUP(A84,NDD_Kaplanis!A:D,4,FALSE) -> consensus | S84: =AND(OR(R84="discordant", R84="none"),OR(J84<0.0000025)) -> FALSE | T84: =VLOOKUP(A84,DDG2P_3_5_2022!A:E,3,FALSE) -> CROUZON SYNDROME | U84: =VLOOKUP(A84,DDG2P_3_5_2022!A:E,5,FALSE) -> definitive | V84: =AND(ISNA(T84),OR(J84<0.0000025)) -> FALSE | W84: =N84/J84 -> 1.03E+04
A85: GNAS | B85: =VLOOKUP(A85,NDD_Kaplanis!A:AI,6,FALSE)+VLOOKUP(A85,NDD_Kaplanis!A:AI,13,FALSE)+VLOOKUP(A85,NDD_Kaplanis!A:AI,14,FALSE)+VLOOKUP(A85,NDD_Kaplanis!A:AI,15,FALSE) -> 2 | C85: =VLOOKUP(A85,NDD_Kaplanis!A:AI,10,FALSE) -> 17 | D85: =_xlfn.IFNA(VLOOKUP(A85,NDD_repeat_variants!A:F,6,FALSE),0) -> 0 | E85: =_xlfn.IFNA(VLOOKUP(A85,NDD_repeat_residues!A:F,5,FALSE),0) -> 0 | F85: =VLOOKUP(A85,NDD.gMVP!A:E,3,FALSE) -> 8 | G85: =IF(VLOOKUP(A85,NDD.CADD!A:F,3,FALSE)=0,"",VLOOKUP(A85,NDD.CADD!A:F,3,FALSE)) -> 7 | H85: =VLOOKUP(A85,'NDD.gMVP.pois'!A:E,5,FALSE) -> 9.29E-15 | I85: =IF(VLOOKUP(A85,'NDD.gMVP.cluster'!A:E,5,FALSE)=0,"",VLOOKUP(A85,'NDD.gMVP.cluster'!A:E,5,FALSE)) -> 5.22E-02 | J85: =VLOOKUP(A85,NDD.gMVP!A:E,5, FALSE) -> 1.76E-14 | K85: =VLOOKUP(A85,'NDD.CADD.pois'!A:E,5,FALSE) -> 7.60E-08 | L85: =IF(VLOOKUP(A85,'NDD.CADD.cluster'!A:E,5,FALSE)=0,"",VLOOKUP(A85,'NDD.CADD.cluster'!A:E,5,FALSE)) -> 3.56E-02 | M85: =VLOOKUP(A85,NDD.CADD!A:F,5,FALSE) -> 5.60E-08 | N85: =VLOOKUP(A85,NDD_Kaplanis!A:AI,25,FALSE) -> 1.01E-08 | O85: =AND(N85>0.0000025,OR(J85<0.0000025)) -> FALSE | P85: =VLOOKUP(A85,NDD_Kaplanis!A:AI,26,FALSE) -> 6.07E-10 | Q85: =AND(OR(J85<0.0000025),P85>0.0000025) -> FALSE | R85: =VLOOKUP(A85,NDD_Kaplanis!A:D,4,FALSE) -> consensus | S85: =AND(OR(R85="discordant", R85="none"),OR(J85<0.0000025)) -> FALSE | T85: =VLOOKUP(A85,DDG2P_3_5_2022!A:E,3,FALSE) -> PSEUDOHYPOPARATHYROIDISM TYPE 1B | U85: =VLOOKUP(A85,DDG2P_3_5_2022!A:E,5,FALSE) -> definitive | V85: =AND(ISNA(T85),OR(J85<0.0000025)) -> FALSE | W85: =N85/J85 -> 5.76E+05
A86: SPAST | B86: =VLOOKUP(A86,NDD_Kaplanis!A:AI,6,FALSE)+VLOOKUP(A86,NDD_Kaplanis!A:AI,13,FALSE)+VLOOKUP(A86,NDD_Kaplanis!A:AI,14,FALSE)+VLOOKUP(A86,NDD_Kaplanis!A:AI,15,FALSE) -> 0 | C86: =VLOOKUP(A86,NDD_Kaplanis!A:AI,10,FALSE) -> 9 | D86: =_xlfn.IFNA(VLOOKUP(A86,NDD_repeat_variants!A:F,6,FALSE),0) -> 0 | E86: =_xlfn.IFNA(VLOOKUP(A86,NDD_repeat_residues!A:F,5,FALSE),0) -> 0 | F86: =VLOOKUP(A86,NDD.gMVP!A:E,3,FALSE) -> 9 | G86: =IF(VLOOKUP(A86,NDD.CADD!A:F,3,FALSE)=0,"",VLOOKUP(A86,NDD.CADD!A:F,3,FALSE)) -> 8 | H86: =VLOOKUP(A86,'NDD.gMVP.pois'!A:E,5,FALSE) -> 2.10E-10 | I86: =IF(VLOOKUP(A86,'NDD.gMVP.cluster'!A:E,5,FALSE)=0,"",VLOOKUP(A86,'NDD.gMVP.cluster'!A:E,5,FALSE)) -> 3.60E-06 | J86: =VLOOKUP(A86,NDD.gMVP!A:E,5, FALSE) -> 2.71E-14 | K86: =VLOOKUP(A86,'NDD.CADD.pois'!A:E,5,FALSE) -> 1.85E-08 | L86: =IF(VLOOKUP(A86,'NDD.CADD.cluster'!A:E,5,FALSE)=0,"",VLOOKUP(A86,'NDD.CADD.cluster'!A:E,5,FALSE)) -> 6.49E-05 | M86: =VLOOKUP(A86,NDD.CADD!A:F,5,FALSE) -> 3.41E-11 | N86: =VLOOKUP(A86,NDD_Kaplanis!A:AI,25,FALSE) -> 6.67E-12 | O86: =AND(N86>0.0000025,OR(J86<0.0000025)) -> FALSE | P86: =VLOOKUP(A86,NDD_Kaplanis!A:AI,26,FALSE) -> 6.67E-12 | Q86: =AND(OR(J86<0.0000025),P86>0.0000025) -> FALSE | R86: =VLOOKUP(A86,NDD_Kaplanis!A:D,4,FALSE) -> discordant | S86: =AND(OR(R86="discordant", R86="none"),OR(J86<0.0000025)) -> TRUE | T86: =VLOOKUP(A86,DDG2P_3_5_2022!A:E,3,FALSE) -> SPAST-related developmental disorder (monoallelic) | U86: =VLOOKUP(A86,DDG2P_3_5_2022!A:E,5,FALSE) -> strong | V86: =AND(ISNA(T86),OR(J86<0.0000025)) -> FALSE | W86: =N86/J86 -> 2.46E+02
A87: RAB14 | B87: =VLOOKUP(A87,NDD_Kaplanis!A:AI,6,FALSE)+VLOOKUP(A87,NDD_Kaplanis!A:AI,13,FALSE)+VLOOKUP(A87,NDD_Kaplanis!A:AI,14,FALSE)+VLOOKUP(A87,NDD_Kaplanis!A:AI,15,FALSE) -> 0 | C87: =VLOOKUP(A87,NDD_Kaplanis!A:AI,10,FALSE) -> 7 | D87: =_xlfn.IFNA(VLOOKUP(A87,NDD_repeat_variants!A:F,6,FALSE),0) -> 2 | E87: =_xlfn.IFNA(VLOOKUP(A87,NDD_repeat_residues!A:F,5,FALSE),0) -> 0 | F87: =VLOOKUP(A87,NDD.gMVP!A:E,3,FALSE) -> 7 | G87: =IF(VLOOKUP(A87,NDD.CADD!A:F,3,FALSE)=0,"",VLOOKUP(A87,NDD.CADD!A:F,3,FALSE)) -> 7 | H87: =VLOOKUP(A87,'NDD.gMVP.pois'!A:E,5,FALSE) -> 5.18E-09 | I87: =IF(VLOOKUP(A87,'NDD.gMVP.cluster'!A:E,5,FALSE)=0,"",VLOOKUP(A87,'NDD.gMVP.cluster'!A:E,5,FALSE)) -> 2.00E-07 | J87: =VLOOKUP(A87,NDD.gMVP!A:E,5, FALSE) -> 3.68E-14 | K87: =VLOOKUP(A87,'NDD.CADD.pois'!A:E,5,FALSE) -> 2.13E-10 | L87: =IF(VLOOKUP(A87,'NDD.CADD.cluster'!A:E,5,FALSE)=0,"",VLOOKUP(A87,'NDD.CADD.cluster'!A:E,5,FALSE)) -> 3.00E-07 | M87: =VLOOKUP(A87,NDD.CADD!A:F,5,FALSE) -> 2.45E-15 | N87: =VLOOKUP(A87,NDD_Kaplanis!A:AI,25,FALSE) -> 1.30E-13 | O87: =AND(N87>0.0000025,OR(J87<0.0000025)) -> FALSE | P87: =VLOOKUP(A87,NDD_Kaplanis!A:AI,26,FALSE) -> 1.30E-13 | Q87: =AND(OR(J87<0.0000025),P87>0.0000025) -> FALSE | R87: =VLOOKUP(A87,NDD_Kaplanis!A:D,4,FALSE) -> novel | S87: =AND(OR(R87="discordant", R87="none"),OR(J87<0.0000025)) -> FALSE | T87: =VLOOKUP(A87,DDG2P_3_5_2022!A:E,3,FALSE) -> RAB14-related developmental disorder (monoallelic) | U87: =VLOOKUP(A87,DDG2P_3_5_2022!A:E,5,FALSE) -> definitive | V87: =AND(ISNA(T87),OR(J87<0.0000025)) -> FALSE | W87: =N87/J87 -> 3.54E+00
A88: KRAS | B88: =VLOOKUP(A88,NDD_Kaplanis!A:AI,6,FALSE)+VLOOKUP(A88,NDD_Kaplanis!A:AI,13,FALSE)+VLOOKUP(A88,NDD_Kaplanis!A:AI,14,FALSE)+VLOOKUP(A88,NDD_Kaplanis!A:AI,15,FALSE) -> 0 | C88: =VLOOKUP(A88,NDD_Kaplanis!A:AI,10,FALSE) -> 7 | D88: =_xlfn.IFNA(VLOOKUP(A88,NDD_repeat_variants!A:F,6,FALSE),0) -> 1 | E88: =_xlfn.IFNA(VLOOKUP(A88,NDD_repeat_residues!A:F,5,FALSE),0) -> 0 | F88: =VLOOKUP(A88,NDD.gMVP!A:E,3,FALSE) -> 7 | G88: =IF(VLOOKUP(A88,NDD.CADD!A:F,3,FALSE)=0,"",VLOOKUP(A88,NDD.CADD!A:F,3,FALSE)) -> 7 | H88: =VLOOKUP(A88,'NDD.gMVP.pois'!A:E,5,FALSE) -> 7.43E-10 | I88: =IF(VLOOKUP(A88,'NDD.gMVP.cluster'!A:E,5,FALSE)=0,"",VLOOKUP(A88,'NDD.gMVP.cluster'!A:E,5,FALSE)) -> 1.60E-06 | J88: =VLOOKUP(A88,NDD.gMVP!A:E,5, FALSE) -> 4.20E-14 | K88: =VLOOKUP(A88,'NDD.CADD.pois'!A:E,5,FALSE) -> 4.12E-11 | L88: =IF(VLOOKUP(A88,'NDD.CADD.cluster'!A:E,5,FALSE)=0,"",VLOOKUP(A88,'NDD.CADD.cluster'!A:E,5,FALSE)) -> 9.00E-07 | M88: =VLOOKUP(A88,NDD.CADD!A:F,5,FALSE) -> 1.44E-15 | N88: =VLOOKUP(A88,NDD_Kaplanis!A:AI,25,FALSE) -> 3.62E-16 | O88: =AND(N88>0.0000025,OR(J88<0.0000025)) -> FALSE | P88: =VLOOKUP(A88,NDD_Kaplanis!A:AI,26,FALSE) -> 3.62E-16 | Q88: =AND(OR(J88<0.0000025),P88>0.0000025) -> FALSE | R88: =VLOOKUP(A88,NDD_Kaplanis!A:D,4,FALSE) -> consensus | S88: =AND(OR(R88="discordant", R88="none"),OR(J88<0.0000025)) -> FALSE | T88: =VLOOKUP(A88,DDG2P_3_5_2022!A:E,3,FALSE) -> CARDIOFACIOCUTANEOUS SYNDROME | U88: =VLOOKUP(A88,DDG2P_3_5_2022!A:E,5,FALSE) -> definitive | V88: =AND(ISNA(T88),OR(J88<0.0000025)) -> FALSE | W88: =N88/J88 -> 8.61E-03
A89: ATP6V1A | B89: =VLOOKUP(A89,NDD_Kaplanis!A:AI,6,FALSE)+VLOOKUP(A89,NDD_Kaplanis!A:AI,13,FALSE)+VLOOKUP(A89,NDD_Kaplanis!A:AI,14,FALSE)+VLOOKUP(A89,NDD_Kaplanis!A:AI,15,FALSE) -> 0 | C89: =VLOOKUP(A89,NDD_Kaplanis!A:AI,10,FALSE) -> 13 | D89: =_xlfn.IFNA(VLOOKUP(A89,NDD_repeat_variants!A:F,6,FALSE),0) -> 0 | E89: =_xlfn.IFNA(VLOOKUP(A89,NDD_repeat_residues!A:F,5,FALSE),0) -> 2 | F89: =VLOOKUP(A89,NDD.gMVP!A:E,3,FALSE) -> 13 | G89: =IF(VLOOKUP(A89,NDD.CADD!A:F,3,FALSE)=0,"",VLOOKUP(A89,NDD.CADD!A:F,3,FALSE)) -> 12 | H89: =VLOOKUP(A89,'NDD.gMVP.pois'!A:E,5,FALSE) -> 1.21E-11 | I89: =IF(VLOOKUP(A89,'NDD.gMVP.cluster'!A:E,5,FALSE)=0,"",VLOOKUP(A89,'NDD.gMVP.cluster'!A:E,5,FALSE)) -> 1.05E-04 | J89: =VLOOKUP(A89,NDD.gMVP!A:E,5, FALSE) -> 4.50E-14 | K89: =VLOOKUP(A89,'NDD.CADD.pois'!A:E,5,FALSE) -> 1.06E-12 | L89: =IF(VLOOKUP(A89,'NDD.CADD.cluster'!A:E,5,FALSE)=0,"",VLOOKUP(A89,'NDD.CADD.cluster'!A:E,5,FALSE)) -> 4.17E-04 | M89: =VLOOKUP(A89,NDD.CADD!A:F,5,FALSE) -> 1.61E-14 | N89: =VLOOKUP(A89,NDD_Kaplanis!A:AI,25,FALSE) -> 6.07E-12 | O89: =AND(N89>0.0000025,OR(J89<0.0000025)) -> FALSE | P89: =VLOOKUP(A89,NDD_Kaplanis!A:AI,26,FALSE) -> 6.07E-12 | Q89: =AND(OR(J89<0.0000025),P89>0.0000025) -> FALSE | R89: =VLOOKUP(A89,NDD_Kaplanis!A:D,4,FALSE) -> discordant | S89: =AND(OR(R89="discordant", R89="none"),OR(J89<0.0000025)) -> TRUE | T89: =VLOOKUP(A89,DDG2P_3_5_2022!A:E,3,FALSE) -> Autosomal Recessive Cutis Laxa | U89: =VLOOKUP(A89,DDG2P_3_5_2022!A:E,5,FALSE) -> strong | V89: =AND(ISNA(T89),OR(J89<0.0000025)) -> FALSE | W89: =N89/J89 -> 1.35E+02
A90: COL4A1 | B90: =VLOOKUP(A90,NDD_Kaplanis!A:AI,6,FALSE)+VLOOKUP(A90,NDD_Kaplanis!A:AI,13,FALSE)+VLOOKUP(A90,NDD_Kaplanis!A:AI,14,FALSE)+VLOOKUP(A90,NDD_Kaplanis!A:AI,15,FALSE) -> 1 | C90: =VLOOKUP(A90,NDD_Kaplanis!A:AI,10,FALSE) -> 21 | D90: =_xlfn.IFNA(VLOOKUP(A90,NDD_repeat_variants!A:F,6,FALSE),0) -> 0 | E90: =_xlfn.IFNA(VLOOKUP(A90,NDD_repeat_residues!A:F,5,FALSE),0) -> 0 | F90: =VLOOKUP(A90,NDD.gMVP!A:E,3,FALSE) -> 18 | G90: =IF(VLOOKUP(A90,NDD.CADD!A:F,3,FALSE)=0,"",VLOOKUP(A90,NDD.CADD!A:F,3,FALSE)) -> 11 | H90: =VLOOKUP(A90,'NDD.gMVP.pois'!A:E,5,FALSE) -> 4.55E-14 | I90: =IF(VLOOKUP(A90,'NDD.gMVP.cluster'!A:E,5,FALSE)=0,"",VLOOKUP(A90,'NDD.gMVP.cluster'!A:E,5,FALSE)) -> 3.50E-02 | J90: =VLOOKUP(A90,NDD.gMVP!A:E,5, FALSE) -> 5.58E-14 | K90: =VLOOKUP(A90,'NDD.CADD.pois'!A:E,5,FALSE) -> 1.85E-08 | L90: =IF(VLOOKUP(A90,'NDD.CADD.cluster'!A:E,5,FALSE)=0,"",VLOOKUP(A90,'NDD.CADD.cluster'!A:E,5,FALSE)) -> 5.06E-01 | M90: =VLOOKUP(A90,NDD.CADD!A:F,5,FALSE) -> 1.83E-07 | N90: =VLOOKUP(A90,NDD_Kaplanis!A:AI,25,FALSE) -> 4.70E-14 | O90: =AND(N90>0.0000025,OR(J90<0.0000025)) -> FALSE | P90: =VLOOKUP(A90,NDD_Kaplanis!A:AI,26,FALSE) -> 4.70E-14 | Q90: =AND(OR(J90<0.0000025),P90>0.0000025) -> FALSE | R90: =VLOOKUP(A90,NDD_Kaplanis!A:D,4,FALSE) -> consensus | S90: =AND(OR(R90="discordant", R90="none"),OR(J90<0.0000025)) -> FALSE | T90: =VLOOKUP(A90,DDG2P_3_5_2022!A:E,3,FALSE) -> PORENCEPHALY 1 | U90: =VLOOKUP(A90,DDG2P_3_5_2022!A:E,5,FALSE) -> both RD and IF | V90: =AND(ISNA(T90),OR(J90<0.0000025)) -> FALSE | W90: =N90/J90 -> 8.41E-01
A91: CNOT3 | B91: =VLOOKUP(A91,NDD_Kaplanis!A:AI,6,FALSE)+VLOOKUP(A91,NDD_Kaplanis!A:AI,13,FALSE)+VLOOKUP(A91,NDD_Kaplanis!A:AI,14,FALSE)+VLOOKUP(A91,NDD_Kaplanis!A:AI,15,FALSE) -> 7 | C91: =VLOOKUP(A91,NDD_Kaplanis!A:AI,10,FALSE) -> 16 | D91: =_xlfn.IFNA(VLOOKUP(A91,NDD_repeat_variants!A:F,6,FALSE),0) -> 3 | E91: =_xlfn.IFNA(VLOOKUP(A91,NDD_repeat_residues!A:F,5,FALSE),0) -> 4 | F91: =VLOOKUP(A91,NDD.gMVP!A:E,3,FALSE) -> 8 | G91: =IF(VLOOKUP(A91,NDD.CADD!A:F,3,FALSE)=0,"",VLOOKUP(A91,NDD.CADD!A:F,3,FALSE)) -> 10 | H91: =VLOOKUP(A91,'NDD.gMVP.pois'!A:E,5,FALSE) -> 1.81E-08 | I91: =IF(VLOOKUP(A91,'NDD.gMVP.cluster'!A:E,5,FALSE)=0,"",VLOOKUP(A91,'NDD.gMVP.cluster'!A:E,5,FALSE)) -> 1.00E-07 | J91: =VLOOKUP(A91,NDD.gMVP!A:E,5, FALSE) -> 6.34E-14 | K91: =VLOOKUP(A91,'NDD.CADD.pois'!A:E,5,FALSE) -> 5.33E-09 | L91: =IF(VLOOKUP(A91,'NDD.CADD.cluster'!A:E,5,FALSE)=0,"",VLOOKUP(A91,'NDD.CADD.cluster'!A:E,5,FALSE)) -> 8.00E-07 | M91: =VLOOKUP(A91,NDD.CADD!A:F,5,FALSE) -> 1.45E-13 | N91: =VLOOKUP(A91,NDD_Kaplanis!A:AI,25,FALSE) -> 6.75E-14 | O91: =AND(N91>0.0000025,OR(J91<0.0000025)) -> FALSE | P91: =VLOOKUP(A91,NDD_Kaplanis!A:AI,26,FALSE) -> 3.21E-21 | Q91: =AND(OR(J91<0.0000025),P91>0.0000025) -> FALSE | R91: =VLOOKUP(A91,NDD_Kaplanis!A:D,4,FALSE) -> consensus | S91: =AND(OR(R91="discordant", R91="none"),OR(J91<0.0000025)) -> FALSE | T91: =VLOOKUP(A91,DDG2P_3_5_2022!A:E,3,FALSE) -> CNOT3 syndrome | U91: =VLOOKUP(A91,DDG2P_3_5_2022!A:E,5,FALSE) -> definitive | V91: =AND(ISNA(T91),OR(J91<0.0000025)) -> FALSE | W91: =N91/J91 -> 1.06E+00
A92: DPF2 | B92: =VLOOKUP(A92,NDD_Kaplanis!A:AI,6,FALSE)+VLOOKUP(A92,NDD_Kaplanis!A:AI,13,FALSE)+VLOOKUP(A92,NDD_Kaplanis!A:AI,14,FALSE)+VLOOKUP(A92,NDD_Kaplanis!A:AI,15,FALSE) -> 1 | C92: =VLOOKUP(A92,NDD_Kaplanis!A:AI,10,FALSE) -> 9 | D92: =_xlfn.IFNA(VLOOKUP(A92,NDD_repeat_variants!A:F,6,FALSE),0) -> 0 | E92: =_xlfn.IFNA(VLOOKUP(A92,NDD_repeat_residues!A:F,5,FALSE),0) -> 2 | F92: =VLOOKUP(A92,NDD.gMVP!A:E,3,FALSE) -> 8 | G92: =IF(VLOOKUP(A92,NDD.CADD!A:F,3,FALSE)=0,"",VLOOKUP(A92,NDD.CADD!A:F,3,FALSE)) -> 6 | H92: =VLOOKUP(A92,'NDD.gMVP.pois'!A:E,5,FALSE) -> 2.84E-09 | I92: =IF(VLOOKUP(A92,'NDD.gMVP.cluster'!A:E,5,FALSE)=0,"",VLOOKUP(A92,'NDD.gMVP.cluster'!A:E,5,FALSE)) -> 7.00E-07 | J92: =VLOOKUP(A92,NDD.gMVP!A:E,5, FALSE) -> 6.93E-14 | K92: =VLOOKUP(A92,'NDD.CADD.pois'!A:E,5,FALSE) -> 3.83E-06 | L92: =IF(VLOOKUP(A92,'NDD.CADD.cluster'!A:E,5,FALSE)=0,"",VLOOKUP(A92,'NDD.CADD.cluster'!A:E,5,FALSE)) -> 2.27E-05 | M92: =VLOOKUP(A92,NDD.CADD!A:F,5,FALSE) -> 2.10E-09 | N92: =VLOOKUP(A92,NDD_Kaplanis!A:AI,25,FALSE) -> 2.71E-10 | O92: =AND(N92>0.0000025,OR(J92<0.0000025)) -> FALSE | P92: =VLOOKUP(A92,NDD_Kaplanis!A:AI,26,FALSE) -> 1.49E-10 | Q92: =AND(OR(J92<0.0000025),P92>0.0000025) -> FALSE | R92: =VLOOKUP(A92,NDD_Kaplanis!A:D,4,FALSE) -> consensus | S92: =AND(OR(R92="discordant", R92="none"),OR(J92<0.0000025)) -> FALSE | T92: =VLOOKUP(A92,DDG2P_3_5_2022!A:E,3,FALSE) -> Coffin Siris like disorder | U92: =VLOOKUP(A92,DDG2P_3_5_2022!A:E,5,FALSE) -> strong | V92: =AND(ISNA(T92),OR(J92<0.0000025)) -> FALSE | W92: =N92/J92 -> 3.91E+03
A93: CDKL5 | B93: =VLOOKUP(A93,NDD_Kaplanis!A:AI,6,FALSE)+VLOOKUP(A93,NDD_Kaplanis!A:AI,13,FALSE)+VLOOKUP(A93,NDD_Kaplanis!A:AI,14,FALSE)+VLOOKUP(A93,NDD_Kaplanis!A:AI,15,FALSE) -> 4 | C93: =VLOOKUP(A93,NDD_Kaplanis!A:AI,10,FALSE) -> 8 | D93: =_xlfn.IFNA(VLOOKUP(A93,NDD_repeat_variants!A:F,6,FALSE),0) -> 1 | E93: =_xlfn.IFNA(VLOOKUP(A93,NDD_repeat_residues!A:F,5,FALSE),0) -> 1 | F93: =VLOOKUP(A93,NDD.gMVP!A:E,3,FALSE) -> 8 | G93: =IF(VLOOKUP(A93,NDD.CADD!A:F,3,FALSE)=0,"",VLOOKUP(A93,NDD.CADD!A:F,3,FALSE)) -> 7 | H93: =VLOOKUP(A93,'NDD.gMVP.pois'!A:E,5,FALSE) -> 5.15E-10 | I93: =IF(VLOOKUP(A93,'NDD.gMVP.cluster'!A:E,5,FALSE)=0,"",VLOOKUP(A93,'NDD.gMVP.cluster'!A:E,5,FALSE)) -> 4.90E-06 | J93: =VLOOKUP(A93,NDD.gMVP!A:E,5, FALSE) -> 8.74E-14 | K93: =VLOOKUP(A93,'NDD.CADD.pois'!A:E,5,FALSE) -> 2.35E-08 | L93: =IF(VLOOKUP(A93,'NDD.CADD.cluster'!A:E,5,FALSE)=0,"",VLOOKUP(A93,'NDD.CADD.cluster'!A:E,5,FALSE)) -> 5.50E-06 | M93: =VLOOKUP(A93,NDD.CADD!A:F,5,FALSE) -> 3.97E-12 | N93: =VLOOKUP(A93,NDD_Kaplanis!A:AI,25,FALSE) -> 1.18E-12 | O93: =AND(N93>0.0000025,OR(J93<0.0000025)) -> FALSE | P93: =VLOOKUP(A93,NDD_Kaplanis!A:AI,26,FALSE) -> 2.20E-18 | Q93: =AND(OR(J93<0.0000025),P93>0.0000025) -> FALSE | R93: =VLOOKUP(A93,NDD_Kaplanis!A:D,4,FALSE) -> consensus | S93: =AND(OR(R93="discordant", R93="none"),OR(J93<0.0000025)) -> FALSE | T93: =VLOOKUP(A93,DDG2P_3_5_2022!A:E,3,FALSE) -> EPILEPTIC ENCEPHALOPATHY EARLY INFANTILE TYPE 2 | U93: =VLOOKUP(A93,DDG2P_3_5_2022!A:E,5,FALSE) -> definitive | V93: =AND(ISNA(T93),OR(J93<0.0000025)) -> FALSE | W93: =N93/J93 -> 1.35E+01
A94: WDR45 | B94: =VLOOKUP(A94,NDD_Kaplanis!A:AI,6,FALSE)+VLOOKUP(A94,NDD_Kaplanis!A:AI,13,FALSE)+VLOOKUP(A94,NDD_Kaplanis!A:AI,14,FALSE)+VLOOKUP(A94,NDD_Kaplanis!A:AI,15,FALSE) -> 28 | C94: =VLOOKUP(A94,NDD_Kaplanis!A:AI,10,FALSE) -> 14 | D94: =_xlfn.IFNA(VLOOKUP(A94,NDD_repeat_variants!A:F,6,FALSE),0) -> 0 | E94: =_xlfn.IFNA(VLOOKUP(A94,NDD_repeat_residues!A:F,5,FALSE),0) -> 0 | F94: =VLOOKUP(A94,NDD.gMVP!A:E,3,FALSE) -> 9 | G94: =IF(VLOOKUP(A94,NDD.CADD!A:F,3,FALSE)=0,"",VLOOKUP(A94,NDD.CADD!A:F,3,FALSE)) -> 7 | H94: =VLOOKUP(A94,'NDD.gMVP.pois'!A:E,5,FALSE) -> 5.30E-12 | I94: =IF(VLOOKUP(A94,'NDD.gMVP.cluster'!A:E,5,FALSE)=0,"",VLOOKUP(A94,'NDD.gMVP.cluster'!A:E,5,FALSE)) -> 1.13E-03 | J94: =VLOOKUP(A94,NDD.gMVP!A:E,5, FALSE) -> 2.02E-13 | K94: =VLOOKUP(A94,'NDD.CADD.pois'!A:E,5,FALSE) -> 5.16E-11 | L94: =IF(VLOOKUP(A94,'NDD.CADD.cluster'!A:E,5,FALSE)=0,"",VLOOKUP(A94,'NDD.CADD.cluster'!A:E,5,FALSE)) -> 6.22E-02 | M94: =VLOOKUP(A94,NDD.CADD!A:F,5,FALSE) -> 8.83E-11 | N94: =VLOOKUP(A94,NDD_Kaplanis!A:AI,25,FALSE) -> 2.71E-14 | O94: =AND(N94>0.0000025,OR(J94<0.0000025)) -> FALSE | P94: =VLOOKUP(A94,NDD_Kaplanis!A:AI,26,FALSE) -> 1.00E-14 | Q94: =AND(OR(J94<0.0000025),P94>0.0000025) -> FALSE | R94: =VLOOKUP(A94,NDD_Kaplanis!A:D,4,FALSE) -> consensus | S94: =AND(OR(R94="discordant", R94="none"),OR(J94<0.0000025)) -> FALSE | T94: =VLOOKUP(A94,DDG2P_3_5_2022!A:E,3,FALSE) -> WDR45-RELATED NEURODEGENERATION WITH BRAIN IRON ACCUMULATION | U94: =VLOOKUP(A94,DDG2P_3_5_2022!A:E,5,FALSE) -> definitive | V94: =AND(ISNA(T94),OR(J94<0.0000025)) -> FALSE | W94: =N94/J94 -> 1.34E-01
A95: CTBP1 | B95: =VLOOKUP(A95,NDD_Kaplanis!A:AI,6,FALSE)+VLOOKUP(A95,NDD_Kaplanis!A:AI,13,FALSE)+VLOOKUP(A95,NDD_Kaplanis!A:AI,14,FALSE)+VLOOKUP(A95,NDD_Kaplanis!A:AI,15,FALSE) -> 1 | C95: =VLOOKUP(A95,NDD_Kaplanis!A:AI,10,FALSE) -> 9 | D95: =_xlfn.IFNA(VLOOKUP(A95,NDD_repeat_variants!A:F,6,FALSE),0) -> 0 | E95: =_xlfn.IFNA(VLOOKUP(A95,NDD_repeat_residues!A:F,5,FALSE),0) -> 8 | F95: =VLOOKUP(A95,NDD.gMVP!A:E,3,FALSE) -> 9 | G95: =IF(VLOOKUP(A95,NDD.CADD!A:F,3,FALSE)=0,"",VLOOKUP(A95,NDD.CADD!A:F,3,FALSE)) -> 9 | H95: =VLOOKUP(A95,'NDD.gMVP.pois'!A:E,5,FALSE) -> 5.39E-07 | I95: =IF(VLOOKUP(A95,'NDD.gMVP.cluster'!A:E,5,FALSE)=0,"",VLOOKUP(A95,'NDD.gMVP.cluster'!A:E,5,FALSE)) -> 1.25E-08 | J95: =VLOOKUP(A95,NDD.gMVP!A:E,5, FALSE) -> 2.27E-13 | K95: =VLOOKUP(A95,'NDD.CADD.pois'!A:E,5,FALSE) -> 3.58E-10 | L95: =IF(VLOOKUP(A95,'NDD.CADD.cluster'!A:E,5,FALSE)=0,"",VLOOKUP(A95,'NDD.CADD.cluster'!A:E,5,FALSE)) -> 1.25E-08 | M95: =VLOOKUP(A95,NDD.CADD!A:F,5,FALSE) -> 1.83E-16 | N95: =VLOOKUP(A95,NDD_Kaplanis!A:AI,25,FALSE) -> 8.46E-14 | O95: =AND(N95>0.0000025,OR(J95<0.0000025)) -> FALSE | P95: =VLOOKUP(A95,NDD_Kaplanis!A:AI,26,FALSE) -> 8.45E-14 | Q95: =AND(OR(J95<0.0000025),P95>0.0000025) -> FALSE | R95: =VLOOKUP(A95,NDD_Kaplanis!A:D,4,FALSE) -> discordant | S95: =AND(OR(R95="discordant", R95="none"),OR(J95<0.0000025)) -> TRUE | T95: =VLOOKUP(A95,DDG2P_3_5_2022!A:E,3,FALSE) -> CTBP1-related developmental disorder (monoallelic) | U95: =VLOOKUP(A95,DDG2P_3_5_2022!A:E,5,FALSE) -> strong | V95: =AND(ISNA(T95),OR(J95<0.0000025)) -> FALSE | W95: =N95/J95 -> 3.73E-01
A96: NFIX | B96: =VLOOKUP(A96,NDD_Kaplanis!A:AI,6,FALSE)+VLOOKUP(A96,NDD_Kaplanis!A:AI,13,FALSE)+VLOOKUP(A96,NDD_Kaplanis!A:AI,14,FALSE)+VLOOKUP(A96,NDD_Kaplanis!A:AI,15,FALSE) -> 9 | C96: =VLOOKUP(A96,NDD_Kaplanis!A:AI,10,FALSE) -> 10 | D96: =_xlfn.IFNA(VLOOKUP(A96,NDD_repeat_variants!A:F,6,FALSE),0) -> 2 | E96: =_xlfn.IFNA(VLOOKUP(A96,NDD_repeat_residues!A:F,5,FALSE),0) -> 0 | F96: =VLOOKUP(A96,NDD.gMVP!A:E,3,FALSE) -> 10 | G96: =IF(VLOOKUP(A96,NDD.CADD!A:F,3,FALSE)=0,"",VLOOKUP(A96,NDD.CADD!A:F,3,FALSE)) -> 9 | H96: =VLOOKUP(A96,'NDD.gMVP.pois'!A:E,5,FALSE) -> 2.79E-09 | I96: =IF(VLOOKUP(A96,'NDD.gMVP.cluster'!A:E,5,FALSE)=0,"",VLOOKUP(A96,'NDD.gMVP.cluster'!A:E,5,FALSE)) -> 6.40E-06 | J96: =VLOOKUP(A96,NDD.gMVP!A:E,5, FALSE) -> 5.83E-13 | K96: =VLOOKUP(A96,'NDD.CADD.pois'!A:E,5,FALSE) -> 1.96E-08 | L96: =IF(VLOOKUP(A96,'NDD.CADD.cluster'!A:E,5,FALSE)=0,"",VLOOKUP(A96,'NDD.CADD.cluster'!A:E,5,FALSE)) -> 1.90E-06 | M96: =VLOOKUP(A96,NDD.CADD!A:F,5,FALSE) -> 1.19E-12 | N96: =VLOOKUP(A96,NDD_Kaplanis!A:AI,25,FALSE) -> 2.29E-09 | O96: =AND(N96>0.0000025,OR(J96<0.0000025)) -> FALSE | P96: =VLOOKUP(A96,NDD_Kaplanis!A:AI,26,FALSE) -> 6.49E-20 | Q96: =AND(OR(J96<0.0000025),P96>0.0000025) -> FALSE | R96: =VLOOKUP(A96,NDD_Kaplanis!A:D,4,FALSE) -> consensus | S96: =AND(OR(R96="discordant", R96="none"),OR(J96<0.0000025)) -> FALSE | T96: =VLOOKUP(A96,DDG2P_3_5_2022!A:E,3,FALSE) -> MARSHALL-SMITH SYNDROME | U96: =VLOOKUP(A96,DDG2P_3_5_2022!A:E,5,FALSE) -> definitive | V96: =AND(ISNA(T96),OR(J96<0.0000025)) -> FALSE | W96: =N96/J96 -> 3.93E+03
A97: MORC2 | B97: =VLOOKUP(A97,NDD_Kaplanis!A:AI,6,FALSE)+VLOOKUP(A97,NDD_Kaplanis!A:AI,13,FALSE)+VLOOKUP(A97,NDD_Kaplanis!A:AI,14,FALSE)+VLOOKUP(A97,NDD_Kaplanis!A:AI,15,FALSE) -> 0 | C97: =VLOOKUP(A97,NDD_Kaplanis!A:AI,10,FALSE) -> 11 | D97: =_xlfn.IFNA(VLOOKUP(A97,NDD_repeat_variants!A:F,6,FALSE),0) -> 2 | E97: =_xlfn.IFNA(VLOOKUP(A97,NDD_repeat_residues!A:F,5,FALSE),0) -> 0 | F97: =VLOOKUP(A97,NDD.gMVP!A:E,3,FALSE) -> 9 | G97: =IF(VLOOKUP(A97,NDD.CADD!A:F,3,FALSE)=0,"",VLOOKUP(A97,NDD.CADD!A:F,3,FALSE)) -> 9 | H97: =VLOOKUP(A97,'NDD.gMVP.pois'!A:E,5,FALSE) -> 2.64E-07 | I97: =IF(VLOOKUP(A97,'NDD.gMVP.cluster'!A:E,5,FALSE)=0,"",VLOOKUP(A97,'NDD.gMVP.cluster'!A:E,5,FALSE)) -> 1.50E-07 | J97: =VLOOKUP(A97,NDD.gMVP!A:E,5, FALSE) -> 1.26E-12 | K97: =VLOOKUP(A97,'NDD.CADD.pois'!A:E,5,FALSE) -> 2.25E-07 | L97: =IF(VLOOKUP(A97,'NDD.CADD.cluster'!A:E,5,FALSE)=0,"",VLOOKUP(A97,'NDD.CADD.cluster'!A:E,5,FALSE)) -> 2.10E-06 | M97: =VLOOKUP(A97,NDD.CADD!A:F,5,FALSE) -> 1.39E-11 | N97: =VLOOKUP(A97,NDD_Kaplanis!A:AI,25,FALSE) -> 9.14E-07 | O97: =AND(N97>0.0000025,OR(J97<0.0000025)) -> FALSE | P97: =VLOOKUP(A97,NDD_Kaplanis!A:AI,26,FALSE) -> 9.14E-07 | Q97: =AND(OR(J97<0.0000025),P97>0.0000025) -> FALSE | R97: =VLOOKUP(A97,NDD_Kaplanis!A:D,4,FALSE) -> discordant | S97: =AND(OR(R97="discordant", R97="none"),OR(J97<0.0000025)) -> TRUE | T97: =VLOOKUP(A97,DDG2P_3_5_2022!A:E,3,FALSE) -> MORC2 - axonal neuropathy and neurodevelopmental disorder | U97: =VLOOKUP(A97,DDG2P_3_5_2022!A:E,5,FALSE) -> strong | V97: =AND(ISNA(T97),OR(J97<0.0000025)) -> FALSE | W97: =N97/J97 -> 7.24E+05
A98: SLC2A1 | B98: =VLOOKUP(A98,NDD_Kaplanis!A:AI,6,FALSE)+VLOOKUP(A98,NDD_Kaplanis!A:AI,13,FALSE)+VLOOKUP(A98,NDD_Kaplanis!A:AI,14,FALSE)+VLOOKUP(A98,NDD_Kaplanis!A:AI,15,FALSE) -> 8 | C98: =VLOOKUP(A98,NDD_Kaplanis!A:AI,10,FALSE) -> 13 | D98: =_xlfn.IFNA(VLOOKUP(A98,NDD_repeat_variants!A:F,6,FALSE),0) -> 0 | E98: =_xlfn.IFNA(VLOOKUP(A98,NDD_repeat_residues!A:F,5,FALSE),0) -> 0 | F98: =VLOOKUP(A98,NDD.gMVP!A:E,3,FALSE) -> 11 | G98: =IF(VLOOKUP(A98,NDD.CADD!A:F,3,FALSE)=0,"",VLOOKUP(A98,NDD.CADD!A:F,3,FALSE)) -> 10 | H98: =VLOOKUP(A98,'NDD.gMVP.pois'!A:E,5,FALSE) -> 5.87E-11 | I98: =IF(VLOOKUP(A98,'NDD.gMVP.cluster'!A:E,5,FALSE)=0,"",VLOOKUP(A98,'NDD.gMVP.cluster'!A:E,5,FALSE)) -> 7.79E-04 | J98: =VLOOKUP(A98,NDD.gMVP!A:E,5, FALSE) -> 1.45E-12 | K98: =VLOOKUP(A98,'NDD.CADD.pois'!A:E,5,FALSE) -> 1.35E-10 | L98: =IF(VLOOKUP(A98,'NDD.CADD.cluster'!A:E,5,FALSE)=0,"",VLOOKUP(A98,'NDD.CADD.cluster'!A:E,5,FALSE)) -> 6.21E-03 | M98: =VLOOKUP(A98,NDD.CADD!A:F,5,FALSE) -> 2.42E-11 | N98: =VLOOKUP(A98,NDD_Kaplanis!A:AI,25,FALSE) -> 8.84E-10 | O98: =AND(N98>0.0000025,OR(J98<0.0000025)) -> FALSE | P98: =VLOOKUP(A98,NDD_Kaplanis!A:AI,26,FALSE) -> 1.00E-14 | Q98: =AND(OR(J98<0.0000025),P98>0.0000025) -> FALSE | R98: =VLOOKUP(A98,NDD_Kaplanis!A:D,4,FALSE) -> consensus | S98: =AND(OR(R98="discordant", R98="none"),OR(J98<0.0000025)) -> FALSE | T98: =VLOOKUP(A98,DDG2P_3_5_2022!A:E,3,FALSE) -> Glucose Transporter Type 1 Deficiency Syndrome | U98: =VLOOKUP(A98,DDG2P_3_5_2022!A:E,5,FALSE) -> definitive | V98: =AND(ISNA(T98),OR(J98<0.0000025)) -> FALSE | W98: =N98/J98 -> 6.09E+02
A99: TFE3 | B99: =VLOOKUP(A99,NDD_Kaplanis!A:AI,6,FALSE)+VLOOKUP(A99,NDD_Kaplanis!A:AI,13,FALSE)+VLOOKUP(A99,NDD_Kaplanis!A:AI,14,FALSE)+VLOOKUP(A99,NDD_Kaplanis!A:AI,15,FALSE) -> 0 | C99: =VLOOKUP(A99,NDD_Kaplanis!A:AI,10,FALSE) -> 9 | D99: =_xlfn.IFNA(VLOOKUP(A99,NDD_repeat_variants!A:F,6,FALSE),0) -> 1 | E99: =_xlfn.IFNA(VLOOKUP(A99,NDD_repeat_residues!A:F,5,FALSE),0) -> 0 | F99: =VLOOKUP(A99,NDD.gMVP!A:E,3,FALSE) -> 7 | G99: =IF(VLOOKUP(A99,NDD.CADD!A:F,3,FALSE)=0,"",VLOOKUP(A99,NDD.CADD!A:F,3,FALSE)) -> 3 | H99: =VLOOKUP(A99,'NDD.gMVP.pois'!A:E,5,FALSE) -> 5.37E-08 | I99: =IF(VLOOKUP(A99,'NDD.gMVP.cluster'!A:E,5,FALSE)=0,"",VLOOKUP(A99,'NDD.gMVP.cluster'!A:E,5,FALSE)) -> 9.00E-07 | J99: =VLOOKUP(A99,NDD.gMVP!A:E,5, FALSE) -> 1.53E-12 | K99: =VLOOKUP(A99,'NDD.CADD.pois'!A:E,5,FALSE) -> 4.86E-04 | L99: =IF(VLOOKUP(A99,'NDD.CADD.cluster'!A:E,5,FALSE)=0,"",VLOOKUP(A99,'NDD.CADD.cluster'!A:E,5,FALSE)) -> 1.61E-03 | M99: =VLOOKUP(A99,NDD.CADD!A:F,5,FALSE) -> 1.18E-05 | N99: =VLOOKUP(A99,NDD_Kaplanis!A:AI,25,FALSE) -> 8.88E-15 | O99: =AND(N99>0.0000025,OR(J99<0.0000025)) -> FALSE | P99: =VLOOKUP(A99,NDD_Kaplanis!A:AI,26,FALSE) -> 8.80E-15 | Q99: =AND(OR(J99<0.0000025),P99>0.0000025) -> FALSE | R99: =VLOOKUP(A99,NDD_Kaplanis!A:D,4,FALSE) -> novel | S99: =AND(OR(R99="discordant", R99="none"),OR(J99<0.0000025)) -> FALSE | T99: =VLOOKUP(A99,DDG2P_3_5_2022!A:E,3,FALSE) -> Intellectual disability with pigmentary mosaicism and storage disorder | U99: =VLOOKUP(A99,DDG2P_3_5_2022!A:E,5,FALSE) -> definitive | V99: =AND(ISNA(T99),OR(J99<0.0000025)) -> FALSE | W99: =N99/J99 -> 5.81E-03
A100: CBL | B100: =VLOOKUP(A100,NDD_Kaplanis!A:AI,6,FALSE)+VLOOKUP(A100,NDD_Kaplanis!A:AI,13,FALSE)+VLOOKUP(A100,NDD_Kaplanis!A:AI,14,FALSE)+VLOOKUP(A100,NDD_Kaplanis!A:AI,15,FALSE) -> 0 | C100: =VLOOKUP(A100,NDD_Kaplanis!A:AI,10,FALSE) -> 9 | D100: =_xlfn.IFNA(VLOOKUP(A100,NDD_repeat_variants!A:F,6,FALSE),0) -> 0 | E100: =_xlfn.IFNA(VLOOKUP(A100,NDD_repeat_residues!A:F,5,FALSE),0) -> 2 | F100: =VLOOKUP(A100,NDD.gMVP!A:E,3,FALSE) -> 7 | G100: =IF(VLOOKUP(A100,NDD.CADD!A:F,3,FALSE)=0,"",VLOOKUP(A100,NDD.CADD!A:F,3,FALSE)) -> 7 | H100: =VLOOKUP(A100,'NDD.gMVP.pois'!A:E,5,FALSE) -> 8.43E-08 | I100: =IF(VLOOKUP(A100,'NDD.gMVP.cluster'!A:E,5,FALSE)=0,"",VLOOKUP(A100,'NDD.gMVP.cluster'!A:E,5,FALSE)) -> 7.00E-07 | J100: =VLOOKUP(A100,NDD.gMVP!A:E,5, FALSE) -> 1.86E-12 | K100: =VLOOKUP(A100,'NDD.CADD.pois'!A:E,5,FALSE) -> 3.29E-06 | L100: =IF(VLOOKUP(A100,'NDD.CADD.cluster'!A:E,5,FALSE)=0,"",VLOOKUP(A100,'NDD.CADD.cluster'!A:E,5,FALSE)) -> 6.00E-07 | M100: =VLOOKUP(A100,NDD.CADD!A:F,5,FALSE) -> 5.51E-11 | N100: =VLOOKUP(A100,NDD_Kaplanis!A:AI,25,FALSE) -> 3.79E-09 | O100: =AND(N100>0.0000025,OR(J100<0.0000025)) -> FALSE | P100: =VLOOKUP(A100,NDD_Kaplanis!A:AI,26,FALSE) -> 3.79E-09 | Q100: =AND(OR(J100<0.0000025),P100>0.0000025) -> FALSE | R100: =VLOOKUP(A100,NDD_Kaplanis!A:D,4,FALSE) -> consensus | S100: =AND(OR(R100="discordant", R100="none"),OR(J100<0.0000025)) -> FALSE | T100: =VLOOKUP(A100,DDG2P_3_5_2022!A:E,3,FALSE) -> NOONAN SYNDROME-LIKE DISORDER WITH OR WITHOUT JUVENILE MEYLOMONOCYTIC LEUKEMIA | U100: =VLOOKUP(A100,DDG2P_3_5_2022!A:E,5,FALSE) -> definitive | V100: =AND(ISNA(T100),OR(J100<0.0000025)) -> FALSE | W100: =N100/J100 -> 2.04E+03
A101: ABL1 | B101: =VLOOKUP(A101,NDD_Kaplanis!A:AI,6,FALSE)+VLOOKUP(A101,NDD_Kaplanis!A:AI,13,FALSE)+VLOOKUP(A101,NDD_Kaplanis!A:AI,14,FALSE)+VLOOKUP(A101,NDD_Kaplanis!A:AI,15,FALSE) -> 1 | C101: =VLOOKUP(A101,NDD_Kaplanis!A:AI,10,FALSE) -> 12 | D101: =_xlfn.IFNA(VLOOKUP(A101,NDD_repeat_variants!A:F,6,FALSE),0) -> 0 | E101: =_xlfn.IFNA(VLOOKUP(A101,NDD_repeat_residues!A:F,5,FALSE),0) -> 2 | F101: =VLOOKUP(A101,NDD.gMVP!A:E,3,FALSE) -> 8 | G101: =IF(VLOOKUP(A101,NDD.CADD!A:F,3,FALSE)=0,"",VLOOKUP(A101,NDD.CADD!A:F,3,FALSE)) -> 9 | H101: =VLOOKUP(A101,'NDD.gMVP.pois'!A:E,5,FALSE) -> 2.96E-07 | I101: =IF(VLOOKUP(A101,'NDD.gMVP.cluster'!A:E,5,FALSE)=0,"",VLOOKUP(A101,'NDD.gMVP.cluster'!A:E,5,FALSE)) -> 2.00E-07 | J101: =VLOOKUP(A101,NDD.gMVP!A:E,5, FALSE) -> 1.86E-12 | K101: =VLOOKUP(A101,'NDD.CADD.pois'!A:E,5,FALSE) -> 3.88E-07 | L101: =IF(VLOOKUP(A101,'NDD.CADD.cluster'!A:E,5,FALSE)=0,"",VLOOKUP(A101,'NDD.CADD.cluster'!A:E,5,FALSE)) -> 1.25E-08 | M101: =VLOOKUP(A101,NDD.CADD!A:F,5,FALSE) -> 1.65E-13 | N101: =VLOOKUP(A101,NDD_Kaplanis!A:AI,25,FALSE) -> 2.15E-09 | O101: =AND(N101>0.0000025,OR(J101<0.0000025)) -> FALSE | P101: =VLOOKUP(A101,NDD_Kaplanis!A:AI,26,FALSE) -> 2.15E-09 | Q101: =AND(OR(J101<0.0000025),P101>0.0000025) -> FALSE | R101: =VLOOKUP(A101,NDD_Kaplanis!A:D,4,FALSE) -> discordant | S101: =AND(OR(R101="discordant", R101="none"),OR(J101<0.0000025)) -> TRUE | T101: =VLOOKUP(A101,DDG2P_3_5_2022!A:E,3,FALSE) -> Congenital heart defects and skeletal malformations | U101: =VLOOKUP(A101,DDG2P_3_5_2022!A:E,5,FALSE) -> strong | V101: =AND(ISNA(T101),OR(J101<0.0000025)) -> FALSE | W101: =N101/J101 -> 1.16E+03
A102: KDM5B | B102: =VLOOKUP(A102,NDD_Kaplanis!A:AI,6,FALSE)+VLOOKUP(A102,NDD_Kaplanis!A:AI,13,FALSE)+VLOOKUP(A102,NDD_Kaplanis!A:AI,14,FALSE)+VLOOKUP(A102,NDD_Kaplanis!A:AI,15,FALSE) -> 16 | C102: =VLOOKUP(A102,NDD_Kaplanis!A:AI,10,FALSE) -> 13 | D102: =_xlfn.IFNA(VLOOKUP(A102,NDD_repeat_variants!A:F,6,FALSE),0) -> 0 | E102: =_xlfn.IFNA(VLOOKUP(A102,NDD_repeat_residues!A:F,5,FALSE),0) -> 0 | F102: =VLOOKUP(A102,NDD.gMVP!A:E,3,FALSE) -> 10 | G102: =IF(VLOOKUP(A102,NDD.CADD!A:F,3,FALSE)=0,"",VLOOKUP(A102,NDD.CADD!A:F,3,FALSE)) -> 10 | H102: =VLOOKUP(A102,'NDD.gMVP.pois'!A:E,5,FALSE) -> 3.08E-09 | I102: =IF(VLOOKUP(A102,'NDD.gMVP.cluster'!A:E,5,FALSE)=0,"",VLOOKUP(A102,'NDD.gMVP.cluster'!A:E,5,FALSE)) -> 1.95E-05 | J102: =VLOOKUP(A102,NDD.gMVP!A:E,5, FALSE) -> 1.89E-12 | K102: =VLOOKUP(A102,'NDD.CADD.pois'!A:E,5,FALSE) -> 3.03E-07 | L102: =IF(VLOOKUP(A102,'NDD.CADD.cluster'!A:E,5,FALSE)=0,"",VLOOKUP(A102,'NDD.CADD.cluster'!A:E,5,FALSE)) -> 2.03E-04 | M102: =VLOOKUP(A102,NDD.CADD!A:F,5,FALSE) -> 1.51E-09 | N102: =VLOOKUP(A102,NDD_Kaplanis!A:AI,25,FALSE) -> 3.63E-07 | O102: =AND(N102>0.0000025,OR(J102<0.0000025)) -> FALSE | P102: =VLOOKUP(A102,NDD_Kaplanis!A:AI,26,FALSE) -> 1.00E-14 | Q102: =AND(OR(J102<0.0000025),P102>0.0000025) -> FALSE | R102: =VLOOKUP(A102,NDD_Kaplanis!A:D,4,FALSE) -> discordant | S102: =AND(OR(R102="discordant", R102="none"),OR(J102<0.0000025)) -> TRUE | T102: =VLOOKUP(A102,DDG2P_3_5_2022!A:E,3,FALSE) -> Autism | U102: =VLOOKUP(A102,DDG2P_3_5_2022!A:E,5,FALSE) -> strong | V102: =AND(ISNA(T102),OR(J102<0.0000025)) -> FALSE | W102: =N102/J102 -> 1.93E+05
A103: FBXO11 | B103: =VLOOKUP(A103,NDD_Kaplanis!A:AI,6,FALSE)+VLOOKUP(A103,NDD_Kaplanis!A:AI,13,FALSE)+VLOOKUP(A103,NDD_Kaplanis!A:AI,14,FALSE)+VLOOKUP(A103,NDD_Kaplanis!A:AI,15,FALSE) -> 4 | C103: =VLOOKUP(A103,NDD_Kaplanis!A:AI,10,FALSE) -> 15 | D103: =_xlfn.IFNA(VLOOKUP(A103,NDD_repeat_variants!A:F,6,FALSE),0) -> 0 | E103: =_xlfn.IFNA(VLOOKUP(A103,NDD_repeat_residues!A:F,5,FALSE),0) -> 2 | F103: =VLOOKUP(A103,NDD.gMVP!A:E,3,FALSE) -> 11 | G103: =IF(VLOOKUP(A103,NDD.CADD!A:F,3,FALSE)=0,"",VLOOKUP(A103,NDD.CADD!A:F,3,FALSE)) -> 8 | H103: =VLOOKUP(A103,'NDD.gMVP.pois'!A:E,5,FALSE) -> 9.83E-10 | I103: =IF(VLOOKUP(A103,'NDD.gMVP.cluster'!A:E,5,FALSE)=0,"",VLOOKUP(A103,'NDD.gMVP.cluster'!A:E,5,FALSE)) -> 7.14E-05 | J103: =VLOOKUP(A103,NDD.gMVP!A:E,5, FALSE) -> 2.20E-12 | K103: =VLOOKUP(A103,'NDD.CADD.pois'!A:E,5,FALSE) -> 8.11E-08 | L103: =IF(VLOOKUP(A103,'NDD.CADD.cluster'!A:E,5,FALSE)=0,"",VLOOKUP(A103,'NDD.CADD.cluster'!A:E,5,FALSE)) -> 4.59E-03 | M103: =VLOOKUP(A103,NDD.CADD!A:F,5,FALSE) -> 8.45E-09 | N103: =VLOOKUP(A103,NDD_Kaplanis!A:AI,25,FALSE) -> 6.84E-12 | O103: =AND(N103>0.0000025,OR(J103<0.0000025)) -> FALSE | P103: =VLOOKUP(A103,NDD_Kaplanis!A:AI,26,FALSE) -> 4.24E-16 | Q103: =AND(OR(J103<0.0000025),P103>0.0000025) -> FALSE | R103: =VLOOKUP(A103,NDD_Kaplanis!A:D,4,FALSE) -> consensus | S103: =AND(OR(R103="discordant", R103="none"),OR(J103<0.0000025)) -> FALSE | T103: =VLOOKUP(A103,DDG2P_3_5_2022!A:E,3,FALSE) -> Variable Neurodevelopmental Disorder | U103: =VLOOKUP(A103,DDG2P_3_5_2022!A:E,5,FALSE) -> definitive | V103: =AND(ISNA(T103),OR(J103<0.0000025)) -> FALSE | W103: =N103/J103 -> 3.11E+00
A104: TAF1 | B104: =VLOOKUP(A104,NDD_Kaplanis!A:AI,6,FALSE)+VLOOKUP(A104,NDD_Kaplanis!A:AI,13,FALSE)+VLOOKUP(A104,NDD_Kaplanis!A:AI,14,FALSE)+VLOOKUP(A104,NDD_Kaplanis!A:AI,15,FALSE) -> 0 | C104: =VLOOKUP(A104,NDD_Kaplanis!A:AI,10,FALSE) -> 14 | D104: =_xlfn.IFNA(VLOOKUP(A104,NDD_repeat_variants!A:F,6,FALSE),0) -> 0 | E104: =_xlfn.IFNA(VLOOKUP(A104,NDD_repeat_residues!A:F,5,FALSE),0) -> 0 | F104: =VLOOKUP(A104,NDD.gMVP!A:E,3,FALSE) -> 14 | G104: =IF(VLOOKUP(A104,NDD.CADD!A:F,3,FALSE)=0,"",VLOOKUP(A104,NDD.CADD!A:F,3,FALSE)) -> 12 | H104: =VLOOKUP(A104,'NDD.gMVP.pois'!A:E,5,FALSE) -> 1.83E-10 | I104: =IF(VLOOKUP(A104,'NDD.gMVP.cluster'!A:E,5,FALSE)=0,"",VLOOKUP(A104,'NDD.gMVP.cluster'!A:E,5,FALSE)) -> 3.88E-04 | J104: =VLOOKUP(A104,NDD.gMVP!A:E,5, FALSE) -> 2.23E-12 | K104: =VLOOKUP(A104,'NDD.CADD.pois'!A:E,5,FALSE) -> 2.03E-11 | L104: =IF(VLOOKUP(A104,'NDD.CADD.cluster'!A:E,5,FALSE)=0,"",VLOOKUP(A104,'NDD.CADD.cluster'!A:E,5,FALSE)) -> 2.23E-03 | M104: =VLOOKUP(A104,NDD.CADD!A:F,5,FALSE) -> 1.44E-12 | N104: =VLOOKUP(A104,NDD_Kaplanis!A:AI,25,FALSE) -> 3.87E-11 | O104: =AND(N104>0.0000025,OR(J104<0.0000025)) -> FALSE | P104: =VLOOKUP(A104,NDD_Kaplanis!A:AI,26,FALSE) -> 3.87E-11 | Q104: =AND(OR(J104<0.0000025),P104>0.0000025) -> FALSE | R104: =VLOOKUP(A104,NDD_Kaplanis!A:D,4,FALSE) -> discordant | S104: =AND(OR(R104="discordant", R104="none"),OR(J104<0.0000025)) -> TRUE | T104: =VLOOKUP(A104,DDG2P_3_5_2022!A:E,3,FALSE) -> Dysmorphic Features, Intellectual Disability, and Neurological Manifestations | U104: =VLOOKUP(A104,DDG2P_3_5_2022!A:E,5,FALSE) -> definitive | V104: =AND(ISNA(T104),OR(J104<0.0000025)) -> FALSE | W104: =N104/J104 -> 1.74E+01
A105: CACNA1G | B105: =VLOOKUP(A105,NDD_Kaplanis!A:AI,6,FALSE)+VLOOKUP(A105,NDD_Kaplanis!A:AI,13,FALSE)+VLOOKUP(A105,NDD_Kaplanis!A:AI,14,FALSE)+VLOOKUP(A105,NDD_Kaplanis!A:AI,15,FALSE) -> 2 | C105: =VLOOKUP(A105,NDD_Kaplanis!A:AI,10,FALSE) -> 15 | D105: =_xlfn.IFNA(VLOOKUP(A105,NDD_repeat_variants!A:F,6,FALSE),0) -> 0 | E105: =_xlfn.IFNA(VLOOKUP(A105,NDD_repeat_residues!A:F,5,FALSE),0) -> 4 | F105: =VLOOKUP(A105,NDD.gMVP!A:E,3,FALSE) -> 12 | G105: =IF(VLOOKUP(A105,NDD.CADD!A:F,3,FALSE)=0,"",VLOOKUP(A105,NDD.CADD!A:F,3,FALSE)) -> 12 | H105: =VLOOKUP(A105,'NDD.gMVP.pois'!A:E,5,FALSE) -> 8.18E-06 | I105: =IF(VLOOKUP(A105,'NDD.gMVP.cluster'!A:E,5,FALSE)=0,"",VLOOKUP(A105,'NDD.gMVP.cluster'!A:E,5,FALSE)) -> 1.25E-08 | J105: =VLOOKUP(A105,NDD.gMVP!A:E,5, FALSE) -> 3.16E-12 | K105: =VLOOKUP(A105,'NDD.CADD.pois'!A:E,5,FALSE) -> 1.49E-06 | L105: =IF(VLOOKUP(A105,'NDD.CADD.cluster'!A:E,5,FALSE)=0,"",VLOOKUP(A105,'NDD.CADD.cluster'!A:E,5,FALSE)) -> 1.25E-08 | M105: =VLOOKUP(A105,NDD.CADD!A:F,5,FALSE) -> 6.09E-13 | N105: =VLOOKUP(A105,NDD_Kaplanis!A:AI,25,FALSE) -> 3.70E-09 | O105: =AND(N105>0.0000025,OR(J105<0.0000025)) -> FALSE | P105: =VLOOKUP(A105,NDD_Kaplanis!A:AI,26,FALSE) -> 3.70E-09 | Q105: =AND(OR(J105<0.0000025),P105>0.0000025) -> FALSE | R105: =VLOOKUP(A105,NDD_Kaplanis!A:D,4,FALSE) -> discordant | S105: =AND(OR(R105="discordant", R105="none"),OR(J105<0.0000025)) -> TRUE | T105: =VLOOKUP(A105,DDG2P_3_5_2022!A:E,3,FALSE) -> AUTOSOMAL RECESSIVE INTELLECTUAL DEVELOPMENTAL DISORDER | U105: =VLOOKUP(A105,DDG2P_3_5_2022!A:E,5,FALSE) -> limited | V105: =AND(ISNA(T105),OR(J105<0.0000025)) -> FALSE | W105: =N105/J105 -> 1.17E+03
A106: UBTF | B106: =VLOOKUP(A106,NDD_Kaplanis!A:AI,6,FALSE)+VLOOKUP(A106,NDD_Kaplanis!A:AI,13,FALSE)+VLOOKUP(A106,NDD_Kaplanis!A:AI,14,FALSE)+VLOOKUP(A106,NDD_Kaplanis!A:AI,15,FALSE) -> 1 | C106: =VLOOKUP(A106,NDD_Kaplanis!A:AI,10,FALSE) -> 8 | D106: =_xlfn.IFNA(VLOOKUP(A106,NDD_repeat_variants!A:F,6,FALSE),0) -> 1 | E106: =_xlfn.IFNA(VLOOKUP(A106,NDD_repeat_residues!A:F,5,FALSE),0) -> 0 | F106: =VLOOKUP(A106,NDD.gMVP!A:E,3,FALSE) -> 7 | G106: =IF(VLOOKUP(A106,NDD.CADD!A:F,3,FALSE)=0,"",VLOOKUP(A106,NDD.CADD!A:F,3,FALSE)) -> 6 | H106: =VLOOKUP(A106,'NDD.gMVP.pois'!A:E,5,FALSE) -> 8.58E-06 | I106: =IF(VLOOKUP(A106,'NDD.gMVP.cluster'!A:E,5,FALSE)=0,"",VLOOKUP(A106,'NDD.gMVP.cluster'!A:E,5,FALSE)) -> 1.25E-08 | J106: =VLOOKUP(A106,NDD.gMVP!A:E,5, FALSE) -> 3.31E-12 | K106: =VLOOKUP(A106,'NDD.CADD.pois'!A:E,5,FALSE) -> 5.87E-05 | L106: =IF(VLOOKUP(A106,'NDD.CADD.cluster'!A:E,5,FALSE)=0,"",VLOOKUP(A106,'NDD.CADD.cluster'!A:E,5,FALSE)) -> 7.50E-08 | M106: =VLOOKUP(A106,NDD.CADD!A:F,5,FALSE) -> 1.20E-10 | N106: =VLOOKUP(A106,NDD_Kaplanis!A:AI,25,FALSE) -> 2.46E-10 | O106: =AND(N106>0.0000025,OR(J106<0.0000025)) -> FALSE | P106: =VLOOKUP(A106,NDD_Kaplanis!A:AI,26,FALSE) -> 2.46E-10 | Q106: =AND(OR(J106<0.0000025),P106>0.0000025) -> FALSE | R106: =VLOOKUP(A106,NDD_Kaplanis!A:D,4,FALSE) -> consensus | S106: =AND(OR(R106="discordant", R106="none"),OR(J106<0.0000025)) -> FALSE | T106: =VLOOKUP(A106,DDG2P_3_5_2022!A:E,3,FALSE) -> Childhood-Onset Neurodegeneration | U106: =VLOOKUP(A106,DDG2P_3_5_2022!A:E,5,FALSE) -> strong | V106: =AND(ISNA(T106),OR(J106<0.0000025)) -> FALSE | W106: =N106/J106 -> 7.44E+01
A107: PCGF2 | B107: =VLOOKUP(A107,NDD_Kaplanis!A:AI,6,FALSE)+VLOOKUP(A107,NDD_Kaplanis!A:AI,13,FALSE)+VLOOKUP(A107,NDD_Kaplanis!A:AI,14,FALSE)+VLOOKUP(A107,NDD_Kaplanis!A:AI,15,FALSE) -> 0 | C107: =VLOOKUP(A107,NDD_Kaplanis!A:AI,10,FALSE) -> 7 | D107: =_xlfn.IFNA(VLOOKUP(A107,NDD_repeat_variants!A:F,6,FALSE),0) -> 1 | E107: =_xlfn.IFNA(VLOOKUP(A107,NDD_repeat_residues!A:F,5,FALSE),0) -> 0 | F107: =VLOOKUP(A107,NDD.gMVP!A:E,3,FALSE) -> 5 | G107: =IF(VLOOKUP(A107,NDD.CADD!A:F,3,FALSE)=0,"",VLOOKUP(A107,NDD.CADD!A:F,3,FALSE)) ->  | H107: =VLOOKUP(A107,'NDD.gMVP.pois'!A:E,5,FALSE) -> 9.10E-06 | I107: =IF(VLOOKUP(A107,'NDD.gMVP.cluster'!A:E,5,FALSE)=0,"",VLOOKUP(A107,'NDD.gMVP.cluster'!A:E,5,FALSE)) -> 1.25E-08 | J107: =VLOOKUP(A107,NDD.gMVP!A:E,5, FALSE) -> 3.50E-12 | K107: =VLOOKUP(A107,'NDD.CADD.pois'!A:E,5,FALSE) -> 8.27E-01 | L107: =IF(VLOOKUP(A107,'NDD.CADD.cluster'!A:E,5,FALSE)=0,"",VLOOKUP(A107,'NDD.CADD.cluster'!A:E,5,FALSE)) ->  | M107: =VLOOKUP(A107,NDD.CADD!A:F,5,FALSE) -> 8.27E-01 | N107: =VLOOKUP(A107,NDD_Kaplanis!A:AI,25,FALSE) -> 1.53E-06 | O107: =AND(N107>0.0000025,OR(J107<0.0000025)) -> FALSE | P107: =VLOOKUP(A107,NDD_Kaplanis!A:AI,26,FALSE) -> 1.53E-06 | Q107: =AND(OR(J107<0.0000025),P107>0.0000025) -> FALSE | R107: =VLOOKUP(A107,NDD_Kaplanis!A:D,4,FALSE) -> consensus | S107: =AND(OR(R107="discordant", R107="none"),OR(J107<0.0000025)) -> FALSE | T107: =VLOOKUP(A107,DDG2P_3_5_2022!A:E,3,FALSE) -> INTELLECTUAL DISABILITY | U107: =VLOOKUP(A107,DDG2P_3_5_2022!A:E,5,FALSE) -> strong | V107: =AND(ISNA(T107),OR(J107<0.0000025)) -> FALSE | W107: =N107/J107 -> 4.36E+05
A108: KIF5C | B108: =VLOOKUP(A108,NDD_Kaplanis!A:AI,6,FALSE)+VLOOKUP(A108,NDD_Kaplanis!A:AI,13,FALSE)+VLOOKUP(A108,NDD_Kaplanis!A:AI,14,FALSE)+VLOOKUP(A108,NDD_Kaplanis!A:AI,15,FALSE) -> 0 | C108: =VLOOKUP(A108,NDD_Kaplanis!A:AI,10,FALSE) -> 7 | D108: =_xlfn.IFNA(VLOOKUP(A108,NDD_repeat_variants!A:F,6,FALSE),0) -> 2 | E108: =_xlfn.IFNA(VLOOKUP(A108,NDD_repeat_residues!A:F,5,FALSE),0) -> 0 | F108: =VLOOKUP(A108,NDD.gMVP!A:E,3,FALSE) -> 7 | G108: =IF(VLOOKUP(A108,NDD.CADD!A:F,3,FALSE)=0,"",VLOOKUP(A108,NDD.CADD!A:F,3,FALSE)) -> 7 | H108: =VLOOKUP(A108,'NDD.gMVP.pois'!A:E,5,FALSE) -> 2.95E-06 | I108: =IF(VLOOKUP(A108,'NDD.gMVP.cluster'!A:E,5,FALSE)=0,"",VLOOKUP(A108,'NDD.gMVP.cluster'!A:E,5,FALSE)) -> 5.00E-08 | J108: =VLOOKUP(A108,NDD.gMVP!A:E,5, FALSE) -> 4.51E-12 | K108: =VLOOKUP(A108,'NDD.CADD.pois'!A:E,5,FALSE) -> 2.00E-05 | L108: =IF(VLOOKUP(A108,'NDD.CADD.cluster'!A:E,5,FALSE)=0,"",VLOOKUP(A108,'NDD.CADD.cluster'!A:E,5,FALSE)) -> 5.00E-08 | M108: =VLOOKUP(A108,NDD.CADD!A:F,5,FALSE) -> 2.86E-11 | N108: =VLOOKUP(A108,NDD_Kaplanis!A:AI,25,FALSE) -> 1.34E-10 | O108: =AND(N108>0.0000025,OR(J108<0.0000025)) -> FALSE | P108: =VLOOKUP(A108,NDD_Kaplanis!A:AI,26,FALSE) -> 1.34E-10 | Q108: =AND(OR(J108<0.0000025),P108>0.0000025) -> FALSE | R108: =VLOOKUP(A108,NDD_Kaplanis!A:D,4,FALSE) -> consensus | S108: =AND(OR(R108="discordant", R108="none"),OR(J108<0.0000025)) -> FALSE | T108: =VLOOKUP(A108,DDG2P_3_5_2022!A:E,3,FALSE) -> CORTICAL DYSPLASIA, COMPLEX, WITH OTHER BRAIN MALFORMATIONS 2 | U108: =VLOOKUP(A108,DDG2P_3_5_2022!A:E,5,FALSE) -> strong | V108: =AND(ISNA(T108),OR(J108<0.0000025)) -> FALSE | W108: =N108/J108 -> 2.97E+01
A109: ZBTB20 | B109: =VLOOKUP(A109,NDD_Kaplanis!A:AI,6,FALSE)+VLOOKUP(A109,NDD_Kaplanis!A:AI,13,FALSE)+VLOOKUP(A109,NDD_Kaplanis!A:AI,14,FALSE)+VLOOKUP(A109,NDD_Kaplanis!A:AI,15,FALSE) -> 2 | C109: =VLOOKUP(A109,NDD_Kaplanis!A:AI,10,FALSE) -> 11 | D109: =_xlfn.IFNA(VLOOKUP(A109,NDD_repeat_variants!A:F,6,FALSE),0) -> 0 | E109: =_xlfn.IFNA(VLOOKUP(A109,NDD_repeat_residues!A:F,5,FALSE),0) -> 0 | F109: =VLOOKUP(A109,NDD.gMVP!A:E,3,FALSE) -> 10 | G109: =IF(VLOOKUP(A109,NDD.CADD!A:F,3,FALSE)=0,"",VLOOKUP(A109,NDD.CADD!A:F,3,FALSE)) -> 9 | H109: =VLOOKUP(A109,'NDD.gMVP.pois'!A:E,5,FALSE) -> 5.76E-09 | I109: =IF(VLOOKUP(A109,'NDD.gMVP.cluster'!A:E,5,FALSE)=0,"",VLOOKUP(A109,'NDD.gMVP.cluster'!A:E,5,FALSE)) -> 3.42E-05 | J109: =VLOOKUP(A109,NDD.gMVP!A:E,5, FALSE) -> 5.96E-12 | K109: =VLOOKUP(A109,'NDD.CADD.pois'!A:E,5,FALSE) -> 1.09E-07 | L109: =IF(VLOOKUP(A109,'NDD.CADD.cluster'!A:E,5,FALSE)=0,"",VLOOKUP(A109,'NDD.CADD.cluster'!A:E,5,FALSE)) -> 7.40E-05 | M109: =VLOOKUP(A109,NDD.CADD!A:F,5,FALSE) -> 2.13E-10 | N109: =VLOOKUP(A109,NDD_Kaplanis!A:AI,25,FALSE) -> 8.65E-08 | O109: =AND(N109>0.0000025,OR(J109<0.0000025)) -> FALSE | P109: =VLOOKUP(A109,NDD_Kaplanis!A:AI,26,FALSE) -> 8.65E-08 | Q109: =AND(OR(J109<0.0000025),P109>0.0000025) -> FALSE | R109: =VLOOKUP(A109,NDD_Kaplanis!A:D,4,FALSE) -> consensus | S109: =AND(OR(R109="discordant", R109="none"),OR(J109<0.0000025)) -> FALSE | T109: =VLOOKUP(A109,DDG2P_3_5_2022!A:E,3,FALSE) -> PRIMROSE SYNDROME | U109: =VLOOKUP(A109,DDG2P_3_5_2022!A:E,5,FALSE) -> definitive | V109: =AND(ISNA(T109),OR(J109<0.0000025)) -> FALSE | W109: =N109/J109 -> 1.45E+04
A110: RERE | B110: =VLOOKUP(A110,NDD_Kaplanis!A:AI,6,FALSE)+VLOOKUP(A110,NDD_Kaplanis!A:AI,13,FALSE)+VLOOKUP(A110,NDD_Kaplanis!A:AI,14,FALSE)+VLOOKUP(A110,NDD_Kaplanis!A:AI,15,FALSE) -> 1 | C110: =VLOOKUP(A110,NDD_Kaplanis!A:AI,10,FALSE) -> 12 | D110: =_xlfn.IFNA(VLOOKUP(A110,NDD_repeat_variants!A:F,6,FALSE),0) -> 0 | E110: =_xlfn.IFNA(VLOOKUP(A110,NDD_repeat_residues!A:F,5,FALSE),0) -> 0 | F110: =VLOOKUP(A110,NDD.gMVP!A:E,3,FALSE) -> 8 | G110: =IF(VLOOKUP(A110,NDD.CADD!A:F,3,FALSE)=0,"",VLOOKUP(A110,NDD.CADD!A:F,3,FALSE)) -> 9 | H110: =VLOOKUP(A110,'NDD.gMVP.pois'!A:E,5,FALSE) -> 1.01E-06 | I110: =IF(VLOOKUP(A110,'NDD.gMVP.cluster'!A:E,5,FALSE)=0,"",VLOOKUP(A110,'NDD.gMVP.cluster'!A:E,5,FALSE)) -> 2.00E-07 | J110: =VLOOKUP(A110,NDD.gMVP!A:E,5, FALSE) -> 6.12E-12 | K110: =VLOOKUP(A110,'NDD.CADD.pois'!A:E,5,FALSE) -> 4.10E-05 | L110: =IF(VLOOKUP(A110,'NDD.CADD.cluster'!A:E,5,FALSE)=0,"",VLOOKUP(A110,'NDD.CADD.cluster'!A:E,5,FALSE)) -> 1.95E-03 | M110: =VLOOKUP(A110,NDD.CADD!A:F,5,FALSE) -> 1.39E-06 | N110: =VLOOKUP(A110,NDD_Kaplanis!A:AI,25,FALSE) -> 1.42E-07 | O110: =AND(N110>0.0000025,OR(J110<0.0000025)) -> FALSE | P110: =VLOOKUP(A110,NDD_Kaplanis!A:AI,26,FALSE) -> 1.42E-07 | Q110: =AND(OR(J110<0.0000025),P110>0.0000025) -> FALSE | R110: =VLOOKUP(A110,NDD_Kaplanis!A:D,4,FALSE) -> consensus | S110: =AND(OR(R110="discordant", R110="none"),OR(J110<0.0000025)) -> FALSE | T110: =VLOOKUP(A110,DDG2P_3_5_2022!A:E,3,FALSE) -> Phenocopy of Proximal 1p36 Deletions | U110: =VLOOKUP(A110,DDG2P_3_5_2022!A:E,5,FALSE) -> definitive | V110: =AND(ISNA(T110),OR(J110<0.0000025)) -> FALSE | W110: =N110/J110 -> 2.31E+04
A111: CHD4 | B111: =VLOOKUP(A111,NDD_Kaplanis!A:AI,6,FALSE)+VLOOKUP(A111,NDD_Kaplanis!A:AI,13,FALSE)+VLOOKUP(A111,NDD_Kaplanis!A:AI,14,FALSE)+VLOOKUP(A111,NDD_Kaplanis!A:AI,15,FALSE) -> 4 | C111: =VLOOKUP(A111,NDD_Kaplanis!A:AI,10,FALSE) -> 18 | D111: =_xlfn.IFNA(VLOOKUP(A111,NDD_repeat_variants!A:F,6,FALSE),0) -> 0 | E111: =_xlfn.IFNA(VLOOKUP(A111,NDD_repeat_residues!A:F,5,FALSE),0) -> 0 | F111: =VLOOKUP(A111,NDD.gMVP!A:E,3,FALSE) -> 16 | G111: =IF(VLOOKUP(A111,NDD.CADD!A:F,3,FALSE)=0,"",VLOOKUP(A111,NDD.CADD!A:F,3,FALSE)) -> 14 | H111: =VLOOKUP(A111,'NDD.gMVP.pois'!A:E,5,FALSE) -> 1.10E-08 | I111: =IF(VLOOKUP(A111,'NDD.gMVP.cluster'!A:E,5,FALSE)=0,"",VLOOKUP(A111,'NDD.gMVP.cluster'!A:E,5,FALSE)) -> 1.93E-05 | J111: =VLOOKUP(A111,NDD.gMVP!A:E,5, FALSE) -> 6.41E-12 | K111: =VLOOKUP(A111,'NDD.CADD.pois'!A:E,5,FALSE) -> 2.21E-08 | L111: =IF(VLOOKUP(A111,'NDD.CADD.cluster'!A:E,5,FALSE)=0,"",VLOOKUP(A111,'NDD.CADD.cluster'!A:E,5,FALSE)) -> 8.40E-06 | M111: =VLOOKUP(A111,NDD.CADD!A:F,5,FALSE) -> 5.62E-12 | N111: =VLOOKUP(A111,NDD_Kaplanis!A:AI,25,FALSE) -> 1.21E-10 | O111: =AND(N111>0.0000025,OR(J111<0.0000025)) -> FALSE | P111: =VLOOKUP(A111,NDD_Kaplanis!A:AI,26,FALSE) -> 3.58E-12 | Q111: =AND(OR(J111<0.0000025),P111>0.0000025) -> FALSE | R111: =VLOOKUP(A111,NDD_Kaplanis!A:D,4,FALSE) -> consensus | S111: =AND(OR(R111="discordant", R111="none"),OR(J111<0.0000025)) -> FALSE | T111: =VLOOKUP(A111,DDG2P_3_5_2022!A:E,3,FALSE) -> Syndromic INTELLECTUAL DISABILITY with or without congenital heart disease | U111: =VLOOKUP(A111,DDG2P_3_5_2022!A:E,5,FALSE) -> definitive | V111: =AND(ISNA(T111),OR(J111<0.0000025)) -> FALSE | W111: =N111/J111 -> 1.90E+01
A112: HRAS | B112: =VLOOKUP(A112,NDD_Kaplanis!A:AI,6,FALSE)+VLOOKUP(A112,NDD_Kaplanis!A:AI,13,FALSE)+VLOOKUP(A112,NDD_Kaplanis!A:AI,14,FALSE)+VLOOKUP(A112,NDD_Kaplanis!A:AI,15,FALSE) -> 0 | C112: =VLOOKUP(A112,NDD_Kaplanis!A:AI,10,FALSE) -> 7 | D112: =_xlfn.IFNA(VLOOKUP(A112,NDD_repeat_variants!A:F,6,FALSE),0) -> 0 | E112: =_xlfn.IFNA(VLOOKUP(A112,NDD_repeat_residues!A:F,5,FALSE),0) -> 0 | F112: =VLOOKUP(A112,NDD.gMVP!A:E,3,FALSE) -> 7 | G112: =IF(VLOOKUP(A112,NDD.CADD!A:F,3,FALSE)=0,"",VLOOKUP(A112,NDD.CADD!A:F,3,FALSE)) -> 2 | H112: =VLOOKUP(A112,'NDD.gMVP.pois'!A:E,5,FALSE) -> 8.42E-09 | I112: =IF(VLOOKUP(A112,'NDD.gMVP.cluster'!A:E,5,FALSE)=0,"",VLOOKUP(A112,'NDD.gMVP.cluster'!A:E,5,FALSE)) -> 2.59E-05 | J112: =VLOOKUP(A112,NDD.gMVP!A:E,5, FALSE) -> 6.58E-12 | K112: =VLOOKUP(A112,'NDD.CADD.pois'!A:E,5,FALSE) -> 1.08E-02 | L112: =IF(VLOOKUP(A112,'NDD.CADD.cluster'!A:E,5,FALSE)=0,"",VLOOKUP(A112,'NDD.CADD.cluster'!A:E,5,FALSE)) -> 7.46E-01 | M112: =VLOOKUP(A112,NDD.CADD!A:F,5,FALSE) -> 4.68E-02 | N112: =VLOOKUP(A112,NDD_Kaplanis!A:AI,25,FALSE) -> 1.21E-09 | O112: =AND(N112>0.0000025,OR(J112<0.0000025)) -> FALSE | P112: =VLOOKUP(A112,NDD_Kaplanis!A:AI,26,FALSE) -> 1.21E-09 | Q112: =AND(OR(J112<0.0000025),P112>0.0000025) -> FALSE | R112: =VLOOKUP(A112,NDD_Kaplanis!A:D,4,FALSE) -> consensus | S112: =AND(OR(R112="discordant", R112="none"),OR(J112<0.0000025)) -> FALSE | T112: =VLOOKUP(A112,DDG2P_3_5_2022!A:E,3,FALSE) -> COSTELLO SYNDROME | U112: =VLOOKUP(A112,DDG2P_3_5_2022!A:E,5,FALSE) -> definitive | V112: =AND(ISNA(T112),OR(J112<0.0000025)) -> FALSE | W112: =N112/J112 -> 1.83E+02
A113: CAMK2B | B113: =VLOOKUP(A113,NDD_Kaplanis!A:AI,6,FALSE)+VLOOKUP(A113,NDD_Kaplanis!A:AI,13,FALSE)+VLOOKUP(A113,NDD_Kaplanis!A:AI,14,FALSE)+VLOOKUP(A113,NDD_Kaplanis!A:AI,15,FALSE) -> 1 | C113: =VLOOKUP(A113,NDD_Kaplanis!A:AI,10,FALSE) -> 9 | D113: =_xlfn.IFNA(VLOOKUP(A113,NDD_repeat_variants!A:F,6,FALSE),0) -> 1 | E113: =_xlfn.IFNA(VLOOKUP(A113,NDD_repeat_residues!A:F,5,FALSE),0) -> 4 | F113: =VLOOKUP(A113,NDD.gMVP!A:E,3,FALSE) -> 7 | G113: =IF(VLOOKUP(A113,NDD.CADD!A:F,3,FALSE)=0,"",VLOOKUP(A113,NDD.CADD!A:F,3,FALSE)) -> 7 | H113: =VLOOKUP(A113,'NDD.gMVP.pois'!A:E,5,FALSE) -> 2.05E-05 | I113: =IF(VLOOKUP(A113,'NDD.gMVP.cluster'!A:E,5,FALSE)=0,"",VLOOKUP(A113,'NDD.gMVP.cluster'!A:E,5,FALSE)) -> 1.25E-08 | J113: =VLOOKUP(A113,NDD.gMVP!A:E,5, FALSE) -> 7.67E-12 | K113: =VLOOKUP(A113,'NDD.CADD.pois'!A:E,5,FALSE) -> 2.98E-05 | L113: =IF(VLOOKUP(A113,'NDD.CADD.cluster'!A:E,5,FALSE)=0,"",VLOOKUP(A113,'NDD.CADD.cluster'!A:E,5,FALSE)) -> 1.25E-08 | M113: =VLOOKUP(A113,NDD.CADD!A:F,5,FALSE) -> 1.10E-11 | N113: =VLOOKUP(A113,NDD_Kaplanis!A:AI,25,FALSE) -> 2.05E-09 | O113: =AND(N113>0.0000025,OR(J113<0.0000025)) -> FALSE | P113: =VLOOKUP(A113,NDD_Kaplanis!A:AI,26,FALSE) -> 2.05E-09 | Q113: =AND(OR(J113<0.0000025),P113>0.0000025) -> FALSE | R113: =VLOOKUP(A113,NDD_Kaplanis!A:D,4,FALSE) -> consensus | S113: =AND(OR(R113="discordant", R113="none"),OR(J113<0.0000025)) -> FALSE | T113: =VLOOKUP(A113,DDG2P_3_5_2022!A:E,3,FALSE) -> INTELLECTUAL DISABILITY | U113: =VLOOKUP(A113,DDG2P_3_5_2022!A:E,5,FALSE) -> strong | V113: =AND(ISNA(T113),OR(J113<0.0000025)) -> FALSE | W113: =N113/J113 -> 2.68E+02
A114: ADCY5 | B114: =VLOOKUP(A114,NDD_Kaplanis!A:AI,6,FALSE)+VLOOKUP(A114,NDD_Kaplanis!A:AI,13,FALSE)+VLOOKUP(A114,NDD_Kaplanis!A:AI,14,FALSE)+VLOOKUP(A114,NDD_Kaplanis!A:AI,15,FALSE) -> 0 | C114: =VLOOKUP(A114,NDD_Kaplanis!A:AI,10,FALSE) -> 12 | D114: =_xlfn.IFNA(VLOOKUP(A114,NDD_repeat_variants!A:F,6,FALSE),0) -> 0 | E114: =_xlfn.IFNA(VLOOKUP(A114,NDD_repeat_residues!A:F,5,FALSE),0) -> 6 | F114: =VLOOKUP(A114,NDD.gMVP!A:E,3,FALSE) -> 9 | G114: =IF(VLOOKUP(A114,NDD.CADD!A:F,3,FALSE)=0,"",VLOOKUP(A114,NDD.CADD!A:F,3,FALSE)) -> 10 | H114: =VLOOKUP(A114,'NDD.gMVP.pois'!A:E,5,FALSE) -> 2.83E-05 | I114: =IF(VLOOKUP(A114,'NDD.gMVP.cluster'!A:E,5,FALSE)=0,"",VLOOKUP(A114,'NDD.gMVP.cluster'!A:E,5,FALSE)) -> 1.25E-08 | J114: =VLOOKUP(A114,NDD.gMVP!A:E,5, FALSE) -> 1.05E-11 | K114: =VLOOKUP(A114,'NDD.CADD.pois'!A:E,5,FALSE) -> 9.47E-08 | L114: =IF(VLOOKUP(A114,'NDD.CADD.cluster'!A:E,5,FALSE)=0,"",VLOOKUP(A114,'NDD.CADD.cluster'!A:E,5,FALSE)) -> 1.25E-08 | M114: =VLOOKUP(A114,NDD.CADD!A:F,5,FALSE) -> 4.19E-14 | N114: =VLOOKUP(A114,NDD_Kaplanis!A:AI,25,FALSE) -> 5.45E-09 | O114: =AND(N114>0.0000025,OR(J114<0.0000025)) -> FALSE | P114: =VLOOKUP(A114,NDD_Kaplanis!A:AI,26,FALSE) -> 5.45E-09 | Q114: =AND(OR(J114<0.0000025),P114>0.0000025) -> FALSE | R114: =VLOOKUP(A114,NDD_Kaplanis!A:D,4,FALSE) -> discordant | S114: =AND(OR(R114="discordant", R114="none"),OR(J114<0.0000025)) -> TRUE | T114: =VLOOKUP(A114,DDG2P_3_5_2022!A:E,3,FALSE) -> ADCY5-related developmental disorder (monoallelic) | U114: =VLOOKUP(A114,DDG2P_3_5_2022!A:E,5,FALSE) -> strong | V114: =AND(ISNA(T114),OR(J114<0.0000025)) -> FALSE | W114: =N114/J114 -> 5.20E+02
A115: GNB2 | B115: =VLOOKUP(A115,NDD_Kaplanis!A:AI,6,FALSE)+VLOOKUP(A115,NDD_Kaplanis!A:AI,13,FALSE)+VLOOKUP(A115,NDD_Kaplanis!A:AI,14,FALSE)+VLOOKUP(A115,NDD_Kaplanis!A:AI,15,FALSE) -> 0 | C115: =VLOOKUP(A115,NDD_Kaplanis!A:AI,10,FALSE) -> 8 | D115: =_xlfn.IFNA(VLOOKUP(A115,NDD_repeat_variants!A:F,6,FALSE),0) -> 0 | E115: =_xlfn.IFNA(VLOOKUP(A115,NDD_repeat_residues!A:F,5,FALSE),0) -> 0 | F115: =VLOOKUP(A115,NDD.gMVP!A:E,3,FALSE) -> 8 | G115: =IF(VLOOKUP(A115,NDD.CADD!A:F,3,FALSE)=0,"",VLOOKUP(A115,NDD.CADD!A:F,3,FALSE)) -> 6 | H115: =VLOOKUP(A115,'NDD.gMVP.pois'!A:E,5,FALSE) -> 1.59E-08 | I115: =IF(VLOOKUP(A115,'NDD.gMVP.cluster'!A:E,5,FALSE)=0,"",VLOOKUP(A115,'NDD.gMVP.cluster'!A:E,5,FALSE)) -> 2.35E-05 | J115: =VLOOKUP(A115,NDD.gMVP!A:E,5, FALSE) -> 1.11E-11 | K115: =VLOOKUP(A115,'NDD.CADD.pois'!A:E,5,FALSE) -> 4.91E-06 | L115: =IF(VLOOKUP(A115,'NDD.CADD.cluster'!A:E,5,FALSE)=0,"",VLOOKUP(A115,'NDD.CADD.cluster'!A:E,5,FALSE)) -> 1.41E-05 | M115: =VLOOKUP(A115,NDD.CADD!A:F,5,FALSE) -> 1.69E-09 | N115: =VLOOKUP(A115,NDD_Kaplanis!A:AI,25,FALSE) -> 4.29E-10 | O115: =AND(N115>0.0000025,OR(J115<0.0000025)) -> FALSE | P115: =VLOOKUP(A115,NDD_Kaplanis!A:AI,26,FALSE) -> 4.29E-10 | Q115: =AND(OR(J115<0.0000025),P115>0.0000025) -> FALSE | R115: =VLOOKUP(A115,NDD_Kaplanis!A:D,4,FALSE) -> novel | S115: =AND(OR(R115="discordant", R115="none"),OR(J115<0.0000025)) -> FALSE | T115: =VLOOKUP(A115,DDG2P_3_5_2022!A:E,3,FALSE) -> GNB2-related developmental disorder (monoallelic) | U115: =VLOOKUP(A115,DDG2P_3_5_2022!A:E,5,FALSE) -> definitive | V115: =AND(ISNA(T115),OR(J115<0.0000025)) -> FALSE | W115: =N115/J115 -> 3.87E+01
A116: TLK2 | B116: =VLOOKUP(A116,NDD_Kaplanis!A:AI,6,FALSE)+VLOOKUP(A116,NDD_Kaplanis!A:AI,13,FALSE)+VLOOKUP(A116,NDD_Kaplanis!A:AI,14,FALSE)+VLOOKUP(A116,NDD_Kaplanis!A:AI,15,FALSE) -> 4 | C116: =VLOOKUP(A116,NDD_Kaplanis!A:AI,10,FALSE) -> 10 | D116: =_xlfn.IFNA(VLOOKUP(A116,NDD_repeat_variants!A:F,6,FALSE),0) -> 0 | E116: =_xlfn.IFNA(VLOOKUP(A116,NDD_repeat_residues!A:F,5,FALSE),0) -> 0 | F116: =VLOOKUP(A116,NDD.gMVP!A:E,3,FALSE) -> 9 | G116: =IF(VLOOKUP(A116,NDD.CADD!A:F,3,FALSE)=0,"",VLOOKUP(A116,NDD.CADD!A:F,3,FALSE)) -> 9 | H116: =VLOOKUP(A116,'NDD.gMVP.pois'!A:E,5,FALSE) -> 8.14E-10 | I116: =IF(VLOOKUP(A116,'NDD.gMVP.cluster'!A:E,5,FALSE)=0,"",VLOOKUP(A116,'NDD.gMVP.cluster'!A:E,5,FALSE)) -> 6.71E-04 | J116: =VLOOKUP(A116,NDD.gMVP!A:E,5, FALSE) -> 1.60E-11 | K116: =VLOOKUP(A116,'NDD.CADD.pois'!A:E,5,FALSE) -> 5.01E-09 | L116: =IF(VLOOKUP(A116,'NDD.CADD.cluster'!A:E,5,FALSE)=0,"",VLOOKUP(A116,'NDD.CADD.cluster'!A:E,5,FALSE)) -> 1.76E-03 | M116: =VLOOKUP(A116,NDD.CADD!A:F,5,FALSE) -> 2.34E-10 | N116: =VLOOKUP(A116,NDD_Kaplanis!A:AI,25,FALSE) -> 9.58E-08 | O116: =AND(N116>0.0000025,OR(J116<0.0000025)) -> FALSE | P116: =VLOOKUP(A116,NDD_Kaplanis!A:AI,26,FALSE) -> 1.00E-14 | Q116: =AND(OR(J116<0.0000025),P116>0.0000025) -> FALSE | R116: =VLOOKUP(A116,NDD_Kaplanis!A:D,4,FALSE) -> discordant | S116: =AND(OR(R116="discordant", R116="none"),OR(J116<0.0000025)) -> TRUE | T116: =VLOOKUP(A116,DDG2P_3_5_2022!A:E,3,FALSE) -> TLK2 syndrome | U116: =VLOOKUP(A116,DDG2P_3_5_2022!A:E,5,FALSE) -> definitive | V116: =AND(ISNA(T116),OR(J116<0.0000025)) -> FALSE | W116: =N116/J116 -> 6.00E+03
A117: GABRB3 | B117: =VLOOKUP(A117,NDD_Kaplanis!A:AI,6,FALSE)+VLOOKUP(A117,NDD_Kaplanis!A:AI,13,FALSE)+VLOOKUP(A117,NDD_Kaplanis!A:AI,14,FALSE)+VLOOKUP(A117,NDD_Kaplanis!A:AI,15,FALSE) -> 1 | C117: =VLOOKUP(A117,NDD_Kaplanis!A:AI,10,FALSE) -> 12 | D117: =_xlfn.IFNA(VLOOKUP(A117,NDD_repeat_variants!A:F,6,FALSE),0) -> 0 | E117: =_xlfn.IFNA(VLOOKUP(A117,NDD_repeat_residues!A:F,5,FALSE),0) -> 0 | F117: =VLOOKUP(A117,NDD.gMVP!A:E,3,FALSE) -> 12 | G117: =IF(VLOOKUP(A117,NDD.CADD!A:F,3,FALSE)=0,"",VLOOKUP(A117,NDD.CADD!A:F,3,FALSE)) -> 9 | H117: =VLOOKUP(A117,'NDD.gMVP.pois'!A:E,5,FALSE) -> 2.59E-11 | I117: =IF(VLOOKUP(A117,'NDD.gMVP.cluster'!A:E,5,FALSE)=0,"",VLOOKUP(A117,'NDD.gMVP.cluster'!A:E,5,FALSE)) -> 2.76E-02 | J117: =VLOOKUP(A117,NDD.gMVP!A:E,5, FALSE) -> 2.07E-11 | K117: =VLOOKUP(A117,'NDD.CADD.pois'!A:E,5,FALSE) -> 4.87E-10 | L117: =IF(VLOOKUP(A117,'NDD.CADD.cluster'!A:E,5,FALSE)=0,"",VLOOKUP(A117,'NDD.CADD.cluster'!A:E,5,FALSE)) -> 6.05E-03 | M117: =VLOOKUP(A117,NDD.CADD!A:F,5,FALSE) -> 8.11E-11 | N117: =VLOOKUP(A117,NDD_Kaplanis!A:AI,25,FALSE) -> 9.27E-10 | O117: =AND(N117>0.0000025,OR(J117<0.0000025)) -> FALSE | P117: =VLOOKUP(A117,NDD_Kaplanis!A:AI,26,FALSE) -> 9.27E-10 | Q117: =AND(OR(J117<0.0000025),P117>0.0000025) -> FALSE | R117: =VLOOKUP(A117,NDD_Kaplanis!A:D,4,FALSE) -> consensus | S117: =AND(OR(R117="discordant", R117="none"),OR(J117<0.0000025)) -> FALSE | T117: =VLOOKUP(A117,DDG2P_3_5_2022!A:E,3,FALSE) -> CHILDHOOD ABSENCE EPILEPSY TYPE 5 | U117: =VLOOKUP(A117,DDG2P_3_5_2022!A:E,5,FALSE) -> definitive | V117: =AND(ISNA(T117),OR(J117<0.0000025)) -> FALSE | W117: =N117/J117 -> 4.49E+01
A118: KCNK3 | B118: =VLOOKUP(A118,NDD_Kaplanis!A:AI,6,FALSE)+VLOOKUP(A118,NDD_Kaplanis!A:AI,13,FALSE)+VLOOKUP(A118,NDD_Kaplanis!A:AI,14,FALSE)+VLOOKUP(A118,NDD_Kaplanis!A:AI,15,FALSE) -> 0 | C118: =VLOOKUP(A118,NDD_Kaplanis!A:AI,10,FALSE) -> 7 | D118: =_xlfn.IFNA(VLOOKUP(A118,NDD_repeat_variants!A:F,6,FALSE),0) -> 0 | E118: =_xlfn.IFNA(VLOOKUP(A118,NDD_repeat_residues!A:F,5,FALSE),0) -> 0 | F118: =VLOOKUP(A118,NDD.gMVP!A:E,3,FALSE) -> 7 | G118: =IF(VLOOKUP(A118,NDD.CADD!A:F,3,FALSE)=0,"",VLOOKUP(A118,NDD.CADD!A:F,3,FALSE)) -> 6 | H118: =VLOOKUP(A118,'NDD.gMVP.pois'!A:E,5,FALSE) -> 6.46E-05 | I118: =IF(VLOOKUP(A118,'NDD.gMVP.cluster'!A:E,5,FALSE)=0,"",VLOOKUP(A118,'NDD.gMVP.cluster'!A:E,5,FALSE)) -> 1.25E-08 | J118: =VLOOKUP(A118,NDD.gMVP!A:E,5, FALSE) -> 2.33E-11 | K118: =VLOOKUP(A118,'NDD.CADD.pois'!A:E,5,FALSE) -> 2.41E-05 | L118: =IF(VLOOKUP(A118,'NDD.CADD.cluster'!A:E,5,FALSE)=0,"",VLOOKUP(A118,'NDD.CADD.cluster'!A:E,5,FALSE)) -> 7.50E-08 | M118: =VLOOKUP(A118,NDD.CADD!A:F,5,FALSE) -> 5.07E-11 | N118: =VLOOKUP(A118,NDD_Kaplanis!A:AI,25,FALSE) -> 2.45E-08 | O118: =AND(N118>0.0000025,OR(J118<0.0000025)) -> FALSE | P118: =VLOOKUP(A118,NDD_Kaplanis!A:AI,26,FALSE) -> 2.45E-08 | Q118: =AND(OR(J118<0.0000025),P118>0.0000025) -> FALSE | R118: =VLOOKUP(A118,NDD_Kaplanis!A:D,4,FALSE) -> novel | S118: =AND(OR(R118="discordant", R118="none"),OR(J118<0.0000025)) -> FALSE | T118: =VLOOKUP(A118,DDG2P_3_5_2022!A:E,3,FALSE) -> KCNK3-related developmental disorder (monoallelic) | U118: =VLOOKUP(A118,DDG2P_3_5_2022!A:E,5,FALSE) -> definitive | V118: =AND(ISNA(T118),OR(J118<0.0000025)) -> FALSE | W118: =N118/J118 -> 1.05E+03
A119: U2AF2 | B119: =VLOOKUP(A119,NDD_Kaplanis!A:AI,6,FALSE)+VLOOKUP(A119,NDD_Kaplanis!A:AI,13,FALSE)+VLOOKUP(A119,NDD_Kaplanis!A:AI,14,FALSE)+VLOOKUP(A119,NDD_Kaplanis!A:AI,15,FALSE) -> 0 | C119: =VLOOKUP(A119,NDD_Kaplanis!A:AI,10,FALSE) -> 8 | D119: =_xlfn.IFNA(VLOOKUP(A119,NDD_repeat_variants!A:F,6,FALSE),0) -> 1 | E119: =_xlfn.IFNA(VLOOKUP(A119,NDD_repeat_residues!A:F,5,FALSE),0) -> 0 | F119: =VLOOKUP(A119,NDD.gMVP!A:E,3,FALSE) -> 8 | G119: =IF(VLOOKUP(A119,NDD.CADD!A:F,3,FALSE)=0,"",VLOOKUP(A119,NDD.CADD!A:F,3,FALSE)) -> 8 | H119: =VLOOKUP(A119,'NDD.gMVP.pois'!A:E,5,FALSE) -> 1.29E-06 | I119: =IF(VLOOKUP(A119,'NDD.gMVP.cluster'!A:E,5,FALSE)=0,"",VLOOKUP(A119,'NDD.gMVP.cluster'!A:E,5,FALSE)) -> 9.00E-07 | J119: =VLOOKUP(A119,NDD.gMVP!A:E,5, FALSE) -> 3.32E-11 | K119: =VLOOKUP(A119,'NDD.CADD.pois'!A:E,5,FALSE) -> 1.08E-07 | L119: =IF(VLOOKUP(A119,'NDD.CADD.cluster'!A:E,5,FALSE)=0,"",VLOOKUP(A119,'NDD.CADD.cluster'!A:E,5,FALSE)) -> 2.50E-06 | M119: =VLOOKUP(A119,NDD.CADD!A:F,5,FALSE) -> 8.08E-12 | N119: =VLOOKUP(A119,NDD_Kaplanis!A:AI,25,FALSE) -> 7.59E-10 | O119: =AND(N119>0.0000025,OR(J119<0.0000025)) -> FALSE | P119: =VLOOKUP(A119,NDD_Kaplanis!A:AI,26,FALSE) -> 7.59E-10 | Q119: =AND(OR(J119<0.0000025),P119>0.0000025) -> FALSE | R119: =VLOOKUP(A119,NDD_Kaplanis!A:D,4,FALSE) -> novel | S119: =AND(OR(R119="discordant", R119="none"),OR(J119<0.0000025)) -> FALSE | T119: =VLOOKUP(A119,DDG2P_3_5_2022!A:E,3,FALSE) -> U2AF2-related developmental disorder (monoallelic) | U119: =VLOOKUP(A119,DDG2P_3_5_2022!A:E,5,FALSE) -> definitive | V119: =AND(ISNA(T119),OR(J119<0.0000025)) -> FALSE | W119: =N119/J119 -> 2.29E+01
A120: ZBTB18 | B120: =VLOOKUP(A120,NDD_Kaplanis!A:AI,6,FALSE)+VLOOKUP(A120,NDD_Kaplanis!A:AI,13,FALSE)+VLOOKUP(A120,NDD_Kaplanis!A:AI,14,FALSE)+VLOOKUP(A120,NDD_Kaplanis!A:AI,15,FALSE) -> 11 | C120: =VLOOKUP(A120,NDD_Kaplanis!A:AI,10,FALSE) -> 8 | D120: =_xlfn.IFNA(VLOOKUP(A120,NDD_repeat_variants!A:F,6,FALSE),0) -> 0 | E120: =_xlfn.IFNA(VLOOKUP(A120,NDD_repeat_residues!A:F,5,FALSE),0) -> 0 | F120: =VLOOKUP(A120,NDD.gMVP!A:E,3,FALSE) -> 7 | G120: =IF(VLOOKUP(A120,NDD.CADD!A:F,3,FALSE)=0,"",VLOOKUP(A120,NDD.CADD!A:F,3,FALSE)) -> 7 | H120: =VLOOKUP(A120,'NDD.gMVP.pois'!A:E,5,FALSE) -> 2.66E-07 | I120: =IF(VLOOKUP(A120,'NDD.gMVP.cluster'!A:E,5,FALSE)=0,"",VLOOKUP(A120,'NDD.gMVP.cluster'!A:E,5,FALSE)) -> 4.80E-06 | J120: =VLOOKUP(A120,NDD.gMVP!A:E,5, FALSE) -> 3.63E-11 | K120: =VLOOKUP(A120,'NDD.CADD.pois'!A:E,5,FALSE) -> 3.91E-07 | L120: =IF(VLOOKUP(A120,'NDD.CADD.cluster'!A:E,5,FALSE)=0,"",VLOOKUP(A120,'NDD.CADD.cluster'!A:E,5,FALSE)) -> 3.31E-05 | M120: =VLOOKUP(A120,NDD.CADD!A:F,5,FALSE) -> 3.38E-10 | N120: =VLOOKUP(A120,NDD_Kaplanis!A:AI,25,FALSE) -> 1.03E-07 | O120: =AND(N120>0.0000025,OR(J120<0.0000025)) -> FALSE | P120: =VLOOKUP(A120,NDD_Kaplanis!A:AI,26,FALSE) -> 1.00E-14 | Q120: =AND(OR(J120<0.0000025),P120>0.0000025) -> FALSE | R120: =VLOOKUP(A120,NDD_Kaplanis!A:D,4,FALSE) -> consensus | S120: =AND(OR(R120="discordant", R120="none"),OR(J120<0.0000025)) -> FALSE | T120: =VLOOKUP(A120,DDG2P_3_5_2022!A:E,3,FALSE) -> ZBTB18 syndrome | U120: =VLOOKUP(A120,DDG2P_3_5_2022!A:E,5,FALSE) -> definitive | V120: =AND(ISNA(T120),OR(J120<0.0000025)) -> FALSE | W120: =N120/J120 -> 2.83E+03
A121: SETD5 | B121: =VLOOKUP(A121,NDD_Kaplanis!A:AI,6,FALSE)+VLOOKUP(A121,NDD_Kaplanis!A:AI,13,FALSE)+VLOOKUP(A121,NDD_Kaplanis!A:AI,14,FALSE)+VLOOKUP(A121,NDD_Kaplanis!A:AI,15,FALSE) -> 37 | C121: =VLOOKUP(A121,NDD_Kaplanis!A:AI,10,FALSE) -> 8 | D121: =_xlfn.IFNA(VLOOKUP(A121,NDD_repeat_variants!A:F,6,FALSE),0) -> 0 | E121: =_xlfn.IFNA(VLOOKUP(A121,NDD_repeat_residues!A:F,5,FALSE),0) -> 0 | F121: =VLOOKUP(A121,NDD.gMVP!A:E,3,FALSE) -> 6 | G121: =IF(VLOOKUP(A121,NDD.CADD!A:F,3,FALSE)=0,"",VLOOKUP(A121,NDD.CADD!A:F,3,FALSE)) -> 5 | H121: =VLOOKUP(A121,'NDD.gMVP.pois'!A:E,5,FALSE) -> 2.68E-06 | I121: =IF(VLOOKUP(A121,'NDD.gMVP.cluster'!A:E,5,FALSE)=0,"",VLOOKUP(A121,'NDD.gMVP.cluster'!A:E,5,FALSE)) -> 6.00E-07 | J121: =VLOOKUP(A121,NDD.gMVP!A:E,5, FALSE) -> 4.53E-11 | K121: =VLOOKUP(A121,'NDD.CADD.pois'!A:E,5,FALSE) -> 1.50E-03 | L121: =IF(VLOOKUP(A121,'NDD.CADD.cluster'!A:E,5,FALSE)=0,"",VLOOKUP(A121,'NDD.CADD.cluster'!A:E,5,FALSE)) -> 3.10E-06 | M121: =VLOOKUP(A121,NDD.CADD!A:F,5,FALSE) -> 9.36E-08 | N121: =VLOOKUP(A121,NDD_Kaplanis!A:AI,25,FALSE) -> 3.33E-07 | O121: =AND(N121>0.0000025,OR(J121<0.0000025)) -> FALSE | P121: =VLOOKUP(A121,NDD_Kaplanis!A:AI,26,FALSE) -> 1.00E-14 | Q121: =AND(OR(J121<0.0000025),P121>0.0000025) -> FALSE | R121: =VLOOKUP(A121,NDD_Kaplanis!A:D,4,FALSE) -> consensus | S121: =AND(OR(R121="discordant", R121="none"),OR(J121<0.0000025)) -> FALSE | T121: =VLOOKUP(A121,DDG2P_3_5_2022!A:E,3,FALSE) -> INTELLECTUAL DEVELOPMENTAL DISORDER, AUTOSOMAL DOMINANT 23 | U121: =VLOOKUP(A121,DDG2P_3_5_2022!A:E,5,FALSE) -> definitive | V121: =AND(ISNA(T121),OR(J121<0.0000025)) -> FALSE | W121: =N121/J121 -> 7.35E+03
A122: CLCN4 | B122: =VLOOKUP(A122,NDD_Kaplanis!A:AI,6,FALSE)+VLOOKUP(A122,NDD_Kaplanis!A:AI,13,FALSE)+VLOOKUP(A122,NDD_Kaplanis!A:AI,14,FALSE)+VLOOKUP(A122,NDD_Kaplanis!A:AI,15,FALSE) -> 0 | C122: =VLOOKUP(A122,NDD_Kaplanis!A:AI,10,FALSE) -> 11 | D122: =_xlfn.IFNA(VLOOKUP(A122,NDD_repeat_variants!A:F,6,FALSE),0) -> 1 | E122: =_xlfn.IFNA(VLOOKUP(A122,NDD_repeat_residues!A:F,5,FALSE),0) -> 2 | F122: =VLOOKUP(A122,NDD.gMVP!A:E,3,FALSE) -> 11 | G122: =IF(VLOOKUP(A122,NDD.CADD!A:F,3,FALSE)=0,"",VLOOKUP(A122,NDD.CADD!A:F,3,FALSE)) -> 6 | H122: =VLOOKUP(A122,'NDD.gMVP.pois'!A:E,5,FALSE) -> 4.20E-09 | I122: =IF(VLOOKUP(A122,'NDD.gMVP.cluster'!A:E,5,FALSE)=0,"",VLOOKUP(A122,'NDD.gMVP.cluster'!A:E,5,FALSE)) -> 4.11E-04 | J122: =VLOOKUP(A122,NDD.gMVP!A:E,5, FALSE) -> 4.85E-11 | K122: =VLOOKUP(A122,'NDD.CADD.pois'!A:E,5,FALSE) -> 3.12E-07 | L122: =IF(VLOOKUP(A122,'NDD.CADD.cluster'!A:E,5,FALSE)=0,"",VLOOKUP(A122,'NDD.CADD.cluster'!A:E,5,FALSE)) -> 2.61E-05 | M122: =VLOOKUP(A122,NDD.CADD!A:F,5,FALSE) -> 2.16E-10 | N122: =VLOOKUP(A122,NDD_Kaplanis!A:AI,25,FALSE) -> 1.56E-09 | O122: =AND(N122>0.0000025,OR(J122<0.0000025)) -> FALSE | P122: =VLOOKUP(A122,NDD_Kaplanis!A:AI,26,FALSE) -> 1.30E-09 | Q122: =AND(OR(J122<0.0000025),P122>0.0000025) -> FALSE | R122: =VLOOKUP(A122,NDD_Kaplanis!A:D,4,FALSE) -> discordant | S122: =AND(OR(R122="discordant", R122="none"),OR(J122<0.0000025)) -> TRUE | T122: =VLOOKUP(A122,DDG2P_3_5_2022!A:E,3,FALSE) -> INFANTILE EPILEPTIC ENCEPHALOPATHY AND/OR INTELLECTUAL DISABILITY | U122: =VLOOKUP(A122,DDG2P_3_5_2022!A:E,5,FALSE) -> strong | V122: =AND(ISNA(T122),OR(J122<0.0000025)) -> FALSE | W122: =N122/J122 -> 3.22E+01
A123: ZMYND11 | B123: =VLOOKUP(A123,NDD_Kaplanis!A:AI,6,FALSE)+VLOOKUP(A123,NDD_Kaplanis!A:AI,13,FALSE)+VLOOKUP(A123,NDD_Kaplanis!A:AI,14,FALSE)+VLOOKUP(A123,NDD_Kaplanis!A:AI,15,FALSE) -> 5 | C123: =VLOOKUP(A123,NDD_Kaplanis!A:AI,10,FALSE) -> 12 | D123: =_xlfn.IFNA(VLOOKUP(A123,NDD_repeat_variants!A:F,6,FALSE),0) -> 1 | E123: =_xlfn.IFNA(VLOOKUP(A123,NDD_repeat_residues!A:F,5,FALSE),0) -> 0 | F123: =VLOOKUP(A123,NDD.gMVP!A:E,3,FALSE) -> 7 | G123: =IF(VLOOKUP(A123,NDD.CADD!A:F,3,FALSE)=0,"",VLOOKUP(A123,NDD.CADD!A:F,3,FALSE)) -> 8 | H123: =VLOOKUP(A123,'NDD.gMVP.pois'!A:E,5,FALSE) -> 5.26E-06 | I123: =IF(VLOOKUP(A123,'NDD.gMVP.cluster'!A:E,5,FALSE)=0,"",VLOOKUP(A123,'NDD.gMVP.cluster'!A:E,5,FALSE)) -> 4.00E-07 | J123: =VLOOKUP(A123,NDD.gMVP!A:E,5, FALSE) -> 5.87E-11 | K123: =VLOOKUP(A123,'NDD.CADD.pois'!A:E,5,FALSE) -> 4.67E-08 | L123: =IF(VLOOKUP(A123,'NDD.CADD.cluster'!A:E,5,FALSE)=0,"",VLOOKUP(A123,'NDD.CADD.cluster'!A:E,5,FALSE)) -> 1.10E-06 | M123: =VLOOKUP(A123,NDD.CADD!A:F,5,FALSE) -> 1.62E-12 | N123: =VLOOKUP(A123,NDD_Kaplanis!A:AI,25,FALSE) -> 5.86E-12 | O123: =AND(N123>0.0000025,OR(J123<0.0000025)) -> FALSE | P123: =VLOOKUP(A123,NDD_Kaplanis!A:AI,26,FALSE) -> 9.70E-15 | Q123: =AND(OR(J123<0.0000025),P123>0.0000025) -> FALSE | R123: =VLOOKUP(A123,NDD_Kaplanis!A:D,4,FALSE) -> consensus | S123: =AND(OR(R123="discordant", R123="none"),OR(J123<0.0000025)) -> FALSE | T123: =VLOOKUP(A123,DDG2P_3_5_2022!A:E,3,FALSE) -> INTELLECTUAL DISABILITY | U123: =VLOOKUP(A123,DDG2P_3_5_2022!A:E,5,FALSE) -> strong | V123: =AND(ISNA(T123),OR(J123<0.0000025)) -> FALSE | W123: =N123/J123 -> 9.98E-02
A124: SYT1 | B124: =VLOOKUP(A124,NDD_Kaplanis!A:AI,6,FALSE)+VLOOKUP(A124,NDD_Kaplanis!A:AI,13,FALSE)+VLOOKUP(A124,NDD_Kaplanis!A:AI,14,FALSE)+VLOOKUP(A124,NDD_Kaplanis!A:AI,15,FALSE) -> 1 | C124: =VLOOKUP(A124,NDD_Kaplanis!A:AI,10,FALSE) -> 12 | D124: =_xlfn.IFNA(VLOOKUP(A124,NDD_repeat_variants!A:F,6,FALSE),0) -> 0 | E124: =_xlfn.IFNA(VLOOKUP(A124,NDD_repeat_residues!A:F,5,FALSE),0) -> 0 | F124: =VLOOKUP(A124,NDD.gMVP!A:E,3,FALSE) -> 8 | G124: =IF(VLOOKUP(A124,NDD.CADD!A:F,3,FALSE)=0,"",VLOOKUP(A124,NDD.CADD!A:F,3,FALSE)) -> 5 | H124: =VLOOKUP(A124,'NDD.gMVP.pois'!A:E,5,FALSE) -> 1.97E-09 | I124: =IF(VLOOKUP(A124,'NDD.gMVP.cluster'!A:E,5,FALSE)=0,"",VLOOKUP(A124,'NDD.gMVP.cluster'!A:E,5,FALSE)) -> 1.09E-03 | J124: =VLOOKUP(A124,NDD.gMVP!A:E,5, FALSE) -> 6.02E-11 | K124: =VLOOKUP(A124,'NDD.CADD.pois'!A:E,5,FALSE) -> 6.00E-06 | L124: =IF(VLOOKUP(A124,'NDD.CADD.cluster'!A:E,5,FALSE)=0,"",VLOOKUP(A124,'NDD.CADD.cluster'!A:E,5,FALSE)) -> 1.01E-02 | M124: =VLOOKUP(A124,NDD.CADD!A:F,5,FALSE) -> 1.07E-06 | N124: =VLOOKUP(A124,NDD_Kaplanis!A:AI,25,FALSE) -> 8.87E-13 | O124: =AND(N124>0.0000025,OR(J124<0.0000025)) -> FALSE | P124: =VLOOKUP(A124,NDD_Kaplanis!A:AI,26,FALSE) -> 8.87E-13 | Q124: =AND(OR(J124<0.0000025),P124>0.0000025) -> FALSE | R124: =VLOOKUP(A124,NDD_Kaplanis!A:D,4,FALSE) -> discordant | S124: =AND(OR(R124="discordant", R124="none"),OR(J124<0.0000025)) -> TRUE | T124: =VLOOKUP(A124,DDG2P_3_5_2022!A:E,3,FALSE) -> INTELLECTUAL DISABILITY | U124: =VLOOKUP(A124,DDG2P_3_5_2022!A:E,5,FALSE) -> strong | V124: =AND(ISNA(T124),OR(J124<0.0000025)) -> FALSE | W124: =N124/J124 -> 1.47E-02
A125: ARID1A | B125: =VLOOKUP(A125,NDD_Kaplanis!A:AI,6,FALSE)+VLOOKUP(A125,NDD_Kaplanis!A:AI,13,FALSE)+VLOOKUP(A125,NDD_Kaplanis!A:AI,14,FALSE)+VLOOKUP(A125,NDD_Kaplanis!A:AI,15,FALSE) -> 5 | C125: =VLOOKUP(A125,NDD_Kaplanis!A:AI,10,FALSE) -> 12 | D125: =_xlfn.IFNA(VLOOKUP(A125,NDD_repeat_variants!A:F,6,FALSE),0) -> 0 | E125: =_xlfn.IFNA(VLOOKUP(A125,NDD_repeat_residues!A:F,5,FALSE),0) -> 0 | F125: =VLOOKUP(A125,NDD.gMVP!A:E,3,FALSE) -> 8 | G125: =IF(VLOOKUP(A125,NDD.CADD!A:F,3,FALSE)=0,"",VLOOKUP(A125,NDD.CADD!A:F,3,FALSE)) -> 9 | H125: =VLOOKUP(A125,'NDD.gMVP.pois'!A:E,5,FALSE) -> 5.27E-07 | I125: =IF(VLOOKUP(A125,'NDD.gMVP.cluster'!A:E,5,FALSE)=0,"",VLOOKUP(A125,'NDD.gMVP.cluster'!A:E,5,FALSE)) -> 5.60E-06 | J125: =VLOOKUP(A125,NDD.gMVP!A:E,5, FALSE) -> 8.13E-11 | K125: =VLOOKUP(A125,'NDD.CADD.pois'!A:E,5,FALSE) -> 1.64E-05 | L125: =IF(VLOOKUP(A125,'NDD.CADD.cluster'!A:E,5,FALSE)=0,"",VLOOKUP(A125,'NDD.CADD.cluster'!A:E,5,FALSE)) -> 1.67E-04 | M125: =VLOOKUP(A125,NDD.CADD!A:F,5,FALSE) -> 5.68E-08 | N125: =VLOOKUP(A125,NDD_Kaplanis!A:AI,25,FALSE) -> 1.15E-06 | O125: =AND(N125>0.0000025,OR(J125<0.0000025)) -> FALSE | P125: =VLOOKUP(A125,NDD_Kaplanis!A:AI,26,FALSE) -> 1.01E-09 | Q125: =AND(OR(J125<0.0000025),P125>0.0000025) -> FALSE | R125: =VLOOKUP(A125,NDD_Kaplanis!A:D,4,FALSE) -> consensus | S125: =AND(OR(R125="discordant", R125="none"),OR(J125<0.0000025)) -> FALSE | T125: =VLOOKUP(A125,DDG2P_3_5_2022!A:E,3,FALSE) -> COFFIN-SIRIS SYNDROME | U125: =VLOOKUP(A125,DDG2P_3_5_2022!A:E,5,FALSE) -> definitive | V125: =AND(ISNA(T125),OR(J125<0.0000025)) -> FALSE | W125: =N125/J125 -> 1.41E+04
A126: KCNA2 | B126: =VLOOKUP(A126,NDD_Kaplanis!A:AI,6,FALSE)+VLOOKUP(A126,NDD_Kaplanis!A:AI,13,FALSE)+VLOOKUP(A126,NDD_Kaplanis!A:AI,14,FALSE)+VLOOKUP(A126,NDD_Kaplanis!A:AI,15,FALSE) -> 1 | C126: =VLOOKUP(A126,NDD_Kaplanis!A:AI,10,FALSE) -> 8 | D126: =_xlfn.IFNA(VLOOKUP(A126,NDD_repeat_variants!A:F,6,FALSE),0) -> 0 | E126: =_xlfn.IFNA(VLOOKUP(A126,NDD_repeat_residues!A:F,5,FALSE),0) -> 0 | F126: =VLOOKUP(A126,NDD.gMVP!A:E,3,FALSE) -> 8 | G126: =IF(VLOOKUP(A126,NDD.CADD!A:F,3,FALSE)=0,"",VLOOKUP(A126,NDD.CADD!A:F,3,FALSE)) -> 8 | H126: =VLOOKUP(A126,'NDD.gMVP.pois'!A:E,5,FALSE) -> 3.95E-07 | I126: =IF(VLOOKUP(A126,'NDD.gMVP.cluster'!A:E,5,FALSE)=0,"",VLOOKUP(A126,'NDD.gMVP.cluster'!A:E,5,FALSE)) -> 9.10E-06 | J126: =VLOOKUP(A126,NDD.gMVP!A:E,5, FALSE) -> 9.82E-11 | K126: =VLOOKUP(A126,'NDD.CADD.pois'!A:E,5,FALSE) -> 6.10E-09 | L126: =IF(VLOOKUP(A126,'NDD.CADD.cluster'!A:E,5,FALSE)=0,"",VLOOKUP(A126,'NDD.CADD.cluster'!A:E,5,FALSE)) -> 7.00E-06 | M126: =VLOOKUP(A126,NDD.CADD!A:F,5,FALSE) -> 1.36E-12 | N126: =VLOOKUP(A126,NDD_Kaplanis!A:AI,25,FALSE) -> 1.14E-11 | O126: =AND(N126>0.0000025,OR(J126<0.0000025)) -> FALSE | P126: =VLOOKUP(A126,NDD_Kaplanis!A:AI,26,FALSE) -> 1.14E-11 | Q126: =AND(OR(J126<0.0000025),P126>0.0000025) -> FALSE | R126: =VLOOKUP(A126,NDD_Kaplanis!A:D,4,FALSE) -> consensus | S126: =AND(OR(R126="discordant", R126="none"),OR(J126<0.0000025)) -> FALSE | T126: =VLOOKUP(A126,DDG2P_3_5_2022!A:E,3,FALSE) -> EPILEPTIC ENCEPHALOPATHY Loss-of-function | U126: =VLOOKUP(A126,DDG2P_3_5_2022!A:E,5,FALSE) -> definitive | V126: =AND(ISNA(T126),OR(J126<0.0000025)) -> FALSE | W126: =N126/J126 -> 1.16E-01
A127: MAST1 | B127: =VLOOKUP(A127,NDD_Kaplanis!A:AI,6,FALSE)+VLOOKUP(A127,NDD_Kaplanis!A:AI,13,FALSE)+VLOOKUP(A127,NDD_Kaplanis!A:AI,14,FALSE)+VLOOKUP(A127,NDD_Kaplanis!A:AI,15,FALSE) -> 0 | C127: =VLOOKUP(A127,NDD_Kaplanis!A:AI,10,FALSE) -> 10 | D127: =_xlfn.IFNA(VLOOKUP(A127,NDD_repeat_variants!A:F,6,FALSE),0) -> 0 | E127: =_xlfn.IFNA(VLOOKUP(A127,NDD_repeat_residues!A:F,5,FALSE),0) -> 0 | F127: =VLOOKUP(A127,NDD.gMVP!A:E,3,FALSE) -> 8 | G127: =IF(VLOOKUP(A127,NDD.CADD!A:F,3,FALSE)=0,"",VLOOKUP(A127,NDD.CADD!A:F,3,FALSE)) -> 9 | H127: =VLOOKUP(A127,'NDD.gMVP.pois'!A:E,5,FALSE) -> 1.80E-05 | I127: =IF(VLOOKUP(A127,'NDD.gMVP.cluster'!A:E,5,FALSE)=0,"",VLOOKUP(A127,'NDD.gMVP.cluster'!A:E,5,FALSE)) -> 2.00E-07 | J127: =VLOOKUP(A127,NDD.gMVP!A:E,5, FALSE) -> 9.83E-11 | K127: =VLOOKUP(A127,'NDD.CADD.pois'!A:E,5,FALSE) -> 1.89E-04 | L127: =IF(VLOOKUP(A127,'NDD.CADD.cluster'!A:E,5,FALSE)=0,"",VLOOKUP(A127,'NDD.CADD.cluster'!A:E,5,FALSE)) -> 6.00E-06 | M127: =VLOOKUP(A127,NDD.CADD!A:F,5,FALSE) -> 2.45E-08 | N127: =VLOOKUP(A127,NDD_Kaplanis!A:AI,25,FALSE) -> 4.91E-06 | O127: =AND(N127>0.0000025,OR(J127<0.0000025)) -> TRUE | P127: =VLOOKUP(A127,NDD_Kaplanis!A:AI,26,FALSE) -> 4.91E-06 | Q127: =AND(OR(J127<0.0000025),P127>0.0000025) -> TRUE | R127: =VLOOKUP(A127,NDD_Kaplanis!A:D,4,FALSE) -> discordant | S127: =AND(OR(R127="discordant", R127="none"),OR(J127<0.0000025)) -> TRUE | T127: =VLOOKUP(A127,DDG2P_3_5_2022!A:E,3,FALSE) -> MAST1-related developmental disorder (monoallelic) | U127: =VLOOKUP(A127,DDG2P_3_5_2022!A:E,5,FALSE) -> strong | V127: =AND(ISNA(T127),OR(J127<0.0000025)) -> FALSE | W127: =N127/J127 -> 5.00E+04
A128: ZC4H2 | B128: =VLOOKUP(A128,NDD_Kaplanis!A:AI,6,FALSE)+VLOOKUP(A128,NDD_Kaplanis!A:AI,13,FALSE)+VLOOKUP(A128,NDD_Kaplanis!A:AI,14,FALSE)+VLOOKUP(A128,NDD_Kaplanis!A:AI,15,FALSE) -> 7 | C128: =VLOOKUP(A128,NDD_Kaplanis!A:AI,10,FALSE) -> 7 | D128: =_xlfn.IFNA(VLOOKUP(A128,NDD_repeat_variants!A:F,6,FALSE),0) -> 0 | E128: =_xlfn.IFNA(VLOOKUP(A128,NDD_repeat_residues!A:F,5,FALSE),0) -> 0 | F128: =VLOOKUP(A128,NDD.gMVP!A:E,3,FALSE) -> 6 | G128: =IF(VLOOKUP(A128,NDD.CADD!A:F,3,FALSE)=0,"",VLOOKUP(A128,NDD.CADD!A:F,3,FALSE)) -> 7 | H128: =VLOOKUP(A128,'NDD.gMVP.pois'!A:E,5,FALSE) -> 3.95E-09 | I128: =IF(VLOOKUP(A128,'NDD.gMVP.cluster'!A:E,5,FALSE)=0,"",VLOOKUP(A128,'NDD.gMVP.cluster'!A:E,5,FALSE)) -> 1.10E-03 | J128: =VLOOKUP(A128,NDD.gMVP!A:E,5, FALSE) -> 1.18E-10 | K128: =VLOOKUP(A128,'NDD.CADD.pois'!A:E,5,FALSE) -> 2.47E-12 | L128: =IF(VLOOKUP(A128,'NDD.CADD.cluster'!A:E,5,FALSE)=0,"",VLOOKUP(A128,'NDD.CADD.cluster'!A:E,5,FALSE)) -> 5.66E-04 | M128: =VLOOKUP(A128,NDD.CADD!A:F,5,FALSE) -> 4.91E-14 | N128: =VLOOKUP(A128,NDD_Kaplanis!A:AI,25,FALSE) -> 6.49E-13 | O128: =AND(N128>0.0000025,OR(J128<0.0000025)) -> FALSE | P128: =VLOOKUP(A128,NDD_Kaplanis!A:AI,26,FALSE) -> 1.00E-14 | Q128: =AND(OR(J128<0.0000025),P128>0.0000025) -> FALSE | R128: =VLOOKUP(A128,NDD_Kaplanis!A:D,4,FALSE) -> consensus | S128: =AND(OR(R128="discordant", R128="none"),OR(J128<0.0000025)) -> FALSE | T128: =VLOOKUP(A128,DDG2P_3_5_2022!A:E,3,FALSE) -> ARTHROGRYPOSIS MULTIPLEX CONGENITA AND INTELLECTUAL DISABILITY, hemizygous | U128: =VLOOKUP(A128,DDG2P_3_5_2022!A:E,5,FALSE) -> definitive | V128: =AND(ISNA(T128),OR(J128<0.0000025)) -> FALSE | W128: =N128/J128 -> 5.50E-03
A129: ATN1 | B129: =VLOOKUP(A129,NDD_Kaplanis!A:AI,6,FALSE)+VLOOKUP(A129,NDD_Kaplanis!A:AI,13,FALSE)+VLOOKUP(A129,NDD_Kaplanis!A:AI,14,FALSE)+VLOOKUP(A129,NDD_Kaplanis!A:AI,15,FALSE) -> 0 | C129: =VLOOKUP(A129,NDD_Kaplanis!A:AI,10,FALSE) -> 9 | D129: =_xlfn.IFNA(VLOOKUP(A129,NDD_repeat_variants!A:F,6,FALSE),0) -> 0 | E129: =_xlfn.IFNA(VLOOKUP(A129,NDD_repeat_residues!A:F,5,FALSE),0) -> 1 | F129: =VLOOKUP(A129,NDD.gMVP!A:E,3,FALSE) -> 6 | G129: =IF(VLOOKUP(A129,NDD.CADD!A:F,3,FALSE)=0,"",VLOOKUP(A129,NDD.CADD!A:F,3,FALSE)) -> 2 | H129: =VLOOKUP(A129,'NDD.gMVP.pois'!A:E,5,FALSE) -> 1.24E-05 | I129: =IF(VLOOKUP(A129,'NDD.gMVP.cluster'!A:E,5,FALSE)=0,"",VLOOKUP(A129,'NDD.gMVP.cluster'!A:E,5,FALSE)) -> 5.00E-07 | J129: =VLOOKUP(A129,NDD.gMVP!A:E,5, FALSE) -> 1.66E-10 | K129: =VLOOKUP(A129,'NDD.CADD.pois'!A:E,5,FALSE) -> 1.46E-01 | L129: =IF(VLOOKUP(A129,'NDD.CADD.cluster'!A:E,5,FALSE)=0,"",VLOOKUP(A129,'NDD.CADD.cluster'!A:E,5,FALSE)) -> 4.31E-01 | M129: =VLOOKUP(A129,NDD.CADD!A:F,5,FALSE) -> 2.36E-01 | N129: =VLOOKUP(A129,NDD_Kaplanis!A:AI,25,FALSE) -> 7.64E-06 | O129: =AND(N129>0.0000025,OR(J129<0.0000025)) -> TRUE | P129: =VLOOKUP(A129,NDD_Kaplanis!A:AI,26,FALSE) -> 7.64E-06 | Q129: =AND(OR(J129<0.0000025),P129>0.0000025) -> TRUE | R129: =VLOOKUP(A129,NDD_Kaplanis!A:D,4,FALSE) -> consensus | S129: =AND(OR(R129="discordant", R129="none"),OR(J129<0.0000025)) -> FALSE | T129: =VLOOKUP(A129,DDG2P_3_5_2022!A:E,3,FALSE) -> congenital hypotonia, epilepsy, developmental delay, digit abnormalities | U129: =VLOOKUP(A129,DDG2P_3_5_2022!A:E,5,FALSE) -> strong | V129: =AND(ISNA(T129),OR(J129<0.0000025)) -> FALSE | W129: =N129/J129 -> 4.61E+04
A130: SMC3 | B130: =VLOOKUP(A130,NDD_Kaplanis!A:AI,6,FALSE)+VLOOKUP(A130,NDD_Kaplanis!A:AI,13,FALSE)+VLOOKUP(A130,NDD_Kaplanis!A:AI,14,FALSE)+VLOOKUP(A130,NDD_Kaplanis!A:AI,15,FALSE) -> 1 | C130: =VLOOKUP(A130,NDD_Kaplanis!A:AI,10,FALSE) -> 12 | D130: =_xlfn.IFNA(VLOOKUP(A130,NDD_repeat_variants!A:F,6,FALSE),0) -> 0 | E130: =_xlfn.IFNA(VLOOKUP(A130,NDD_repeat_residues!A:F,5,FALSE),0) -> 0 | F130: =VLOOKUP(A130,NDD.gMVP!A:E,3,FALSE) -> 12 | G130: =IF(VLOOKUP(A130,NDD.CADD!A:F,3,FALSE)=0,"",VLOOKUP(A130,NDD.CADD!A:F,3,FALSE)) -> 7 | H130: =VLOOKUP(A130,'NDD.gMVP.pois'!A:E,5,FALSE) -> 6.92E-09 | I130: =IF(VLOOKUP(A130,'NDD.gMVP.cluster'!A:E,5,FALSE)=0,"",VLOOKUP(A130,'NDD.gMVP.cluster'!A:E,5,FALSE)) -> 9.74E-04 | J130: =VLOOKUP(A130,NDD.gMVP!A:E,5, FALSE) -> 1.80E-10 | K130: =VLOOKUP(A130,'NDD.CADD.pois'!A:E,5,FALSE) -> 2.43E-05 | L130: =IF(VLOOKUP(A130,'NDD.CADD.cluster'!A:E,5,FALSE)=0,"",VLOOKUP(A130,'NDD.CADD.cluster'!A:E,5,FALSE)) -> 1.01E-01 | M130: =VLOOKUP(A130,NDD.CADD!A:F,5,FALSE) -> 3.41E-05 | N130: =VLOOKUP(A130,NDD_Kaplanis!A:AI,25,FALSE) -> 1.97E-06 | O130: =AND(N130>0.0000025,OR(J130<0.0000025)) -> FALSE | P130: =VLOOKUP(A130,NDD_Kaplanis!A:AI,26,FALSE) -> 1.97E-06 | Q130: =AND(OR(J130<0.0000025),P130>0.0000025) -> FALSE | R130: =VLOOKUP(A130,NDD_Kaplanis!A:D,4,FALSE) -> consensus | S130: =AND(OR(R130="discordant", R130="none"),OR(J130<0.0000025)) -> FALSE | T130: =VLOOKUP(A130,DDG2P_3_5_2022!A:E,3,FALSE) -> CORNELIA DE LANGE SYNDROME TYPE 3 | U130: =VLOOKUP(A130,DDG2P_3_5_2022!A:E,5,FALSE) -> definitive | V130: =AND(ISNA(T130),OR(J130<0.0000025)) -> FALSE | W130: =N130/J130 -> 1.09E+04
A131: PIK3CA | B131: =VLOOKUP(A131,NDD_Kaplanis!A:AI,6,FALSE)+VLOOKUP(A131,NDD_Kaplanis!A:AI,13,FALSE)+VLOOKUP(A131,NDD_Kaplanis!A:AI,14,FALSE)+VLOOKUP(A131,NDD_Kaplanis!A:AI,15,FALSE) -> 0 | C131: =VLOOKUP(A131,NDD_Kaplanis!A:AI,10,FALSE) -> 15 | D131: =_xlfn.IFNA(VLOOKUP(A131,NDD_repeat_variants!A:F,6,FALSE),0) -> 0 | E131: =_xlfn.IFNA(VLOOKUP(A131,NDD_repeat_residues!A:F,5,FALSE),0) -> 0 | F131: =VLOOKUP(A131,NDD.gMVP!A:E,3,FALSE) -> 11 | G131: =IF(VLOOKUP(A131,NDD.CADD!A:F,3,FALSE)=0,"",VLOOKUP(A131,NDD.CADD!A:F,3,FALSE)) -> 8 | H131: =VLOOKUP(A131,'NDD.gMVP.pois'!A:E,5,FALSE) -> 4.36E-09 | I131: =IF(VLOOKUP(A131,'NDD.gMVP.cluster'!A:E,5,FALSE)=0,"",VLOOKUP(A131,'NDD.gMVP.cluster'!A:E,5,FALSE)) -> 1.55E-03 | J131: =VLOOKUP(A131,NDD.gMVP!A:E,5, FALSE) -> 1.81E-10 | K131: =VLOOKUP(A131,'NDD.CADD.pois'!A:E,5,FALSE) -> 5.73E-07 | L131: =IF(VLOOKUP(A131,'NDD.CADD.cluster'!A:E,5,FALSE)=0,"",VLOOKUP(A131,'NDD.CADD.cluster'!A:E,5,FALSE)) -> 4.59E-02 | M131: =VLOOKUP(A131,NDD.CADD!A:F,5,FALSE) -> 4.86E-07 | N131: =VLOOKUP(A131,NDD_Kaplanis!A:AI,25,FALSE) -> 9.71E-09 | O131: =AND(N131>0.0000025,OR(J131<0.0000025)) -> FALSE | P131: =VLOOKUP(A131,NDD_Kaplanis!A:AI,26,FALSE) -> 9.71E-09 | Q131: =AND(OR(J131<0.0000025),P131>0.0000025) -> FALSE | R131: =VLOOKUP(A131,NDD_Kaplanis!A:D,4,FALSE) -> discordant | S131: =AND(OR(R131="discordant", R131="none"),OR(J131<0.0000025)) -> TRUE | T131: =VLOOKUP(A131,DDG2P_3_5_2022!A:E,3,FALSE) -> CLOVES: CONGENITAL LIPOMATOUS OVERGROWTH, VASCULAR MALFORMATIONS, AND EPIDERMAL NEVI | U131: =VLOOKUP(A131,DDG2P_3_5_2022!A:E,5,FALSE) -> definitive | V131: =AND(ISNA(T131),OR(J131<0.0000025)) -> FALSE | W131: =N131/J131 -> 5.38E+01
A132: BCL11B | B132: =VLOOKUP(A132,NDD_Kaplanis!A:AI,6,FALSE)+VLOOKUP(A132,NDD_Kaplanis!A:AI,13,FALSE)+VLOOKUP(A132,NDD_Kaplanis!A:AI,14,FALSE)+VLOOKUP(A132,NDD_Kaplanis!A:AI,15,FALSE) -> 7 | C132: =VLOOKUP(A132,NDD_Kaplanis!A:AI,10,FALSE) -> 10 | D132: =_xlfn.IFNA(VLOOKUP(A132,NDD_repeat_variants!A:F,6,FALSE),0) -> 0 | E132: =_xlfn.IFNA(VLOOKUP(A132,NDD_repeat_residues!A:F,5,FALSE),0) -> 1 | F132: =VLOOKUP(A132,NDD.gMVP!A:E,3,FALSE) -> 7 | G132: =IF(VLOOKUP(A132,NDD.CADD!A:F,3,FALSE)=0,"",VLOOKUP(A132,NDD.CADD!A:F,3,FALSE)) -> 7 | H132: =VLOOKUP(A132,'NDD.gMVP.pois'!A:E,5,FALSE) -> 1.11E-04 | I132: =IF(VLOOKUP(A132,'NDD.gMVP.cluster'!A:E,5,FALSE)=0,"",VLOOKUP(A132,'NDD.gMVP.cluster'!A:E,5,FALSE)) -> 7.50E-08 | J132: =VLOOKUP(A132,NDD.gMVP!A:E,5, FALSE) -> 2.21E-10 | K132: =VLOOKUP(A132,'NDD.CADD.pois'!A:E,5,FALSE) -> 1.26E-04 | L132: =IF(VLOOKUP(A132,'NDD.CADD.cluster'!A:E,5,FALSE)=0,"",VLOOKUP(A132,'NDD.CADD.cluster'!A:E,5,FALSE)) -> 3.00E-07 | M132: =VLOOKUP(A132,NDD.CADD!A:F,5,FALSE) -> 9.48E-10 | N132: =VLOOKUP(A132,NDD_Kaplanis!A:AI,25,FALSE) -> 6.31E-06 | O132: =AND(N132>0.0000025,OR(J132<0.0000025)) -> TRUE | P132: =VLOOKUP(A132,NDD_Kaplanis!A:AI,26,FALSE) -> 9.49E-10 | Q132: =AND(OR(J132<0.0000025),P132>0.0000025) -> FALSE | R132: =VLOOKUP(A132,NDD_Kaplanis!A:D,4,FALSE) -> discordant | S132: =AND(OR(R132="discordant", R132="none"),OR(J132<0.0000025)) -> TRUE | T132: =VLOOKUP(A132,DDG2P_3_5_2022!A:E,3,FALSE) -> BCL11B-related developmental disorder (monoallelic) | U132: =VLOOKUP(A132,DDG2P_3_5_2022!A:E,5,FALSE) -> strong | V132: =AND(ISNA(T132),OR(J132<0.0000025)) -> FALSE | W132: =N132/J132 -> 2.86E+04
A133: EFTUD2 | B133: =VLOOKUP(A133,NDD_Kaplanis!A:AI,6,FALSE)+VLOOKUP(A133,NDD_Kaplanis!A:AI,13,FALSE)+VLOOKUP(A133,NDD_Kaplanis!A:AI,14,FALSE)+VLOOKUP(A133,NDD_Kaplanis!A:AI,15,FALSE) -> 20 | C133: =VLOOKUP(A133,NDD_Kaplanis!A:AI,10,FALSE) -> 12 | D133: =_xlfn.IFNA(VLOOKUP(A133,NDD_repeat_variants!A:F,6,FALSE),0) -> 1 | E133: =_xlfn.IFNA(VLOOKUP(A133,NDD_repeat_residues!A:F,5,FALSE),0) -> 1 | F133: =VLOOKUP(A133,NDD.gMVP!A:E,3,FALSE) -> 11 | G133: =IF(VLOOKUP(A133,NDD.CADD!A:F,3,FALSE)=0,"",VLOOKUP(A133,NDD.CADD!A:F,3,FALSE)) -> 11 | H133: =VLOOKUP(A133,'NDD.gMVP.pois'!A:E,5,FALSE) -> 2.40E-08 | I133: =IF(VLOOKUP(A133,'NDD.gMVP.cluster'!A:E,5,FALSE)=0,"",VLOOKUP(A133,'NDD.gMVP.cluster'!A:E,5,FALSE)) -> 3.72E-04 | J133: =VLOOKUP(A133,NDD.gMVP!A:E,5, FALSE) -> 2.35E-10 | K133: =VLOOKUP(A133,'NDD.CADD.pois'!A:E,5,FALSE) -> 2.16E-09 | L133: =IF(VLOOKUP(A133,'NDD.CADD.cluster'!A:E,5,FALSE)=0,"",VLOOKUP(A133,'NDD.CADD.cluster'!A:E,5,FALSE)) -> 8.90E-04 | M133: =VLOOKUP(A133,NDD.CADD!A:F,5,FALSE) -> 5.39E-11 | N133: =VLOOKUP(A133,NDD_Kaplanis!A:AI,25,FALSE) -> 2.52E-07 | O133: =AND(N133>0.0000025,OR(J133<0.0000025)) -> FALSE | P133: =VLOOKUP(A133,NDD_Kaplanis!A:AI,26,FALSE) -> 1.00E-14 | Q133: =AND(OR(J133<0.0000025),P133>0.0000025) -> FALSE | R133: =VLOOKUP(A133,NDD_Kaplanis!A:D,4,FALSE) -> consensus | S133: =AND(OR(R133="discordant", R133="none"),OR(J133<0.0000025)) -> FALSE | T133: =VLOOKUP(A133,DDG2P_3_5_2022!A:E,3,FALSE) -> MANDIBULOFACIAL DYSOSTOSIS WITH MICROCEPHALY | U133: =VLOOKUP(A133,DDG2P_3_5_2022!A:E,5,FALSE) -> definitive | V133: =AND(ISNA(T133),OR(J133<0.0000025)) -> FALSE | W133: =N133/J133 -> 1.07E+03
A134: CDK8 | B134: =VLOOKUP(A134,NDD_Kaplanis!A:AI,6,FALSE)+VLOOKUP(A134,NDD_Kaplanis!A:AI,13,FALSE)+VLOOKUP(A134,NDD_Kaplanis!A:AI,14,FALSE)+VLOOKUP(A134,NDD_Kaplanis!A:AI,15,FALSE) -> 0 | C134: =VLOOKUP(A134,NDD_Kaplanis!A:AI,10,FALSE) -> 7 | D134: =_xlfn.IFNA(VLOOKUP(A134,NDD_repeat_variants!A:F,6,FALSE),0) -> 0 | E134: =_xlfn.IFNA(VLOOKUP(A134,NDD_repeat_residues!A:F,5,FALSE),0) -> 2 | F134: =VLOOKUP(A134,NDD.gMVP!A:E,3,FALSE) -> 7 | G134: =IF(VLOOKUP(A134,NDD.CADD!A:F,3,FALSE)=0,"",VLOOKUP(A134,NDD.CADD!A:F,3,FALSE)) -> 5 | H134: =VLOOKUP(A134,'NDD.gMVP.pois'!A:E,5,FALSE) -> 3.68E-07 | I134: =IF(VLOOKUP(A134,'NDD.gMVP.cluster'!A:E,5,FALSE)=0,"",VLOOKUP(A134,'NDD.gMVP.cluster'!A:E,5,FALSE)) -> 4.36E-05 | J134: =VLOOKUP(A134,NDD.gMVP!A:E,5, FALSE) -> 4.15E-10 | K134: =VLOOKUP(A134,'NDD.CADD.pois'!A:E,5,FALSE) -> 2.79E-05 | L134: =IF(VLOOKUP(A134,'NDD.CADD.cluster'!A:E,5,FALSE)=0,"",VLOOKUP(A134,'NDD.CADD.cluster'!A:E,5,FALSE)) -> 9.80E-06 | M134: =VLOOKUP(A134,NDD.CADD!A:F,5,FALSE) -> 6.30E-09 | N134: =VLOOKUP(A134,NDD_Kaplanis!A:AI,25,FALSE) -> 2.34E-07 | O134: =AND(N134>0.0000025,OR(J134<0.0000025)) -> FALSE | P134: =VLOOKUP(A134,NDD_Kaplanis!A:AI,26,FALSE) -> 2.34E-07 | Q134: =AND(OR(J134<0.0000025),P134>0.0000025) -> FALSE | R134: =VLOOKUP(A134,NDD_Kaplanis!A:D,4,FALSE) -> discordant | S134: =AND(OR(R134="discordant", R134="none"),OR(J134<0.0000025)) -> TRUE | T134: =VLOOKUP(A134,DDG2P_3_5_2022!A:E,3,FALSE) -> SYNDROMIC INTELLECTUAL DISABILITY | U134: =VLOOKUP(A134,DDG2P_3_5_2022!A:E,5,FALSE) -> definitive | V134: =AND(ISNA(T134),OR(J134<0.0000025)) -> FALSE | W134: =N134/J134 -> 5.62E+02
A135: COG4 | B135: =VLOOKUP(A135,NDD_Kaplanis!A:AI,6,FALSE)+VLOOKUP(A135,NDD_Kaplanis!A:AI,13,FALSE)+VLOOKUP(A135,NDD_Kaplanis!A:AI,14,FALSE)+VLOOKUP(A135,NDD_Kaplanis!A:AI,15,FALSE) -> 0 | C135: =VLOOKUP(A135,NDD_Kaplanis!A:AI,10,FALSE) -> 6 | D135: =_xlfn.IFNA(VLOOKUP(A135,NDD_repeat_variants!A:F,6,FALSE),0) -> 0 | E135: =_xlfn.IFNA(VLOOKUP(A135,NDD_repeat_residues!A:F,5,FALSE),0) -> 3 | F135: =VLOOKUP(A135,NDD.gMVP!A:E,3,FALSE) -> 4 | G135: =IF(VLOOKUP(A135,NDD.CADD!A:F,3,FALSE)=0,"",VLOOKUP(A135,NDD.CADD!A:F,3,FALSE)) -> 4 | H135: =VLOOKUP(A135,'NDD.gMVP.pois'!A:E,5,FALSE) -> 3.30E-04 | I135: =IF(VLOOKUP(A135,'NDD.gMVP.cluster'!A:E,5,FALSE)=0,"",VLOOKUP(A135,'NDD.gMVP.cluster'!A:E,5,FALSE)) -> 5.00E-08 | J135: =VLOOKUP(A135,NDD.gMVP!A:E,5, FALSE) -> 4.26E-10 | K135: =VLOOKUP(A135,'NDD.CADD.pois'!A:E,5,FALSE) -> 2.47E-03 | L135: =IF(VLOOKUP(A135,'NDD.CADD.cluster'!A:E,5,FALSE)=0,"",VLOOKUP(A135,'NDD.CADD.cluster'!A:E,5,FALSE)) -> 1.50E-07 | M135: =VLOOKUP(A135,NDD.CADD!A:F,5,FALSE) -> 8.42E-09 | N135: =VLOOKUP(A135,NDD_Kaplanis!A:AI,25,FALSE) -> 3.42E-08 | O135: =AND(N135>0.0000025,OR(J135<0.0000025)) -> FALSE | P135: =VLOOKUP(A135,NDD_Kaplanis!A:AI,26,FALSE) -> 3.42E-08 | Q135: =AND(OR(J135<0.0000025),P135>0.0000025) -> FALSE | R135: =VLOOKUP(A135,NDD_Kaplanis!A:D,4,FALSE) -> discordant | S135: =AND(OR(R135="discordant", R135="none"),OR(J135<0.0000025)) -> TRUE | T135: =VLOOKUP(A135,DDG2P_3_5_2022!A:E,3,FALSE) -> COG4-CDG | U135: =VLOOKUP(A135,DDG2P_3_5_2022!A:E,5,FALSE) -> definitive | V135: =AND(ISNA(T135),OR(J135<0.0000025)) -> FALSE | W135: =N135/J135 -> 8.02E+01
A136: RIT1 | B136: =VLOOKUP(A136,NDD_Kaplanis!A:AI,6,FALSE)+VLOOKUP(A136,NDD_Kaplanis!A:AI,13,FALSE)+VLOOKUP(A136,NDD_Kaplanis!A:AI,14,FALSE)+VLOOKUP(A136,NDD_Kaplanis!A:AI,15,FALSE) -> 1 | C136: =VLOOKUP(A136,NDD_Kaplanis!A:AI,10,FALSE) -> 6 | D136: =_xlfn.IFNA(VLOOKUP(A136,NDD_repeat_variants!A:F,6,FALSE),0) -> 0 | E136: =_xlfn.IFNA(VLOOKUP(A136,NDD_repeat_residues!A:F,5,FALSE),0) -> 0 | F136: =VLOOKUP(A136,NDD.gMVP!A:E,3,FALSE) -> 6 | G136: =IF(VLOOKUP(A136,NDD.CADD!A:F,3,FALSE)=0,"",VLOOKUP(A136,NDD.CADD!A:F,3,FALSE)) -> 6 | H136: =VLOOKUP(A136,'NDD.gMVP.pois'!A:E,5,FALSE) -> 2.26E-06 | I136: =IF(VLOOKUP(A136,'NDD.gMVP.cluster'!A:E,5,FALSE)=0,"",VLOOKUP(A136,'NDD.gMVP.cluster'!A:E,5,FALSE)) -> 7.40E-06 | J136: =VLOOKUP(A136,NDD.gMVP!A:E,5, FALSE) -> 4.31E-10 | K136: =VLOOKUP(A136,'NDD.CADD.pois'!A:E,5,FALSE) -> 7.30E-08 | L136: =IF(VLOOKUP(A136,'NDD.CADD.cluster'!A:E,5,FALSE)=0,"",VLOOKUP(A136,'NDD.CADD.cluster'!A:E,5,FALSE)) -> 1.43E-05 | M136: =VLOOKUP(A136,NDD.CADD!A:F,5,FALSE) -> 2.98E-11 | N136: =VLOOKUP(A136,NDD_Kaplanis!A:AI,25,FALSE) -> 1.28E-10 | O136: =AND(N136>0.0000025,OR(J136<0.0000025)) -> FALSE | P136: =VLOOKUP(A136,NDD_Kaplanis!A:AI,26,FALSE) -> 1.28E-10 | Q136: =AND(OR(J136<0.0000025),P136>0.0000025) -> FALSE | R136: =VLOOKUP(A136,NDD_Kaplanis!A:D,4,FALSE) -> consensus | S136: =AND(OR(R136="discordant", R136="none"),OR(J136<0.0000025)) -> FALSE | T136: =VLOOKUP(A136,DDG2P_3_5_2022!A:E,3,FALSE) -> NOONAN SYNDROME 8 | U136: =VLOOKUP(A136,DDG2P_3_5_2022!A:E,5,FALSE) -> definitive | V136: =AND(ISNA(T136),OR(J136<0.0000025)) -> FALSE | W136: =N136/J136 -> 2.97E-01
A137: STAG1 | B137: =VLOOKUP(A137,NDD_Kaplanis!A:AI,6,FALSE)+VLOOKUP(A137,NDD_Kaplanis!A:AI,13,FALSE)+VLOOKUP(A137,NDD_Kaplanis!A:AI,14,FALSE)+VLOOKUP(A137,NDD_Kaplanis!A:AI,15,FALSE) -> 3 | C137: =VLOOKUP(A137,NDD_Kaplanis!A:AI,10,FALSE) -> 8 | D137: =_xlfn.IFNA(VLOOKUP(A137,NDD_repeat_variants!A:F,6,FALSE),0) -> 0 | E137: =_xlfn.IFNA(VLOOKUP(A137,NDD_repeat_residues!A:F,5,FALSE),0) -> 0 | F137: =VLOOKUP(A137,NDD.gMVP!A:E,3,FALSE) -> 7 | G137: =IF(VLOOKUP(A137,NDD.CADD!A:F,3,FALSE)=0,"",VLOOKUP(A137,NDD.CADD!A:F,3,FALSE)) -> 7 | H137: =VLOOKUP(A137,'NDD.gMVP.pois'!A:E,5,FALSE) -> 1.74E-06 | I137: =IF(VLOOKUP(A137,'NDD.gMVP.cluster'!A:E,5,FALSE)=0,"",VLOOKUP(A137,'NDD.gMVP.cluster'!A:E,5,FALSE)) -> 1.03E-05 | J137: =VLOOKUP(A137,NDD.gMVP!A:E,5, FALSE) -> 4.62E-10 | K137: =VLOOKUP(A137,'NDD.CADD.pois'!A:E,5,FALSE) -> 5.02E-06 | L137: =IF(VLOOKUP(A137,'NDD.CADD.cluster'!A:E,5,FALSE)=0,"",VLOOKUP(A137,'NDD.CADD.cluster'!A:E,5,FALSE)) -> 1.85E-05 | M137: =VLOOKUP(A137,NDD.CADD!A:F,5,FALSE) -> 2.24E-09 | N137: =VLOOKUP(A137,NDD_Kaplanis!A:AI,25,FALSE) -> 3.08E-06 | O137: =AND(N137>0.0000025,OR(J137<0.0000025)) -> TRUE | P137: =VLOOKUP(A137,NDD_Kaplanis!A:AI,26,FALSE) -> 3.08E-06 | Q137: =AND(OR(J137<0.0000025),P137>0.0000025) -> TRUE | R137: =VLOOKUP(A137,NDD_Kaplanis!A:D,4,FALSE) -> consensus | S137: =AND(OR(R137="discordant", R137="none"),OR(J137<0.0000025)) -> FALSE | T137: =VLOOKUP(A137,DDG2P_3_5_2022!A:E,3,FALSE) -> STAG1 syndromic intellectual disability | U137: =VLOOKUP(A137,DDG2P_3_5_2022!A:E,5,FALSE) -> definitive | V137: =AND(ISNA(T137),OR(J137<0.0000025)) -> FALSE | W137: =N137/J137 -> 6.67E+03
A138: KDM5C | B138: =VLOOKUP(A138,NDD_Kaplanis!A:AI,6,FALSE)+VLOOKUP(A138,NDD_Kaplanis!A:AI,13,FALSE)+VLOOKUP(A138,NDD_Kaplanis!A:AI,14,FALSE)+VLOOKUP(A138,NDD_Kaplanis!A:AI,15,FALSE) -> 5 | C138: =VLOOKUP(A138,NDD_Kaplanis!A:AI,10,FALSE) -> 10 | D138: =_xlfn.IFNA(VLOOKUP(A138,NDD_repeat_variants!A:F,6,FALSE),0) -> 0 | E138: =_xlfn.IFNA(VLOOKUP(A138,NDD_repeat_residues!A:F,5,FALSE),0) -> 0 | F138: =VLOOKUP(A138,NDD.gMVP!A:E,3,FALSE) -> 9 | G138: =IF(VLOOKUP(A138,NDD.CADD!A:F,3,FALSE)=0,"",VLOOKUP(A138,NDD.CADD!A:F,3,FALSE)) -> 8 | H138: =VLOOKUP(A138,'NDD.gMVP.pois'!A:E,5,FALSE) -> 5.22E-06 | I138: =IF(VLOOKUP(A138,'NDD.gMVP.cluster'!A:E,5,FALSE)=0,"",VLOOKUP(A138,'NDD.gMVP.cluster'!A:E,5,FALSE)) -> 4.30E-06 | J138: =VLOOKUP(A138,NDD.gMVP!A:E,5, FALSE) -> 5.73E-10 | K138: =VLOOKUP(A138,'NDD.CADD.pois'!A:E,5,FALSE) -> 1.74E-07 | L138: =IF(VLOOKUP(A138,'NDD.CADD.cluster'!A:E,5,FALSE)=0,"",VLOOKUP(A138,'NDD.CADD.cluster'!A:E,5,FALSE)) -> 4.40E-06 | M138: =VLOOKUP(A138,NDD.CADD!A:F,5,FALSE) -> 2.21E-11 | N138: =VLOOKUP(A138,NDD_Kaplanis!A:AI,25,FALSE) -> 2.22E-06 | O138: =AND(N138>0.0000025,OR(J138<0.0000025)) -> FALSE | P138: =VLOOKUP(A138,NDD_Kaplanis!A:AI,26,FALSE) -> 1.82E-12 | Q138: =AND(OR(J138<0.0000025),P138>0.0000025) -> FALSE | R138: =VLOOKUP(A138,NDD_Kaplanis!A:D,4,FALSE) -> discordant | S138: =AND(OR(R138="discordant", R138="none"),OR(J138<0.0000025)) -> TRUE | T138: =VLOOKUP(A138,DDG2P_3_5_2022!A:E,3,FALSE) -> INTELLECTUAL DEVELOPMENTAL DISORDER SYNDROMIC X-LINKED JARID1C-RELATED | U138: =VLOOKUP(A138,DDG2P_3_5_2022!A:E,5,FALSE) -> definitive | V138: =AND(ISNA(T138),OR(J138<0.0000025)) -> FALSE | W138: =N138/J138 -> 3.88E+03
A139: PHIP | B139: =VLOOKUP(A139,NDD_Kaplanis!A:AI,6,FALSE)+VLOOKUP(A139,NDD_Kaplanis!A:AI,13,FALSE)+VLOOKUP(A139,NDD_Kaplanis!A:AI,14,FALSE)+VLOOKUP(A139,NDD_Kaplanis!A:AI,15,FALSE) -> 8 | C139: =VLOOKUP(A139,NDD_Kaplanis!A:AI,10,FALSE) -> 13 | D139: =_xlfn.IFNA(VLOOKUP(A139,NDD_repeat_variants!A:F,6,FALSE),0) -> 0 | E139: =_xlfn.IFNA(VLOOKUP(A139,NDD_repeat_residues!A:F,5,FALSE),0) -> 0 | F139: =VLOOKUP(A139,NDD.gMVP!A:E,3,FALSE) -> 11 | G139: =IF(VLOOKUP(A139,NDD.CADD!A:F,3,FALSE)=0,"",VLOOKUP(A139,NDD.CADD!A:F,3,FALSE)) -> 12 | H139: =VLOOKUP(A139,'NDD.gMVP.pois'!A:E,5,FALSE) -> 2.75E-09 | I139: =IF(VLOOKUP(A139,'NDD.gMVP.cluster'!A:E,5,FALSE)=0,"",VLOOKUP(A139,'NDD.gMVP.cluster'!A:E,5,FALSE)) -> 8.70E-03 | J139: =VLOOKUP(A139,NDD.gMVP!A:E,5, FALSE) -> 6.08E-10 | K139: =VLOOKUP(A139,'NDD.CADD.pois'!A:E,5,FALSE) -> 8.47E-09 | L139: =IF(VLOOKUP(A139,'NDD.CADD.cluster'!A:E,5,FALSE)=0,"",VLOOKUP(A139,'NDD.CADD.cluster'!A:E,5,FALSE)) -> 1.29E-01 | M139: =VLOOKUP(A139,NDD.CADD!A:F,5,FALSE) -> 2.36E-08 | N139: =VLOOKUP(A139,NDD_Kaplanis!A:AI,25,FALSE) -> 2.32E-06 | O139: =AND(N139>0.0000025,OR(J139<0.0000025)) -> FALSE | P139: =VLOOKUP(A139,NDD_Kaplanis!A:AI,26,FALSE) -> 7.09E-15 | Q139: =AND(OR(J139<0.0000025),P139>0.0000025) -> FALSE | R139: =VLOOKUP(A139,NDD_Kaplanis!A:D,4,FALSE) -> consensus | S139: =AND(OR(R139="discordant", R139="none"),OR(J139<0.0000025)) -> FALSE | T139: =VLOOKUP(A139,DDG2P_3_5_2022!A:E,3,FALSE) -> Developmental delay, ID, obesity and dysmorphic features | U139: =VLOOKUP(A139,DDG2P_3_5_2022!A:E,5,FALSE) -> definitive | V139: =AND(ISNA(T139),OR(J139<0.0000025)) -> FALSE | W139: =N139/J139 -> 3.81E+03
A140: CACNA1C | B140: =VLOOKUP(A140,NDD_Kaplanis!A:AI,6,FALSE)+VLOOKUP(A140,NDD_Kaplanis!A:AI,13,FALSE)+VLOOKUP(A140,NDD_Kaplanis!A:AI,14,FALSE)+VLOOKUP(A140,NDD_Kaplanis!A:AI,15,FALSE) -> 5 | C140: =VLOOKUP(A140,NDD_Kaplanis!A:AI,10,FALSE) -> 18 | D140: =_xlfn.IFNA(VLOOKUP(A140,NDD_repeat_variants!A:F,6,FALSE),0) -> 0 | E140: =_xlfn.IFNA(VLOOKUP(A140,NDD_repeat_residues!A:F,5,FALSE),0) -> 2 | F140: =VLOOKUP(A140,NDD.gMVP!A:E,3,FALSE) -> 17 | G140: =IF(VLOOKUP(A140,NDD.CADD!A:F,3,FALSE)=0,"",VLOOKUP(A140,NDD.CADD!A:F,3,FALSE)) -> 15 | H140: =VLOOKUP(A140,'NDD.gMVP.pois'!A:E,5,FALSE) -> 3.58E-08 | I140: =IF(VLOOKUP(A140,'NDD.gMVP.cluster'!A:E,5,FALSE)=0,"",VLOOKUP(A140,'NDD.gMVP.cluster'!A:E,5,FALSE)) -> 7.34E-04 | J140: =VLOOKUP(A140,NDD.gMVP!A:E,5, FALSE) -> 6.67E-10 | K140: =VLOOKUP(A140,'NDD.CADD.pois'!A:E,5,FALSE) -> 3.54E-08 | L140: =IF(VLOOKUP(A140,'NDD.CADD.cluster'!A:E,5,FALSE)=0,"",VLOOKUP(A140,'NDD.CADD.cluster'!A:E,5,FALSE)) -> 5.94E-04 | M140: =VLOOKUP(A140,NDD.CADD!A:F,5,FALSE) -> 5.38E-10 | N140: =VLOOKUP(A140,NDD_Kaplanis!A:AI,25,FALSE) -> 3.89E-11 | O140: =AND(N140>0.0000025,OR(J140<0.0000025)) -> FALSE | P140: =VLOOKUP(A140,NDD_Kaplanis!A:AI,26,FALSE) -> 3.89E-11 | Q140: =AND(OR(J140<0.0000025),P140>0.0000025) -> FALSE | R140: =VLOOKUP(A140,NDD_Kaplanis!A:D,4,FALSE) -> consensus | S140: =AND(OR(R140="discordant", R140="none"),OR(J140<0.0000025)) -> FALSE | T140: =VLOOKUP(A140,DDG2P_3_5_2022!A:E,3,FALSE) -> TIMOTHY SYNDROME | U140: =VLOOKUP(A140,DDG2P_3_5_2022!A:E,5,FALSE) -> definitive | V140: =AND(ISNA(T140),OR(J140<0.0000025)) -> FALSE | W140: =N140/J140 -> 5.84E-02
A141: DHX30 | B141: =VLOOKUP(A141,NDD_Kaplanis!A:AI,6,FALSE)+VLOOKUP(A141,NDD_Kaplanis!A:AI,13,FALSE)+VLOOKUP(A141,NDD_Kaplanis!A:AI,14,FALSE)+VLOOKUP(A141,NDD_Kaplanis!A:AI,15,FALSE) -> 0 | C141: =VLOOKUP(A141,NDD_Kaplanis!A:AI,10,FALSE) -> 8 | D141: =_xlfn.IFNA(VLOOKUP(A141,NDD_repeat_variants!A:F,6,FALSE),0) -> 1 | E141: =_xlfn.IFNA(VLOOKUP(A141,NDD_repeat_residues!A:F,5,FALSE),0) -> 3 | F141: =VLOOKUP(A141,NDD.gMVP!A:E,3,FALSE) -> 8 | G141: =IF(VLOOKUP(A141,NDD.CADD!A:F,3,FALSE)=0,"",VLOOKUP(A141,NDD.CADD!A:F,3,FALSE)) -> 8 | H141: =VLOOKUP(A141,'NDD.gMVP.pois'!A:E,5,FALSE) -> 2.91E-04 | I141: =IF(VLOOKUP(A141,'NDD.gMVP.cluster'!A:E,5,FALSE)=0,"",VLOOKUP(A141,'NDD.gMVP.cluster'!A:E,5,FALSE)) -> 1.00E-07 | J141: =VLOOKUP(A141,NDD.gMVP!A:E,5, FALSE) -> 7.36E-10 | K141: =VLOOKUP(A141,'NDD.CADD.pois'!A:E,5,FALSE) -> 1.67E-06 | L141: =IF(VLOOKUP(A141,'NDD.CADD.cluster'!A:E,5,FALSE)=0,"",VLOOKUP(A141,'NDD.CADD.cluster'!A:E,5,FALSE)) -> 1.00E-07 | M141: =VLOOKUP(A141,NDD.CADD!A:F,5,FALSE) -> 5.08E-12 | N141: =VLOOKUP(A141,NDD_Kaplanis!A:AI,25,FALSE) -> 2.62E-06 | O141: =AND(N141>0.0000025,OR(J141<0.0000025)) -> TRUE | P141: =VLOOKUP(A141,NDD_Kaplanis!A:AI,26,FALSE) -> 2.62E-06 | Q141: =AND(OR(J141<0.0000025),P141>0.0000025) -> TRUE | R141: =VLOOKUP(A141,NDD_Kaplanis!A:D,4,FALSE) -> consensus | S141: =AND(OR(R141="discordant", R141="none"),OR(J141<0.0000025)) -> FALSE | T141: =VLOOKUP(A141,DDG2P_3_5_2022!A:E,3,FALSE) -> Neurodevelopmental Disorder | U141: =VLOOKUP(A141,DDG2P_3_5_2022!A:E,5,FALSE) -> strong | V141: =AND(ISNA(T141),OR(J141<0.0000025)) -> FALSE | W141: =N141/J141 -> 3.56E+03
A142: DNM1L | B142: =VLOOKUP(A142,NDD_Kaplanis!A:AI,6,FALSE)+VLOOKUP(A142,NDD_Kaplanis!A:AI,13,FALSE)+VLOOKUP(A142,NDD_Kaplanis!A:AI,14,FALSE)+VLOOKUP(A142,NDD_Kaplanis!A:AI,15,FALSE) -> 0 | C142: =VLOOKUP(A142,NDD_Kaplanis!A:AI,10,FALSE) -> 11 | D142: =_xlfn.IFNA(VLOOKUP(A142,NDD_repeat_variants!A:F,6,FALSE),0) -> 0 | E142: =_xlfn.IFNA(VLOOKUP(A142,NDD_repeat_residues!A:F,5,FALSE),0) -> 2 | F142: =VLOOKUP(A142,NDD.gMVP!A:E,3,FALSE) -> 10 | G142: =IF(VLOOKUP(A142,NDD.CADD!A:F,3,FALSE)=0,"",VLOOKUP(A142,NDD.CADD!A:F,3,FALSE)) -> 10 | H142: =VLOOKUP(A142,'NDD.gMVP.pois'!A:E,5,FALSE) -> 2.71E-09 | I142: =IF(VLOOKUP(A142,'NDD.gMVP.cluster'!A:E,5,FALSE)=0,"",VLOOKUP(A142,'NDD.gMVP.cluster'!A:E,5,FALSE)) -> 1.70E-02 | J142: =VLOOKUP(A142,NDD.gMVP!A:E,5, FALSE) -> 1.14E-09 | K142: =VLOOKUP(A142,'NDD.CADD.pois'!A:E,5,FALSE) -> 4.29E-10 | L142: =IF(VLOOKUP(A142,'NDD.CADD.cluster'!A:E,5,FALSE)=0,"",VLOOKUP(A142,'NDD.CADD.cluster'!A:E,5,FALSE)) -> 2.43E-02 | M142: =VLOOKUP(A142,NDD.CADD!A:F,5,FALSE) -> 2.75E-10 | N142: =VLOOKUP(A142,NDD_Kaplanis!A:AI,25,FALSE) -> 2.74E-09 | O142: =AND(N142>0.0000025,OR(J142<0.0000025)) -> FALSE | P142: =VLOOKUP(A142,NDD_Kaplanis!A:AI,26,FALSE) -> 2.74E-09 | Q142: =AND(OR(J142<0.0000025),P142>0.0000025) -> FALSE | R142: =VLOOKUP(A142,NDD_Kaplanis!A:D,4,FALSE) -> discordant | S142: =AND(OR(R142="discordant", R142="none"),OR(J142<0.0000025)) -> TRUE | T142: =VLOOKUP(A142,DDG2P_3_5_2022!A:E,3,FALSE) -> DNM1L-related developmental disorder (monoallelic) | U142: =VLOOKUP(A142,DDG2P_3_5_2022!A:E,5,FALSE) -> strong | V142: =AND(ISNA(T142),OR(J142<0.0000025)) -> FALSE | W142: =N142/J142 -> 2.40E+00
A143: KCND3 | B143: =VLOOKUP(A143,NDD_Kaplanis!A:AI,6,FALSE)+VLOOKUP(A143,NDD_Kaplanis!A:AI,13,FALSE)+VLOOKUP(A143,NDD_Kaplanis!A:AI,14,FALSE)+VLOOKUP(A143,NDD_Kaplanis!A:AI,15,FALSE) -> 0 | C143: =VLOOKUP(A143,NDD_Kaplanis!A:AI,10,FALSE) -> 11 | D143: =_xlfn.IFNA(VLOOKUP(A143,NDD_repeat_variants!A:F,6,FALSE),0) -> 0 | E143: =_xlfn.IFNA(VLOOKUP(A143,NDD_repeat_residues!A:F,5,FALSE),0) -> 0 | F143: =VLOOKUP(A143,NDD.gMVP!A:E,3,FALSE) -> 10 | G143: =IF(VLOOKUP(A143,NDD.CADD!A:F,3,FALSE)=0,"",VLOOKUP(A143,NDD.CADD!A:F,3,FALSE)) -> 9 | H143: =VLOOKUP(A143,'NDD.gMVP.pois'!A:E,5,FALSE) -> 6.04E-08 | I143: =IF(VLOOKUP(A143,'NDD.gMVP.cluster'!A:E,5,FALSE)=0,"",VLOOKUP(A143,'NDD.gMVP.cluster'!A:E,5,FALSE)) -> 9.23E-04 | J143: =VLOOKUP(A143,NDD.gMVP!A:E,5, FALSE) -> 1.37E-09 | K143: =VLOOKUP(A143,'NDD.CADD.pois'!A:E,5,FALSE) -> 7.92E-08 | L143: =IF(VLOOKUP(A143,'NDD.CADD.cluster'!A:E,5,FALSE)=0,"",VLOOKUP(A143,'NDD.CADD.cluster'!A:E,5,FALSE)) -> 1.36E-03 | M143: =VLOOKUP(A143,NDD.CADD!A:F,5,FALSE) -> 2.58E-09 | N143: =VLOOKUP(A143,NDD_Kaplanis!A:AI,25,FALSE) -> 1.34E-08 | O143: =AND(N143>0.0000025,OR(J143<0.0000025)) -> FALSE | P143: =VLOOKUP(A143,NDD_Kaplanis!A:AI,26,FALSE) -> 1.34E-08 | Q143: =AND(OR(J143<0.0000025),P143>0.0000025) -> FALSE | R143: =VLOOKUP(A143,NDD_Kaplanis!A:D,4,FALSE) -> discordant | S143: =AND(OR(R143="discordant", R143="none"),OR(J143<0.0000025)) -> TRUE | T143: =VLOOKUP(A143,DDG2P_3_5_2022!A:E,3,FALSE) -> KCND3-related developmental disorder (monoallelic) | U143: =VLOOKUP(A143,DDG2P_3_5_2022!A:E,5,FALSE) -> strong | V143: =AND(ISNA(T143),OR(J143<0.0000025)) -> FALSE | W143: =N143/J143 -> 9.78E+00
A144: KANSL1 | B144: =VLOOKUP(A144,NDD_Kaplanis!A:AI,6,FALSE)+VLOOKUP(A144,NDD_Kaplanis!A:AI,13,FALSE)+VLOOKUP(A144,NDD_Kaplanis!A:AI,14,FALSE)+VLOOKUP(A144,NDD_Kaplanis!A:AI,15,FALSE) -> 19 | C144: =VLOOKUP(A144,NDD_Kaplanis!A:AI,10,FALSE) -> 8 | D144: =_xlfn.IFNA(VLOOKUP(A144,NDD_repeat_variants!A:F,6,FALSE),0) -> 0 | E144: =_xlfn.IFNA(VLOOKUP(A144,NDD_repeat_residues!A:F,5,FALSE),0) -> 0 | F144: =VLOOKUP(A144,NDD.gMVP!A:E,3,FALSE) -> 4 | G144: =IF(VLOOKUP(A144,NDD.CADD!A:F,3,FALSE)=0,"",VLOOKUP(A144,NDD.CADD!A:F,3,FALSE)) -> 6 | H144: =VLOOKUP(A144,'NDD.gMVP.pois'!A:E,5,FALSE) -> 5.41E-06 | I144: =IF(VLOOKUP(A144,'NDD.gMVP.cluster'!A:E,5,FALSE)=0,"",VLOOKUP(A144,'NDD.gMVP.cluster'!A:E,5,FALSE)) -> 1.13E-05 | J144: =VLOOKUP(A144,NDD.gMVP!A:E,5, FALSE) -> 1.50E-09 | K144: =VLOOKUP(A144,'NDD.CADD.pois'!A:E,5,FALSE) -> 1.35E-04 | L144: =IF(VLOOKUP(A144,'NDD.CADD.cluster'!A:E,5,FALSE)=0,"",VLOOKUP(A144,'NDD.CADD.cluster'!A:E,5,FALSE)) -> 4.78E-04 | M144: =VLOOKUP(A144,NDD.CADD!A:F,5,FALSE) -> 1.13E-06 | N144: =VLOOKUP(A144,NDD_Kaplanis!A:AI,25,FALSE) -> 1.72E-04 | O144: =AND(N144>0.0000025,OR(J144<0.0000025)) -> TRUE | P144: =VLOOKUP(A144,NDD_Kaplanis!A:AI,26,FALSE) -> 1.00E-14 | Q144: =AND(OR(J144<0.0000025),P144>0.0000025) -> FALSE | R144: =VLOOKUP(A144,NDD_Kaplanis!A:D,4,FALSE) -> consensus | S144: =AND(OR(R144="discordant", R144="none"),OR(J144<0.0000025)) -> FALSE | T144: =VLOOKUP(A144,DDG2P_3_5_2022!A:E,3,FALSE) -> CHROMOSOME 17Q21.31 MICRODELETION SYNDROME | U144: =VLOOKUP(A144,DDG2P_3_5_2022!A:E,5,FALSE) -> definitive | V144: =AND(ISNA(T144),OR(J144<0.0000025)) -> FALSE | W144: =N144/J144 -> 1.15E+05
A145: RAC1 | B145: =VLOOKUP(A145,NDD_Kaplanis!A:AI,6,FALSE)+VLOOKUP(A145,NDD_Kaplanis!A:AI,13,FALSE)+VLOOKUP(A145,NDD_Kaplanis!A:AI,14,FALSE)+VLOOKUP(A145,NDD_Kaplanis!A:AI,15,FALSE) -> 0 | C145: =VLOOKUP(A145,NDD_Kaplanis!A:AI,10,FALSE) -> 8 | D145: =_xlfn.IFNA(VLOOKUP(A145,NDD_repeat_variants!A:F,6,FALSE),0) -> 1 | E145: =_xlfn.IFNA(VLOOKUP(A145,NDD_repeat_residues!A:F,5,FALSE),0) -> 0 | F145: =VLOOKUP(A145,NDD.gMVP!A:E,3,FALSE) -> 8 | G145: =IF(VLOOKUP(A145,NDD.CADD!A:F,3,FALSE)=0,"",VLOOKUP(A145,NDD.CADD!A:F,3,FALSE)) -> 8 | H145: =VLOOKUP(A145,'NDD.gMVP.pois'!A:E,5,FALSE) -> 1.56E-09 | I145: =IF(VLOOKUP(A145,'NDD.gMVP.cluster'!A:E,5,FALSE)=0,"",VLOOKUP(A145,'NDD.gMVP.cluster'!A:E,5,FALSE)) -> 3.93E-02 | J145: =VLOOKUP(A145,NDD.gMVP!A:E,5, FALSE) -> 1.51E-09 | K145: =VLOOKUP(A145,'NDD.CADD.pois'!A:E,5,FALSE) -> 4.42E-11 | L145: =IF(VLOOKUP(A145,'NDD.CADD.cluster'!A:E,5,FALSE)=0,"",VLOOKUP(A145,'NDD.CADD.cluster'!A:E,5,FALSE)) -> 3.77E-02 | M145: =VLOOKUP(A145,NDD.CADD!A:F,5,FALSE) -> 4.68E-11 | N145: =VLOOKUP(A145,NDD_Kaplanis!A:AI,25,FALSE) -> 6.83E-09 | O145: =AND(N145>0.0000025,OR(J145<0.0000025)) -> FALSE | P145: =VLOOKUP(A145,NDD_Kaplanis!A:AI,26,FALSE) -> 4.38E-10 | Q145: =AND(OR(J145<0.0000025),P145>0.0000025) -> FALSE | R145: =VLOOKUP(A145,NDD_Kaplanis!A:D,4,FALSE) -> consensus | S145: =AND(OR(R145="discordant", R145="none"),OR(J145<0.0000025)) -> FALSE | T145: =VLOOKUP(A145,DDG2P_3_5_2022!A:E,3,FALSE) -> Developmental Disorders with Diverse Phenotypes | U145: =VLOOKUP(A145,DDG2P_3_5_2022!A:E,5,FALSE) -> strong | V145: =AND(ISNA(T145),OR(J145<0.0000025)) -> FALSE | W145: =N145/J145 -> 4.53E+00
A146: NALCN | B146: =VLOOKUP(A146,NDD_Kaplanis!A:AI,6,FALSE)+VLOOKUP(A146,NDD_Kaplanis!A:AI,13,FALSE)+VLOOKUP(A146,NDD_Kaplanis!A:AI,14,FALSE)+VLOOKUP(A146,NDD_Kaplanis!A:AI,15,FALSE) -> 0 | C146: =VLOOKUP(A146,NDD_Kaplanis!A:AI,10,FALSE) -> 14 | D146: =_xlfn.IFNA(VLOOKUP(A146,NDD_repeat_variants!A:F,6,FALSE),0) -> 0 | E146: =_xlfn.IFNA(VLOOKUP(A146,NDD_repeat_residues!A:F,5,FALSE),0) -> 0 | F146: =VLOOKUP(A146,NDD.gMVP!A:E,3,FALSE) -> 13 | G146: =IF(VLOOKUP(A146,NDD.CADD!A:F,3,FALSE)=0,"",VLOOKUP(A146,NDD.CADD!A:F,3,FALSE)) -> 10 | H146: =VLOOKUP(A146,'NDD.gMVP.pois'!A:E,5,FALSE) -> 1.19E-06 | I146: =IF(VLOOKUP(A146,'NDD.gMVP.cluster'!A:E,5,FALSE)=0,"",VLOOKUP(A146,'NDD.gMVP.cluster'!A:E,5,FALSE)) -> 6.64E-05 | J146: =VLOOKUP(A146,NDD.gMVP!A:E,5, FALSE) -> 1.91E-09 | K146: =VLOOKUP(A146,'NDD.CADD.pois'!A:E,5,FALSE) -> 1.31E-06 | L146: =IF(VLOOKUP(A146,'NDD.CADD.cluster'!A:E,5,FALSE)=0,"",VLOOKUP(A146,'NDD.CADD.cluster'!A:E,5,FALSE)) -> 8.00E-07 | M146: =VLOOKUP(A146,NDD.CADD!A:F,5,FALSE) -> 3.00E-11 | N146: =VLOOKUP(A146,NDD_Kaplanis!A:AI,25,FALSE) -> 1.18E-05 | O146: =AND(N146>0.0000025,OR(J146<0.0000025)) -> TRUE | P146: =VLOOKUP(A146,NDD_Kaplanis!A:AI,26,FALSE) -> 1.18E-05 | Q146: =AND(OR(J146<0.0000025),P146>0.0000025) -> TRUE | R146: =VLOOKUP(A146,NDD_Kaplanis!A:D,4,FALSE) -> consensus | S146: =AND(OR(R146="discordant", R146="none"),OR(J146<0.0000025)) -> FALSE | T146: =VLOOKUP(A146,DDG2P_3_5_2022!A:E,3,FALSE) -> CONGENITAL CONTRACTURES OF THE LIMBS AND FACE, HYPOTONIA, AND DEVELOPMENTAL DELAY | U146: =VLOOKUP(A146,DDG2P_3_5_2022!A:E,5,FALSE) -> definitive | V146: =AND(ISNA(T146),OR(J146<0.0000025)) -> FALSE | W146: =N146/J146 -> 6.18E+03
A147: DDX23 | B147: =VLOOKUP(A147,NDD_Kaplanis!A:AI,6,FALSE)+VLOOKUP(A147,NDD_Kaplanis!A:AI,13,FALSE)+VLOOKUP(A147,NDD_Kaplanis!A:AI,14,FALSE)+VLOOKUP(A147,NDD_Kaplanis!A:AI,15,FALSE) -> 0 | C147: =VLOOKUP(A147,NDD_Kaplanis!A:AI,10,FALSE) -> 6 | D147: =_xlfn.IFNA(VLOOKUP(A147,NDD_repeat_variants!A:F,6,FALSE),0) -> 0 | E147: =_xlfn.IFNA(VLOOKUP(A147,NDD_repeat_residues!A:F,5,FALSE),0) -> 3 | F147: =VLOOKUP(A147,NDD.gMVP!A:E,3,FALSE) -> 6 | G147: =IF(VLOOKUP(A147,NDD.CADD!A:F,3,FALSE)=0,"",VLOOKUP(A147,NDD.CADD!A:F,3,FALSE)) -> 5 | H147: =VLOOKUP(A147,'NDD.gMVP.pois'!A:E,5,FALSE) -> 3.89E-04 | I147: =IF(VLOOKUP(A147,'NDD.gMVP.cluster'!A:E,5,FALSE)=0,"",VLOOKUP(A147,'NDD.gMVP.cluster'!A:E,5,FALSE)) -> 3.00E-07 | J147: =VLOOKUP(A147,NDD.gMVP!A:E,5, FALSE) -> 2.78E-09 | K147: =VLOOKUP(A147,'NDD.CADD.pois'!A:E,5,FALSE) -> 8.21E-04 | L147: =IF(VLOOKUP(A147,'NDD.CADD.cluster'!A:E,5,FALSE)=0,"",VLOOKUP(A147,'NDD.CADD.cluster'!A:E,5,FALSE)) -> 5.00E-08 | M147: =VLOOKUP(A147,NDD.CADD!A:F,5,FALSE) -> 1.02E-09 | N147: =VLOOKUP(A147,NDD_Kaplanis!A:AI,25,FALSE) -> 3.51E-08 | O147: =AND(N147>0.0000025,OR(J147<0.0000025)) -> FALSE | P147: =VLOOKUP(A147,NDD_Kaplanis!A:AI,26,FALSE) -> 3.51E-08 | Q147: =AND(OR(J147<0.0000025),P147>0.0000025) -> FALSE | R147: =VLOOKUP(A147,NDD_Kaplanis!A:D,4,FALSE) -> novel | S147: =AND(OR(R147="discordant", R147="none"),OR(J147<0.0000025)) -> FALSE | T147: =VLOOKUP(A147,DDG2P_3_5_2022!A:E,3,FALSE) -> DDX23-related developmental disorder (monoallelic) | U147: =VLOOKUP(A147,DDG2P_3_5_2022!A:E,5,FALSE) -> definitive | V147: =AND(ISNA(T147),OR(J147<0.0000025)) -> FALSE | W147: =N147/J147 -> 1.26E+01
A148: PDE4D | B148: =VLOOKUP(A148,NDD_Kaplanis!A:AI,6,FALSE)+VLOOKUP(A148,NDD_Kaplanis!A:AI,13,FALSE)+VLOOKUP(A148,NDD_Kaplanis!A:AI,14,FALSE)+VLOOKUP(A148,NDD_Kaplanis!A:AI,15,FALSE) -> 0 | C148: =VLOOKUP(A148,NDD_Kaplanis!A:AI,10,FALSE) -> 9 | D148: =_xlfn.IFNA(VLOOKUP(A148,NDD_repeat_variants!A:F,6,FALSE),0) -> 0 | E148: =_xlfn.IFNA(VLOOKUP(A148,NDD_repeat_residues!A:F,5,FALSE),0) -> 0 | F148: =VLOOKUP(A148,NDD.gMVP!A:E,3,FALSE) -> 8 | G148: =IF(VLOOKUP(A148,NDD.CADD!A:F,3,FALSE)=0,"",VLOOKUP(A148,NDD.CADD!A:F,3,FALSE)) -> 9 | H148: =VLOOKUP(A148,'NDD.gMVP.pois'!A:E,5,FALSE) -> 5.23E-07 | I148: =IF(VLOOKUP(A148,'NDD.gMVP.cluster'!A:E,5,FALSE)=0,"",VLOOKUP(A148,'NDD.gMVP.cluster'!A:E,5,FALSE)) -> 2.25E-04 | J148: =VLOOKUP(A148,NDD.gMVP!A:E,5, FALSE) -> 2.80E-09 | K148: =VLOOKUP(A148,'NDD.CADD.pois'!A:E,5,FALSE) -> 4.88E-08 | L148: =IF(VLOOKUP(A148,'NDD.CADD.cluster'!A:E,5,FALSE)=0,"",VLOOKUP(A148,'NDD.CADD.cluster'!A:E,5,FALSE)) -> 1.22E-04 | M148: =VLOOKUP(A148,NDD.CADD!A:F,5,FALSE) -> 1.61E-10 | N148: =VLOOKUP(A148,NDD_Kaplanis!A:AI,25,FALSE) -> 5.19E-06 | O148: =AND(N148>0.0000025,OR(J148<0.0000025)) -> TRUE | P148: =VLOOKUP(A148,NDD_Kaplanis!A:AI,26,FALSE) -> 5.19E-06 | Q148: =AND(OR(J148<0.0000025),P148>0.0000025) -> TRUE | R148: =VLOOKUP(A148,NDD_Kaplanis!A:D,4,FALSE) -> consensus | S148: =AND(OR(R148="discordant", R148="none"),OR(J148<0.0000025)) -> FALSE | T148: =VLOOKUP(A148,DDG2P_3_5_2022!A:E,3,FALSE) -> ACRODYSOSTOSIS | U148: =VLOOKUP(A148,DDG2P_3_5_2022!A:E,5,FALSE) -> definitive | V148: =AND(ISNA(T148),OR(J148<0.0000025)) -> FALSE | W148: =N148/J148 -> 1.85E+03
A149: GABBR2 | B149: =VLOOKUP(A149,NDD_Kaplanis!A:AI,6,FALSE)+VLOOKUP(A149,NDD_Kaplanis!A:AI,13,FALSE)+VLOOKUP(A149,NDD_Kaplanis!A:AI,14,FALSE)+VLOOKUP(A149,NDD_Kaplanis!A:AI,15,FALSE) -> 0 | C149: =VLOOKUP(A149,NDD_Kaplanis!A:AI,10,FALSE) -> 8 | D149: =_xlfn.IFNA(VLOOKUP(A149,NDD_repeat_variants!A:F,6,FALSE),0) -> 1 | E149: =_xlfn.IFNA(VLOOKUP(A149,NDD_repeat_residues!A:F,5,FALSE),0) -> 3 | F149: =VLOOKUP(A149,NDD.gMVP!A:E,3,FALSE) -> 6 | G149: =IF(VLOOKUP(A149,NDD.CADD!A:F,3,FALSE)=0,"",VLOOKUP(A149,NDD.CADD!A:F,3,FALSE)) -> 6 | H149: =VLOOKUP(A149,'NDD.gMVP.pois'!A:E,5,FALSE) -> 6.73E-04 | I149: =IF(VLOOKUP(A149,'NDD.gMVP.cluster'!A:E,5,FALSE)=0,"",VLOOKUP(A149,'NDD.gMVP.cluster'!A:E,5,FALSE)) -> 2.00E-07 | J149: =VLOOKUP(A149,NDD.gMVP!A:E,5, FALSE) -> 3.19E-09 | K149: =VLOOKUP(A149,'NDD.CADD.pois'!A:E,5,FALSE) -> 2.00E-04 | L149: =IF(VLOOKUP(A149,'NDD.CADD.cluster'!A:E,5,FALSE)=0,"",VLOOKUP(A149,'NDD.CADD.cluster'!A:E,5,FALSE)) -> 1.25E-08 | M149: =VLOOKUP(A149,NDD.CADD!A:F,5,FALSE) -> 6.95E-11 | N149: =VLOOKUP(A149,NDD_Kaplanis!A:AI,25,FALSE) -> 3.56E-06 | O149: =AND(N149>0.0000025,OR(J149<0.0000025)) -> TRUE | P149: =VLOOKUP(A149,NDD_Kaplanis!A:AI,26,FALSE) -> 3.56E-06 | Q149: =AND(OR(J149<0.0000025),P149>0.0000025) -> TRUE | R149: =VLOOKUP(A149,NDD_Kaplanis!A:D,4,FALSE) -> discordant | S149: =AND(OR(R149="discordant", R149="none"),OR(J149<0.0000025)) -> TRUE | T149: =VLOOKUP(A149,DDG2P_3_5_2022!A:E,3,FALSE) -> EPILEPTIC ENCEPHALOPATHY | U149: =VLOOKUP(A149,DDG2P_3_5_2022!A:E,5,FALSE) -> strong | V149: =AND(ISNA(T149),OR(J149<0.0000025)) -> FALSE | W149: =N149/J149 -> 1.11E+03
A150: CAMK2G | B150: =VLOOKUP(A150,NDD_Kaplanis!A:AI,6,FALSE)+VLOOKUP(A150,NDD_Kaplanis!A:AI,13,FALSE)+VLOOKUP(A150,NDD_Kaplanis!A:AI,14,FALSE)+VLOOKUP(A150,NDD_Kaplanis!A:AI,15,FALSE) -> 0 | C150: =VLOOKUP(A150,NDD_Kaplanis!A:AI,10,FALSE) -> 9 | D150: =_xlfn.IFNA(VLOOKUP(A150,NDD_repeat_variants!A:F,6,FALSE),0) -> 0 | E150: =_xlfn.IFNA(VLOOKUP(A150,NDD_repeat_residues!A:F,5,FALSE),0) -> 1 | F150: =VLOOKUP(A150,NDD.gMVP!A:E,3,FALSE) -> 6 | G150: =IF(VLOOKUP(A150,NDD.CADD!A:F,3,FALSE)=0,"",VLOOKUP(A150,NDD.CADD!A:F,3,FALSE)) -> 5 | H150: =VLOOKUP(A150,'NDD.gMVP.pois'!A:E,5,FALSE) -> 2.22E-08 | I150: =IF(VLOOKUP(A150,'NDD.gMVP.cluster'!A:E,5,FALSE)=0,"",VLOOKUP(A150,'NDD.gMVP.cluster'!A:E,5,FALSE)) ->  | J150: =VLOOKUP(A150,NDD.gMVP!A:E,5, FALSE) -> 4.53E-09 | K150: =VLOOKUP(A150,'NDD.CADD.pois'!A:E,5,FALSE) -> 3.33E-04 | L150: =IF(VLOOKUP(A150,'NDD.CADD.cluster'!A:E,5,FALSE)=0,"",VLOOKUP(A150,'NDD.CADD.cluster'!A:E,5,FALSE)) -> 2.87E-05 | M150: =VLOOKUP(A150,NDD.CADD!A:F,5,FALSE) -> 1.86E-07 | N150: =VLOOKUP(A150,NDD_Kaplanis!A:AI,25,FALSE) -> 1.22E-06 | O150: =AND(N150>0.0000025,OR(J150<0.0000025)) -> FALSE | P150: =VLOOKUP(A150,NDD_Kaplanis!A:AI,26,FALSE) -> 1.22E-06 | Q150: =AND(OR(J150<0.0000025),P150>0.0000025) -> FALSE | R150: =VLOOKUP(A150,NDD_Kaplanis!A:D,4,FALSE) -> discordant | S150: =AND(OR(R150="discordant", R150="none"),OR(J150<0.0000025)) -> TRUE | T150: =VLOOKUP(A150,DDG2P_3_5_2022!A:E,3,FALSE) -> INTELLECTUAL DEVELOPMENTAL DISORDER 59 | U150: =VLOOKUP(A150,DDG2P_3_5_2022!A:E,5,FALSE) -> strong | V150: =AND(ISNA(T150),OR(J150<0.0000025)) -> FALSE | W150: =N150/J150 -> 2.70E+02
A151: AP2S1 | B151: =VLOOKUP(A151,NDD_Kaplanis!A:AI,6,FALSE)+VLOOKUP(A151,NDD_Kaplanis!A:AI,13,FALSE)+VLOOKUP(A151,NDD_Kaplanis!A:AI,14,FALSE)+VLOOKUP(A151,NDD_Kaplanis!A:AI,15,FALSE) -> 0 | C151: =VLOOKUP(A151,NDD_Kaplanis!A:AI,10,FALSE) -> 5 | D151: =_xlfn.IFNA(VLOOKUP(A151,NDD_repeat_variants!A:F,6,FALSE),0) -> 0 | E151: =_xlfn.IFNA(VLOOKUP(A151,NDD_repeat_residues!A:F,5,FALSE),0) -> 3 | F151: =VLOOKUP(A151,NDD.gMVP!A:E,3,FALSE) -> 5 | G151: =IF(VLOOKUP(A151,NDD.CADD!A:F,3,FALSE)=0,"",VLOOKUP(A151,NDD.CADD!A:F,3,FALSE)) -> 4 | H151: =VLOOKUP(A151,'NDD.gMVP.pois'!A:E,5,FALSE) -> 2.12E-05 | I151: =IF(VLOOKUP(A151,'NDD.gMVP.cluster'!A:E,5,FALSE)=0,"",VLOOKUP(A151,'NDD.gMVP.cluster'!A:E,5,FALSE)) -> 1.07E-05 | J151: =VLOOKUP(A151,NDD.gMVP!A:E,5, FALSE) -> 5.25E-09 | K151: =VLOOKUP(A151,'NDD.CADD.pois'!A:E,5,FALSE) -> 2.07E-05 | L151: =IF(VLOOKUP(A151,'NDD.CADD.cluster'!A:E,5,FALSE)=0,"",VLOOKUP(A151,'NDD.CADD.cluster'!A:E,5,FALSE)) -> 2.00E-07 | M151: =VLOOKUP(A151,NDD.CADD!A:F,5,FALSE) -> 1.12E-10 | N151: =VLOOKUP(A151,NDD_Kaplanis!A:AI,25,FALSE) -> 6.41E-09 | O151: =AND(N151>0.0000025,OR(J151<0.0000025)) -> FALSE | P151: =VLOOKUP(A151,NDD_Kaplanis!A:AI,26,FALSE) -> 6.41E-09 | Q151: =AND(OR(J151<0.0000025),P151>0.0000025) -> FALSE | R151: =VLOOKUP(A151,NDD_Kaplanis!A:D,4,FALSE) -> novel | S151: =AND(OR(R151="discordant", R151="none"),OR(J151<0.0000025)) -> FALSE | T151: =VLOOKUP(A151,DDG2P_3_5_2022!A:E,3,FALSE) -> AP2S1-related developmental disorder (monoallelic) | U151: =VLOOKUP(A151,DDG2P_3_5_2022!A:E,5,FALSE) -> definitive | V151: =AND(ISNA(T151),OR(J151<0.0000025)) -> FALSE | W151: =N151/J151 -> 1.22E+00
A152: PRPF8 | B152: =VLOOKUP(A152,NDD_Kaplanis!A:AI,6,FALSE)+VLOOKUP(A152,NDD_Kaplanis!A:AI,13,FALSE)+VLOOKUP(A152,NDD_Kaplanis!A:AI,14,FALSE)+VLOOKUP(A152,NDD_Kaplanis!A:AI,15,FALSE) -> 3 | C152: =VLOOKUP(A152,NDD_Kaplanis!A:AI,10,FALSE) -> 19 | D152: =_xlfn.IFNA(VLOOKUP(A152,NDD_repeat_variants!A:F,6,FALSE),0) -> 0 | E152: =_xlfn.IFNA(VLOOKUP(A152,NDD_repeat_residues!A:F,5,FALSE),0) -> 0 | F152: =VLOOKUP(A152,NDD.gMVP!A:E,3,FALSE) -> 17 | G152: =IF(VLOOKUP(A152,NDD.CADD!A:F,3,FALSE)=0,"",VLOOKUP(A152,NDD.CADD!A:F,3,FALSE)) -> 9 | H152: =VLOOKUP(A152,'NDD.gMVP.pois'!A:E,5,FALSE) -> 2.89E-07 | I152: =IF(VLOOKUP(A152,'NDD.gMVP.cluster'!A:E,5,FALSE)=0,"",VLOOKUP(A152,'NDD.gMVP.cluster'!A:E,5,FALSE)) -> 8.16E-04 | J152: =VLOOKUP(A152,NDD.gMVP!A:E,5, FALSE) -> 5.47E-09 | K152: =VLOOKUP(A152,'NDD.CADD.pois'!A:E,5,FALSE) -> 1.01E-03 | L152: =IF(VLOOKUP(A152,'NDD.CADD.cluster'!A:E,5,FALSE)=0,"",VLOOKUP(A152,'NDD.CADD.cluster'!A:E,5,FALSE)) -> 1.32E-01 | M152: =VLOOKUP(A152,NDD.CADD!A:F,5,FALSE) -> 1.32E-03 | N152: =VLOOKUP(A152,NDD_Kaplanis!A:AI,25,FALSE) -> 4.78E-08 | O152: =AND(N152>0.0000025,OR(J152<0.0000025)) -> FALSE | P152: =VLOOKUP(A152,NDD_Kaplanis!A:AI,26,FALSE) -> 4.78E-08 | Q152: =AND(OR(J152<0.0000025),P152>0.0000025) -> FALSE | R152: =VLOOKUP(A152,NDD_Kaplanis!A:D,4,FALSE) -> novel | S152: =AND(OR(R152="discordant", R152="none"),OR(J152<0.0000025)) -> FALSE | T152: =VLOOKUP(A152,DDG2P_3_5_2022!A:E,3,FALSE) -> PRPF8-related developmental disorder (monoallelic) | U152: =VLOOKUP(A152,DDG2P_3_5_2022!A:E,5,FALSE) -> both RD and IF | V152: =AND(ISNA(T152),OR(J152<0.0000025)) -> FALSE | W152: =N152/J152 -> 8.74E+00
A153: WDR37 | B153: =VLOOKUP(A153,NDD_Kaplanis!A:AI,6,FALSE)+VLOOKUP(A153,NDD_Kaplanis!A:AI,13,FALSE)+VLOOKUP(A153,NDD_Kaplanis!A:AI,14,FALSE)+VLOOKUP(A153,NDD_Kaplanis!A:AI,15,FALSE) -> 0 | C153: =VLOOKUP(A153,NDD_Kaplanis!A:AI,10,FALSE) -> 12 | D153: =_xlfn.IFNA(VLOOKUP(A153,NDD_repeat_variants!A:F,6,FALSE),0) -> 0 | E153: =_xlfn.IFNA(VLOOKUP(A153,NDD_repeat_residues!A:F,5,FALSE),0) -> 0 | F153: =VLOOKUP(A153,NDD.gMVP!A:E,3,FALSE) -> 7 | G153: =IF(VLOOKUP(A153,NDD.CADD!A:F,3,FALSE)=0,"",VLOOKUP(A153,NDD.CADD!A:F,3,FALSE)) -> 8 | H153: =VLOOKUP(A153,'NDD.gMVP.pois'!A:E,5,FALSE) -> 3.52E-08 | I153: =IF(VLOOKUP(A153,'NDD.gMVP.cluster'!A:E,5,FALSE)=0,"",VLOOKUP(A153,'NDD.gMVP.cluster'!A:E,5,FALSE)) -> 7.16E-03 | J153: =VLOOKUP(A153,NDD.gMVP!A:E,5, FALSE) -> 5.82E-09 | K153: =VLOOKUP(A153,'NDD.CADD.pois'!A:E,5,FALSE) -> 3.31E-08 | L153: =IF(VLOOKUP(A153,'NDD.CADD.cluster'!A:E,5,FALSE)=0,"",VLOOKUP(A153,'NDD.CADD.cluster'!A:E,5,FALSE)) -> 3.68E-02 | M153: =VLOOKUP(A153,NDD.CADD!A:F,5,FALSE) -> 2.62E-08 | N153: =VLOOKUP(A153,NDD_Kaplanis!A:AI,25,FALSE) -> 1.44E-12 | O153: =AND(N153>0.0000025,OR(J153<0.0000025)) -> FALSE | P153: =VLOOKUP(A153,NDD_Kaplanis!A:AI,26,FALSE) -> 1.44E-12 | Q153: =AND(OR(J153<0.0000025),P153>0.0000025) -> FALSE | R153: =VLOOKUP(A153,NDD_Kaplanis!A:D,4,FALSE) -> discordant | S153: =AND(OR(R153="discordant", R153="none"),OR(J153<0.0000025)) -> TRUE | T153: =VLOOKUP(A153,DDG2P_3_5_2022!A:E,3,FALSE) -> SYNDROMIC INTELLECTUAL DISABILITY | U153: =VLOOKUP(A153,DDG2P_3_5_2022!A:E,5,FALSE) -> definitive | V153: =AND(ISNA(T153),OR(J153<0.0000025)) -> FALSE | W153: =N153/J153 -> 2.47E-04
A154: KAT6A | B154: =VLOOKUP(A154,NDD_Kaplanis!A:AI,6,FALSE)+VLOOKUP(A154,NDD_Kaplanis!A:AI,13,FALSE)+VLOOKUP(A154,NDD_Kaplanis!A:AI,14,FALSE)+VLOOKUP(A154,NDD_Kaplanis!A:AI,15,FALSE) -> 50 | C154: =VLOOKUP(A154,NDD_Kaplanis!A:AI,10,FALSE) -> 15 | D154: =_xlfn.IFNA(VLOOKUP(A154,NDD_repeat_variants!A:F,6,FALSE),0) -> 1 | E154: =_xlfn.IFNA(VLOOKUP(A154,NDD_repeat_residues!A:F,5,FALSE),0) -> 0 | F154: =VLOOKUP(A154,NDD.gMVP!A:E,3,FALSE) -> 8 | G154: =IF(VLOOKUP(A154,NDD.CADD!A:F,3,FALSE)=0,"",VLOOKUP(A154,NDD.CADD!A:F,3,FALSE)) -> 11 | H154: =VLOOKUP(A154,'NDD.gMVP.pois'!A:E,5,FALSE) -> 7.20E-06 | I154: =IF(VLOOKUP(A154,'NDD.gMVP.cluster'!A:E,5,FALSE)=0,"",VLOOKUP(A154,'NDD.gMVP.cluster'!A:E,5,FALSE)) -> 4.01E-05 | J154: =VLOOKUP(A154,NDD.gMVP!A:E,5, FALSE) -> 6.63E-09 | K154: =VLOOKUP(A154,'NDD.CADD.pois'!A:E,5,FALSE) -> 2.67E-07 | L154: =IF(VLOOKUP(A154,'NDD.CADD.cluster'!A:E,5,FALSE)=0,"",VLOOKUP(A154,'NDD.CADD.cluster'!A:E,5,FALSE)) -> 9.96E-05 | M154: =VLOOKUP(A154,NDD.CADD!A:F,5,FALSE) -> 6.75E-10 | N154: =VLOOKUP(A154,NDD_Kaplanis!A:AI,25,FALSE) -> 1.47E-06 | O154: =AND(N154>0.0000025,OR(J154<0.0000025)) -> FALSE | P154: =VLOOKUP(A154,NDD_Kaplanis!A:AI,26,FALSE) -> 1.00E-14 | Q154: =AND(OR(J154<0.0000025),P154>0.0000025) -> FALSE | R154: =VLOOKUP(A154,NDD_Kaplanis!A:D,4,FALSE) -> consensus | S154: =AND(OR(R154="discordant", R154="none"),OR(J154<0.0000025)) -> FALSE | T154: =VLOOKUP(A154,DDG2P_3_5_2022!A:E,3,FALSE) -> INTELLECTUAL DEVELOPMENTAL DISORDER, AUTOSOMAL DOMINANT 32 | U154: =VLOOKUP(A154,DDG2P_3_5_2022!A:E,5,FALSE) -> definitive | V154: =AND(ISNA(T154),OR(J154<0.0000025)) -> FALSE | W154: =N154/J154 -> 2.21E+02
A155: KDM6A | B155: =VLOOKUP(A155,NDD_Kaplanis!A:AI,6,FALSE)+VLOOKUP(A155,NDD_Kaplanis!A:AI,13,FALSE)+VLOOKUP(A155,NDD_Kaplanis!A:AI,14,FALSE)+VLOOKUP(A155,NDD_Kaplanis!A:AI,15,FALSE) -> 9 | C155: =VLOOKUP(A155,NDD_Kaplanis!A:AI,10,FALSE) -> 9 | D155: =_xlfn.IFNA(VLOOKUP(A155,NDD_repeat_variants!A:F,6,FALSE),0) -> 1 | E155: =_xlfn.IFNA(VLOOKUP(A155,NDD_repeat_residues!A:F,5,FALSE),0) -> 0 | F155: =VLOOKUP(A155,NDD.gMVP!A:E,3,FALSE) -> 7 | G155: =IF(VLOOKUP(A155,NDD.CADD!A:F,3,FALSE)=0,"",VLOOKUP(A155,NDD.CADD!A:F,3,FALSE)) -> 7 | H155: =VLOOKUP(A155,'NDD.gMVP.pois'!A:E,5,FALSE) -> 6.35E-07 | I155: =IF(VLOOKUP(A155,'NDD.gMVP.cluster'!A:E,5,FALSE)=0,"",VLOOKUP(A155,'NDD.gMVP.cluster'!A:E,5,FALSE)) -> 4.58E-04 | J155: =VLOOKUP(A155,NDD.gMVP!A:E,5, FALSE) -> 6.68E-09 | K155: =VLOOKUP(A155,'NDD.CADD.pois'!A:E,5,FALSE) -> 2.00E-07 | L155: =IF(VLOOKUP(A155,'NDD.CADD.cluster'!A:E,5,FALSE)=0,"",VLOOKUP(A155,'NDD.CADD.cluster'!A:E,5,FALSE)) -> 2.37E-03 | M155: =VLOOKUP(A155,NDD.CADD!A:F,5,FALSE) -> 1.06E-08 | N155: =VLOOKUP(A155,NDD_Kaplanis!A:AI,25,FALSE) -> 8.01E-07 | O155: =AND(N155>0.0000025,OR(J155<0.0000025)) -> FALSE | P155: =VLOOKUP(A155,NDD_Kaplanis!A:AI,26,FALSE) -> 3.47E-17 | Q155: =AND(OR(J155<0.0000025),P155>0.0000025) -> FALSE | R155: =VLOOKUP(A155,NDD_Kaplanis!A:D,4,FALSE) -> consensus | S155: =AND(OR(R155="discordant", R155="none"),OR(J155<0.0000025)) -> FALSE | T155: =VLOOKUP(A155,DDG2P_3_5_2022!A:E,3,FALSE) -> KABUKI SYNDROME 2 | U155: =VLOOKUP(A155,DDG2P_3_5_2022!A:E,5,FALSE) -> definitive | V155: =AND(ISNA(T155),OR(J155<0.0000025)) -> FALSE | W155: =N155/J155 -> 1.20E+02
A156: SETD2 | B156: =VLOOKUP(A156,NDD_Kaplanis!A:AI,6,FALSE)+VLOOKUP(A156,NDD_Kaplanis!A:AI,13,FALSE)+VLOOKUP(A156,NDD_Kaplanis!A:AI,14,FALSE)+VLOOKUP(A156,NDD_Kaplanis!A:AI,15,FALSE) -> 6 | C156: =VLOOKUP(A156,NDD_Kaplanis!A:AI,10,FALSE) -> 6 | D156: =_xlfn.IFNA(VLOOKUP(A156,NDD_repeat_variants!A:F,6,FALSE),0) -> 0 | E156: =_xlfn.IFNA(VLOOKUP(A156,NDD_repeat_residues!A:F,5,FALSE),0) -> 0 | F156: =VLOOKUP(A156,NDD.gMVP!A:E,3,FALSE) -> 5 | G156: =IF(VLOOKUP(A156,NDD.CADD!A:F,3,FALSE)=0,"",VLOOKUP(A156,NDD.CADD!A:F,3,FALSE)) -> 6 | H156: =VLOOKUP(A156,'NDD.gMVP.pois'!A:E,5,FALSE) -> 1.46E-03 | I156: =IF(VLOOKUP(A156,'NDD.gMVP.cluster'!A:E,5,FALSE)=0,"",VLOOKUP(A156,'NDD.gMVP.cluster'!A:E,5,FALSE)) -> 2.00E-07 | J156: =VLOOKUP(A156,NDD.gMVP!A:E,5, FALSE) -> 6.70E-09 | K156: =VLOOKUP(A156,'NDD.CADD.pois'!A:E,5,FALSE) -> 1.26E-03 | L156: =IF(VLOOKUP(A156,'NDD.CADD.cluster'!A:E,5,FALSE)=0,"",VLOOKUP(A156,'NDD.CADD.cluster'!A:E,5,FALSE)) -> 2.00E-07 | M156: =VLOOKUP(A156,NDD.CADD!A:F,5,FALSE) -> 5.82E-09 | N156: =VLOOKUP(A156,NDD_Kaplanis!A:AI,25,FALSE) -> 4.64E-09 | O156: =AND(N156>0.0000025,OR(J156<0.0000025)) -> FALSE | P156: =VLOOKUP(A156,NDD_Kaplanis!A:AI,26,FALSE) -> 4.64E-09 | Q156: =AND(OR(J156<0.0000025),P156>0.0000025) -> FALSE | R156: =VLOOKUP(A156,NDD_Kaplanis!A:D,4,FALSE) -> consensus | S156: =AND(OR(R156="discordant", R156="none"),OR(J156<0.0000025)) -> FALSE | T156: =VLOOKUP(A156,DDG2P_3_5_2022!A:E,3,FALSE) -> SETD2-associated Overgrowth Syndrome | U156: =VLOOKUP(A156,DDG2P_3_5_2022!A:E,5,FALSE) -> strong | V156: =AND(ISNA(T156),OR(J156<0.0000025)) -> FALSE | W156: =N156/J156 -> 6.93E-01
A157: UPF1 | B157: =VLOOKUP(A157,NDD_Kaplanis!A:AI,6,FALSE)+VLOOKUP(A157,NDD_Kaplanis!A:AI,13,FALSE)+VLOOKUP(A157,NDD_Kaplanis!A:AI,14,FALSE)+VLOOKUP(A157,NDD_Kaplanis!A:AI,15,FALSE) -> 1 | C157: =VLOOKUP(A157,NDD_Kaplanis!A:AI,10,FALSE) -> 11 | D157: =_xlfn.IFNA(VLOOKUP(A157,NDD_repeat_variants!A:F,6,FALSE),0) -> 0 | E157: =_xlfn.IFNA(VLOOKUP(A157,NDD_repeat_residues!A:F,5,FALSE),0) -> 0 | F157: =VLOOKUP(A157,NDD.gMVP!A:E,3,FALSE) -> 11 | G157: =IF(VLOOKUP(A157,NDD.CADD!A:F,3,FALSE)=0,"",VLOOKUP(A157,NDD.CADD!A:F,3,FALSE)) -> 10 | H157: =VLOOKUP(A157,'NDD.gMVP.pois'!A:E,5,FALSE) -> 4.63E-07 | I157: =IF(VLOOKUP(A157,'NDD.gMVP.cluster'!A:E,5,FALSE)=0,"",VLOOKUP(A157,'NDD.gMVP.cluster'!A:E,5,FALSE)) -> 6.96E-04 | J157: =VLOOKUP(A157,NDD.gMVP!A:E,5, FALSE) -> 7.36E-09 | K157: =VLOOKUP(A157,'NDD.CADD.pois'!A:E,5,FALSE) -> 1.12E-07 | L157: =IF(VLOOKUP(A157,'NDD.CADD.cluster'!A:E,5,FALSE)=0,"",VLOOKUP(A157,'NDD.CADD.cluster'!A:E,5,FALSE)) -> 9.61E-04 | M157: =VLOOKUP(A157,NDD.CADD!A:F,5,FALSE) -> 2.59E-09 | N157: =VLOOKUP(A157,NDD_Kaplanis!A:AI,25,FALSE) -> 4.70E-08 | O157: =AND(N157>0.0000025,OR(J157<0.0000025)) -> FALSE | P157: =VLOOKUP(A157,NDD_Kaplanis!A:AI,26,FALSE) -> 4.70E-08 | Q157: =AND(OR(J157<0.0000025),P157>0.0000025) -> FALSE | R157: =VLOOKUP(A157,NDD_Kaplanis!A:D,4,FALSE) -> novel | S157: =AND(OR(R157="discordant", R157="none"),OR(J157<0.0000025)) -> FALSE | T157: =VLOOKUP(A157,DDG2P_3_5_2022!A:E,3,FALSE) -> UPF1-related developmental disorder (monoallelic) | U157: =VLOOKUP(A157,DDG2P_3_5_2022!A:E,5,FALSE) -> definitive | V157: =AND(ISNA(T157),OR(J157<0.0000025)) -> FALSE | W157: =N157/J157 -> 6.39E+00
A158: AGO1 | B158: =VLOOKUP(A158,NDD_Kaplanis!A:AI,6,FALSE)+VLOOKUP(A158,NDD_Kaplanis!A:AI,13,FALSE)+VLOOKUP(A158,NDD_Kaplanis!A:AI,14,FALSE)+VLOOKUP(A158,NDD_Kaplanis!A:AI,15,FALSE) -> 0 | C158: =VLOOKUP(A158,NDD_Kaplanis!A:AI,10,FALSE) -> 9 | D158: =_xlfn.IFNA(VLOOKUP(A158,NDD_repeat_variants!A:F,6,FALSE),0) -> 0 | E158: =_xlfn.IFNA(VLOOKUP(A158,NDD_repeat_residues!A:F,5,FALSE),0) -> 2 | F158: =VLOOKUP(A158,NDD.gMVP!A:E,3,FALSE) -> 7 | G158: =IF(VLOOKUP(A158,NDD.CADD!A:F,3,FALSE)=0,"",VLOOKUP(A158,NDD.CADD!A:F,3,FALSE)) -> 7 | H158: =VLOOKUP(A158,'NDD.gMVP.pois'!A:E,5,FALSE) -> 8.10E-04 | I158: =IF(VLOOKUP(A158,'NDD.gMVP.cluster'!A:E,5,FALSE)=0,"",VLOOKUP(A158,'NDD.gMVP.cluster'!A:E,5,FALSE)) -> 4.00E-07 | J158: =VLOOKUP(A158,NDD.gMVP!A:E,5, FALSE) -> 7.41E-09 | K158: =VLOOKUP(A158,'NDD.CADD.pois'!A:E,5,FALSE) -> 1.31E-05 | L158: =IF(VLOOKUP(A158,'NDD.CADD.cluster'!A:E,5,FALSE)=0,"",VLOOKUP(A158,'NDD.CADD.cluster'!A:E,5,FALSE)) -> 3.00E-07 | M158: =VLOOKUP(A158,NDD.CADD!A:F,5,FALSE) -> 1.07E-10 | N158: =VLOOKUP(A158,NDD_Kaplanis!A:AI,25,FALSE) -> 2.05E-06 | O158: =AND(N158>0.0000025,OR(J158<0.0000025)) -> FALSE | P158: =VLOOKUP(A158,NDD_Kaplanis!A:AI,26,FALSE) -> 2.05E-06 | Q158: =AND(OR(J158<0.0000025),P158>0.0000025) -> FALSE | R158: =VLOOKUP(A158,NDD_Kaplanis!A:D,4,FALSE) -> discordant | S158: =AND(OR(R158="discordant", R158="none"),OR(J158<0.0000025)) -> TRUE | T158: =VLOOKUP(A158,DDG2P_3_5_2022!A:E,3,FALSE) -> AGO1-related developmental disorder (monoallelic) | U158: =VLOOKUP(A158,DDG2P_3_5_2022!A:E,5,FALSE) -> strong | V158: =AND(ISNA(T158),OR(J158<0.0000025)) -> FALSE | W158: =N158/J158 -> 2.76E+02
A159: HK1 | B159: =VLOOKUP(A159,NDD_Kaplanis!A:AI,6,FALSE)+VLOOKUP(A159,NDD_Kaplanis!A:AI,13,FALSE)+VLOOKUP(A159,NDD_Kaplanis!A:AI,14,FALSE)+VLOOKUP(A159,NDD_Kaplanis!A:AI,15,FALSE) -> 0 | C159: =VLOOKUP(A159,NDD_Kaplanis!A:AI,10,FALSE) -> 12 | D159: =_xlfn.IFNA(VLOOKUP(A159,NDD_repeat_variants!A:F,6,FALSE),0) -> 1 | E159: =_xlfn.IFNA(VLOOKUP(A159,NDD_repeat_residues!A:F,5,FALSE),0) -> 0 | F159: =VLOOKUP(A159,NDD.gMVP!A:E,3,FALSE) -> 11 | G159: =IF(VLOOKUP(A159,NDD.CADD!A:F,3,FALSE)=0,"",VLOOKUP(A159,NDD.CADD!A:F,3,FALSE)) -> 9 | H159: =VLOOKUP(A159,'NDD.gMVP.pois'!A:E,5,FALSE) -> 3.12E-07 | I159: =IF(VLOOKUP(A159,'NDD.gMVP.cluster'!A:E,5,FALSE)=0,"",VLOOKUP(A159,'NDD.gMVP.cluster'!A:E,5,FALSE)) -> 1.10E-03 | J159: =VLOOKUP(A159,NDD.gMVP!A:E,5, FALSE) -> 7.85E-09 | K159: =VLOOKUP(A159,'NDD.CADD.pois'!A:E,5,FALSE) -> 4.03E-07 | L159: =IF(VLOOKUP(A159,'NDD.CADD.cluster'!A:E,5,FALSE)=0,"",VLOOKUP(A159,'NDD.CADD.cluster'!A:E,5,FALSE)) -> 2.11E-04 | M159: =VLOOKUP(A159,NDD.CADD!A:F,5,FALSE) -> 2.06E-09 | N159: =VLOOKUP(A159,NDD_Kaplanis!A:AI,25,FALSE) -> 7.28E-10 | O159: =AND(N159>0.0000025,OR(J159<0.0000025)) -> FALSE | P159: =VLOOKUP(A159,NDD_Kaplanis!A:AI,26,FALSE) -> 7.28E-10 | Q159: =AND(OR(J159<0.0000025),P159>0.0000025) -> FALSE | R159: =VLOOKUP(A159,NDD_Kaplanis!A:D,4,FALSE) -> discordant | S159: =AND(OR(R159="discordant", R159="none"),OR(J159<0.0000025)) -> TRUE | T159: =VLOOKUP(A159,DDG2P_3_5_2022!A:E,3,FALSE) -> HK1-related developmental disorder (monoallelic) | U159: =VLOOKUP(A159,DDG2P_3_5_2022!A:E,5,FALSE) -> strong | V159: =AND(ISNA(T159),OR(J159<0.0000025)) -> FALSE | W159: =N159/J159 -> 9.27E-02
A160: ATRX | B160: =VLOOKUP(A160,NDD_Kaplanis!A:AI,6,FALSE)+VLOOKUP(A160,NDD_Kaplanis!A:AI,13,FALSE)+VLOOKUP(A160,NDD_Kaplanis!A:AI,14,FALSE)+VLOOKUP(A160,NDD_Kaplanis!A:AI,15,FALSE) -> 2 | C160: =VLOOKUP(A160,NDD_Kaplanis!A:AI,10,FALSE) -> 12 | D160: =_xlfn.IFNA(VLOOKUP(A160,NDD_repeat_variants!A:F,6,FALSE),0) -> 0 | E160: =_xlfn.IFNA(VLOOKUP(A160,NDD_repeat_residues!A:F,5,FALSE),0) -> 0 | F160: =VLOOKUP(A160,NDD.gMVP!A:E,3,FALSE) -> 8 | G160: =IF(VLOOKUP(A160,NDD.CADD!A:F,3,FALSE)=0,"",VLOOKUP(A160,NDD.CADD!A:F,3,FALSE)) -> 6 | H160: =VLOOKUP(A160,'NDD.gMVP.pois'!A:E,5,FALSE) -> 5.78E-07 | I160: =IF(VLOOKUP(A160,'NDD.gMVP.cluster'!A:E,5,FALSE)=0,"",VLOOKUP(A160,'NDD.gMVP.cluster'!A:E,5,FALSE)) -> 9.79E-04 | J160: =VLOOKUP(A160,NDD.gMVP!A:E,5, FALSE) -> 1.26E-08 | K160: =VLOOKUP(A160,'NDD.CADD.pois'!A:E,5,FALSE) -> 4.27E-05 | L160: =IF(VLOOKUP(A160,'NDD.CADD.cluster'!A:E,5,FALSE)=0,"",VLOOKUP(A160,'NDD.CADD.cluster'!A:E,5,FALSE)) -> 3.72E-02 | M160: =VLOOKUP(A160,NDD.CADD!A:F,5,FALSE) -> 2.28E-05 | N160: =VLOOKUP(A160,NDD_Kaplanis!A:AI,25,FALSE) -> 2.39E-05 | O160: =AND(N160>0.0000025,OR(J160<0.0000025)) -> TRUE | P160: =VLOOKUP(A160,NDD_Kaplanis!A:AI,26,FALSE) -> 3.45E-07 | Q160: =AND(OR(J160<0.0000025),P160>0.0000025) -> FALSE | R160: =VLOOKUP(A160,NDD_Kaplanis!A:D,4,FALSE) -> consensus | S160: =AND(OR(R160="discordant", R160="none"),OR(J160<0.0000025)) -> FALSE | T160: =VLOOKUP(A160,DDG2P_3_5_2022!A:E,3,FALSE) -> ALPHA-THALASSEMIA INTELLECTUAL DEVELOPMENTAL DISORDER SYNDROME X-LINKED NON-DELETION TYPE | U160: =VLOOKUP(A160,DDG2P_3_5_2022!A:E,5,FALSE) -> definitive | V160: =AND(ISNA(T160),OR(J160<0.0000025)) -> FALSE | W160: =N160/J160 -> 1.89E+03
A161: MFN2 | B161: =VLOOKUP(A161,NDD_Kaplanis!A:AI,6,FALSE)+VLOOKUP(A161,NDD_Kaplanis!A:AI,13,FALSE)+VLOOKUP(A161,NDD_Kaplanis!A:AI,14,FALSE)+VLOOKUP(A161,NDD_Kaplanis!A:AI,15,FALSE) -> 0 | C161: =VLOOKUP(A161,NDD_Kaplanis!A:AI,10,FALSE) -> 8 | D161: =_xlfn.IFNA(VLOOKUP(A161,NDD_repeat_variants!A:F,6,FALSE),0) -> 0 | E161: =_xlfn.IFNA(VLOOKUP(A161,NDD_repeat_residues!A:F,5,FALSE),0) -> 0 | F161: =VLOOKUP(A161,NDD.gMVP!A:E,3,FALSE) -> 7 | G161: =IF(VLOOKUP(A161,NDD.CADD!A:F,3,FALSE)=0,"",VLOOKUP(A161,NDD.CADD!A:F,3,FALSE)) -> 7 | H161: =VLOOKUP(A161,'NDD.gMVP.pois'!A:E,5,FALSE) -> 2.87E-05 | I161: =IF(VLOOKUP(A161,'NDD.gMVP.cluster'!A:E,5,FALSE)=0,"",VLOOKUP(A161,'NDD.gMVP.cluster'!A:E,5,FALSE)) -> 2.97E-05 | J161: =VLOOKUP(A161,NDD.gMVP!A:E,5, FALSE) -> 1.87E-08 | K161: =VLOOKUP(A161,'NDD.CADD.pois'!A:E,5,FALSE) -> 2.04E-06 | L161: =IF(VLOOKUP(A161,'NDD.CADD.cluster'!A:E,5,FALSE)=0,"",VLOOKUP(A161,'NDD.CADD.cluster'!A:E,5,FALSE)) -> 2.03E-05 | M161: =VLOOKUP(A161,NDD.CADD!A:F,5,FALSE) -> 1.03E-09 | N161: =VLOOKUP(A161,NDD_Kaplanis!A:AI,25,FALSE) -> 2.30E-07 | O161: =AND(N161>0.0000025,OR(J161<0.0000025)) -> FALSE | P161: =VLOOKUP(A161,NDD_Kaplanis!A:AI,26,FALSE) -> 2.30E-07 | Q161: =AND(OR(J161<0.0000025),P161>0.0000025) -> FALSE | R161: =VLOOKUP(A161,NDD_Kaplanis!A:D,4,FALSE) -> novel | S161: =AND(OR(R161="discordant", R161="none"),OR(J161<0.0000025)) -> FALSE | T161: =VLOOKUP(A161,DDG2P_3_5_2022!A:E,3,FALSE) -> MFN2-related developmental disorder | U161: =VLOOKUP(A161,DDG2P_3_5_2022!A:E,5,FALSE) -> both RD and IF | V161: =AND(ISNA(T161),OR(J161<0.0000025)) -> FALSE | W161: =N161/J161 -> 1.23E+01
A162: ATP1A2 | B162: =VLOOKUP(A162,NDD_Kaplanis!A:AI,6,FALSE)+VLOOKUP(A162,NDD_Kaplanis!A:AI,13,FALSE)+VLOOKUP(A162,NDD_Kaplanis!A:AI,14,FALSE)+VLOOKUP(A162,NDD_Kaplanis!A:AI,15,FALSE) -> 0 | C162: =VLOOKUP(A162,NDD_Kaplanis!A:AI,10,FALSE) -> 14 | D162: =_xlfn.IFNA(VLOOKUP(A162,NDD_repeat_variants!A:F,6,FALSE),0) -> 0 | E162: =_xlfn.IFNA(VLOOKUP(A162,NDD_repeat_residues!A:F,5,FALSE),0) -> 1 | F162: =VLOOKUP(A162,NDD.gMVP!A:E,3,FALSE) -> 13 | G162: =IF(VLOOKUP(A162,NDD.CADD!A:F,3,FALSE)=0,"",VLOOKUP(A162,NDD.CADD!A:F,3,FALSE)) -> 10 | H162: =VLOOKUP(A162,'NDD.gMVP.pois'!A:E,5,FALSE) -> 2.68E-08 | I162: =IF(VLOOKUP(A162,'NDD.gMVP.cluster'!A:E,5,FALSE)=0,"",VLOOKUP(A162,'NDD.gMVP.cluster'!A:E,5,FALSE)) -> 4.74E-02 | J162: =VLOOKUP(A162,NDD.gMVP!A:E,5, FALSE) -> 2.73E-08 | K162: =VLOOKUP(A162,'NDD.CADD.pois'!A:E,5,FALSE) -> 3.08E-07 | L162: =IF(VLOOKUP(A162,'NDD.CADD.cluster'!A:E,5,FALSE)=0,"",VLOOKUP(A162,'NDD.CADD.cluster'!A:E,5,FALSE)) -> 3.96E-03 | M162: =VLOOKUP(A162,NDD.CADD!A:F,5,FALSE) -> 2.62E-08 | N162: =VLOOKUP(A162,NDD_Kaplanis!A:AI,25,FALSE) -> 1.46E-04 | O162: =AND(N162>0.0000025,OR(J162<0.0000025)) -> TRUE | P162: =VLOOKUP(A162,NDD_Kaplanis!A:AI,26,FALSE) -> 1.46E-04 | Q162: =AND(OR(J162<0.0000025),P162>0.0000025) -> TRUE | R162: =VLOOKUP(A162,NDD_Kaplanis!A:D,4,FALSE) -> discordant | S162: =AND(OR(R162="discordant", R162="none"),OR(J162<0.0000025)) -> TRUE | T162: =VLOOKUP(A162,DDG2P_3_5_2022!A:E,3,FALSE) -> MIGRAINE, FAMILIAL HEMIPLEGIC, ATP1A2-related | U162: =VLOOKUP(A162,DDG2P_3_5_2022!A:E,5,FALSE) -> definitive | V162: =AND(ISNA(T162),OR(J162<0.0000025)) -> FALSE | W162: =N162/J162 -> 5.36E+03
A163: MAP4K4 | B163: =VLOOKUP(A163,NDD_Kaplanis!A:AI,6,FALSE)+VLOOKUP(A163,NDD_Kaplanis!A:AI,13,FALSE)+VLOOKUP(A163,NDD_Kaplanis!A:AI,14,FALSE)+VLOOKUP(A163,NDD_Kaplanis!A:AI,15,FALSE) -> 1 | C163: =VLOOKUP(A163,NDD_Kaplanis!A:AI,10,FALSE) -> 7 | D163: =_xlfn.IFNA(VLOOKUP(A163,NDD_repeat_variants!A:F,6,FALSE),0) -> 0 | E163: =_xlfn.IFNA(VLOOKUP(A163,NDD_repeat_residues!A:F,5,FALSE),0) -> 0 | F163: =VLOOKUP(A163,NDD.gMVP!A:E,3,FALSE) -> 6 | G163: =IF(VLOOKUP(A163,NDD.CADD!A:F,3,FALSE)=0,"",VLOOKUP(A163,NDD.CADD!A:F,3,FALSE)) -> 6 | H163: =VLOOKUP(A163,'NDD.gMVP.pois'!A:E,5,FALSE) -> 3.77E-04 | I163: =IF(VLOOKUP(A163,'NDD.gMVP.cluster'!A:E,5,FALSE)=0,"",VLOOKUP(A163,'NDD.gMVP.cluster'!A:E,5,FALSE)) -> 4.60E-06 | J163: =VLOOKUP(A163,NDD.gMVP!A:E,5, FALSE) -> 3.67E-08 | K163: =VLOOKUP(A163,'NDD.CADD.pois'!A:E,5,FALSE) -> 2.58E-03 | L163: =IF(VLOOKUP(A163,'NDD.CADD.cluster'!A:E,5,FALSE)=0,"",VLOOKUP(A163,'NDD.CADD.cluster'!A:E,5,FALSE)) -> 1.38E-05 | M163: =VLOOKUP(A163,NDD.CADD!A:F,5,FALSE) -> 6.46E-07 | N163: =VLOOKUP(A163,NDD_Kaplanis!A:AI,25,FALSE) -> 2.30E-04 | O163: =AND(N163>0.0000025,OR(J163<0.0000025)) -> TRUE | P163: =VLOOKUP(A163,NDD_Kaplanis!A:AI,26,FALSE) -> 2.30E-04 | Q163: =AND(OR(J163<0.0000025),P163>0.0000025) -> TRUE | R163: =VLOOKUP(A163,NDD_Kaplanis!A:D,4,FALSE) -> none | S163: =AND(OR(R163="discordant", R163="none"),OR(J163<0.0000025)) -> TRUE | T163: =VLOOKUP(A163,DDG2P_3_5_2022!A:E,3,FALSE) ->  | U163: =VLOOKUP(A163,DDG2P_3_5_2022!A:E,5,FALSE) ->  | V163: =AND(ISNA(T163),OR(J163<0.0000025)) -> TRUE | W163: =N163/J163 -> 6.28E+03
A164: BMPR2 | B164: =VLOOKUP(A164,NDD_Kaplanis!A:AI,6,FALSE)+VLOOKUP(A164,NDD_Kaplanis!A:AI,13,FALSE)+VLOOKUP(A164,NDD_Kaplanis!A:AI,14,FALSE)+VLOOKUP(A164,NDD_Kaplanis!A:AI,15,FALSE) -> 2 | C164: =VLOOKUP(A164,NDD_Kaplanis!A:AI,10,FALSE) -> 4 | D164: =_xlfn.IFNA(VLOOKUP(A164,NDD_repeat_variants!A:F,6,FALSE),0) -> 0 | E164: =_xlfn.IFNA(VLOOKUP(A164,NDD_repeat_residues!A:F,5,FALSE),0) -> 2 | F164: =VLOOKUP(A164,NDD.gMVP!A:E,3,FALSE) -> 4 | G164: =IF(VLOOKUP(A164,NDD.CADD!A:F,3,FALSE)=0,"",VLOOKUP(A164,NDD.CADD!A:F,3,FALSE)) -> 4 | H164: =VLOOKUP(A164,'NDD.gMVP.pois'!A:E,5,FALSE) -> 1.26E-03 | I164: =IF(VLOOKUP(A164,'NDD.gMVP.cluster'!A:E,5,FALSE)=0,"",VLOOKUP(A164,'NDD.gMVP.cluster'!A:E,5,FALSE)) -> 1.40E-06 | J164: =VLOOKUP(A164,NDD.gMVP!A:E,5, FALSE) -> 3.73E-08 | K164: =VLOOKUP(A164,'NDD.CADD.pois'!A:E,5,FALSE) -> 2.15E-03 | L164: =IF(VLOOKUP(A164,'NDD.CADD.cluster'!A:E,5,FALSE)=0,"",VLOOKUP(A164,'NDD.CADD.cluster'!A:E,5,FALSE)) -> 3.50E-06 | M164: =VLOOKUP(A164,NDD.CADD!A:F,5,FALSE) -> 1.48E-07 | N164: =VLOOKUP(A164,NDD_Kaplanis!A:AI,25,FALSE) -> 6.25E-06 | O164: =AND(N164>0.0000025,OR(J164<0.0000025)) -> TRUE | P164: =VLOOKUP(A164,NDD_Kaplanis!A:AI,26,FALSE) -> 6.25E-06 | Q164: =AND(OR(J164<0.0000025),P164>0.0000025) -> TRUE | R164: =VLOOKUP(A164,NDD_Kaplanis!A:D,4,FALSE) -> none | S164: =AND(OR(R164="discordant", R164="none"),OR(J164<0.0000025)) -> TRUE | T164: =VLOOKUP(A164,DDG2P_3_5_2022!A:E,3,FALSE) ->  | U164: =VLOOKUP(A164,DDG2P_3_5_2022!A:E,5,FALSE) ->  | V164: =AND(ISNA(T164),OR(J164<0.0000025)) -> TRUE | W164: =N164/J164 -> 1.67E+02
A165: DPYSL5 | B165: =VLOOKUP(A165,NDD_Kaplanis!A:AI,6,FALSE)+VLOOKUP(A165,NDD_Kaplanis!A:AI,13,FALSE)+VLOOKUP(A165,NDD_Kaplanis!A:AI,14,FALSE)+VLOOKUP(A165,NDD_Kaplanis!A:AI,15,FALSE) -> 0 | C165: =VLOOKUP(A165,NDD_Kaplanis!A:AI,10,FALSE) -> 7 | D165: =_xlfn.IFNA(VLOOKUP(A165,NDD_repeat_variants!A:F,6,FALSE),0) -> 2 | E165: =_xlfn.IFNA(VLOOKUP(A165,NDD_repeat_residues!A:F,5,FALSE),0) -> 3 | F165: =VLOOKUP(A165,NDD.gMVP!A:E,3,FALSE) -> 7 | G165: =IF(VLOOKUP(A165,NDD.CADD!A:F,3,FALSE)=0,"",VLOOKUP(A165,NDD.CADD!A:F,3,FALSE)) -> 3 | H165: =VLOOKUP(A165,'NDD.gMVP.pois'!A:E,5,FALSE) -> 8.07E-05 | I165: =IF(VLOOKUP(A165,'NDD.gMVP.cluster'!A:E,5,FALSE)=0,"",VLOOKUP(A165,'NDD.gMVP.cluster'!A:E,5,FALSE)) -> 2.20E-05 | J165: =VLOOKUP(A165,NDD.gMVP!A:E,5, FALSE) -> 3.75E-08 | K165: =VLOOKUP(A165,'NDD.CADD.pois'!A:E,5,FALSE) -> 1.42E-02 | L165: =IF(VLOOKUP(A165,'NDD.CADD.cluster'!A:E,5,FALSE)=0,"",VLOOKUP(A165,'NDD.CADD.cluster'!A:E,5,FALSE)) -> 9.61E-02 | M165: =VLOOKUP(A165,NDD.CADD!A:F,5,FALSE) -> 1.04E-02 | N165: =VLOOKUP(A165,NDD_Kaplanis!A:AI,25,FALSE) -> 5.03E-07 | O165: =AND(N165>0.0000025,OR(J165<0.0000025)) -> FALSE | P165: =VLOOKUP(A165,NDD_Kaplanis!A:AI,26,FALSE) -> 5.03E-07 | Q165: =AND(OR(J165<0.0000025),P165>0.0000025) -> FALSE | R165: =VLOOKUP(A165,NDD_Kaplanis!A:D,4,FALSE) -> none | S165: =AND(OR(R165="discordant", R165="none"),OR(J165<0.0000025)) -> TRUE | T165: =VLOOKUP(A165,DDG2P_3_5_2022!A:E,3,FALSE) -> DPYSL5-related developmental disorder (monoallelic) | U165: =VLOOKUP(A165,DDG2P_3_5_2022!A:E,5,FALSE) -> strong | V165: =AND(ISNA(T165),OR(J165<0.0000025)) -> FALSE | W165: =N165/J165 -> 1.34E+01
A166: ACTL6B | B166: =VLOOKUP(A166,NDD_Kaplanis!A:AI,6,FALSE)+VLOOKUP(A166,NDD_Kaplanis!A:AI,13,FALSE)+VLOOKUP(A166,NDD_Kaplanis!A:AI,14,FALSE)+VLOOKUP(A166,NDD_Kaplanis!A:AI,15,FALSE) -> 0 | C166: =VLOOKUP(A166,NDD_Kaplanis!A:AI,10,FALSE) -> 6 | D166: =_xlfn.IFNA(VLOOKUP(A166,NDD_repeat_variants!A:F,6,FALSE),0) -> 2 | E166: =_xlfn.IFNA(VLOOKUP(A166,NDD_repeat_residues!A:F,5,FALSE),0) -> 3 | F166: =VLOOKUP(A166,NDD.gMVP!A:E,3,FALSE) -> 6 | G166: =IF(VLOOKUP(A166,NDD.CADD!A:F,3,FALSE)=0,"",VLOOKUP(A166,NDD.CADD!A:F,3,FALSE)) -> 4 | H166: =VLOOKUP(A166,'NDD.gMVP.pois'!A:E,5,FALSE) -> 9.18E-05 | I166: =IF(VLOOKUP(A166,'NDD.gMVP.cluster'!A:E,5,FALSE)=0,"",VLOOKUP(A166,'NDD.gMVP.cluster'!A:E,5,FALSE)) -> 2.46E-05 | J166: =VLOOKUP(A166,NDD.gMVP!A:E,5, FALSE) -> 4.72E-08 | K166: =VLOOKUP(A166,'NDD.CADD.pois'!A:E,5,FALSE) -> 1.48E-03 | L166: =IF(VLOOKUP(A166,'NDD.CADD.cluster'!A:E,5,FALSE)=0,"",VLOOKUP(A166,'NDD.CADD.cluster'!A:E,5,FALSE)) -> 5.00E-07 | M166: =VLOOKUP(A166,NDD.CADD!A:F,5,FALSE) -> 1.63E-08 | N166: =VLOOKUP(A166,NDD_Kaplanis!A:AI,25,FALSE) -> 6.01E-05 | O166: =AND(N166>0.0000025,OR(J166<0.0000025)) -> TRUE | P166: =VLOOKUP(A166,NDD_Kaplanis!A:AI,26,FALSE) -> 6.01E-05 | Q166: =AND(OR(J166<0.0000025),P166>0.0000025) -> TRUE | R166: =VLOOKUP(A166,NDD_Kaplanis!A:D,4,FALSE) -> discordant | S166: =AND(OR(R166="discordant", R166="none"),OR(J166<0.0000025)) -> TRUE | T166: =VLOOKUP(A166,DDG2P_3_5_2022!A:E,3,FALSE) -> EPILEPTIC ENCEPHALOPATHY, EARLY INFANTILE | U166: =VLOOKUP(A166,DDG2P_3_5_2022!A:E,5,FALSE) -> definitive | V166: =AND(ISNA(T166),OR(J166<0.0000025)) -> FALSE | W166: =N166/J166 -> 1.27E+03
A167: KCNT2 | B167: =VLOOKUP(A167,NDD_Kaplanis!A:AI,6,FALSE)+VLOOKUP(A167,NDD_Kaplanis!A:AI,13,FALSE)+VLOOKUP(A167,NDD_Kaplanis!A:AI,14,FALSE)+VLOOKUP(A167,NDD_Kaplanis!A:AI,15,FALSE) -> 0 | C167: =VLOOKUP(A167,NDD_Kaplanis!A:AI,10,FALSE) -> 9 | D167: =_xlfn.IFNA(VLOOKUP(A167,NDD_repeat_variants!A:F,6,FALSE),0) -> 0 | E167: =_xlfn.IFNA(VLOOKUP(A167,NDD_repeat_residues!A:F,5,FALSE),0) -> 0 | F167: =VLOOKUP(A167,NDD.gMVP!A:E,3,FALSE) -> 9 | G167: =IF(VLOOKUP(A167,NDD.CADD!A:F,3,FALSE)=0,"",VLOOKUP(A167,NDD.CADD!A:F,3,FALSE)) -> 3 | H167: =VLOOKUP(A167,'NDD.gMVP.pois'!A:E,5,FALSE) -> 3.10E-06 | I167: =IF(VLOOKUP(A167,'NDD.gMVP.cluster'!A:E,5,FALSE)=0,"",VLOOKUP(A167,'NDD.gMVP.cluster'!A:E,5,FALSE)) -> 8.23E-04 | J167: =VLOOKUP(A167,NDD.gMVP!A:E,5, FALSE) -> 5.31E-08 | K167: =VLOOKUP(A167,'NDD.CADD.pois'!A:E,5,FALSE) -> 2.05E-02 | L167: =IF(VLOOKUP(A167,'NDD.CADD.cluster'!A:E,5,FALSE)=0,"",VLOOKUP(A167,'NDD.CADD.cluster'!A:E,5,FALSE)) -> 4.86E-02 | M167: =VLOOKUP(A167,NDD.CADD!A:F,5,FALSE) -> 7.88E-03 | N167: =VLOOKUP(A167,NDD_Kaplanis!A:AI,25,FALSE) -> 1.00E-05 | O167: =AND(N167>0.0000025,OR(J167<0.0000025)) -> TRUE | P167: =VLOOKUP(A167,NDD_Kaplanis!A:AI,26,FALSE) -> 1.00E-05 | Q167: =AND(OR(J167<0.0000025),P167>0.0000025) -> TRUE | R167: =VLOOKUP(A167,NDD_Kaplanis!A:D,4,FALSE) -> none | S167: =AND(OR(R167="discordant", R167="none"),OR(J167<0.0000025)) -> TRUE | T167: =VLOOKUP(A167,DDG2P_3_5_2022!A:E,3,FALSE) -> Developmental and infantile epileptic encephalopathy | U167: =VLOOKUP(A167,DDG2P_3_5_2022!A:E,5,FALSE) -> limited | V167: =AND(ISNA(T167),OR(J167<0.0000025)) -> FALSE | W167: =N167/J167 -> 1.89E+02
A168: SATB1 | B168: =VLOOKUP(A168,NDD_Kaplanis!A:AI,6,FALSE)+VLOOKUP(A168,NDD_Kaplanis!A:AI,13,FALSE)+VLOOKUP(A168,NDD_Kaplanis!A:AI,14,FALSE)+VLOOKUP(A168,NDD_Kaplanis!A:AI,15,FALSE) -> 3 | C168: =VLOOKUP(A168,NDD_Kaplanis!A:AI,10,FALSE) -> 7 | D168: =_xlfn.IFNA(VLOOKUP(A168,NDD_repeat_variants!A:F,6,FALSE),0) -> 1 | E168: =_xlfn.IFNA(VLOOKUP(A168,NDD_repeat_residues!A:F,5,FALSE),0) -> 0 | F168: =VLOOKUP(A168,NDD.gMVP!A:E,3,FALSE) -> 6 | G168: =IF(VLOOKUP(A168,NDD.CADD!A:F,3,FALSE)=0,"",VLOOKUP(A168,NDD.CADD!A:F,3,FALSE)) -> 6 | H168: =VLOOKUP(A168,'NDD.gMVP.pois'!A:E,5,FALSE) -> 1.63E-04 | I168: =IF(VLOOKUP(A168,'NDD.gMVP.cluster'!A:E,5,FALSE)=0,"",VLOOKUP(A168,'NDD.gMVP.cluster'!A:E,5,FALSE)) -> 1.72E-05 | J168: =VLOOKUP(A168,NDD.gMVP!A:E,5, FALSE) -> 5.80E-08 | K168: =VLOOKUP(A168,'NDD.CADD.pois'!A:E,5,FALSE) -> 3.93E-05 | L168: =IF(VLOOKUP(A168,'NDD.CADD.cluster'!A:E,5,FALSE)=0,"",VLOOKUP(A168,'NDD.CADD.cluster'!A:E,5,FALSE)) -> 3.88E-05 | M168: =VLOOKUP(A168,NDD.CADD!A:F,5,FALSE) -> 3.24E-08 | N168: =VLOOKUP(A168,NDD_Kaplanis!A:AI,25,FALSE) -> 3.16E-06 | O168: =AND(N168>0.0000025,OR(J168<0.0000025)) -> TRUE | P168: =VLOOKUP(A168,NDD_Kaplanis!A:AI,26,FALSE) -> 2.22E-06 | Q168: =AND(OR(J168<0.0000025),P168>0.0000025) -> FALSE | R168: =VLOOKUP(A168,NDD_Kaplanis!A:D,4,FALSE) -> novel | S168: =AND(OR(R168="discordant", R168="none"),OR(J168<0.0000025)) -> FALSE | T168: =VLOOKUP(A168,DDG2P_3_5_2022!A:E,3,FALSE) -> SATB1-related developmental disorder (monoallelic) | U168: =VLOOKUP(A168,DDG2P_3_5_2022!A:E,5,FALSE) -> definitive | V168: =AND(ISNA(T168),OR(J168<0.0000025)) -> FALSE | W168: =N168/J168 -> 5.44E+01
A169: ZMYND8 | B169: =VLOOKUP(A169,NDD_Kaplanis!A:AI,6,FALSE)+VLOOKUP(A169,NDD_Kaplanis!A:AI,13,FALSE)+VLOOKUP(A169,NDD_Kaplanis!A:AI,14,FALSE)+VLOOKUP(A169,NDD_Kaplanis!A:AI,15,FALSE) -> 2 | C169: =VLOOKUP(A169,NDD_Kaplanis!A:AI,10,FALSE) -> 8 | D169: =_xlfn.IFNA(VLOOKUP(A169,NDD_repeat_variants!A:F,6,FALSE),0) -> 0 | E169: =_xlfn.IFNA(VLOOKUP(A169,NDD_repeat_residues!A:F,5,FALSE),0) -> 0 | F169: =VLOOKUP(A169,NDD.gMVP!A:E,3,FALSE) -> 5 | G169: =IF(VLOOKUP(A169,NDD.CADD!A:F,3,FALSE)=0,"",VLOOKUP(A169,NDD.CADD!A:F,3,FALSE)) -> 6 | H169: =VLOOKUP(A169,'NDD.gMVP.pois'!A:E,5,FALSE) -> 1.78E-06 | I169: =IF(VLOOKUP(A169,'NDD.gMVP.cluster'!A:E,5,FALSE)=0,"",VLOOKUP(A169,'NDD.gMVP.cluster'!A:E,5,FALSE)) -> 1.59E-03 | J169: =VLOOKUP(A169,NDD.gMVP!A:E,5, FALSE) -> 5.86E-08 | K169: =VLOOKUP(A169,'NDD.CADD.pois'!A:E,5,FALSE) -> 5.15E-04 | L169: =IF(VLOOKUP(A169,'NDD.CADD.cluster'!A:E,5,FALSE)=0,"",VLOOKUP(A169,'NDD.CADD.cluster'!A:E,5,FALSE)) -> 4.40E-04 | M169: =VLOOKUP(A169,NDD.CADD!A:F,5,FALSE) -> 3.70E-06 | N169: =VLOOKUP(A169,NDD_Kaplanis!A:AI,25,FALSE) -> 3.76E-03 | O169: =AND(N169>0.0000025,OR(J169<0.0000025)) -> TRUE | P169: =VLOOKUP(A169,NDD_Kaplanis!A:AI,26,FALSE) -> 3.62E-04 | Q169: =AND(OR(J169<0.0000025),P169>0.0000025) -> TRUE | R169: =VLOOKUP(A169,NDD_Kaplanis!A:D,4,FALSE) -> none | S169: =AND(OR(R169="discordant", R169="none"),OR(J169<0.0000025)) -> TRUE | T169: =VLOOKUP(A169,DDG2P_3_5_2022!A:E,3,FALSE) ->  | U169: =VLOOKUP(A169,DDG2P_3_5_2022!A:E,5,FALSE) ->  | V169: =AND(ISNA(T169),OR(J169<0.0000025)) -> TRUE | W169: =N169/J169 -> 6.43E+04
A170: SOS1 | B170: =VLOOKUP(A170,NDD_Kaplanis!A:AI,6,FALSE)+VLOOKUP(A170,NDD_Kaplanis!A:AI,13,FALSE)+VLOOKUP(A170,NDD_Kaplanis!A:AI,14,FALSE)+VLOOKUP(A170,NDD_Kaplanis!A:AI,15,FALSE) -> 1 | C170: =VLOOKUP(A170,NDD_Kaplanis!A:AI,10,FALSE) -> 11 | D170: =_xlfn.IFNA(VLOOKUP(A170,NDD_repeat_variants!A:F,6,FALSE),0) -> 0 | E170: =_xlfn.IFNA(VLOOKUP(A170,NDD_repeat_residues!A:F,5,FALSE),0) -> 0 | F170: =VLOOKUP(A170,NDD.gMVP!A:E,3,FALSE) -> 4 | G170: =IF(VLOOKUP(A170,NDD.CADD!A:F,3,FALSE)=0,"",VLOOKUP(A170,NDD.CADD!A:F,3,FALSE)) -> 5 | H170: =VLOOKUP(A170,'NDD.gMVP.pois'!A:E,5,FALSE) -> 2.18E-03 | I170: =IF(VLOOKUP(A170,'NDD.gMVP.cluster'!A:E,5,FALSE)=0,"",VLOOKUP(A170,'NDD.gMVP.cluster'!A:E,5,FALSE)) -> 1.50E-06 | J170: =VLOOKUP(A170,NDD.gMVP!A:E,5, FALSE) -> 6.72E-08 | K170: =VLOOKUP(A170,'NDD.CADD.pois'!A:E,5,FALSE) -> 6.50E-04 | L170: =IF(VLOOKUP(A170,'NDD.CADD.cluster'!A:E,5,FALSE)=0,"",VLOOKUP(A170,'NDD.CADD.cluster'!A:E,5,FALSE)) -> 4.00E-06 | M170: =VLOOKUP(A170,NDD.CADD!A:F,5,FALSE) -> 5.40E-08 | N170: =VLOOKUP(A170,NDD_Kaplanis!A:AI,25,FALSE) -> 1.35E-06 | O170: =AND(N170>0.0000025,OR(J170<0.0000025)) -> FALSE | P170: =VLOOKUP(A170,NDD_Kaplanis!A:AI,26,FALSE) -> 1.35E-06 | Q170: =AND(OR(J170<0.0000025),P170>0.0000025) -> FALSE | R170: =VLOOKUP(A170,NDD_Kaplanis!A:D,4,FALSE) -> consensus | S170: =AND(OR(R170="discordant", R170="none"),OR(J170<0.0000025)) -> FALSE | T170: =VLOOKUP(A170,DDG2P_3_5_2022!A:E,3,FALSE) -> NOONAN SYNDROME 4 | U170: =VLOOKUP(A170,DDG2P_3_5_2022!A:E,5,FALSE) -> definitive | V170: =AND(ISNA(T170),OR(J170<0.0000025)) -> FALSE | W170: =N170/J170 -> 2.01E+01
A171: ARF1 | B171: =VLOOKUP(A171,NDD_Kaplanis!A:AI,6,FALSE)+VLOOKUP(A171,NDD_Kaplanis!A:AI,13,FALSE)+VLOOKUP(A171,NDD_Kaplanis!A:AI,14,FALSE)+VLOOKUP(A171,NDD_Kaplanis!A:AI,15,FALSE) -> 0 | C171: =VLOOKUP(A171,NDD_Kaplanis!A:AI,10,FALSE) -> 7 | D171: =_xlfn.IFNA(VLOOKUP(A171,NDD_repeat_variants!A:F,6,FALSE),0) -> 0 | E171: =_xlfn.IFNA(VLOOKUP(A171,NDD_repeat_residues!A:F,5,FALSE),0) -> 3 | F171: =VLOOKUP(A171,NDD.gMVP!A:E,3,FALSE) -> 6 | G171: =IF(VLOOKUP(A171,NDD.CADD!A:F,3,FALSE)=0,"",VLOOKUP(A171,NDD.CADD!A:F,3,FALSE)) -> 5 | H171: =VLOOKUP(A171,'NDD.gMVP.pois'!A:E,5,FALSE) -> 4.67E-06 | I171: =IF(VLOOKUP(A171,'NDD.gMVP.cluster'!A:E,5,FALSE)=0,"",VLOOKUP(A171,'NDD.gMVP.cluster'!A:E,5,FALSE)) -> 7.44E-04 | J171: =VLOOKUP(A171,NDD.gMVP!A:E,5, FALSE) -> 7.12E-08 | K171: =VLOOKUP(A171,'NDD.CADD.pois'!A:E,5,FALSE) -> 2.60E-06 | L171: =IF(VLOOKUP(A171,'NDD.CADD.cluster'!A:E,5,FALSE)=0,"",VLOOKUP(A171,'NDD.CADD.cluster'!A:E,5,FALSE)) -> 1.78E-03 | M171: =VLOOKUP(A171,NDD.CADD!A:F,5,FALSE) -> 9.33E-08 | N171: =VLOOKUP(A171,NDD_Kaplanis!A:AI,25,FALSE) -> 1.72E-07 | O171: =AND(N171>0.0000025,OR(J171<0.0000025)) -> FALSE | P171: =VLOOKUP(A171,NDD_Kaplanis!A:AI,26,FALSE) -> 1.58E-07 | Q171: =AND(OR(J171<0.0000025),P171>0.0000025) -> FALSE | R171: =VLOOKUP(A171,NDD_Kaplanis!A:D,4,FALSE) -> novel | S171: =AND(OR(R171="discordant", R171="none"),OR(J171<0.0000025)) -> FALSE | T171: =VLOOKUP(A171,DDG2P_3_5_2022!A:E,3,FALSE) -> PERIVENTRICULAR NODULAR HETEROTOPIA 8 | U171: =VLOOKUP(A171,DDG2P_3_5_2022!A:E,5,FALSE) -> definitive | V171: =AND(ISNA(T171),OR(J171<0.0000025)) -> FALSE | W171: =N171/J171 -> 2.42E+00
A172: SMARCB1 | B172: =VLOOKUP(A172,NDD_Kaplanis!A:AI,6,FALSE)+VLOOKUP(A172,NDD_Kaplanis!A:AI,13,FALSE)+VLOOKUP(A172,NDD_Kaplanis!A:AI,14,FALSE)+VLOOKUP(A172,NDD_Kaplanis!A:AI,15,FALSE) -> 0 | C172: =VLOOKUP(A172,NDD_Kaplanis!A:AI,10,FALSE) -> 9 | D172: =_xlfn.IFNA(VLOOKUP(A172,NDD_repeat_variants!A:F,6,FALSE),0) -> 0 | E172: =_xlfn.IFNA(VLOOKUP(A172,NDD_repeat_residues!A:F,5,FALSE),0) -> 0 | F172: =VLOOKUP(A172,NDD.gMVP!A:E,3,FALSE) -> 8 | G172: =IF(VLOOKUP(A172,NDD.CADD!A:F,3,FALSE)=0,"",VLOOKUP(A172,NDD.CADD!A:F,3,FALSE)) -> 8 | H172: =VLOOKUP(A172,'NDD.gMVP.pois'!A:E,5,FALSE) -> 4.80E-07 | I172: =IF(VLOOKUP(A172,'NDD.gMVP.cluster'!A:E,5,FALSE)=0,"",VLOOKUP(A172,'NDD.gMVP.cluster'!A:E,5,FALSE)) -> 8.37E-03 | J172: =VLOOKUP(A172,NDD.gMVP!A:E,5, FALSE) -> 8.16E-08 | K172: =VLOOKUP(A172,'NDD.CADD.pois'!A:E,5,FALSE) -> 1.63E-08 | L172: =IF(VLOOKUP(A172,'NDD.CADD.cluster'!A:E,5,FALSE)=0,"",VLOOKUP(A172,'NDD.CADD.cluster'!A:E,5,FALSE)) -> 1.06E-02 | M172: =VLOOKUP(A172,NDD.CADD!A:F,5,FALSE) -> 4.05E-09 | N172: =VLOOKUP(A172,NDD_Kaplanis!A:AI,25,FALSE) -> 4.81E-08 | O172: =AND(N172>0.0000025,OR(J172<0.0000025)) -> FALSE | P172: =VLOOKUP(A172,NDD_Kaplanis!A:AI,26,FALSE) -> 5.48E-09 | Q172: =AND(OR(J172<0.0000025),P172>0.0000025) -> FALSE | R172: =VLOOKUP(A172,NDD_Kaplanis!A:D,4,FALSE) -> consensus | S172: =AND(OR(R172="discordant", R172="none"),OR(J172<0.0000025)) -> FALSE | T172: =VLOOKUP(A172,DDG2P_3_5_2022!A:E,3,FALSE) -> RHABDOID PREDISPOSITION SYNDROME 1 | U172: =VLOOKUP(A172,DDG2P_3_5_2022!A:E,5,FALSE) -> definitive | V172: =AND(ISNA(T172),OR(J172<0.0000025)) -> FALSE | W172: =N172/J172 -> 5.89E-01
A173: MAPK8IP3 | B173: =VLOOKUP(A173,NDD_Kaplanis!A:AI,6,FALSE)+VLOOKUP(A173,NDD_Kaplanis!A:AI,13,FALSE)+VLOOKUP(A173,NDD_Kaplanis!A:AI,14,FALSE)+VLOOKUP(A173,NDD_Kaplanis!A:AI,15,FALSE) -> 1 | C173: =VLOOKUP(A173,NDD_Kaplanis!A:AI,10,FALSE) -> 10 | D173: =_xlfn.IFNA(VLOOKUP(A173,NDD_repeat_variants!A:F,6,FALSE),0) -> 1 | E173: =_xlfn.IFNA(VLOOKUP(A173,NDD_repeat_residues!A:F,5,FALSE),0) -> 0 | F173: =VLOOKUP(A173,NDD.gMVP!A:E,3,FALSE) -> 4 | G173: =IF(VLOOKUP(A173,NDD.CADD!A:F,3,FALSE)=0,"",VLOOKUP(A173,NDD.CADD!A:F,3,FALSE)) -> 4 | H173: =VLOOKUP(A173,'NDD.gMVP.pois'!A:E,5,FALSE) -> 5.41E-05 | I173: =IF(VLOOKUP(A173,'NDD.gMVP.cluster'!A:E,5,FALSE)=0,"",VLOOKUP(A173,'NDD.gMVP.cluster'!A:E,5,FALSE)) -> 7.97E-05 | J173: =VLOOKUP(A173,NDD.gMVP!A:E,5, FALSE) -> 8.74E-08 | K173: =VLOOKUP(A173,'NDD.CADD.pois'!A:E,5,FALSE) -> 4.42E-04 | L173: =IF(VLOOKUP(A173,'NDD.CADD.cluster'!A:E,5,FALSE)=0,"",VLOOKUP(A173,'NDD.CADD.cluster'!A:E,5,FALSE)) -> 1.23E-04 | M173: =VLOOKUP(A173,NDD.CADD!A:F,5,FALSE) -> 9.67E-07 | N173: =VLOOKUP(A173,NDD_Kaplanis!A:AI,25,FALSE) -> 1.19E-04 | O173: =AND(N173>0.0000025,OR(J173<0.0000025)) -> TRUE | P173: =VLOOKUP(A173,NDD_Kaplanis!A:AI,26,FALSE) -> 1.19E-04 | Q173: =AND(OR(J173<0.0000025),P173>0.0000025) -> TRUE | R173: =VLOOKUP(A173,NDD_Kaplanis!A:D,4,FALSE) -> consensus | S173: =AND(OR(R173="discordant", R173="none"),OR(J173<0.0000025)) -> FALSE | T173: =VLOOKUP(A173,DDG2P_3_5_2022!A:E,3,FALSE) -> Intellectual Disability with Variable Brain Anomalies | U173: =VLOOKUP(A173,DDG2P_3_5_2022!A:E,5,FALSE) -> strong | V173: =AND(ISNA(T173),OR(J173<0.0000025)) -> FALSE | W173: =N173/J173 -> 1.36E+03
A174: NOTCH1 | B174: =VLOOKUP(A174,NDD_Kaplanis!A:AI,6,FALSE)+VLOOKUP(A174,NDD_Kaplanis!A:AI,13,FALSE)+VLOOKUP(A174,NDD_Kaplanis!A:AI,14,FALSE)+VLOOKUP(A174,NDD_Kaplanis!A:AI,15,FALSE) -> 4 | C174: =VLOOKUP(A174,NDD_Kaplanis!A:AI,10,FALSE) -> 17 | D174: =_xlfn.IFNA(VLOOKUP(A174,NDD_repeat_variants!A:F,6,FALSE),0) -> 0 | E174: =_xlfn.IFNA(VLOOKUP(A174,NDD_repeat_residues!A:F,5,FALSE),0) -> 0 | F174: =VLOOKUP(A174,NDD.gMVP!A:E,3,FALSE) -> 11 | G174: =IF(VLOOKUP(A174,NDD.CADD!A:F,3,FALSE)=0,"",VLOOKUP(A174,NDD.CADD!A:F,3,FALSE)) -> 9 | H174: =VLOOKUP(A174,'NDD.gMVP.pois'!A:E,5,FALSE) -> 1.23E-05 | I174: =IF(VLOOKUP(A174,'NDD.gMVP.cluster'!A:E,5,FALSE)=0,"",VLOOKUP(A174,'NDD.gMVP.cluster'!A:E,5,FALSE)) -> 3.52E-04 | J174: =VLOOKUP(A174,NDD.gMVP!A:E,5, FALSE) -> 8.76E-08 | K174: =VLOOKUP(A174,'NDD.CADD.pois'!A:E,5,FALSE) -> 2.35E-04 | L174: =IF(VLOOKUP(A174,'NDD.CADD.cluster'!A:E,5,FALSE)=0,"",VLOOKUP(A174,'NDD.CADD.cluster'!A:E,5,FALSE)) -> 4.90E-03 | M174: =VLOOKUP(A174,NDD.CADD!A:F,5,FALSE) -> 1.69E-05 | N174: =VLOOKUP(A174,NDD_Kaplanis!A:AI,25,FALSE) -> 1.03E-04 | O174: =AND(N174>0.0000025,OR(J174<0.0000025)) -> TRUE | P174: =VLOOKUP(A174,NDD_Kaplanis!A:AI,26,FALSE) -> 1.63E-07 | Q174: =AND(OR(J174<0.0000025),P174>0.0000025) -> FALSE | R174: =VLOOKUP(A174,NDD_Kaplanis!A:D,4,FALSE) -> discordant | S174: =AND(OR(R174="discordant", R174="none"),OR(J174<0.0000025)) -> TRUE | T174: =VLOOKUP(A174,DDG2P_3_5_2022!A:E,3,FALSE) -> LEFT VENTRICULAR OUTFLOW TRACT OBSTRUCTION | U174: =VLOOKUP(A174,DDG2P_3_5_2022!A:E,5,FALSE) -> strong | V174: =AND(ISNA(T174),OR(J174<0.0000025)) -> FALSE | W174: =N174/J174 -> 1.18E+03
A175: SCN3A | B175: =VLOOKUP(A175,NDD_Kaplanis!A:AI,6,FALSE)+VLOOKUP(A175,NDD_Kaplanis!A:AI,13,FALSE)+VLOOKUP(A175,NDD_Kaplanis!A:AI,14,FALSE)+VLOOKUP(A175,NDD_Kaplanis!A:AI,15,FALSE) -> 1 | C175: =VLOOKUP(A175,NDD_Kaplanis!A:AI,10,FALSE) -> 10 | D175: =_xlfn.IFNA(VLOOKUP(A175,NDD_repeat_variants!A:F,6,FALSE),0) -> 1 | E175: =_xlfn.IFNA(VLOOKUP(A175,NDD_repeat_residues!A:F,5,FALSE),0) -> 0 | F175: =VLOOKUP(A175,NDD.gMVP!A:E,3,FALSE) -> 5 | G175: =IF(VLOOKUP(A175,NDD.CADD!A:F,3,FALSE)=0,"",VLOOKUP(A175,NDD.CADD!A:F,3,FALSE)) -> 5 | H175: =VLOOKUP(A175,'NDD.gMVP.pois'!A:E,5,FALSE) -> 1.93E-03 | I175: =IF(VLOOKUP(A175,'NDD.gMVP.cluster'!A:E,5,FALSE)=0,"",VLOOKUP(A175,'NDD.gMVP.cluster'!A:E,5,FALSE)) -> 2.70E-06 | J175: =VLOOKUP(A175,NDD.gMVP!A:E,5, FALSE) -> 1.05E-07 | K175: =VLOOKUP(A175,'NDD.CADD.pois'!A:E,5,FALSE) -> 2.39E-05 | L175: =IF(VLOOKUP(A175,'NDD.CADD.cluster'!A:E,5,FALSE)=0,"",VLOOKUP(A175,'NDD.CADD.cluster'!A:E,5,FALSE)) -> 3.30E-06 | M175: =VLOOKUP(A175,NDD.CADD!A:F,5,FALSE) -> 1.92E-09 | N175: =VLOOKUP(A175,NDD_Kaplanis!A:AI,25,FALSE) -> 1.22E-04 | O175: =AND(N175>0.0000025,OR(J175<0.0000025)) -> TRUE | P175: =VLOOKUP(A175,NDD_Kaplanis!A:AI,26,FALSE) -> 1.22E-04 | Q175: =AND(OR(J175<0.0000025),P175>0.0000025) -> TRUE | R175: =VLOOKUP(A175,NDD_Kaplanis!A:D,4,FALSE) -> consensus | S175: =AND(OR(R175="discordant", R175="none"),OR(J175<0.0000025)) -> FALSE | T175: =VLOOKUP(A175,DDG2P_3_5_2022!A:E,3,FALSE) -> Focal epilepsy | U175: =VLOOKUP(A175,DDG2P_3_5_2022!A:E,5,FALSE) -> strong | V175: =AND(ISNA(T175),OR(J175<0.0000025)) -> FALSE | W175: =N175/J175 -> 1.17E+03
A176: SLC18A3 | B176: =VLOOKUP(A176,NDD_Kaplanis!A:AI,6,FALSE)+VLOOKUP(A176,NDD_Kaplanis!A:AI,13,FALSE)+VLOOKUP(A176,NDD_Kaplanis!A:AI,14,FALSE)+VLOOKUP(A176,NDD_Kaplanis!A:AI,15,FALSE) -> 0 | C176: =VLOOKUP(A176,NDD_Kaplanis!A:AI,10,FALSE) -> 5 | D176: =_xlfn.IFNA(VLOOKUP(A176,NDD_repeat_variants!A:F,6,FALSE),0) -> 0 | E176: =_xlfn.IFNA(VLOOKUP(A176,NDD_repeat_residues!A:F,5,FALSE),0) -> 0 | F176: =VLOOKUP(A176,NDD.gMVP!A:E,3,FALSE) -> 5 | G176: =IF(VLOOKUP(A176,NDD.CADD!A:F,3,FALSE)=0,"",VLOOKUP(A176,NDD.CADD!A:F,3,FALSE)) -> 4 | H176: =VLOOKUP(A176,'NDD.gMVP.pois'!A:E,5,FALSE) -> 6.93E-04 | I176: =IF(VLOOKUP(A176,'NDD.gMVP.cluster'!A:E,5,FALSE)=0,"",VLOOKUP(A176,'NDD.gMVP.cluster'!A:E,5,FALSE)) -> 9.20E-06 | J176: =VLOOKUP(A176,NDD.gMVP!A:E,5, FALSE) -> 1.27E-07 | K176: =VLOOKUP(A176,'NDD.CADD.pois'!A:E,5,FALSE) -> 4.86E-03 | L176: =IF(VLOOKUP(A176,'NDD.CADD.cluster'!A:E,5,FALSE)=0,"",VLOOKUP(A176,'NDD.CADD.cluster'!A:E,5,FALSE)) -> 1.62E-05 | M176: =VLOOKUP(A176,NDD.CADD!A:F,5,FALSE) -> 1.37E-06 | N176: =VLOOKUP(A176,NDD_Kaplanis!A:AI,25,FALSE) -> 2.11E-05 | O176: =AND(N176>0.0000025,OR(J176<0.0000025)) -> TRUE | P176: =VLOOKUP(A176,NDD_Kaplanis!A:AI,26,FALSE) -> 2.11E-05 | Q176: =AND(OR(J176<0.0000025),P176>0.0000025) -> TRUE | R176: =VLOOKUP(A176,NDD_Kaplanis!A:D,4,FALSE) -> none | S176: =AND(OR(R176="discordant", R176="none"),OR(J176<0.0000025)) -> TRUE | T176: =VLOOKUP(A176,DDG2P_3_5_2022!A:E,3,FALSE) ->  | U176: =VLOOKUP(A176,DDG2P_3_5_2022!A:E,5,FALSE) ->  | V176: =AND(ISNA(T176),OR(J176<0.0000025)) -> TRUE | W176: =N176/J176 -> 1.66E+02
A177: MAF | B177: =VLOOKUP(A177,NDD_Kaplanis!A:AI,6,FALSE)+VLOOKUP(A177,NDD_Kaplanis!A:AI,13,FALSE)+VLOOKUP(A177,NDD_Kaplanis!A:AI,14,FALSE)+VLOOKUP(A177,NDD_Kaplanis!A:AI,15,FALSE) -> 2 | C177: =VLOOKUP(A177,NDD_Kaplanis!A:AI,10,FALSE) -> 6 | D177: =_xlfn.IFNA(VLOOKUP(A177,NDD_repeat_variants!A:F,6,FALSE),0) -> 0 | E177: =_xlfn.IFNA(VLOOKUP(A177,NDD_repeat_residues!A:F,5,FALSE),0) -> 0 | F177: =VLOOKUP(A177,NDD.gMVP!A:E,3,FALSE) -> 6 | G177: =IF(VLOOKUP(A177,NDD.CADD!A:F,3,FALSE)=0,"",VLOOKUP(A177,NDD.CADD!A:F,3,FALSE)) -> 4 | H177: =VLOOKUP(A177,'NDD.gMVP.pois'!A:E,5,FALSE) -> 5.23E-06 | I177: =IF(VLOOKUP(A177,'NDD.gMVP.cluster'!A:E,5,FALSE)=0,"",VLOOKUP(A177,'NDD.gMVP.cluster'!A:E,5,FALSE)) -> 1.27E-03 | J177: =VLOOKUP(A177,NDD.gMVP!A:E,5, FALSE) -> 1.32E-07 | K177: =VLOOKUP(A177,'NDD.CADD.pois'!A:E,5,FALSE) -> 1.13E-03 | L177: =IF(VLOOKUP(A177,'NDD.CADD.cluster'!A:E,5,FALSE)=0,"",VLOOKUP(A177,'NDD.CADD.cluster'!A:E,5,FALSE)) -> 4.47E-02 | M177: =VLOOKUP(A177,NDD.CADD!A:F,5,FALSE) -> 5.49E-04 | N177: =VLOOKUP(A177,NDD_Kaplanis!A:AI,25,FALSE) -> 4.34E-04 | O177: =AND(N177>0.0000025,OR(J177<0.0000025)) -> TRUE | P177: =VLOOKUP(A177,NDD_Kaplanis!A:AI,26,FALSE) -> 1.61E-05 | Q177: =AND(OR(J177<0.0000025),P177>0.0000025) -> TRUE | R177: =VLOOKUP(A177,NDD_Kaplanis!A:D,4,FALSE) -> consensus | S177: =AND(OR(R177="discordant", R177="none"),OR(J177<0.0000025)) -> FALSE | T177: =VLOOKUP(A177,DDG2P_3_5_2022!A:E,3,FALSE) -> CATARACT 21, MULTIPLE TYPES | U177: =VLOOKUP(A177,DDG2P_3_5_2022!A:E,5,FALSE) -> definitive | V177: =AND(ISNA(T177),OR(J177<0.0000025)) -> FALSE | W177: =N177/J177 -> 3.29E+03
A178: YWHAG | B178: =VLOOKUP(A178,NDD_Kaplanis!A:AI,6,FALSE)+VLOOKUP(A178,NDD_Kaplanis!A:AI,13,FALSE)+VLOOKUP(A178,NDD_Kaplanis!A:AI,14,FALSE)+VLOOKUP(A178,NDD_Kaplanis!A:AI,15,FALSE) -> 0 | C178: =VLOOKUP(A178,NDD_Kaplanis!A:AI,10,FALSE) -> 6 | D178: =_xlfn.IFNA(VLOOKUP(A178,NDD_repeat_variants!A:F,6,FALSE),0) -> 0 | E178: =_xlfn.IFNA(VLOOKUP(A178,NDD_repeat_residues!A:F,5,FALSE),0) -> 0 | F178: =VLOOKUP(A178,NDD.gMVP!A:E,3,FALSE) -> 6 | G178: =IF(VLOOKUP(A178,NDD.CADD!A:F,3,FALSE)=0,"",VLOOKUP(A178,NDD.CADD!A:F,3,FALSE)) -> 6 | H178: =VLOOKUP(A178,'NDD.gMVP.pois'!A:E,5,FALSE) -> 9.48E-06 | I178: =IF(VLOOKUP(A178,'NDD.gMVP.cluster'!A:E,5,FALSE)=0,"",VLOOKUP(A178,'NDD.gMVP.cluster'!A:E,5,FALSE)) -> 8.15E-04 | J178: =VLOOKUP(A178,NDD.gMVP!A:E,5, FALSE) -> 1.52E-07 | K178: =VLOOKUP(A178,'NDD.CADD.pois'!A:E,5,FALSE) -> 5.81E-07 | L178: =IF(VLOOKUP(A178,'NDD.CADD.cluster'!A:E,5,FALSE)=0,"",VLOOKUP(A178,'NDD.CADD.cluster'!A:E,5,FALSE)) -> 5.11E-04 | M178: =VLOOKUP(A178,NDD.CADD!A:F,5,FALSE) -> 6.82E-09 | N178: =VLOOKUP(A178,NDD_Kaplanis!A:AI,25,FALSE) -> 9.20E-06 | O178: =AND(N178>0.0000025,OR(J178<0.0000025)) -> TRUE | P178: =VLOOKUP(A178,NDD_Kaplanis!A:AI,26,FALSE) -> 9.20E-06 | Q178: =AND(OR(J178<0.0000025),P178>0.0000025) -> TRUE | R178: =VLOOKUP(A178,NDD_Kaplanis!A:D,4,FALSE) -> consensus | S178: =AND(OR(R178="discordant", R178="none"),OR(J178<0.0000025)) -> FALSE | T178: =VLOOKUP(A178,DDG2P_3_5_2022!A:E,3,FALSE) -> Early-Onset Epilepsy | U178: =VLOOKUP(A178,DDG2P_3_5_2022!A:E,5,FALSE) -> strong | V178: =AND(ISNA(T178),OR(J178<0.0000025)) -> FALSE | W178: =N178/J178 -> 6.05E+01
A179: TAOK1 | B179: =VLOOKUP(A179,NDD_Kaplanis!A:AI,6,FALSE)+VLOOKUP(A179,NDD_Kaplanis!A:AI,13,FALSE)+VLOOKUP(A179,NDD_Kaplanis!A:AI,14,FALSE)+VLOOKUP(A179,NDD_Kaplanis!A:AI,15,FALSE) -> 9 | C179: =VLOOKUP(A179,NDD_Kaplanis!A:AI,10,FALSE) -> 9 | D179: =_xlfn.IFNA(VLOOKUP(A179,NDD_repeat_variants!A:F,6,FALSE),0) -> 0 | E179: =_xlfn.IFNA(VLOOKUP(A179,NDD_repeat_residues!A:F,5,FALSE),0) -> 0 | F179: =VLOOKUP(A179,NDD.gMVP!A:E,3,FALSE) -> 6 | G179: =IF(VLOOKUP(A179,NDD.CADD!A:F,3,FALSE)=0,"",VLOOKUP(A179,NDD.CADD!A:F,3,FALSE)) -> 6 | H179: =VLOOKUP(A179,'NDD.gMVP.pois'!A:E,5,FALSE) -> 1.48E-05 | I179: =IF(VLOOKUP(A179,'NDD.gMVP.cluster'!A:E,5,FALSE)=0,"",VLOOKUP(A179,'NDD.gMVP.cluster'!A:E,5,FALSE)) -> 5.22E-04 | J179: =VLOOKUP(A179,NDD.gMVP!A:E,5, FALSE) -> 1.52E-07 | K179: =VLOOKUP(A179,'NDD.CADD.pois'!A:E,5,FALSE) -> 1.10E-04 | L179: =IF(VLOOKUP(A179,'NDD.CADD.cluster'!A:E,5,FALSE)=0,"",VLOOKUP(A179,'NDD.CADD.cluster'!A:E,5,FALSE)) -> 2.62E-01 | M179: =VLOOKUP(A179,NDD.CADD!A:F,5,FALSE) -> 3.29E-04 | N179: =VLOOKUP(A179,NDD_Kaplanis!A:AI,25,FALSE) -> 5.43E-06 | O179: =AND(N179>0.0000025,OR(J179<0.0000025)) -> TRUE | P179: =VLOOKUP(A179,NDD_Kaplanis!A:AI,26,FALSE) -> 4.00E-14 | Q179: =AND(OR(J179<0.0000025),P179>0.0000025) -> FALSE | R179: =VLOOKUP(A179,NDD_Kaplanis!A:D,4,FALSE) -> discordant | S179: =AND(OR(R179="discordant", R179="none"),OR(J179<0.0000025)) -> TRUE | T179: =VLOOKUP(A179,DDG2P_3_5_2022!A:E,3,FALSE) -> INTELLECTUAL DISABILITY | U179: =VLOOKUP(A179,DDG2P_3_5_2022!A:E,5,FALSE) -> definitive | V179: =AND(ISNA(T179),OR(J179<0.0000025)) -> FALSE | W179: =N179/J179 -> 3.56E+01
A180: KBTBD7 | B180: =VLOOKUP(A180,NDD_Kaplanis!A:AI,6,FALSE)+VLOOKUP(A180,NDD_Kaplanis!A:AI,13,FALSE)+VLOOKUP(A180,NDD_Kaplanis!A:AI,14,FALSE)+VLOOKUP(A180,NDD_Kaplanis!A:AI,15,FALSE) -> 0 | C180: =VLOOKUP(A180,NDD_Kaplanis!A:AI,10,FALSE) -> 5 | D180: =_xlfn.IFNA(VLOOKUP(A180,NDD_repeat_variants!A:F,6,FALSE),0) -> 1 | E180: =_xlfn.IFNA(VLOOKUP(A180,NDD_repeat_residues!A:F,5,FALSE),0) -> 0 | F180: =VLOOKUP(A180,NDD.gMVP!A:E,3,FALSE) -> 5 | G180: =IF(VLOOKUP(A180,NDD.CADD!A:F,3,FALSE)=0,"",VLOOKUP(A180,NDD.CADD!A:F,3,FALSE)) -> 3 | H180: =VLOOKUP(A180,'NDD.gMVP.pois'!A:E,5,FALSE) -> 3.41E-04 | I180: =IF(VLOOKUP(A180,'NDD.gMVP.cluster'!A:E,5,FALSE)=0,"",VLOOKUP(A180,'NDD.gMVP.cluster'!A:E,5,FALSE)) -> 2.60E-05 | J180: =VLOOKUP(A180,NDD.gMVP!A:E,5, FALSE) -> 1.73E-07 | K180: =VLOOKUP(A180,'NDD.CADD.pois'!A:E,5,FALSE) -> 3.06E-03 | L180: =IF(VLOOKUP(A180,'NDD.CADD.cluster'!A:E,5,FALSE)=0,"",VLOOKUP(A180,'NDD.CADD.cluster'!A:E,5,FALSE)) -> 1.30E-06 | M180: =VLOOKUP(A180,NDD.CADD!A:F,5,FALSE) -> 8.10E-08 | N180: =VLOOKUP(A180,NDD_Kaplanis!A:AI,25,FALSE) -> 2.93E-04 | O180: =AND(N180>0.0000025,OR(J180<0.0000025)) -> TRUE | P180: =VLOOKUP(A180,NDD_Kaplanis!A:AI,26,FALSE) -> 2.93E-04 | Q180: =AND(OR(J180<0.0000025),P180>0.0000025) -> TRUE | R180: =VLOOKUP(A180,NDD_Kaplanis!A:D,4,FALSE) -> none | S180: =AND(OR(R180="discordant", R180="none"),OR(J180<0.0000025)) -> TRUE | T180: =VLOOKUP(A180,DDG2P_3_5_2022!A:E,3,FALSE) ->  | U180: =VLOOKUP(A180,DDG2P_3_5_2022!A:E,5,FALSE) ->  | V180: =AND(ISNA(T180),OR(J180<0.0000025)) -> TRUE | W180: =N180/J180 -> 1.69E+03
A181: MAST3 | B181: =VLOOKUP(A181,NDD_Kaplanis!A:AI,6,FALSE)+VLOOKUP(A181,NDD_Kaplanis!A:AI,13,FALSE)+VLOOKUP(A181,NDD_Kaplanis!A:AI,14,FALSE)+VLOOKUP(A181,NDD_Kaplanis!A:AI,15,FALSE) -> 0 | C181: =VLOOKUP(A181,NDD_Kaplanis!A:AI,10,FALSE) -> 12 | D181: =_xlfn.IFNA(VLOOKUP(A181,NDD_repeat_variants!A:F,6,FALSE),0) -> 0 | E181: =_xlfn.IFNA(VLOOKUP(A181,NDD_repeat_residues!A:F,5,FALSE),0) -> 0 | F181: =VLOOKUP(A181,NDD.gMVP!A:E,3,FALSE) -> 7 | G181: =IF(VLOOKUP(A181,NDD.CADD!A:F,3,FALSE)=0,"",VLOOKUP(A181,NDD.CADD!A:F,3,FALSE)) -> 8 | H181: =VLOOKUP(A181,'NDD.gMVP.pois'!A:E,5,FALSE) -> 3.82E-05 | I181: =IF(VLOOKUP(A181,'NDD.gMVP.cluster'!A:E,5,FALSE)=0,"",VLOOKUP(A181,'NDD.gMVP.cluster'!A:E,5,FALSE)) -> 2.45E-04 | J181: =VLOOKUP(A181,NDD.gMVP!A:E,5, FALSE) -> 1.82E-07 | K181: =VLOOKUP(A181,'NDD.CADD.pois'!A:E,5,FALSE) -> 1.18E-04 | L181: =IF(VLOOKUP(A181,'NDD.CADD.cluster'!A:E,5,FALSE)=0,"",VLOOKUP(A181,'NDD.CADD.cluster'!A:E,5,FALSE)) -> 2.55E-03 | M181: =VLOOKUP(A181,NDD.CADD!A:F,5,FALSE) -> 4.83E-06 | N181: =VLOOKUP(A181,NDD_Kaplanis!A:AI,25,FALSE) -> 1.31E-04 | O181: =AND(N181>0.0000025,OR(J181<0.0000025)) -> TRUE | P181: =VLOOKUP(A181,NDD_Kaplanis!A:AI,26,FALSE) -> 1.31E-04 | Q181: =AND(OR(J181<0.0000025),P181>0.0000025) -> TRUE | R181: =VLOOKUP(A181,NDD_Kaplanis!A:D,4,FALSE) -> none | S181: =AND(OR(R181="discordant", R181="none"),OR(J181<0.0000025)) -> TRUE | T181: =VLOOKUP(A181,DDG2P_3_5_2022!A:E,3,FALSE) ->  | U181: =VLOOKUP(A181,DDG2P_3_5_2022!A:E,5,FALSE) ->  | V181: =AND(ISNA(T181),OR(J181<0.0000025)) -> TRUE | W181: =N181/J181 -> 7.19E+02
A182: SYNPO | B182: =VLOOKUP(A182,NDD_Kaplanis!A:AI,6,FALSE)+VLOOKUP(A182,NDD_Kaplanis!A:AI,13,FALSE)+VLOOKUP(A182,NDD_Kaplanis!A:AI,14,FALSE)+VLOOKUP(A182,NDD_Kaplanis!A:AI,15,FALSE) -> 0 | C182: =VLOOKUP(A182,NDD_Kaplanis!A:AI,10,FALSE) -> 4 | D182: =_xlfn.IFNA(VLOOKUP(A182,NDD_repeat_variants!A:F,6,FALSE),0) -> 0 | E182: =_xlfn.IFNA(VLOOKUP(A182,NDD_repeat_residues!A:F,5,FALSE),0) -> 0 | F182: =VLOOKUP(A182,NDD.gMVP!A:E,3,FALSE) -> 0 | G182: =IF(VLOOKUP(A182,NDD.CADD!A:F,3,FALSE)=0,"",VLOOKUP(A182,NDD.CADD!A:F,3,FALSE)) -> 1 | H182: =VLOOKUP(A182,'NDD.gMVP.pois'!A:E,5,FALSE) -> 1.89E-07 | I182: =IF(VLOOKUP(A182,'NDD.gMVP.cluster'!A:E,5,FALSE)=0,"",VLOOKUP(A182,'NDD.gMVP.cluster'!A:E,5,FALSE)) ->  | J182: =VLOOKUP(A182,NDD.gMVP!A:E,5, FALSE) -> 1.89E-07 | K182: =VLOOKUP(A182,'NDD.CADD.pois'!A:E,5,FALSE) -> 2.10E-01 | L182: =IF(VLOOKUP(A182,'NDD.CADD.cluster'!A:E,5,FALSE)=0,"",VLOOKUP(A182,'NDD.CADD.cluster'!A:E,5,FALSE)) ->  | M182: =VLOOKUP(A182,NDD.CADD!A:F,5,FALSE) -> 2.10E-01 | N182: =VLOOKUP(A182,NDD_Kaplanis!A:AI,25,FALSE) -> 2.94E-01 | O182: =AND(N182>0.0000025,OR(J182<0.0000025)) -> TRUE | P182: =VLOOKUP(A182,NDD_Kaplanis!A:AI,26,FALSE) -> 2.94E-01 | Q182: =AND(OR(J182<0.0000025),P182>0.0000025) -> TRUE | R182: =VLOOKUP(A182,NDD_Kaplanis!A:D,4,FALSE) -> none | S182: =AND(OR(R182="discordant", R182="none"),OR(J182<0.0000025)) -> TRUE | T182: =VLOOKUP(A182,DDG2P_3_5_2022!A:E,3,FALSE) ->  | U182: =VLOOKUP(A182,DDG2P_3_5_2022!A:E,5,FALSE) ->  | V182: =AND(ISNA(T182),OR(J182<0.0000025)) -> TRUE | W182: =N182/J182 -> 1.56E+06
A183: PPP3CA | B183: =VLOOKUP(A183,NDD_Kaplanis!A:AI,6,FALSE)+VLOOKUP(A183,NDD_Kaplanis!A:AI,13,FALSE)+VLOOKUP(A183,NDD_Kaplanis!A:AI,14,FALSE)+VLOOKUP(A183,NDD_Kaplanis!A:AI,15,FALSE) -> 0 | C183: =VLOOKUP(A183,NDD_Kaplanis!A:AI,10,FALSE) -> 6 | D183: =_xlfn.IFNA(VLOOKUP(A183,NDD_repeat_variants!A:F,6,FALSE),0) -> 0 | E183: =_xlfn.IFNA(VLOOKUP(A183,NDD_repeat_residues!A:F,5,FALSE),0) -> 0 | F183: =VLOOKUP(A183,NDD.gMVP!A:E,3,FALSE) -> 6 | G183: =IF(VLOOKUP(A183,NDD.CADD!A:F,3,FALSE)=0,"",VLOOKUP(A183,NDD.CADD!A:F,3,FALSE)) -> 3 | H183: =VLOOKUP(A183,'NDD.gMVP.pois'!A:E,5,FALSE) -> 2.52E-05 | I183: =IF(VLOOKUP(A183,'NDD.gMVP.cluster'!A:E,5,FALSE)=0,"",VLOOKUP(A183,'NDD.gMVP.cluster'!A:E,5,FALSE)) -> 3.89E-04 | J183: =VLOOKUP(A183,NDD.gMVP!A:E,5, FALSE) -> 1.90E-07 | K183: =VLOOKUP(A183,'NDD.CADD.pois'!A:E,5,FALSE) -> 6.04E-03 | L183: =IF(VLOOKUP(A183,'NDD.CADD.cluster'!A:E,5,FALSE)=0,"",VLOOKUP(A183,'NDD.CADD.cluster'!A:E,5,FALSE)) -> 3.66E-02 | M183: =VLOOKUP(A183,NDD.CADD!A:F,5,FALSE) -> 2.08E-03 | N183: =VLOOKUP(A183,NDD_Kaplanis!A:AI,25,FALSE) -> 4.13E-06 | O183: =AND(N183>0.0000025,OR(J183<0.0000025)) -> TRUE | P183: =VLOOKUP(A183,NDD_Kaplanis!A:AI,26,FALSE) -> 4.13E-06 | Q183: =AND(OR(J183<0.0000025),P183>0.0000025) -> TRUE | R183: =VLOOKUP(A183,NDD_Kaplanis!A:D,4,FALSE) -> consensus | S183: =AND(OR(R183="discordant", R183="none"),OR(J183<0.0000025)) -> FALSE | T183: =VLOOKUP(A183,DDG2P_3_5_2022!A:E,3,FALSE) -> Severe Neurodevelopmental Disease with Seizures | U183: =VLOOKUP(A183,DDG2P_3_5_2022!A:E,5,FALSE) -> strong | V183: =AND(ISNA(T183),OR(J183<0.0000025)) -> FALSE | W183: =N183/J183 -> 2.17E+01
A184: PSMC3 | B184: =VLOOKUP(A184,NDD_Kaplanis!A:AI,6,FALSE)+VLOOKUP(A184,NDD_Kaplanis!A:AI,13,FALSE)+VLOOKUP(A184,NDD_Kaplanis!A:AI,14,FALSE)+VLOOKUP(A184,NDD_Kaplanis!A:AI,15,FALSE) -> 0 | C184: =VLOOKUP(A184,NDD_Kaplanis!A:AI,10,FALSE) -> 7 | D184: =_xlfn.IFNA(VLOOKUP(A184,NDD_repeat_variants!A:F,6,FALSE),0) -> 0 | E184: =_xlfn.IFNA(VLOOKUP(A184,NDD_repeat_residues!A:F,5,FALSE),0) -> 0 | F184: =VLOOKUP(A184,NDD.gMVP!A:E,3,FALSE) -> 7 | G184: =IF(VLOOKUP(A184,NDD.CADD!A:F,3,FALSE)=0,"",VLOOKUP(A184,NDD.CADD!A:F,3,FALSE)) -> 6 | H184: =VLOOKUP(A184,'NDD.gMVP.pois'!A:E,5,FALSE) -> 3.24E-06 | I184: =IF(VLOOKUP(A184,'NDD.gMVP.cluster'!A:E,5,FALSE)=0,"",VLOOKUP(A184,'NDD.gMVP.cluster'!A:E,5,FALSE)) -> 3.45E-03 | J184: =VLOOKUP(A184,NDD.gMVP!A:E,5, FALSE) -> 2.16E-07 | K184: =VLOOKUP(A184,'NDD.CADD.pois'!A:E,5,FALSE) -> 7.15E-06 | L184: =IF(VLOOKUP(A184,'NDD.CADD.cluster'!A:E,5,FALSE)=0,"",VLOOKUP(A184,'NDD.CADD.cluster'!A:E,5,FALSE)) -> 5.42E-03 | M184: =VLOOKUP(A184,NDD.CADD!A:F,5,FALSE) -> 7.01E-07 | N184: =VLOOKUP(A184,NDD_Kaplanis!A:AI,25,FALSE) -> 9.70E-06 | O184: =AND(N184>0.0000025,OR(J184<0.0000025)) -> TRUE | P184: =VLOOKUP(A184,NDD_Kaplanis!A:AI,26,FALSE) -> 9.70E-06 | Q184: =AND(OR(J184<0.0000025),P184>0.0000025) -> TRUE | R184: =VLOOKUP(A184,NDD_Kaplanis!A:D,4,FALSE) -> none | S184: =AND(OR(R184="discordant", R184="none"),OR(J184<0.0000025)) -> TRUE | T184: =VLOOKUP(A184,DDG2P_3_5_2022!A:E,3,FALSE) ->  | U184: =VLOOKUP(A184,DDG2P_3_5_2022!A:E,5,FALSE) ->  | V184: =AND(ISNA(T184),OR(J184<0.0000025)) -> TRUE | W184: =N184/J184 -> 4.49E+01
A185: USP9X | B185: =VLOOKUP(A185,NDD_Kaplanis!A:AI,6,FALSE)+VLOOKUP(A185,NDD_Kaplanis!A:AI,13,FALSE)+VLOOKUP(A185,NDD_Kaplanis!A:AI,14,FALSE)+VLOOKUP(A185,NDD_Kaplanis!A:AI,15,FALSE) -> 15 | C185: =VLOOKUP(A185,NDD_Kaplanis!A:AI,10,FALSE) -> 8 | D185: =_xlfn.IFNA(VLOOKUP(A185,NDD_repeat_variants!A:F,6,FALSE),0) -> 0 | E185: =_xlfn.IFNA(VLOOKUP(A185,NDD_repeat_residues!A:F,5,FALSE),0) -> 0 | F185: =VLOOKUP(A185,NDD.gMVP!A:E,3,FALSE) -> 8 | G185: =IF(VLOOKUP(A185,NDD.CADD!A:F,3,FALSE)=0,"",VLOOKUP(A185,NDD.CADD!A:F,3,FALSE)) -> 7 | H185: =VLOOKUP(A185,'NDD.gMVP.pois'!A:E,5,FALSE) -> 4.42E-05 | I185: =IF(VLOOKUP(A185,'NDD.gMVP.cluster'!A:E,5,FALSE)=0,"",VLOOKUP(A185,'NDD.gMVP.cluster'!A:E,5,FALSE)) -> 2.57E-04 | J185: =VLOOKUP(A185,NDD.gMVP!A:E,5, FALSE) -> 2.19E-07 | K185: =VLOOKUP(A185,'NDD.CADD.pois'!A:E,5,FALSE) -> 2.71E-05 | L185: =IF(VLOOKUP(A185,'NDD.CADD.cluster'!A:E,5,FALSE)=0,"",VLOOKUP(A185,'NDD.CADD.cluster'!A:E,5,FALSE)) -> 2.54E-03 | M185: =VLOOKUP(A185,NDD.CADD!A:F,5,FALSE) -> 1.21E-06 | N185: =VLOOKUP(A185,NDD_Kaplanis!A:AI,25,FALSE) -> 1.02E-04 | O185: =AND(N185>0.0000025,OR(J185<0.0000025)) -> TRUE | P185: =VLOOKUP(A185,NDD_Kaplanis!A:AI,26,FALSE) -> 1.00E-14 | Q185: =AND(OR(J185<0.0000025),P185>0.0000025) -> FALSE | R185: =VLOOKUP(A185,NDD_Kaplanis!A:D,4,FALSE) -> consensus | S185: =AND(OR(R185="discordant", R185="none"),OR(J185<0.0000025)) -> FALSE | T185: =VLOOKUP(A185,DDG2P_3_5_2022!A:E,3,FALSE) -> INTELLECTUAL DEVELOPMENTAL DISORDER, X-LINKED 99 | U185: =VLOOKUP(A185,DDG2P_3_5_2022!A:E,5,FALSE) -> strong | V185: =AND(ISNA(T185),OR(J185<0.0000025)) -> FALSE | W185: =N185/J185 -> 4.66E+02
A186: ERF | B186: =VLOOKUP(A186,NDD_Kaplanis!A:AI,6,FALSE)+VLOOKUP(A186,NDD_Kaplanis!A:AI,13,FALSE)+VLOOKUP(A186,NDD_Kaplanis!A:AI,14,FALSE)+VLOOKUP(A186,NDD_Kaplanis!A:AI,15,FALSE) -> 3 | C186: =VLOOKUP(A186,NDD_Kaplanis!A:AI,10,FALSE) -> 6 | D186: =_xlfn.IFNA(VLOOKUP(A186,NDD_repeat_variants!A:F,6,FALSE),0) -> 0 | E186: =_xlfn.IFNA(VLOOKUP(A186,NDD_repeat_residues!A:F,5,FALSE),0) -> 1 | F186: =VLOOKUP(A186,NDD.gMVP!A:E,3,FALSE) -> 4 | G186: =IF(VLOOKUP(A186,NDD.CADD!A:F,3,FALSE)=0,"",VLOOKUP(A186,NDD.CADD!A:F,3,FALSE)) -> 5 | H186: =VLOOKUP(A186,'NDD.gMVP.pois'!A:E,5,FALSE) -> 4.38E-05 | I186: =IF(VLOOKUP(A186,'NDD.gMVP.cluster'!A:E,5,FALSE)=0,"",VLOOKUP(A186,'NDD.gMVP.cluster'!A:E,5,FALSE)) -> 3.04E-04 | J186: =VLOOKUP(A186,NDD.gMVP!A:E,5, FALSE) -> 2.55E-07 | K186: =VLOOKUP(A186,'NDD.CADD.pois'!A:E,5,FALSE) -> 8.97E-05 | L186: =IF(VLOOKUP(A186,'NDD.CADD.cluster'!A:E,5,FALSE)=0,"",VLOOKUP(A186,'NDD.CADD.cluster'!A:E,5,FALSE)) -> 5.85E-04 | M186: =VLOOKUP(A186,NDD.CADD!A:F,5,FALSE) -> 9.32E-07 | N186: =VLOOKUP(A186,NDD_Kaplanis!A:AI,25,FALSE) -> 2.61E-04 | O186: =AND(N186>0.0000025,OR(J186<0.0000025)) -> TRUE | P186: =VLOOKUP(A186,NDD_Kaplanis!A:AI,26,FALSE) -> 2.63E-08 | Q186: =AND(OR(J186<0.0000025),P186>0.0000025) -> FALSE | R186: =VLOOKUP(A186,NDD_Kaplanis!A:D,4,FALSE) -> consensus | S186: =AND(OR(R186="discordant", R186="none"),OR(J186<0.0000025)) -> FALSE | T186: =VLOOKUP(A186,DDG2P_3_5_2022!A:E,3,FALSE) -> COMPLEX CRANIOSYNOSTOSIS | U186: =VLOOKUP(A186,DDG2P_3_5_2022!A:E,5,FALSE) -> definitive | V186: =AND(ISNA(T186),OR(J186<0.0000025)) -> FALSE | W186: =N186/J186 -> 1.02E+03
A187: FGFR1 | B187: =VLOOKUP(A187,NDD_Kaplanis!A:AI,6,FALSE)+VLOOKUP(A187,NDD_Kaplanis!A:AI,13,FALSE)+VLOOKUP(A187,NDD_Kaplanis!A:AI,14,FALSE)+VLOOKUP(A187,NDD_Kaplanis!A:AI,15,FALSE) -> 0 | C187: =VLOOKUP(A187,NDD_Kaplanis!A:AI,10,FALSE) -> 6 | D187: =_xlfn.IFNA(VLOOKUP(A187,NDD_repeat_variants!A:F,6,FALSE),0) -> 0 | E187: =_xlfn.IFNA(VLOOKUP(A187,NDD_repeat_residues!A:F,5,FALSE),0) -> 1 | F187: =VLOOKUP(A187,NDD.gMVP!A:E,3,FALSE) -> 6 | G187: =IF(VLOOKUP(A187,NDD.CADD!A:F,3,FALSE)=0,"",VLOOKUP(A187,NDD.CADD!A:F,3,FALSE)) -> 6 | H187: =VLOOKUP(A187,'NDD.gMVP.pois'!A:E,5,FALSE) -> 3.90E-04 | I187: =IF(VLOOKUP(A187,'NDD.gMVP.cluster'!A:E,5,FALSE)=0,"",VLOOKUP(A187,'NDD.gMVP.cluster'!A:E,5,FALSE)) -> 3.42E-05 | J187: =VLOOKUP(A187,NDD.gMVP!A:E,5, FALSE) -> 2.55E-07 | K187: =VLOOKUP(A187,'NDD.CADD.pois'!A:E,5,FALSE) -> 2.02E-04 | L187: =IF(VLOOKUP(A187,'NDD.CADD.cluster'!A:E,5,FALSE)=0,"",VLOOKUP(A187,'NDD.CADD.cluster'!A:E,5,FALSE)) -> 6.31E-05 | M187: =VLOOKUP(A187,NDD.CADD!A:F,5,FALSE) -> 2.44E-07 | N187: =VLOOKUP(A187,NDD_Kaplanis!A:AI,25,FALSE) -> 2.78E-04 | O187: =AND(N187>0.0000025,OR(J187<0.0000025)) -> TRUE | P187: =VLOOKUP(A187,NDD_Kaplanis!A:AI,26,FALSE) -> 2.78E-04 | Q187: =AND(OR(J187<0.0000025),P187>0.0000025) -> TRUE | R187: =VLOOKUP(A187,NDD_Kaplanis!A:D,4,FALSE) -> consensus | S187: =AND(OR(R187="discordant", R187="none"),OR(J187<0.0000025)) -> FALSE | T187: =VLOOKUP(A187,DDG2P_3_5_2022!A:E,3,FALSE) -> OSTEOGLOPHONIC DYSPLASIA | U187: =VLOOKUP(A187,DDG2P_3_5_2022!A:E,5,FALSE) -> definitive | V187: =AND(ISNA(T187),OR(J187<0.0000025)) -> FALSE | W187: =N187/J187 -> 1.09E+03
A188: BICD2 | B188: =VLOOKUP(A188,NDD_Kaplanis!A:AI,6,FALSE)+VLOOKUP(A188,NDD_Kaplanis!A:AI,13,FALSE)+VLOOKUP(A188,NDD_Kaplanis!A:AI,14,FALSE)+VLOOKUP(A188,NDD_Kaplanis!A:AI,15,FALSE) -> 1 | C188: =VLOOKUP(A188,NDD_Kaplanis!A:AI,10,FALSE) -> 9 | D188: =_xlfn.IFNA(VLOOKUP(A188,NDD_repeat_variants!A:F,6,FALSE),0) -> 0 | E188: =_xlfn.IFNA(VLOOKUP(A188,NDD_repeat_residues!A:F,5,FALSE),0) -> 1 | F188: =VLOOKUP(A188,NDD.gMVP!A:E,3,FALSE) -> 6 | G188: =IF(VLOOKUP(A188,NDD.CADD!A:F,3,FALSE)=0,"",VLOOKUP(A188,NDD.CADD!A:F,3,FALSE)) -> 7 | H188: =VLOOKUP(A188,'NDD.gMVP.pois'!A:E,5,FALSE) -> 4.38E-06 | I188: =IF(VLOOKUP(A188,'NDD.gMVP.cluster'!A:E,5,FALSE)=0,"",VLOOKUP(A188,'NDD.gMVP.cluster'!A:E,5,FALSE)) -> 3.19E-03 | J188: =VLOOKUP(A188,NDD.gMVP!A:E,5, FALSE) -> 2.66E-07 | K188: =VLOOKUP(A188,'NDD.CADD.pois'!A:E,5,FALSE) -> 2.92E-05 | L188: =IF(VLOOKUP(A188,'NDD.CADD.cluster'!A:E,5,FALSE)=0,"",VLOOKUP(A188,'NDD.CADD.cluster'!A:E,5,FALSE)) -> 3.88E-02 | M188: =VLOOKUP(A188,NDD.CADD!A:F,5,FALSE) -> 1.66E-05 | N188: =VLOOKUP(A188,NDD_Kaplanis!A:AI,25,FALSE) -> 6.76E-06 | O188: =AND(N188>0.0000025,OR(J188<0.0000025)) -> TRUE | P188: =VLOOKUP(A188,NDD_Kaplanis!A:AI,26,FALSE) -> 6.76E-06 | Q188: =AND(OR(J188<0.0000025),P188>0.0000025) -> TRUE | R188: =VLOOKUP(A188,NDD_Kaplanis!A:D,4,FALSE) -> discordant | S188: =AND(OR(R188="discordant", R188="none"),OR(J188<0.0000025)) -> TRUE | T188: =VLOOKUP(A188,DDG2P_3_5_2022!A:E,3,FALSE) -> PROXIMAL SPINAL MUSCULAR ATROPHY WITH AUTOSOMAL-DOMINANT INHERITANCE | U188: =VLOOKUP(A188,DDG2P_3_5_2022!A:E,5,FALSE) -> definitive | V188: =AND(ISNA(T188),OR(J188<0.0000025)) -> FALSE | W188: =N188/J188 -> 2.54E+01
